Workbook

Sheet basics16
A1: =RANDBETWEEN(10,99) -> 73 | B1: A1 | C1: A2 | D1: A3 | E1: A4 | F1: A5 | G1: A6=Y | I1: rank | J1: =B1 -> A1 | K1: A2 | L1: A3 | M1: A4 | N1: A5 | O1: =G1&"'" -> A6=Y' | P1: validity0 | Q1: direkt | R1: inverz | S1: átlag | T1: double | U1: between1 | V1: validity1 | W1: invalid_between | X1: valid_extrem | Y1: between2 | Z1: validity2 | AB1: =models1!B7 -> X(A1) | AC1: =models1!C7 -> X(A2) | AD1: =models1!D7 -> X(A3) | AE1: =models1!E7 -> X(A4) | AF1: =models1!F7 -> X(A5) | AG1: =AB1 -> X(A1) | AH1: =AC1 -> X(A2) | AI1: X(A3) | AJ1: X(A4) | AK1: X(A5) | AL1: =O1 -> A6=Y' | AN1: direct_stddev | AO1: inverse_stddev | AP1: delta
A2: O1 | B2: 31 | C2: 26 | D2: 30 | E2: 87 | F2: 97 | G2: 55 | I2: =A2 -> O1 | J2: =RANK(B2,B$2:B$17,B$19) -> 14 | K2: =RANK(C2,C$2:C$17,C$19) -> 15 | L2: 16 | M2: 5 | N2: 16 | O2: =G2*1000 -> 55000 | P2: =IF(models1!J1562*models1!Y1562<=0,"valid","invalid") -> valid | Q2: =models1!G1562 -> 40933.8 | R2: =models1!V1562 -> 76426.6 | S2: =AVERAGE(Q2:R2) -> 58680.2 | T2: =models1!AO1562 -> 65397.6 | U2: =IF(MAX(Q2:R2)<T2,0,IF(MIN(Q2:R2)>T2,0,1)) -> 1 | V2: =IF(P2="valid",1,) -> 1 | W2: =IF(V2=1,IF(U2=0,1,0),0) -> 0 | X2: =IF(V2=0,IF(U2=1,1,0),0) -> 0 | Y2: =STDEV(S2:T2) -> 4749.919092 | Z2: =STDEV(models1!J1562,models1!Y1562) -> 45.62960059 | AB2: =J2 -> 14 | AC2: =K2 -> 15 | AD2: 16 | AE2: 5 | AF2: 16 | AG2: =RANK(AB2,AB$2:AB$17,0) -> 3 | AH2: =RANK(AC2,AC$2:AC$17,0) -> 2 | AI2: 1 | AJ2: 12 | AK2: 1 | AL2: 55000 | AN2: =STDEV(AB2:AF2) -> 4.65832588 | AO2: =STDEV(AG2:AK2) -> 4.65832588 | AP2: =ABS(AO2-AN2) -> 8.881784197e-16
A3: O2 | B3: 60 | C3: 44 | D3: 58 | E3: 92 | F3: 19 | G3: 64 | I3: =A3 -> O2 | J3: =RANK(B3,B$2:B$17,B$19) -> 9 | K3: 9 | L3: 7 | M3: 2 | N3: 6 | O3: =G3*1000 -> 64000 | P3: =IF(models1!J1563*models1!Y1563<=0,"valid","invalid") -> invalid | Q3: =models1!G1563 -> 56908 | R3: =models1!V1563 -> 38213.3 | S3: =AVERAGE(Q3:R3) -> 47560.65 | T3: =models1!AO1563 -> 58018.1 | U3: 0 | V3: 0 | W3: =IF(V3=1,IF(U3=0,1,0),0) -> 0 | X3: =IF(V3=0,IF(U3=1,1,0),0) -> 0 | Y3: =STDEV(S3:T3) -> 7394.533809 | Z3: =STDEV(models1!J1563,models1!Y1563) -> 20.65458908 | AB3: =J3 -> 9 | AC3: 9 | AD3: 7 | AE3: 2 | AF3: 6 | AG3: =RANK(AB3,AB$2:AB$17,0) -> 8 | AH3: 8 | AI3: 9 | AJ3: 14 | AK3: 10 | AL3: 64000 | AN3: =STDEV(AB3:AF3) -> 2.880972058 | AO3: =STDEV(AG3:AK3) -> 2.48997992 | AP3: =ABS(AO3-AN3) -> 0.3909921386
A4: O3 | B4: 64 | C4: 86 | D4: 38 | E4: 95 | F4: 26 | G4: 52 | I4: O3 | J4: 5 | K4: 2 | L4: 14 | M4: 1 | N4: 8 | O4: 52000 | P4: =IF(models1!J1564*models1!Y1564<=0,"valid","invalid") -> valid | Q4: =models1!G1564 -> 73880.5 | R4: =models1!V1564 -> 51612.8 | S4: 62746.65 | T4: =models1!AO1564 -> 52928.8 | U4: 1 | V4: 1 | W4: 0 | X4: 0 | Y4: 6942.268312 | Z4: =STDEV(models1!J1564,models1!Y1564) -> 30.27831237 | AB4: 5 | AC4: 2 | AD4: 14 | AE4: 1 | AF4: 8 | AG4: 10 | AH4: 15 | AI4: 3 | AJ4: 16 | AK4: 8 | AL4: 52000 | AN4: 5.244044241 | AO4: 5.319774431 | AP4: 0.07573019046
A5: O4 | B5: 64 | C5: 99 | D5: 58 | E5: 92 | F5: 35 | G5: 37 | I5: O4 | J5: 5 | K5: 1 | L5: 7 | M5: 2 | N5: 9 | O5: 37000 | P5: =IF(models1!J1565*models1!Y1565<=0,"valid","invalid") -> valid | Q5: =models1!G1565 -> 66392.6 | R5: =models1!V1565 -> 32258 | S5: 49325.3 | T5: =models1!AO1565 -> 45294.9 | U5: 1 | V5: 1 | W5: 0 | X5: 0 | Y5: 2849.923171 | Z5: =STDEV(models1!J1565,models1!Y1565) -> 65.23767163 | AB5: 5 | AC5: 1 | AD5: 7 | AE5: 2 | AF5: 9 | AG5: 10 | AH5: 16 | AI5: 9 | AJ5: 14 | AK5: 7 | AL5: 37000 | AN5: 3.346640106 | AO5: 3.701351105 | AP5: 0.3547109985
A6: O5 | B6: 57 | C6: 70 | D6: 62 | E6: 64 | F6: 15 | G6: 53 | I6: O5 | J6: 10 | K6: 5 | L6: 6 | M6: 7 | N6: 2 | O6: 53000 | P6: =IF(models1!J1566*models1!Y1566<=0,"valid","invalid") -> invalid | Q6: =models1!G1566 -> 70885.4 | R6: =models1!V1566 -> 55583 | S6: 63234.2 | T6: =models1!AO1566 -> 53946.7 | U6: 0 | V6: 0 | W6: 0 | X6: 0 | Y6: 6567.25423 | Z6: =STDEV(models1!J1566,models1!Y1566) -> 20.42124384 | AB6: 10 | AC6: 5 | AD6: 6 | AE6: 7 | AF6: 2 | AG6: 7 | AH6: 12 | AI6: 11 | AJ6: 10 | AK6: 13 | AL6: 53000 | AN6: 2.915475947 | AO6: 2.302172887 | AP6: 0.6133030608
A7: O6 | B7: 53 | C7: 39 | D7: 49 | E7: 58 | F7: 16 | G7: 13 | I7: O6 | J7: 13 | K7: 11 | L7: 11 | M7: 10 | N7: 5 | O7: 13000 | P7: =IF(models1!J1567*models1!Y1567<=0,"valid","invalid") -> invalid | Q7: =models1!G1567 -> 33945.1 | R7: =models1!V1567 -> 55583 | S7: 44764.05 | T7: =models1!AO1567 -> 22138.5 | U7: 0 | V7: 0 | W7: 0 | X7: 0 | Y7: 15998.67983 | Z7: =STDEV(models1!J1567,models1!Y1567) -> 117.6908527 | AB7: 13 | AC7: 11 | AD7: 11 | AE7: 10 | AF7: 5 | AG7: 4 | AH7: 6 | AI7: 6 | AJ7: 7 | AK7: 11 | AL7: 13000 | AN7: 3 | AO7: 2.588435821 | AP7: 0.4115641789
A8: O7 | B8: 94 | C8: 33 | D8: 96 | E8: 10 | F8: 63 | G8: 50 | I8: O7 | J8: 1 | K8: 12 | L8: 1 | M8: 16 | N8: 10 | O8: 50000 | P8: =IF(models1!J1568*models1!Y1568<=0,"valid","invalid") -> invalid | Q8: =models1!G1568 -> 62399.1 | R8: =models1!V1568 -> 62034.6 | S8: 62216.85 | T8: =models1!AO1568 -> 50893.1 | U8: 0 | V8: 0 | W8: 0 | X8: 0 | Y8: 8007.100413 | Z8: =STDEV(models1!J1568,models1!Y1568) -> 0.5161879503 | AB8: 1 | AC8: 12 | AD8: 1 | AE8: 16 | AF8: 10 | AG8: 16 | AH8: 5 | AI8: 16 | AJ8: 1 | AK8: 6 | AL8: 50000 | AN8: 6.745368782 | AO8: 6.833739825 | AP8: 0.08837104369
A9: O8 | B9: 78 | C9: 29 | D9: 35 | E9: 46 | F9: 15 | G9: 62 | I9: O8 | J9: 2 | K9: 13 | L9: 15 | M9: 12 | N9: 2 | O9: 62000 | P9: =IF(models1!J1569*models1!Y1569<=0,"valid","invalid") -> valid | Q9: =models1!G1569 -> 61899.9 | R9: =models1!V1569 -> 79900.5 | S9: 70900.2 | T9: =models1!AO1569 -> 64125.3 | U9: 1 | V9: 1 | W9: 0 | X9: 0 | Y9: 4790.577732 | Z9: =STDEV(models1!J1569,models1!Y1569) -> 20.52730986 | AB9: 2 | AC9: 13 | AD9: 15 | AE9: 12 | AF9: 2 | AG9: 14 | AH9: 4 | AI9: 2 | AJ9: 4 | AK9: 13 | AL9: 62000 | AN9: 6.300793601 | AO9: 5.639148872 | AP9: 0.6616447289
A10: O9 | B10: 74 | C10: 66 | D10: 66 | E10: 60 | F10: 25 | G10: 93 | I10: O9 | J10: 4 | K10: 6 | L10: 5 | M10: 8 | N10: 7 | O10: 93000 | P10: =IF(models1!J1570*models1!Y1570<=0,"valid","invalid") -> invalid | Q10: =models1!G1570 -> 88357.1 | R10: =models1!V1570 -> 55583 | S10: 71970.05 | T10: =models1!AO1570 -> 79393.2 | U10: 1 | V10: 0 | W10: 0 | X10: 1 | Y10: 5248.959703 | Z10: =STDEV(models1!J1570,models1!Y1570) -> 24.91844297 | AB10: 4 | AC10: 6 | AD10: 5 | AE10: 8 | AF10: 7 | AG10: 13 | AH10: 10 | AI10: 12 | AJ10: 9 | AK10: 9 | AL10: 93000 | AN10: 1.58113883 | AO10: 1.816590212 | AP10: 0.2354513824
A11: O10 | B11: 16 | C11: 57 | D11: 89 | E11: 36 | F11: 69 | G11: 10 | I11: O10 | J11: 16 | K11: 8 | L11: 3 | M11: 14 | N11: 11 | O11: 10000 | P11: =IF(models1!J1571*models1!Y1571<=0,"valid","invalid") -> valid | Q11: =models1!G1571 -> 9983.9 | R11: =models1!V1571 -> 28287.8 | S11: 19135.85 | T11: =models1!AO1571 -> 13486.7 | U11: 1 | V11: 1 | W11: 0 | X11: 0 | Y11: 3994.552273 | Z11: =STDEV(models1!J1571,models1!Y1571) -> 129.4288252 | AB11: 16 | AC11: 8 | AD11: 3 | AE11: 14 | AF11: 11 | AG11: 1 | AH11: 9 | AI11: 14 | AJ11: 3 | AK11: 5 | AL11: 10000 | AN11: 5.128352562 | AO11: 5.176871642 | AP11: 0.04851908023
A12: O11 | B12: 23 | C12: 24 | D12: 54 | E12: 59 | F12: 71 | G12: 14 | I12: O11 | J12: 15 | K12: 16 | L12: 9 | M12: 9 | N12: 12 | O12: 14000 | P12: =IF(models1!J1572*models1!Y1572<=0,"valid","invalid") -> valid | Q12: =models1!G1572 -> 13977.4 | R12: =models1!V1572 -> 56079.3 | S12: 35028.35 | T12: =models1!AO1572 -> 14250.1 | U12: 1 | V12: 1 | W12: 0 | X12: 0 | Y12: 14692.44148 | Z12: =STDEV(models1!J1572,models1!Y1572) -> 212.6482223 | AB12: 15 | AC12: 16 | AD12: 9 | AE12: 9 | AF12: 12 | AG12: 2 | AH12: 1 | AI12: 7 | AJ12: 8 | AK12: 4 | AL12: 14000 | AN12: 3.271085447 | AO12: 3.049590136 | AP12: 0.2214953104
A13: O12 | B13: 78 | C13: 71 | D13: 81 | E13: 91 | F13: 15 | G13: 99 | I13: O12 | J13: 2 | K13: 4 | L13: 4 | M13: 4 | N13: 2 | O13: 99000 | P13: =IF(models1!J1573*models1!Y1573<=0,"valid","invalid") -> invalid | Q13: =models1!G1573 -> 98840.2 | R13: =models1!V1573 -> 55583 | S13: 77211.6 | T13: =models1!AO1573 -> 83973.6 | U13: 1 | V13: 0 | W13: 0 | X13: 1 | Y13: 4781.456054 | Z13: =STDEV(models1!J1573,models1!Y1573) -> 30.90056634 | AB13: 2 | AC13: 4 | AD13: 4 | AE13: 4 | AF13: 2 | AG13: 14 | AH13: 13 | AI13: 13 | AJ13: 13 | AK13: 13 | AL13: 99000 | AN13: 1.095445115 | AO13: 0.4472135955 | AP13: 0.6482315195
A14: O13 | B14: 61 | C14: 66 | D14: 54 | E14: 46 | F14: 11 | G14: 83 | I14: O13 | J14: 8 | K14: 6 | L14: 9 | M14: 12 | N14: 1 | O14: 83000 | P14: =IF(models1!J1574*models1!Y1574<=0,"valid","invalid") -> invalid | Q14: =models1!G1574 -> 82866 | R14: =models1!V1574 -> 60545.7 | S14: 71705.85 | T14: =models1!AO1574 -> 84482.6 | U14: 0 | V14: 0 | W14: 0 | X14: 0 | Y14: 9034.526567 | Z14: =STDEV(models1!J1574,models1!Y1574) -> 19.01410135 | AB14: 8 | AC14: 6 | AD14: 9 | AE14: 12 | AF14: 1 | AG14: 9 | AH14: 10 | AI14: 7 | AJ14: 4 | AK14: 16 | AL14: 83000 | AN14: 4.086563348 | AO14: 4.438468204 | AP14: 0.3519048559
A15: O14 | B15: 56 | C15: 43 | D15: 95 | E15: 27 | F15: 81 | G15: 75 | I15: O14 | J15: 11 | K15: 10 | L15: 2 | M15: 15 | N15: 14 | O15: 75000 | P15: =IF(models1!J1575*models1!Y1575<=0,"valid","invalid") -> invalid | Q15: =models1!G1575 -> 47423.3 | R15: =models1!V1575 -> 63523.4 | S15: 55473.35 | T15: =models1!AO1575 -> 76339.7 | U15: =IF(MAX(Q15:R15)<T15,0,IF(MIN(Q15:R15)>T15,0,1)) -> 0 | V15: 0 | W15: 0 | X15: 0 | Y15: 14754.73758 | Z15: =STDEV(models1!J1575,models1!Y1575) -> 15.18158259 | AB15: 11 | AC15: 10 | AD15: 2 | AE15: 15 | AF15: 14 | AG15: 6 | AH15: 7 | AI15: 15 | AJ15: 2 | AK15: 3 | AL15: 75000 | AN15: 5.128352562 | AO15: 5.128352562 | AP15: 1.776356839e-15
A16: O15 | B16: 54 | C16: 83 | D16: 47 | E16: 84 | F16: 82 | G16: 96 | I16: O15 | J16: 12 | K16: 3 | L16: 12 | M16: 6 | N16: 15 | O16: 96000 | P16: =IF(models1!J1576*models1!Y1576<=0,"valid","invalid") -> invalid | Q16: =models1!G1576 -> 66392.6 | R16: =models1!V1576 -> 74937.8 | S16: 70665.2 | T16: =models1!AO1576 -> 95679 | U16: =IF(MAX(Q16:R16)<T16,0,IF(MIN(Q16:R16)>T16,0,1)) -> 0 | V16: 0 | W16: 0 | X16: 0 | Y16: 17687.4276 | Z16: =STDEV(models1!J1576,models1!Y1576) -> 6.293250353 | AB16: 12 | AC16: 3 | AD16: 12 | AE16: 6 | AF16: 15 | AG16: 5 | AH16: 14 | AI16: 5 | AJ16: 11 | AK16: 2 | AL16: 96000 | AN16: 4.929503018 | AO16: 4.929503018 | AP16: 0
A17: O16 | B17: 64 | C17: 27 | D17: 42 | E17: 57 | F17: 77 | G17: 70 | I17: O16 | J17: =RANK(B17,B$2:B$17,0) -> 5 | K17: 14 | L17: 13 | M17: 11 | N17: 4 | O17: 70000 | P17: =IF(models1!J1577*models1!Y1577<=0,"valid","invalid") -> valid | Q17: =models1!G1577 -> 50917.7 | R17: =models1!V1577 -> 79900.5 | S17: 65409.1 | T17: =models1!AO1577 -> 65652.1 | U17: =IF(MAX(Q17:R17)<T17,0,IF(MIN(Q17:R17)>T17,0,1)) -> 1 | V17: 1 | W17: 0 | X17: 0 | Y17: 171.8269478 | Z17: =STDEV(models1!J1577,models1!Y1577) -> 29.27422074 | AB17: 5 | AC17: 14 | AD17: 13 | AE17: 11 | AF17: 4 | AG17: 10 | AH17: 3 | AI17: 4 | AJ17: 6 | AK17: 12 | AL17: 70000 | AN17: 4.615192304 | AO17: 3.872983346 | AP17: 0.7422089575
A18: correlation | B18: =CORREL(B2:B16,$G$2:$G$16) -> 0.5500138755 | C18: =CORREL(C2:C16,$G$2:$G$16) -> 0.315039114 | D18: 0.02926739274 | E18: 0.1958469564 | F18: -0.1496828561 | G18: 1 | I18: O16(2) | J18: =MAX(J2:J16) -> 16 | K18: =INT(QUARTILE(K2:K16,3)) -> 11 | L18: =MEDIAN(L2:L16) -> 7 | M18: =INT(QUARTILE(M2:M16,1)) -> 4 | N18: =MIN(N2:N16) -> 1 | O18: =O17 -> 70000 | P18: ratio | Q18: correlation | R18: correlation | T18: correlation | AB18: direct | AC18: direct | AD18: direct | AE18: direct | AF18: direct | AG18: inverse | AH18: inverse | AI18: inverse | AJ18: inverse | AK18: inverse | AL18: double | AM18: max | AN18: =MAX(AN2:AN17) -> 6.745368782 | AO18: =MAX(AO2:AO17) -> 6.833739825 | AP18: =MAX(AP2:AP17) -> 0.7422089575
A19: direction | B19: =IF(B18>0,0,1) -> 0 | C19: =IF(C18>0,0,1) -> 0 | D19: 0 | E19: 0 | F19: 1 | G19: Y | P19: =COUNTIF($P$2:$P$17,"valid")/16 -> 0.4375 | Q19: =CORREL(Q2:Q17,$O$2:$O$17) -> 0.7973924644 | R19: =CORREL(R2:R17,$O$2:$O$17) -> 0.4439278163 | T19: =CORREL(T2:T17,$O$2:$O$17) -> 0.9754781891 | U19: =SUM(U2:U17) -> 9 | W19: =SUM(W2:W17) -> 0 | X19: =SUM(X2:X17) -> 2 | Y19: =SUM(Y2:Y17) -> 127666.1848 | AM19: min | AN19: =MIN(AN2:AN17) -> 1.095445115 | AO19: =MIN(AO2:AO17) -> 0.4472135955 | AP19: =MIN(AP2:AP17) -> 0
AM20: avg | AN20: =AVERAGE(AN2:AN17) -> 4.057953362 | AO20: =AVERAGE(AO2:AO17) -> 3.899531341 | AP20: =AVERAGE(AP2:AP17) -> 0.3027579654
A21: antagonism! | I21: O* | O21: correlation | AM21: stddev | AN21: =STDEV(AN2:AN17) -> 1.575399042 | AO21: =STDEV(AO2:AO17) -> 1.673289876 | AP21: =STDEV(AP2:AP17) -> 0.2595775334
I22: 1 | AM22: median | AN22: =MEDIAN(AN2:AN17) -> 4.350877826 | AO22: =MEDIAN(AO2:AO17) -> 4.155725775 | AP22: 0.2936781191
A23: Consistency-tasks | I23: 1 | O23: =CORREL($B$2:$G$2,B3:G3) -> -0.0533414207
A24: Y=between1 | I24: 1 | O24: -0.1452677488
A25: Y=between2 | I25: 1 | O25: -0.2839938595
A26: Y=validity1 | I26: 1 | O26: -0.6702052821
A27: Y=validity2 | I27: 1 | O27: -0.3167128666
A28: Y=validity-ratio | I28: 1 | O28: -0.4583450163
A29: Xi=model-characteristics | I29: 1 | O29: -0.367409103
I30: 1 | O30: -0.6102401479
I31: 1 | O31: -0.005681358512
I32: 1 | O32: 0.6702538798
I33: 1 | O33: -0.4579864659
I34: 1 | O34: -0.6842054799
I35: 1 | O35: -0.113503693
I36: 1 | O36: 0.518091603
I37: 1 | O37: 0.6605164977
I38: =I22+1 -> 2 | O38: =CORREL($B$3:$G$3,B2:G2) -> -0.0533414207
I39: =I23+1 -> 2
I40: 2 | O40: =CORREL($B$3:$G$3,B4:G4) -> 0.6531377235
I41: 2 | O41: 0.4430878391
I42: 2 | O42: 0.6870110966
I43: 2 | O43: 0.6059215731
I44: 2 | O44: -0.3569338927
I45: 2 | O45: 0.5752053812
I46: 2 | O46: 0.5783617047
I47: 2 | O47: -0.4471047092
I48: 2 | O48: -0.1848149017
I49: 2 | O49: 0.8530336569
I50: 2 | O50: 0.4862886988
I51: 2 | O51: -0.5195528398
I52: 2 | O52: -0.001006630656
I53: 2 | O53: -0.1235806041
I54: 3 | O54: =CORREL($B$4:$G$4,B2:G2) -> -0.1452677488
I55: 3 | O55: =CORREL($B$4:$G$4,B3:G3) -> 0.6531377235
I56: 3
I57: 3 | O57: 0.8910953448
I58: 3 | O58: 0.7288725829
I59: 3 | O59: 0.575540076
I60: 3 | O60: -0.6850235576
I61: 3 | O61: 0.2772925887
I62: 3 | O62: 0.3339741798
I63: 3 | O63: -0.3897979653
I64: 3 | O64: -0.3094674214
I65: 3 | O65: 0.5443735183
I66: 3 | O66: 0.3951611385
I67: 3 | O67: -0.9405219937
I68: 3 | O68: 0.2505194159
I69: 3 | O69: -0.4803014141
I70: 4 | O70: =CORREL($B$5:$G$5,B2:G2) -> -0.2839938595
I71: 4 | O71: =CORREL($B$5:$G$5,B3:G3) -> 0.4430878391
I72: 4 | O72: 0.8910953448
I73: 4
I74: 4 | O74: 0.7347510167
I75: 4 | O75: 0.7111422815
I76: 4 | O76: -0.5207516775
I77: 4 | O77: -0.01951035378
I78: 4 | O78: 0.09807371557
I79: 4 | O79: 0.03647003915
I80: 4 | O80: -0.09854136365
I81: 4 | O81: 0.3405001228
I82: 4 | O82: 0.2024180185
I83: 4 | O83: -0.8027306854
I84: 4 | O84: -0.02675796088
I85: 4 | O85: -0.7539229823
I86: 5 | O86: =CORREL($B$6:$G$6,B2:G2) -> -0.6702052821
I87: 5 | O87: =CORREL($B$6:$G$6,B3:G3) -> 0.6870110966
I88: 5 | O88: 0.7288725829
I89: 5 | O89: 0.7347510167
I90: 5
I91: 5 | O91: 0.6476794268
I92: 5 | O92: -0.1958084963
I93: 5 | O93: 0.4077825263
I94: 5 | O94: 0.6949911093
I95: 5 | O95: -0.1735149944
I96: 5 | O96: -0.5134220379
I97: 5 | O97: 0.835199059
I98: 5 | O98: 0.742603273
I99: 5 | O99: -0.4615821059
I100: 5 | O100: -0.1918166572
I101: 5 | O101: -0.7465418281
I102: 6 | O102: =CORREL($B$7:$G$7,B2:G2) -> -0.3167128666
I103: =I87+1 -> 6 | O103: =CORREL($B$7:$G$7,B3:G3) -> 0.6059215731
I104: 6 | O104: 0.575540076
I105: 6 | O105: 0.7111422815
I106: 6 | O106: 0.6476794268
I107: 6
I108: 6 | O108: 0.01927262523
I109: 6 | O109: 0.2823897545
I110: 6 | O110: 0.1056784194
I111: 6 | O111: 0.07642916293
I112: 6 | O112: 0.1025315592
I113: 6 | O113: 0.3988652561
I114: 6 | O114: 0.07612924151
I115: 6 | O115: -0.4851015918
I116: 6 | O116: -0.6000000387
I117: 6 | O117: -0.4759355551
I118: 7 | O118: =CORREL($B$8:$G$8,B2:G2) -> -0.4583450163
I119: 7 | O119: =CORREL($B$8:$G$8,B3:G3) -> -0.3569338927
I120: 7 | O120: -0.6850235576
I121: 7 | O121: -0.5207516775
I122: 7 | O122: -0.1958084963
I123: 7 | O123: 0.01927262523
I124: 7
I125: 7 | O125: 0.2241429651
I126: 7 | O126: 0.03991312184
I127: 7 | O127: 0.2212245128
I128: 7 | O128: -0.05729107882
I129: 7 | O129: -0.1636800011
I130: 7 | O130: -0.02719742713
I131: 7 | O131: 0.7379543125
I132: 7 | O132: -0.7909133084
I133: 7 | O133: 0.1347440584
I134: 8 | O134: =CORREL($B$9:$G$9,B2:G2) -> -0.367409103
I135: 8 | O135: =CORREL($B$9:$G$9,B3:G3) -> 0.5752053812
I136: 8 | O136: 0.2772925887
I137: 8 | O137: -0.01951035378
I138: 8 | O138: 0.4077825263
I139: 8 | O139: 0.2823897545
I140: 8 | O140: 0.2241429651
I141: 8
I142: 8 | O142: 0.7574123647
I143: 8 | O143: -0.818533587
I144: 8 | O144: -0.6687595389
I145: 8 | O145: 0.6760242783
I146: 8 | O146: 0.6507469734
I147: 8 | O147: -0.2069237054
I148: 8 | O148: -0.1756762596
I149: 8 | O149: 0.2234090677
I150: 9 | O150: =CORREL($B$10:$G$10,B2:G2) -> -0.6102401479
I151: 9 | O151: =CORREL($B$10:$G$10,B3:G3) -> 0.5783617047
I152: 9 | O152: 0.3339741798
I153: 9 | O153: 0.09807371557
I154: 9 | O154: 0.6949911093
I155: 9 | O155: 0.1056784194
I156: 9 | O156: 0.03991312184
I157: 9 | O157: 0.7574123647
I158: 9
I159: 9 | O159: -0.6062223005
I160: 9 | O160: -0.8487219211
I161: 9 | O161: 0.9032130214
I162: 9 | O162: 0.9770828154
I163: 9 | O163: -0.09024626444
I164: 9 | O164: 0.02326882834
I165: 9 | O165: -0.2034514675
I166: 10 | O166: =CORREL($B$11:$G$11,B2:G2) -> -0.005681358512
I167: =I151+1 -> 10 | O167: =CORREL($B$11:$G$11,B3:G3) -> -0.4471047092
I168: 10 | O168: -0.3897979653
I169: 10 | O169: 0.03647003915
I170: 10 | O170: -0.1735149944
I171: 10 | O171: 0.07642916293
I172: 10 | O172: 0.2212245128
I173: 10 | O173: -0.818533587
I174: 10 | O174: -0.6062223005
I175: 10
I176: 10 | O176: 0.6611533301
I177: 10 | O177: -0.4927463361
I178: 10 | O178: -0.5403021832
I179: 10 | O179: 0.4335940519
I180: 10 | O180: -0.3921731805
I181: 10 | O181: -0.4128775208
I182: 11 | O182: =CORREL($B$12:$G$12,B2:G2) -> 0.6702538798
I183: 11 | O183: =CORREL($B$12:$G$12,B3:G3) -> -0.1848149017
I184: 11 | O184: -0.3094674214
I185: 11 | O185: -0.09854136365
I186: 11 | O186: -0.5134220379
I187: 11 | O187: 0.1025315592
I188: 11 | O188: -0.05729107882
I189: 11 | O189: -0.6687595389
I190: 11 | O190: -0.8487219211
I191: 11 | O191: 0.6611533301
I192: 11
I193: 11 | O193: -0.5931459625
I194: 11 | O194: -0.897571898
I195: 11 | O195: 0.1511910325
I196: 11 | O196: -0.140948769
I197: 11 | O197: 0.2004714951
I198: 12 | O198: =CORREL($B$13:$G$13,B2:G2) -> -0.4579864659
I199: 12 | O199: =CORREL($B$13:$G$13,B3:G3) -> 0.8530336569
I200: 12 | O200: 0.5443735183
... 84 more rows

Sheet basics15
A1: =RANDBETWEEN(10,99) -> 77 | B1: A1 | C1: A2 | D1: A3 | E1: A4 | F1: A5 | G1: A6=Y | I1: rank | J1: =B1 -> A1 | K1: A2 | L1: A3 | M1: A4 | N1: A5 | O1: =G1&"'" -> A6=Y' | P1: validity0 | Q1: direkt | R1: inverz | S1: átlag | T1: double | U1: between1 | V1: validity1 | W1: invalid_between | X1: valid_extrem | Y1: between2 | Z1: validity2 | AB1: =models1!B7 -> X(A1) | AC1: =models1!C7 -> X(A2) | AD1: =models1!D7 -> X(A3) | AE1: =models1!E7 -> X(A4) | AF1: =models1!F7 -> X(A5) | AG1: =AB1 -> X(A1) | AH1: =AC1 -> X(A2) | AI1: X(A3) | AJ1: X(A4) | AK1: X(A5) | AL1: =O1 -> A6=Y' | AN1: direct_stddev | AO1: inverse_stddev | AP1: delta
A2: O1 | B2: 87 | C2: 75 | D2: 18 | E2: 22 | F2: 59 | G2: 16 | I2: =A2 -> O1 | J2: =RANK(B2,B$2:B$17,B$19) -> 15 | K2: =RANK(C2,C$2:C$17,C$19) -> 7 | L2: 1 | M2: 12 | N2: 12 | O2: =G2*1000 -> 16000 | P2: =IF(models1!J1462*models1!Y1462<=0,"valid","invalid") -> invalid | Q2: =models1!G1462 -> 29863.2 | R2: =models1!V1462 -> 16878.9 | S2: =AVERAGE(Q2:R2) -> 23371.05 | T2: =models1!AO1462 -> 16089.5 | U2: =IF(MAX(Q2:R2)<T2,0,IF(MIN(Q2:R2)>T2,0,1)) -> 0 | V2: =IF(P2="valid",1,) -> 0 | W2: =IF(V2=1,IF(U2=0,1,0),0) -> 0 | X2: =IF(V2=0,IF(U2=1,1,0),0) -> 0 | Y2: =STDEV(S2:T2) -> 5148.833383 | Z2: =STDEV(models1!J1462,models1!Y1462) -> 57.38878636 | AB2: =J2 -> 15 | AC2: =K2 -> 7 | AD2: 1 | AE2: 12 | AF2: 12 | AG2: =RANK(AB2,AB$2:AB$17,0) -> 2 | AH2: =RANK(AC2,AC$2:AC$17,0) -> 10 | AI2: 16 | AJ2: 3 | AK2: 4 | AL2: 16000 | AN2: =STDEV(AB2:AF2) -> 5.504543578 | AO2: =STDEV(AG2:AK2) -> 5.916079783 | AP2: =ABS(AO2-AN2) -> 0.4115362053
A3: O2 | B3: 26 | C3: 48 | D3: 93 | E3: 22 | F3: 34 | G3: 28 | I3: =A3 -> O2 | J3: =RANK(B3,B$2:B$17,B$19) -> 4 | K3: 10 | L3: 16 | M3: 12 | N3: 5 | O3: =G3*1000 -> 28000 | P3: =IF(models1!J1463*models1!Y1463<=0,"valid","invalid") -> invalid | Q3: =models1!G1463 -> 44557.8 | R3: =models1!V1463 -> 54329 | S3: =AVERAGE(Q3:R3) -> 49443.4 | T3: =models1!AO1463 -> 35296.3 | U3: 0 | V3: 0 | W3: =IF(V3=1,IF(U3=0,1,0),0) -> 0 | X3: =IF(V3=0,IF(U3=1,1,0),0) -> 0 | Y3: =STDEV(S3:T3) -> 10003.51034 | Z3: =STDEV(models1!J1463,models1!Y1463) -> 24.6709556 | AB3: =J3 -> 4 | AC3: 10 | AD3: 16 | AE3: 12 | AF3: 5 | AG3: =RANK(AB3,AB$2:AB$17,0) -> 13 | AH3: 7 | AI3: 1 | AJ3: 3 | AK3: 10 | AL3: 28000 | AN3: =STDEV(AB3:AF3) -> 4.979959839 | AO3: =STDEV(AG3:AK3) -> 4.91934955 | AP3: =ABS(AO3-AN3) -> 0.0606102887
A4: O3 | B4: 73 | C4: 38 | D4: 52 | E4: 45 | F4: 67 | G4: 90 | I4: O3 | J4: 13 | K4: 14 | L4: 9 | M4: 9 | N4: 13 | O4: 90000 | P4: =IF(models1!J1464*models1!Y1464<=0,"valid","invalid") -> invalid | Q4: =models1!G1464 -> 53564.2 | R4: =models1!V1464 -> 75955.1 | S4: 64759.65 | T4: =models1!AO1464 -> 72402.7 | U4: 1 | V4: 0 | W4: 0 | X4: 1 | Y4: 5404.452484 | Z4: =STDEV(models1!J1464,models1!Y1464) -> 17.58574565 | AB4: 13 | AC4: 14 | AD4: 9 | AE4: 9 | AF4: 13 | AG4: 4 | AH4: 3 | AI4: 7 | AJ4: 8 | AK4: 3 | AL4: 90000 | AN4: 2.408318916 | AO4: 2.34520788 | AP4: 0.06311103585
A5: O4 | B5: 54 | C5: 44 | D5: 88 | E5: 50 | F5: 40 | G5: 66 | I5: O4 | J5: 10 | K5: 12 | L5: 14 | M5: 8 | N5: 7 | O5: 66000 | P5: =IF(models1!J1465*models1!Y1465<=0,"valid","invalid") -> valid | Q5: =models1!G1465 -> 45979.9 | R5: =models1!V1465 -> 68043.1 | S5: 57011.5 | T5: =models1!AO1465 -> 66369.2 | U5: 1 | V5: 1 | W5: 0 | X5: 0 | Y5: 6616.893126 | Z5: =STDEV(models1!J1465,models1!Y1465) -> 23.6385797 | AB5: 10 | AC5: 12 | AD5: 14 | AE5: 8 | AF5: 7 | AG5: 7 | AH5: 5 | AI5: 2 | AJ5: 9 | AK5: 9 | AL5: 66000 | AN5: 2.863564213 | AO5: 2.966479395 | AP5: 0.1029151822
A6: O5 | B6: 11 | C6: 82 | D6: 48 | E6: 69 | F6: 43 | G6: 77 | I6: O5 | J6: 1 | K6: 6 | L6: 7 | M6: 7 | N6: 8 | O6: 77000 | P6: =IF(models1!J1466*models1!Y1466<=0,"valid","invalid") -> valid | Q6: =models1!G1466 -> 79161.2 | R6: =models1!V1466 -> 51691.6 | S6: 65426.4 | T6: =models1!AO1466 -> 77430.7 | U6: 1 | V6: 1 | W6: 0 | X6: 0 | Y6: 8488.321933 | Z6: =STDEV(models1!J1466,models1!Y1466) -> 25.22956995 | AB6: 1 | AC6: 6 | AD6: 7 | AE6: 7 | AF6: 8 | AG6: 16 | AH6: 11 | AI6: 9 | AJ6: 10 | AK6: 8 | AL6: 77000 | AN6: 2.774887385 | AO6: 3.1144823 | AP6: 0.3395949154
A7: O6 | B7: 29 | C7: 70 | D7: 79 | E7: 22 | F7: 24 | G7: 51 | I7: O6 | J7: 5 | K7: 8 | L7: 13 | M7: 12 | N7: 3 | O7: 51000 | P7: =IF(models1!J1467*models1!Y1467<=0,"valid","invalid") -> invalid | Q7: =models1!G1467 -> 53090.1 | R7: =models1!V1467 -> 51164.2 | S7: 52127.15 | T7: =models1!AO1467 -> 41229.3 | U7: 0 | V7: 0 | W7: 0 | X7: 0 | Y7: 7705.943635 | Z7: =STDEV(models1!J1467,models1!Y1467) -> 2.672863633 | AB7: 5 | AC7: 8 | AD7: 13 | AE7: 12 | AF7: 3 | AG7: 12 | AH7: 9 | AI7: 4 | AJ7: 3 | AK7: 13 | AL7: 51000 | AN7: 4.324349662 | AO7: 4.549725266 | AP7: 0.2253756043
A8: O7 | B8: 58 | C8: 47 | D8: 54 | E8: 75 | F8: 17 | G8: 60 | I8: O7 | J8: 11 | K8: 11 | L8: 10 | M8: 6 | N8: 1 | O8: 60000 | P8: =IF(models1!J1468*models1!Y1468<=0,"valid","invalid") -> invalid | Q8: =models1!G1468 -> 60674.4 | R8: =models1!V1468 -> 68043.1 | S8: 64358.75 | T8: =models1!AO1468 -> 60335.6 | U8: 0 | V8: 0 | W8: 0 | X8: 0 | Y8: 2844.796647 | Z8: =STDEV(models1!J1468,models1!Y1468) -> 8.690342341 | AB8: 11 | AC8: 11 | AD8: 10 | AE8: 6 | AF8: 1 | AG8: 6 | AH8: 6 | AI8: 6 | AJ8: 11 | AK8: 16 | AL8: 60000 | AN8: 4.324349662 | AO8: 4.472135955 | AP8: 0.1477862929
A9: O8 | B9: 33 | C9: 16 | D9: 38 | E9: 99 | F9: 94 | G9: 33 | I9: O8 | J9: 6 | K9: 16 | L9: 4 | M9: 1 | N9: 16 | O9: 33000 | P9: =IF(models1!J1469*models1!Y1469<=0,"valid","invalid") -> invalid | Q9: =models1!G1469 -> 47401.9 | R9: =models1!V1469 -> 39559.9 | S9: 43480.9 | T9: =models1!AO1469 -> 40726.5 | U9: 1 | V9: 0 | W9: 0 | X9: 1 | Y9: 1947.654918 | Z9: =STDEV(models1!J1469,models1!Y1469) -> 16.80085712 | AB9: 6 | AC9: 16 | AD9: 4 | AE9: 1 | AF9: 16 | AG9: 11 | AH9: 1 | AI9: 12 | AJ9: 16 | AK9: 1 | AL9: 33000 | AN9: 6.985699679 | AO9: 6.833739825 | AP9: 0.1519598533
A10: O9 | B10: 35 | C10: 99 | D10: 59 | E10: 14 | F10: 54 | G10: 69 | I10: O9 | J10: 7 | K10: 1 | L10: 11 | M10: 15 | N10: 11 | O10: 69000 | P10: =IF(models1!J1470*models1!Y1470<=0,"valid","invalid") -> valid | Q10: =models1!G1470 -> 65414.6 | R10: =models1!V1470 -> 71735.3 | S10: 68574.95 | T10: =models1!AO1470 -> 69385.9 | U10: 1 | V10: 1 | W10: 0 | X10: 0 | Y10: 573.4282442 | Z10: =STDEV(models1!J1470,models1!Y1470) -> 6.477098116 | AB10: 7 | AC10: 1 | AD10: 11 | AE10: 15 | AF10: 11 | AG10: 10 | AH10: 16 | AI10: 5 | AJ10: 2 | AK10: 5 | AL10: 69000 | AN10: 5.291502622 | AO10: 5.504543578 | AP10: 0.2130409557
A11: O10 | B11: 16 | C11: 23 | D11: 32 | E11: 93 | F11: 52 | G11: 48 | I11: O10 | J11: 3 | K11: 15 | L11: 3 | M11: 2 | N11: 10 | O11: 48000 | P11: =IF(models1!J1471*models1!Y1471<=0,"valid","invalid") -> invalid | Q11: =models1!G1471 -> 54512.2 | R11: =models1!V1471 -> 50636.7 | S11: 52574.45 | T11: =models1!AO1471 -> 48268.5 | U11: 0 | V11: 0 | W11: 0 | X11: 0 | Y11: 3044.766444 | Z11: =STDEV(models1!J1471,models1!Y1471) -> 5.713422792 | AB11: 3 | AC11: 15 | AD11: 3 | AE11: 2 | AF11: 10 | AG11: 14 | AH11: 2 | AI11: 14 | AJ11: 15 | AK11: 6 | AL11: 48000 | AN11: 5.683308895 | AO11: 5.848076607 | AP11: 0.1647677115
A12: O11 | B12: 14 | C12: 98 | D12: 44 | E12: 86 | F12: 18 | G12: 75 | I12: O11 | J12: 2 | K12: 2 | L12: 6 | M12: 4 | N12: 2 | O12: 75000 | P12: =IF(models1!J1472*models1!Y1472<=0,"valid","invalid") -> valid | Q12: =models1!G1472 -> 79161.2 | R12: =models1!V1472 -> 50636.7 | S12: 64898.95 | T12: =models1!AO1472 -> 75419.5 | U12: 1 | V12: 1 | W12: 0 | X12: 0 | Y12: 7439.152247 | Z12: =STDEV(models1!J1472,models1!Y1472) -> 26.89127089 | AB12: 2 | AC12: 2 | AD12: 6 | AE12: 4 | AF12: 2 | AG12: 15 | AH12: 15 | AI12: 10 | AJ12: 13 | AK12: 15 | AL12: 75000 | AN12: 1.788854382 | AO12: 2.19089023 | AP12: 0.402035848
A13: O12 | B13: 98 | C13: 65 | D13: 88 | E13: 30 | F13: 93 | G13: 21 | I13: O12 | J13: 16 | K13: 9 | L13: 14 | M13: 10 | N13: 15 | O13: 21000 | P13: =IF(models1!J1473*models1!Y1473<=0,"valid","invalid") -> valid | Q13: =models1!G1473 -> 19434.8 | R13: =models1!V1473 -> 53801.5 | S13: 36618.15 | T13: =models1!AO1473 -> 31676.2 | U13: 1 | V13: 1 | W13: 0 | X13: 0 | Y13: 3494.486357 | Z13: =STDEV(models1!J1473,models1!Y1473) -> 115.7180247 | AB13: 16 | AC13: 9 | AD13: 14 | AE13: 10 | AF13: 15 | AG13: 1 | AH13: 8 | AI13: 2 | AJ13: 7 | AK13: 2 | AL13: 21000 | AN13: 3.1144823 | AO13: 3.240370349 | AP13: 0.1258880487
A14: O13 | B14: 60 | C14: 43 | D14: 49 | E14: 13 | F14: 31 | G14: 92 | I14: O13 | J14: 12 | K14: 13 | L14: 8 | M14: 16 | N14: 4 | O14: 92000 | P14: =IF(models1!J1474*models1!Y1474<=0,"valid","invalid") -> valid | Q14: =models1!G1474 -> 57356.3 | R14: =models1!V1474 -> 97053.7 | S14: 77205 | T14: =models1!AO1474 -> 92514.6 | U14: 1 | V14: 1 | W14: 0 | X14: 0 | Y14: 10825.52198 | Z14: =STDEV(models1!J1474,models1!Y1474) -> 30.51165761 | AB14: 12 | AC14: 13 | AD14: 8 | AE14: 16 | AF14: 4 | AG14: 5 | AH14: 4 | AI14: 8 | AJ14: 1 | AK14: 12 | AL14: 92000 | AN14: 4.669047012 | AO14: 4.183300133 | AP14: 0.4857468793
A15: O14 | B15: 81 | C15: 91 | D15: 38 | E15: 27 | F15: 51 | G15: 47 | I15: O14 | J15: 14 | K15: 4 | L15: 4 | M15: 11 | N15: 9 | O15: 47000 | P15: =IF(models1!J1475*models1!Y1475<=0,"valid","invalid") -> invalid | Q15: =models1!G1475 -> 36973.5 | R15: =models1!V1475 -> 33230.3 | S15: 35101.9 | T15: =models1!AO1475 -> 45754.5 | U15: =IF(MAX(Q15:R15)<T15,0,IF(MIN(Q15:R15)>T15,0,1)) -> 0 | V15: 0 | W15: 0 | X15: 0 | Y15: 7532.525697 | Z15: =STDEV(models1!J1475,models1!Y1475) -> 5.635641046 | AB15: 14 | AC15: 4 | AD15: 4 | AE15: 11 | AF15: 9 | AG15: 3 | AH15: 12 | AI15: 12 | AJ15: 6 | AK15: 7 | AL15: 47000 | AN15: 4.393176527 | AO15: 3.937003937 | AP15: 0.4561725903
A16: O15 | B16: 50 | C16: 91 | D16: 28 | E16: 90 | F16: 34 | G16: 41 | I16: O15 | J16: 9 | K16: 4 | L16: 2 | M16: 3 | N16: 5 | O16: 41000 | P16: =IF(models1!J1476*models1!Y1476<=0,"valid","invalid") -> valid | Q16: =models1!G1476 -> 62096.5 | R16: =models1!V1476 -> 29538.1 | S16: 45817.3 | T16: =models1!AO1476 -> 36201.4 | U16: =IF(MAX(Q16:R16)<T16,0,IF(MIN(Q16:R16)>T16,0,1)) -> 1 | V16: 1 | W16: 0 | X16: 0 | Y16: 6799.468097 | Z16: =STDEV(models1!J1476,models1!Y1476) -> 56.15134949 | AB16: 9 | AC16: 4 | AD16: 2 | AE16: 3 | AF16: 5 | AG16: 8 | AH16: 12 | AI16: 15 | AJ16: 14 | AK16: 10 | AL16: 41000 | AN16: 2.701851217 | AO16: 2.863564213 | AP16: 0.1617129954
A17: O16 | B17: 45 | C17: 94 | D17: 74 | E17: 84 | F17: 72 | G17: 31 | I17: O16 | J17: =RANK(B17,B$2:B$17,0) -> 9 | K17: 3 | L17: 5 | M17: 5 | N17: 3 | O17: 31000 | P17: =IF(models1!J1477*models1!Y1477<=0,"valid","invalid") -> invalid | Q17: =models1!G1477 -> 58304.3 | R17: =models1!V1477 -> 32702.9 | S17: 45503.6 | T17: =models1!AO1477 -> 35899.7 | U17: =IF(MAX(Q17:R17)<T17,0,IF(MIN(Q17:R17)>T17,0,1)) -> 1 | V17: 0 | W17: 0 | X17: 1 | Y17: 6790.982816 | Z17: =STDEV(models1!J1477,models1!Y1477) -> 58.39994906 | AB17: 9 | AC17: 3 | AD17: 5 | AE17: 5 | AF17: 3 | AG17: 8 | AH17: 14 | AI17: 11 | AJ17: 12 | AK17: 13 | AL17: 31000 | AN17: 2.449489743 | AO17: 2.302172887 | AP17: 0.1473168561
A18: correlation | B18: =CORREL(B2:B16,$G$2:$G$16) -> -0.2712668597 | C18: =CORREL(C2:C16,$G$2:$G$16) -> 0.02704413369 | D18: -0.00658256792 | E18: 0.009882348309 | F18: -0.4012844303 | G18: 1 | I18: O16(2) | J18: =MAX(J2:J16) -> 16 | K18: =INT(QUARTILE(K2:K16,3)) -> 12 | L18: =MEDIAN(L2:L16) -> 8 | M18: =INT(QUARTILE(M2:M16,1)) -> 5 | N18: =MIN(N2:N16) -> 1 | O18: =O17 -> 31000 | P18: ratio | Q18: correlation | R18: correlation | T18: correlation | AB18: direct | AC18: direct | AD18: direct | AE18: direct | AF18: direct | AG18: inverse | AH18: inverse | AI18: inverse | AJ18: inverse | AK18: inverse | AL18: double | AM18: max | AN18: =MAX(AN2:AN17) -> 6.985699679 | AO18: =MAX(AO2:AO17) -> 6.833739825 | AP18: =MAX(AP2:AP17) -> 0.4857468793
A19: direction | B19: =IF(B18>0,0,1) -> 1 | C19: =IF(C18>0,0,1) -> 0 | D19: 1 | E19: 0 | F19: 1 | G19: Y | P19: =COUNTIF($P$2:$P$17,"valid")/16 -> 0.4375 | Q19: =CORREL(Q2:Q17,$O$2:$O$17) -> 0.6458874208 | R19: =CORREL(R2:R17,$O$2:$O$17) -> 0.7595188872 | T19: =CORREL(T2:T17,$O$2:$O$17) -> 0.962807786 | U19: =SUM(U2:U17) -> 10 | W19: =SUM(W2:W17) -> 0 | X19: =SUM(X2:X17) -> 3 | Y19: =SUM(Y2:Y17) -> 94660.73835 | AM19: min | AN19: =MIN(AN2:AN17) -> 1.788854382 | AO19: =MIN(AO2:AO17) -> 2.19089023 | AP19: =MIN(AP2:AP17) -> 0.0606102887
AM20: avg | AN20: =AVERAGE(AN2:AN17) -> 4.016086602 | AO20: =AVERAGE(AO2:AO17) -> 4.074195118 | AP20: =AVERAGE(AP2:AP17) -> 0.2287232039
A21: antagonism! | I21: O* | O21: correlation | AM21: stddev | AN21: =STDEV(AN2:AN17) -> 1.472792687 | AO21: =STDEV(AO2:AO17) -> 1.444874764 | AP21: =STDEV(AP2:AP17) -> 0.1422544825
I22: 1 | AM22: median | AN22: =MEDIAN(AN2:AN17) -> 4.324349662 | AO22: =MEDIAN(AO2:AO17) -> 4.060152035 | AP22: 0.1632403535
A23: Consistency-tasks | I23: 1 | O23: =CORREL($B$2:$G$2,B3:G3) -> -0.2655789443
A24: Y=between1 | I24: 1 | O24: -0.1082438766
A25: Y=between2 | I25: 1 | O25: -0.6088646046
A26: Y=validity1 | I26: 1 | O26: -0.4723768457
A27: Y=validity2 | I27: 1 | O27: -0.2023414445
A28: Y=validity-ratio | I28: 1 | O28: -0.3936399363
A29: Xi=model-characteristics | I29: 1 | O29: -0.2607612941
I30: 1 | O30: 0.1955751619
I31: 1 | O31: -0.5985079063
I32: 1 | O32: -0.3473769873
I33: 1 | O33: 0.6161163975
I34: 1 | O34: -0.09023394074
I35: 1 | O35: 0.8764674569
I36: 1 | O36: 0.2048778123
I37: 1 | O37: 0.1120145402
I38: =I22+1 -> 2 | O38: =CORREL($B$3:$G$3,B2:G2) -> -0.2655789443
I39: =I23+1 -> 2
I40: 2 | O40: =CORREL($B$3:$G$3,B4:G4) -> -0.3565545044
I41: 2 | O41: 0.7229914635
I42: 2 | O42: 0.004794933514
I43: 2 | O43: 0.8171023752
I44: 2 | O44: -0.122242641
I45: 2 | O45: -0.3489132224
I46: 2 | O46: 0.3662947915
I47: 2 | O47: -0.3758348238
I48: 2 | O48: -0.05255807996
I49: 2 | O49: 0.3910469286
I50: 2 | O50: 0.01366326141
I51: 2 | O51: -0.1087641501
I52: 2 | O52: -0.3800377233
I53: 2 | O53: 0.3114213194
I54: 3 | O54: =CORREL($B$4:$G$4,B2:G2) -> -0.1082438766
I55: 3 | O55: =CORREL($B$4:$G$4,B3:G3) -> -0.3565545044
I56: 3
I57: 3 | O57: 0.1487269541
I58: 3 | O58: -0.287956742
I59: 3 | O59: -0.274027377
I60: 3 | O60: -0.09399598536
I61: 3 | O61: -0.09507352806
I62: 3 | O62: -0.08212039529
I63: 3 | O63: -0.1354240288
I64: 3 | O64: -0.4379616865
I65: 3 | O65: -0.1105927274
I66: 3 | O66: 0.7591377923
I67: 3 | O67: -0.07012492886
I68: 3 | O68: -0.6393151283
I69: 3 | O69: -0.9599296104
I70: 4 | O70: =CORREL($B$5:$G$5,B2:G2) -> -0.6088646046
I71: 4 | O71: =CORREL($B$5:$G$5,B3:G3) -> 0.7229914635
I72: 4 | O72: 0.1487269541
I73: 4
I74: 4 | O74: -0.05622264721
I75: 4 | O75: 0.6199758636
I76: 4 | O76: 0.3590752321
I77: 4 | O77: -0.3617110874
I78: 4 | O78: 0.01636045509
I79: 4 | O79: -0.1870042112
I80: 4 | O80: -0.05869288651
I81: 4 | O81: -0.004417410906
I82: 4 | O82: 0.4168666792
I83: 4 | O83: -0.3995368983
I84: 4 | O84: -0.5283753073
I85: 4 | O85: -0.2817868529
I86: 5 | O86: =CORREL($B$6:$G$6,B2:G2) -> -0.4723768457
I87: 5 | O87: =CORREL($B$6:$G$6,B3:G3) -> 0.004794933514
I88: 5 | O88: -0.287956742
I89: 5 | O89: -0.05622264721
I90: 5
I91: 5 | O91: 0.3668878014
I92: 5 | O92: 0.1956620163
I93: 5 | O93: -0.06454963937
I94: 5 | O94: 0.4616707465
I95: 5 | O95: 0.3866470438
I96: 5 | O96: 0.9179204424
I97: 5 | O97: -0.7682479194
I98: 5 | O98: 0.003353111897
I99: 5 | O99: -0.1724409551
I100: 5 | O100: 0.4880298249
I101: 5 | O101: 0.324414172
I102: 6 | O102: =CORREL($B$7:$G$7,B2:G2) -> -0.2023414445
I103: =I87+1 -> 6 | O103: =CORREL($B$7:$G$7,B3:G3) -> 0.8171023752
I104: 6 | O104: -0.274027377
I105: 6 | O105: 0.6199758636
I106: 6 | O106: 0.3668878014
I107: 6
I108: 6 | O108: 0.04257263976
I109: 6 | O109: -0.7264402939
I110: 6 | O110: 0.7263021929
I111: 6 | O111: -0.513382081
I112: 6 | O112: 0.3491168398
I113: 6 | O113: 0.04935078447
I114: 6 | O114: 0.3446184338
I115: 6 | O115: 0.1889338914
I116: 6 | O116: -0.1129579484
I117: 6 | O117: 0.187774589
I118: 7 | O118: =CORREL($B$8:$G$8,B2:G2) -> -0.3936399363
I119: 7 | O119: =CORREL($B$8:$G$8,B3:G3) -> -0.122242641
I120: 7 | O120: -0.09399598536
I121: 7 | O121: 0.3590752321
I122: 7 | O122: 0.1956620163
I123: 7 | O123: 0.04257263976
I124: 7
I125: 7 | O125: -0.1473275315
I126: 7 | O126: -0.3996989218
I127: 7 | O127: 0.2941635633
I128: 7 | O128: 0.4865261237
I129: 7 | O129: -0.5848730655
I130: 7 | O130: 0.0923117147
I131: 7 | O131: -0.2579019267
I132: 7 | O132: 0.4292836574
I133: 7 | O133: -0.1399203289
I134: 8 | O134: =CORREL($B$9:$G$9,B2:G2) -> -0.2607612941
I135: 8 | O135: =CORREL($B$9:$G$9,B3:G3) -> -0.3489132224
I136: 8 | O136: -0.09507352806
I137: 8 | O137: -0.3617110874
I138: 8 | O138: -0.06454963937
I139: 8 | O139: -0.7264402939
I140: 8 | O140: -0.1473275315
I141: 8
I142: 8 | O142: -0.6831920248
I143: 8 | O143: 0.8234807152
I144: 8 | O144: -0.173987157
I145: 8 | O145: -0.09938442903
I146: 8 | O146: -0.6882231308
I147: 8 | O147: -0.6565249438
I148: 8 | O148: 0.04175167447
I149: 8 | O149: 0.247066439
I150: 9 | O150: =CORREL($B$10:$G$10,B2:G2) -> 0.1955751619
I151: 9 | O151: =CORREL($B$10:$G$10,B3:G3) -> 0.3662947915
I152: 9 | O152: -0.08212039529
I153: 9 | O153: 0.01636045509
I154: 9 | O154: 0.4616707465
I155: 9 | O155: 0.7263021929
I156: 9 | O156: -0.3996989218
I157: 9 | O157: -0.6831920248
I158: 9
I159: 9 | O159: -0.5880268945
I160: 9 | O160: 0.3300183592
I161: 9 | O161: 0.04598782318
I162: 9 | O162: 0.411946264
I163: 9 | O163: 0.5603666777
I164: 9 | O164: -0.008360983802
I165: 9 | O165: 0.1291220831
I166: 10 | O166: =CORREL($B$11:$G$11,B2:G2) -> -0.5985079063
I167: =I151+1 -> 10 | O167: =CORREL($B$11:$G$11,B3:G3) -> -0.3758348238
I168: 10 | O168: -0.1354240288
I169: 10 | O169: -0.1870042112
I170: 10 | O170: 0.3866470438
I171: 10 | O171: -0.513382081
I172: 10 | O172: 0.2941635633
I173: 10 | O173: 0.8234807152
I174: 10 | O174: -0.5880268945
I175: 10
I176: 10 | O176: 0.3390598643
I177: 10 | O177: -0.6197342547
I178: 10 | O178: -0.5137643351
I179: 10 | O179: -0.7835453054
I180: 10 | O180: 0.3090562047
I181: 10 | O181: 0.2087311661
I182: 11 | O182: =CORREL($B$12:$G$12,B2:G2) -> -0.3473769873
I183: 11 | O183: =CORREL($B$12:$G$12,B3:G3) -> -0.05255807996
I184: 11 | O184: -0.4379616865
I185: 11 | O185: -0.05869288651
I186: 11 | O186: 0.9179204424
I187: 11 | O187: 0.3491168398
I188: 11 | O188: 0.4865261237
I189: 11 | O189: -0.173987157
I190: 11 | O190: 0.3300183592
I191: 11 | O191: 0.3390598643
I192: 11
I193: 11 | O193: -0.7744911509
I194: 11 | O194: -0.06119141725
I195: 11 | O195: -0.048232211
I196: 11 | O196: 0.726763639
I197: 11 | O197: 0.3761764565
I198: 12 | O198: =CORREL($B$13:$G$13,B2:G2) -> 0.6161163975
I199: 12 | O199: =CORREL($B$13:$G$13,B3:G3) -> 0.3910469286
I200: 12 | O200: -0.1105927274
... 84 more rows

Sheet basics14
A1: =RANDBETWEEN(10,99) -> 95 | B1: A1 | C1: A2 | D1: A3 | E1: A4 | F1: A5 | G1: A6=Y | I1: rank | J1: =B1 -> A1 | K1: A2 | L1: A3 | M1: A4 | N1: A5 | O1: =G1&"'" -> A6=Y' | P1: validity0 | Q1: direkt | R1: inverz | S1: átlag | T1: double | U1: between1 | V1: validity1 | W1: invalid_between | X1: valid_extrem | Y1: between2 | Z1: validity2 | AB1: =models1!B7 -> X(A1) | AC1: =models1!C7 -> X(A2) | AD1: =models1!D7 -> X(A3) | AE1: =models1!E7 -> X(A4) | AF1: =models1!F7 -> X(A5) | AG1: =AB1 -> X(A1) | AH1: =AC1 -> X(A2) | AI1: X(A3) | AJ1: X(A4) | AK1: X(A5) | AL1: =O1 -> A6=Y' | AN1: direct_stddev | AO1: inverse_stddev | AP1: delta
A2: O1 | B2: 63 | C2: 22 | D2: 37 | E2: 78 | F2: 65 | G2: 39 | I2: =A2 -> O1 | J2: =RANK(B2,B$2:B$17,B$19) -> 11 | K2: =RANK(C2,C$2:C$17,C$19) -> 16 | L2: 3 | M2: 5 | N2: 8 | O2: =G2*1000 -> 39000 | P2: =IF(models1!J1362*models1!Y1362<=0,"valid","invalid") -> valid | Q2: =models1!G1362 -> 39000 | R2: =models1!V1362 -> 55498.3 | S2: =AVERAGE(Q2:R2) -> 47249.15 | T2: =models1!AO1362 -> 39000 | U2: =IF(MAX(Q2:R2)<T2,0,IF(MIN(Q2:R2)>T2,0,1)) -> 1 | V2: =IF(P2="valid",1,) -> 1 | W2: =IF(V2=1,IF(U2=0,1,0),0) -> 0 | X2: =IF(V2=0,IF(U2=1,1,0),0) -> 0 | Y2: =STDEV(S2:T2) -> 5833.029904 | Z2: =STDEV(models1!J1362,models1!Y1362) -> 29.91061684 | AB2: =J2 -> 11 | AC2: =K2 -> 16 | AD2: 3 | AE2: 5 | AF2: 8 | AG2: =RANK(AB2,AB$2:AB$17,0) -> 7 | AH2: =RANK(AC2,AC$2:AC$17,0) -> 1 | AI2: 13 | AJ2: 12 | AK2: 9 | AL2: 39000 | AN2: =STDEV(AB2:AF2) -> 5.128352562 | AO2: =STDEV(AG2:AK2) -> 4.774934555 | AP2: =ABS(AO2-AN2) -> 0.3534180075
A3: O2 | B3: 25 | C3: 50 | D3: 85 | E3: 52 | F3: 18 | G3: 28 | I3: =A3 -> O2 | J3: =RANK(B3,B$2:B$17,B$19) -> 3 | K3: 12 | L3: 12 | M3: 8 | N3: 15 | O3: =G3*1000 -> 28000 | P3: =IF(models1!J1363*models1!Y1363<=0,"valid","invalid") -> valid | Q3: =models1!G1363 -> 28000 | R3: =models1!V1363 -> 46735.4 | S3: =AVERAGE(Q3:R3) -> 37367.7 | T3: =models1!AO1363 -> 28000 | U3: 1 | V3: 1 | W3: =IF(V3=1,IF(U3=0,1,0),0) -> 0 | X3: =IF(V3=0,IF(U3=1,1,0),0) -> 0 | Y3: =STDEV(S3:T3) -> 6623.964194 | Z3: =STDEV(models1!J1363,models1!Y1363) -> 47.31251473 | AB3: =J3 -> 3 | AC3: 12 | AD3: 12 | AE3: 8 | AF3: 15 | AG3: =RANK(AB3,AB$2:AB$17,0) -> 14 | AH3: 5 | AI3: 4 | AJ3: 8 | AK3: 2 | AL3: 28000 | AN3: =STDEV(AB3:AF3) -> 4.636809248 | AO3: =STDEV(AG3:AK3) -> 4.669047012 | AP3: =ABS(AO3-AN3) -> 0.03223776422
A4: O3 | B4: 69 | C4: 89 | D4: 85 | E4: 56 | F4: 30 | G4: 36 | I4: O3 | J4: 13 | K4: 3 | L4: 12 | M4: 7 | N4: 13 | O4: 36000 | P4: =IF(models1!J1364*models1!Y1364<=0,"valid","invalid") -> valid | Q4: =models1!G1364 -> 36000 | R4: =models1!V1364 -> 43814.5 | S4: 39907.25 | T4: =models1!AO1364 -> 36000 | U4: 1 | V4: 1 | W4: 0 | X4: 0 | Y4: 2762.842971 | Z4: =STDEV(models1!J1364,models1!Y1364) -> 15.35128822 | AB4: 13 | AC4: 3 | AD4: 12 | AE4: 7 | AF4: 13 | AG4: 4 | AH4: 13 | AI4: 4 | AJ4: 10 | AK4: 4 | AL4: 36000 | AN4: 4.449719092 | AO4: 4.242640687 | AP4: 0.2070784051
A5: O4 | B5: 30 | C5: 42 | D5: 90 | E5: 16 | F5: 31 | G5: 51 | I5: O4 | J5: 4 | K5: 13 | L5: 15 | M5: 15 | N5: 11 | O5: 51000 | P5: =IF(models1!J1365*models1!Y1365<=0,"valid","invalid") -> valid | Q5: =models1!G1365 -> 48500 | R5: =models1!V1365 -> 64748 | S5: 56624 | T5: =models1!AO1365 -> 51000 | U5: 1 | V5: 1 | W5: 0 | X5: 0 | Y5: 3976.768537 | Z5: =STDEV(models1!J1365,models1!Y1365) -> 22.52842205 | AB5: 4 | AC5: 13 | AD5: 15 | AE5: 15 | AF5: 11 | AG5: 13 | AH5: 4 | AI5: 2 | AJ5: 2 | AK5: 5 | AL5: 51000 | AN5: 4.5607017 | AO5: 4.549725266 | AP5: 0.01097643397
A6: O5 | B6: 87 | C6: 91 | D6: 66 | E6: 97 | F6: 31 | G6: 74 | I6: O5 | J6: 16 | K6: 1 | L6: 7 | M6: 1 | N6: 11 | O6: 74000 | P6: =IF(models1!J1366*models1!Y1366<=0,"valid","invalid") -> valid | Q6: =models1!G1366 -> 74000 | R6: =models1!V1366 -> 72050.4 | S6: 73025.2 | T6: =models1!AO1366 -> 74000 | U6: 1 | V6: 1 | W6: 0 | X6: 0 | Y6: 689.2876903 | Z6: =STDEV(models1!J1366,models1!Y1366) -> 1.859690835 | AB6: 16 | AC6: 1 | AD6: 7 | AE6: 1 | AF6: 11 | AG6: 1 | AH6: 15 | AI6: 11 | AJ6: 16 | AK6: 5 | AL6: 74000 | AN6: 6.496152708 | AO6: 6.46529195 | AP6: 0.03086075747
A7: O6 | B7: 14 | C7: 59 | D7: 37 | E7: 15 | F7: 96 | G7: 89 | I7: O6 | J7: 1 | K7: 10 | L7: 3 | M7: 16 | N7: 1 | O7: 89000 | P7: =IF(models1!J1367*models1!Y1367<=0,"valid","invalid") -> valid | Q7: =models1!G1367 -> 89000 | R7: =models1!V1367 -> 86655.3 | S7: 87827.65 | T7: =models1!AO1367 -> 89000 | U7: 1 | V7: 1 | W7: 0 | X7: 0 | Y7: 828.9766349 | Z7: =STDEV(models1!J1367,models1!Y1367) -> 1.859690835 | AB7: 1 | AC7: 10 | AD7: 3 | AE7: 16 | AF7: 1 | AG7: 16 | AH7: 7 | AI7: 13 | AJ7: 1 | AK7: 16 | AL7: 89000 | AN7: 6.610597552 | AO7: 6.503845017 | AP7: 0.1067525358
A8: O7 | B8: 47 | C8: 91 | D8: 30 | E8: 83 | F8: 88 | G8: 73 | I8: O7 | J8: 8 | K8: 1 | L8: 2 | M8: 3 | N8: 2 | O8: 73000 | P8: =IF(models1!J1368*models1!Y1368<=0,"valid","invalid") -> valid | Q8: =models1!G1368 -> 76000 | R8: =models1!V1368 -> 37972.5 | S8: 56986.25 | T8: =models1!AO1368 -> 73000 | U8: 1 | V8: 1 | W8: 0 | X8: 0 | Y8: 11323.43122 | Z8: =STDEV(models1!J1368,models1!Y1368) -> 36.83319223 | AB8: 8 | AC8: 1 | AD8: 2 | AE8: 3 | AF8: 2 | AG8: 10 | AH8: 15 | AI8: 15 | AJ8: 14 | AK8: 15 | AL8: 73000 | AN8: 2.774887385 | AO8: 2.167948339 | AP8: 0.6069390462
A9: O8 | B9: 41 | C9: 61 | D9: 52 | E9: 86 | F9: 66 | G9: 68 | I9: O8 | J9: 6 | K9: 9 | L9: 6 | M9: 2 | N9: 7 | O9: 68000 | P9: =IF(models1!J1369*models1!Y1369<=0,"valid","invalid") -> valid | Q9: =models1!G1369 -> 68000 | R9: =models1!V1369 -> 40893.5 | S9: 54446.75 | T9: =models1!AO1369 -> 68000 | U9: 1 | V9: 1 | W9: 0 | X9: 0 | Y9: 9583.594982 | Z9: =STDEV(models1!J1369,models1!Y1369) -> 28.1852763 | AB9: 6 | AC9: 9 | AD9: 6 | AE9: 2 | AF9: 7 | AG9: 11 | AH9: 8 | AI9: 12 | AJ9: 15 | AK9: 10 | AL9: 68000 | AN9: 2.549509757 | AO9: 2.588435821 | AP9: 0.03892606431
A10: O9 | B10: 71 | C10: 66 | D10: 81 | E10: 79 | F10: 78 | G10: 67 | I10: O9 | J10: 14 | K10: 7 | L10: 10 | M10: 4 | N10: 4 | O10: 67000 | P10: =IF(models1!J1370*models1!Y1370<=0,"valid","invalid") -> valid | Q10: =models1!G1370 -> 67000 | R10: =models1!V1370 -> 49169.6 | S10: 58084.8 | T10: =models1!AO1370 -> 67000 | U10: 1 | V10: 1 | W10: 0 | X10: 0 | Y10: 6303.998376 | Z10: =STDEV(models1!J1370,models1!Y1370) -> 18.81611145 | AB10: 14 | AC10: 7 | AD10: 10 | AE10: 4 | AF10: 4 | AG10: 3 | AH10: 10 | AI10: 8 | AJ10: 13 | AK10: 13 | AL10: 67000 | AN10: 4.266145802 | AO10: 4.159326869 | AP10: 0.1068189329
A11: O10 | B11: 66 | C11: 69 | D11: 83 | E11: 48 | F11: 50 | G11: 28 | I11: O10 | J11: 12 | K11: 6 | L11: 11 | M11: 10 | N11: 9 | O11: 28000 | P11: =IF(models1!J1371*models1!Y1371<=0,"valid","invalid") -> valid | Q11: =models1!G1371 -> 28000 | R11: =models1!V1371 -> 49169.6 | S11: 38584.8 | T11: =models1!AO1371 -> 28000 | U11: 1 | V11: 1 | W11: 0 | X11: 0 | Y11: 7484.583858 | Z11: =STDEV(models1!J1371,models1!Y1371) -> 53.46434373 | AB11: 12 | AC11: 6 | AD11: 11 | AE11: 10 | AF11: 9 | AG11: 5 | AH11: 11 | AI11: 7 | AJ11: 7 | AK11: 8 | AL11: 28000 | AN11: 2.302172887 | AO11: 2.19089023 | AP11: 0.1112826566
A12: O11 | B12: 48 | C12: 89 | D12: 94 | E12: 52 | F12: 14 | G12: 17 | I12: O11 | J12: 9 | K12: 3 | L12: 16 | M12: 8 | N12: 16 | O12: 17000 | P12: =IF(models1!J1372*models1!Y1372<=0,"valid","invalid") -> valid | Q12: =models1!G1372 -> 16500 | R12: =models1!V1372 -> 43814.5 | S12: 30157.25 | T12: =models1!AO1372 -> 17000 | U12: 1 | V12: 1 | W12: 0 | X12: 0 | Y12: 9303.580697 | Z12: =STDEV(models1!J1372,models1!Y1372) -> 113.6108465 | AB12: 9 | AC12: 3 | AD12: 16 | AE12: 8 | AF12: 16 | AG12: 9 | AH12: 13 | AI12: 1 | AJ12: 8 | AK12: 1 | AL12: 17000 | AN12: 5.594640292 | AO12: 5.272570531 | AP12: 0.3220697617
A13: O12 | B13: 58 | C13: 52 | D13: 26 | E13: 42 | F13: 81 | G13: 89 | I13: O12 | J13: 10 | K13: 11 | L13: 1 | M13: 11 | N13: 3 | O13: 89000 | P13: =IF(models1!J1373*models1!Y1373<=0,"valid","invalid") -> valid | Q13: =models1!G1373 -> 89000 | R13: =models1!V1373 -> 51116.9 | S13: 70058.45 | T13: =models1!AO1373 -> 89000 | U13: 1 | V13: 1 | W13: 0 | X13: 0 | Y13: 13393.69845 | Z13: =STDEV(models1!J1373,models1!Y1373) -> 30.10153568 | AB13: 10 | AC13: 11 | AD13: 1 | AE13: 11 | AF13: 3 | AG13: 8 | AH13: 6 | AI13: 16 | AJ13: 6 | AK13: 14 | AL13: 89000 | AN13: 4.816637832 | AO13: 4.69041576 | AP13: 0.1262220717
A14: O13 | B14: 41 | C14: 84 | D14: 76 | E14: 72 | F14: 71 | G14: 60 | I14: O13 | J14: 6 | K14: 5 | L14: 8 | M14: 6 | N14: 5 | O14: 60000 | P14: =IF(models1!J1374*models1!Y1374<=0,"valid","invalid") -> valid | Q14: =models1!G1374 -> 60000 | R14: =models1!V1374 -> 39919.8 | S14: 49959.9 | T14: =models1!AO1374 -> 60000 | U14: 1 | V14: 1 | W14: 0 | X14: 0 | Y14: 7099.422794 | Z14: =STDEV(models1!J1374,models1!Y1374) -> 23.66686397 | AB14: 6 | AC14: 5 | AD14: 8 | AE14: 6 | AF14: 5 | AG14: 11 | AH14: 12 | AI14: 10 | AJ14: 11 | AK14: 11 | AL14: 60000 | AN14: 1.224744871 | AO14: 0.7071067812 | AP14: 0.5176380902
A15: O14 | B15: 75 | C15: 23 | D15: 78 | E15: 35 | F15: 26 | G15: 16 | I15: O14 | J15: 15 | K15: 15 | L15: 9 | M15: 13 | N15: 14 | O15: 16000 | P15: =IF(models1!J1375*models1!Y1375<=0,"valid","invalid") -> valid | Q15: =models1!G1375 -> 16000 | R15: =models1!V1375 -> 51116.9 | S15: 33558.45 | T15: =models1!AO1375 -> 16000 | U15: =IF(MAX(Q15:R15)<T15,0,IF(MIN(Q15:R15)>T15,0,1)) -> 1 | V15: 1 | W15: 0 | X15: 0 | Y15: 12415.69906 | Z15: =STDEV(models1!J1375,models1!Y1375) -> 155.1957963 | AB15: 15 | AC15: 15 | AD15: 9 | AE15: 13 | AF15: 14 | AG15: 2 | AH15: 2 | AI15: 9 | AJ15: 4 | AK15: 3 | AL15: 16000 | AN15: 2.48997992 | AO15: 2.915475947 | AP15: 0.4254960278
A16: O15 | B16: 22 | C16: 27 | D16: 87 | E16: 36 | F16: 41 | G16: 82 | I16: O15 | J16: 2 | K16: 14 | L16: 14 | M16: 12 | N16: 10 | O16: 82000 | P16: =IF(models1!J1376*models1!Y1376<=0,"valid","invalid") -> valid | Q16: =models1!G1376 -> 82000 | R16: =models1!V1376 -> 53551 | S16: 67775.5 | T16: =models1!AO1376 -> 82000 | U16: =IF(MAX(Q16:R16)<T16,0,IF(MIN(Q16:R16)>T16,0,1)) -> 1 | V16: 1 | W16: 0 | X16: 0 | Y16: 10058.24041 | Z16: =STDEV(models1!J1376,models1!Y1376) -> 24.52953424 | AB16: 2 | AC16: 14 | AD16: 14 | AE16: 12 | AF16: 10 | AG16: 15 | AH16: 3 | AI16: 3 | AJ16: 5 | AK16: 7 | AL16: 82000 | AN16: 4.979959839 | AO16: 4.979959839 | AP16: 1.776356839e-15
A17: O16 | B17: 40 | C17: 65 | D17: 47 | E17: 22 | F17: 71 | G17: 28 | I17: O16 | J17: =RANK(B17,B$2:B$17,0) -> 12 | K17: 8 | L17: 12 | M17: 14 | N17: 5 | O17: 28000 | P17: =IF(models1!J1377*models1!Y1377<=0,"valid","invalid") -> valid | Q17: =models1!G1377 -> 28000 | R17: =models1!V1377 -> 55985.1 | S17: 41992.55 | T17: =models1!AO1377 -> 28000 | U17: =IF(MAX(Q17:R17)<T17,0,IF(MIN(Q17:R17)>T17,0,1)) -> 1 | V17: 1 | W17: 0 | X17: 0 | Y17: 9894.226991 | Z17: =STDEV(models1!J1377,models1!Y1377) -> 70.67532278 | AB17: 12 | AC17: 8 | AD17: 12 | AE17: 14 | AF17: 5 | AG17: 5 | AH17: 9 | AI17: 4 | AJ17: 3 | AK17: 11 | AL17: 28000 | AN17: 3.633180425 | AO17: 3.435112807 | AP17: 0.1980676175
A18: correlation | B18: =CORREL(B2:B16,$G$2:$G$16) -> -0.2728552061 | C18: =CORREL(C2:C16,$G$2:$G$16) -> 0.07422298575 | D18: -0.5686523434 | E18: 0.07818085941 | F18: 0.6986816525 | G18: 1 | I18: O16(2) | J18: =MAX(J2:J16) -> 16 | K18: =INT(QUARTILE(K2:K16,3)) -> 12 | L18: =MEDIAN(L2:L16) -> 9 | M18: =INT(QUARTILE(M2:M16,1)) -> 4 | N18: =MIN(N2:N16) -> 1 | O18: =O17 -> 28000 | P18: ratio | Q18: correlation | R18: correlation | T18: correlation | AB18: direct | AC18: direct | AD18: direct | AE18: direct | AF18: direct | AG18: inverse | AH18: inverse | AI18: inverse | AJ18: inverse | AK18: inverse | AL18: double | AM18: max | AN18: =MAX(AN2:AN17) -> 6.610597552 | AO18: =MAX(AO2:AO17) -> 6.503845017 | AP18: =MAX(AP2:AP17) -> 0.6069390462
A19: direction | B19: =IF(B18>0,0,1) -> 1 | C19: =IF(C18>0,0,1) -> 0 | D19: 1 | E19: 0 | F19: 0 | G19: Y | P19: =COUNTIF($P$2:$P$17,"valid")/16 -> 1 | Q19: =CORREL(Q2:Q17,$O$2:$O$17) -> 0.9992565475 | R19: =CORREL(R2:R17,$O$2:$O$17) -> 0.3294796496 | T19: =CORREL(T2:T17,$O$2:$O$17) -> 1 | U19: =SUM(U2:U17) -> 16 | W19: =SUM(W2:W17) -> 0 | X19: =SUM(X2:X17) -> 0 | Y19: =SUM(Y2:Y17) -> 117575.3468 | AM19: min | AN19: =MIN(AN2:AN17) -> 1.224744871 | AO19: =MIN(AO2:AO17) -> 0.7071067812 | AP19: =MIN(AP2:AP17) -> 1.776356839e-15
AM20: avg | AN20: =AVERAGE(AN2:AN17) -> 4.157136992 | AO20: =AVERAGE(AO2:AO17) -> 4.019545463 | AP20: =AVERAGE(AP2:AP17) -> 0.1996740108
A21: antagonism! | I21: O* | O21: correlation | AM21: stddev | AN21: =STDEV(AN2:AN17) -> 1.54253887 | AO21: =STDEV(AO2:AO17) -> 1.587284228 | AP21: =STDEV(AP2:AP17) -> 0.1906044376
I22: 1 | AM22: median | AN22: =MEDIAN(AN2:AN17) -> 4.505210396 | AO22: =MEDIAN(AO2:AO17) -> 4.396182977 | AP22: 0.1187523642
A23: Consistency-tasks | I23: 1 | O23: =CORREL($B$2:$G$2,B3:G3) -> -0.355543128
A24: Y=between1 | I24: 1 | O24: -0.5057292337
A25: Y=between2 | I25: 1 | O25: -0.6508462042
A26: Y=validity1 | I26: 1 | O26: -0.08040507725
A27: Y=validity2 | I27: 1 | O27: -0.3367091167
A28: Y=validity-ratio | I28: 1 | O28: 0.09120548765
A29: Xi=model-characteristics | I29: 1 | O29: 0.3389247827
I30: 1 | O30: 0.5400338804
I31: 1 | O31: -0.2906608903
I32: 1 | O32: -0.5032248017
I33: 1 | O33: 0.05572592585
I34: 1 | O34: -0.4100847835
I35: 1 | O35: 0.1182366983
I36: 1 | O36: -0.3598955561
I37: 1 | O37: -0.3463262357
I38: =I22+1 -> 2 | O38: =CORREL($B$3:$G$3,B2:G2) -> -0.355543128
I39: =I23+1 -> 2
I40: 2 | O40: =CORREL($B$3:$G$3,B4:G4) -> 0.7095169913
I41: 2 | O41: 0.6703728593
I42: 2 | O42: 0.2786276884
I43: 2 | O43: -0.4256846037
I44: 2 | O44: -0.4884710307
I45: 2 | O45: -0.01214313976
I46: 2 | O46: 0.4247314564
I47: 2 | O47: 0.6439656048
I48: 2 | O48: 0.8450425235
I49: 2 | O49: -0.8759142914
I50: 2 | O50: 0.5438469161
I51: 2 | O51: 0.4471509193
I52: 2 | O52: 0.4339039961
I53: 2 | O53: -0.1186163663
I54: 3 | O54: =CORREL($B$4:$G$4,B2:G2) -> -0.5057292337
I55: 3 | O55: =CORREL($B$4:$G$4,B3:G3) -> 0.7095169913
I56: 3
I57: 3 | O57: 0.4108889669
I58: 3 | O58: 0.5415258273
I59: 3 | O59: -0.584068909
I60: 3 | O60: -0.4118473994
I61: 3 | O61: -0.4404200219
I62: 3 | O62: -0.06784454361
I63: 3 | O63: 0.8473542552
I64: 3 | O64: 0.9675351762
I65: 3 | O65: -0.8032418935
I66: 3 | O66: 0.2749317008
I67: 3 | O67: 0.5284339971
I68: 3 | O68: -0.124271307
I69: 3 | O69: 0.125267313
I70: 4 | O70: =CORREL($B$5:$G$5,B2:G2) -> -0.6508462042
I71: 4 | O71: =CORREL($B$5:$G$5,B3:G3) -> 0.6703728593
I72: 4 | O72: 0.4108889669
I73: 4
I74: 4 | O74: -0.2153510632
I75: 4 | O75: 0.1194098263
I76: 4 | O76: -0.6724625993
I77: 4 | O77: -0.4289953559
I78: 4 | O78: 0.1644679182
I79: 4 | O79: 0.4766871924
I80: 4 | O80: 0.4928316302
I81: 4 | O81: -0.3586822526
I82: 4 | O82: 0.2599515305
I83: 4 | O83: 0.4138375569
I84: 4 | O84: 0.790114404
I85: 4 | O85: 0.1232186921
I86: 5 | O86: =CORREL($B$6:$G$6,B2:G2) -> -0.08040507725
I87: 5 | O87: =CORREL($B$6:$G$6,B3:G3) -> 0.2786276884
I88: 5 | O88: 0.5415258273
I89: 5 | O89: -0.2153510632
I90: 5
I91: 5 | O91: -0.6962901236
I92: 5 | O92: -0.03166363688
I93: 5 | O93: 0.09196534794
I94: 5 | O94: -0.3670734175
I95: 5 | O95: 0.0885818494
I96: 5 | O96: 0.4563896424
I97: 5 | O97: -0.4217671196
I98: 5 | O98: -0.09847653662
I99: 5 | O99: 0.1048528463
I100: 5 | O100: -0.2898112527
I101: 5 | O101: -0.5884817202
I102: 6 | O102: =CORREL($B$7:$G$7,B2:G2) -> -0.3367091167
I103: =I87+1 -> 6 | O103: =CORREL($B$7:$G$7,B3:G3) -> -0.4256846037
I104: 6 | O104: -0.584068909
I105: 6 | O105: 0.1194098263
I106: 6 | O106: -0.6962901236
I107: 6
I108: 6 | O108: 0.4612645519
I109: 6 | O109: 0.1652163949
I110: 6 | O110: -0.2716120219
I111: 6 | O111: -0.4902118329
I112: 6 | O112: -0.5223927938
I113: 6 | O113: 0.7530346353
I114: 6 | O114: 0.2615931091
I115: 6 | O115: -0.6830562237
I116: 6 | O116: 0.3276604748
I117: 6 | O117: 0.4756852349
I118: 7 | O118: =CORREL($B$8:$G$8,B2:G2) -> 0.09120548765
I119: 7 | O119: =CORREL($B$8:$G$8,B3:G3) -> -0.4884710307
I120: 7 | O120: -0.4118473994
I121: 7 | O121: -0.6724625993
I122: 7 | O122: -0.03166363688
I123: 7 | O123: 0.4612645519
I124: 7
I125: 7 | O125: 0.6694803997
I126: 7 | O126: -0.330291772
I127: 7 | O127: -0.5524717284
I128: 7 | O128: -0.3785107948
I129: 7 | O129: 0.4957542783
I130: 7 | O130: 0.3828057107
I131: 7 | O131: -0.9040580813
I132: 7 | O132: -0.4508993007
I133: 7 | O133: 0.2379032136
I134: 8 | O134: =CORREL($B$9:$G$9,B2:G2) -> 0.3389247827
I135: 8 | O135: =CORREL($B$9:$G$9,B3:G3) -> -0.01214313976
I136: 8 | O136: -0.4404200219
I137: 8 | O137: -0.4289953559
I138: 8 | O138: 0.09196534794
I139: 8 | O139: 0.1652163949
I140: 8 | O140: 0.6694803997
I141: 8
I142: 8 | O142: 0.1924453738
I143: 8 | O143: -0.5946663906
I144: 8 | O144: -0.2820654797
I145: 8 | O145: 0.1214534015
I146: 8 | O146: 0.4620115172
I147: 8 | O147: -0.6813374135
I148: 8 | O148: 0.02905290445
I149: 8 | O149: -0.3242253068
I150: 9 | O150: =CORREL($B$10:$G$10,B2:G2) -> 0.5400338804
I151: 9 | O151: =CORREL($B$10:$G$10,B3:G3) -> 0.4247314564
I152: 9 | O152: -0.06784454361
I153: 9 | O153: 0.1644679182
I154: 9 | O154: -0.3670734175
I155: 9 | O155: -0.2716120219
I156: 9 | O156: -0.330291772
I157: 9 | O157: 0.1924453738
I158: 9
I159: 9 | O159: 0.3016000667
I160: 9 | O160: 0.09349602732
I161: 9 | O161: -0.4947629163
I162: 9 | O162: 0.1953057124
I163: 9 | O163: 0.4375731683
I164: 9 | O164: 0.2130171088
I165: 9 | O165: -0.03452379148
I166: 10 | O166: =CORREL($B$11:$G$11,B2:G2) -> -0.2906608903
I167: =I151+1 -> 10 | O167: =CORREL($B$11:$G$11,B3:G3) -> 0.6439656048
I168: 10 | O168: 0.8473542552
I169: 10 | O169: 0.4766871924
I170: 10 | O170: 0.0885818494
I171: 10 | O171: -0.4902118329
I172: 10 | O172: -0.5524717284
I173: 10 | O173: -0.5946663906
I174: 10 | O174: 0.3016000667
I175: 10
I176: 10 | O176: 0.8426734578
I177: 10 | O177: -0.7942404067
I178: 10 | O178: 0.2286869983
I179: 10 | O179: 0.7322106617
I180: 10 | O180: -0.1111646454
I181: 10 | O181: 0.4029002969
I182: 11 | O182: =CORREL($B$12:$G$12,B2:G2) -> -0.5032248017
I183: 11 | O183: =CORREL($B$12:$G$12,B3:G3) -> 0.8450425235
I184: 11 | O184: 0.9675351762
I185: 11 | O185: 0.4928316302
I186: 11 | O186: 0.4563896424
I187: 11 | O187: -0.5223927938
I188: 11 | O188: -0.3785107948
I189: 11 | O189: -0.2820654797
I190: 11 | O190: 0.09349602732
I191: 11 | O191: 0.8426734578
I192: 11
I193: 11 | O193: -0.8724756463
I194: 11 | O194: 0.4682332797
I195: 11 | O195: 0.4713425066
I196: 11 | O196: 0.008037053992
I197: 11 | O197: 0.1345954394
I198: 12 | O198: =CORREL($B$13:$G$13,B2:G2) -> 0.05572592585
I199: 12 | O199: =CORREL($B$13:$G$13,B3:G3) -> -0.8759142914
I200: 12 | O200: -0.8032418935
... 84 more rows

Sheet basics13
A1: =RANDBETWEEN(10,99) -> 33 | B1: A1 | C1: A2 | D1: A3 | E1: A4 | F1: A5 | G1: A6=Y | I1: rank | J1: =B1 -> A1 | K1: A2 | L1: A3 | M1: A4 | N1: A5 | O1: =G1&"'" -> A6=Y' | P1: validity0 | Q1: direkt | R1: inverz | S1: átlag | T1: double | U1: between1 | V1: validity1 | W1: invalid_between | X1: valid_extrem | Y1: between2 | Z1: validity2 | AB1: =models1!B7 -> X(A1) | AC1: =models1!C7 -> X(A2) | AD1: =models1!D7 -> X(A3) | AE1: =models1!E7 -> X(A4) | AF1: =models1!F7 -> X(A5) | AG1: =AB1 -> X(A1) | AH1: =AC1 -> X(A2) | AI1: X(A3) | AJ1: X(A4) | AK1: X(A5) | AL1: =O1 -> A6=Y' | AN1: direct_stddev | AO1: inverse_stddev | AP1: delta
A2: O1 | B2: 63 | C2: 57 | D2: 68 | E2: 37 | F2: 88 | G2: 46 | I2: =A2 -> O1 | J2: =RANK(B2,B$2:B$17,B$19) -> 10 | K2: =RANK(C2,C$2:C$17,C$19) -> 9 | L2: 4 | M2: 10 | N2: 2 | O2: =G2*1000 -> 46000 | P2: =IF(models1!J1262*models1!Y1262<=0,"valid","invalid") -> invalid | Q2: =models1!G1262 -> 41503.4 | R2: =models1!V1262 -> 37162.6 | S2: =AVERAGE(Q2:R2) -> 39333 | T2: =models1!AO1262 -> 46510.7 | U2: =IF(MAX(Q2:R2)<T2,0,IF(MIN(Q2:R2)>T2,0,1)) -> 0 | V2: =IF(P2="valid",1,) -> 0 | W2: =IF(V2=1,IF(U2=0,1,0),0) -> 0 | X2: =IF(V2=0,IF(U2=1,1,0),0) -> 0 | Y2: =STDEV(S2:T2) -> 5075.400343 | Z2: =STDEV(models1!J1262,models1!Y1262) -> 6.668016947 | AB2: =J2 -> 10 | AC2: =K2 -> 9 | AD2: 4 | AE2: 10 | AF2: 2 | AG2: =RANK(AB2,AB$2:AB$17,0) -> 6 | AH2: =RANK(AC2,AC$2:AC$17,0) -> 8 | AI2: 12 | AJ2: 7 | AK2: 15 | AL2: 46000 | AN2: =STDEV(AB2:AF2) -> 3.741657387 | AO2: =STDEV(AG2:AK2) -> 3.78153408 | AP2: =ABS(AO2-AN2) -> 0.03987669346
A3: O2 | B3: 94 | C3: 47 | D3: 32 | E3: 92 | F3: 49 | G3: 62 | I3: =A3 -> O2 | J3: =RANK(B3,B$2:B$17,B$19) -> 16 | K3: 11 | L3: 13 | M3: 2 | N3: 9 | O3: =G3*1000 -> 62000 | P3: =IF(models1!J1263*models1!Y1263<=0,"valid","invalid") -> valid | Q3: =models1!G1263 -> 39428.2 | R3: =models1!V1263 -> 64002.3 | S3: =AVERAGE(Q3:R3) -> 51715.25 | T3: =models1!AO1263 -> 62688.4 | U3: 1 | V3: 1 | W3: =IF(V3=1,IF(U3=0,1,0),0) -> 0 | X3: =IF(V3=0,IF(U3=1,1,0),0) -> 0 | Y3: =STDEV(S3:T3) -> 7759.188776 | Z3: =STDEV(models1!J1263,models1!Y1263) -> 28.02971281 | AB3: =J3 -> 16 | AC3: 11 | AD3: 13 | AE3: 2 | AF3: 9 | AG3: =RANK(AB3,AB$2:AB$17,0) -> 1 | AH3: 5 | AI3: 4 | AJ3: 14 | AK3: 8 | AL3: 62000 | AN3: =STDEV(AB3:AF3) -> 5.263078947 | AO3: =STDEV(AG3:AK3) -> 4.929503018 | AP3: =ABS(AO3-AN3) -> 0.3335759292
A4: O3 | B4: 79 | C4: 36 | D4: 21 | E4: 67 | F4: 65 | G4: 43 | I4: O3 | J4: 15 | K4: 14 | L4: 14 | M4: 7 | N4: 6 | O4: 43000 | P4: =IF(models1!J1264*models1!Y1264<=0,"valid","invalid") -> valid | Q4: =models1!G1264 -> 29571.2 | R4: =models1!V1264 -> 58324.6 | S4: 43947.9 | T4: =models1!AO1264 -> 43477.4 | U4: 1 | V4: 1 | W4: 0 | X4: 0 | Y4: 332.6937405 | Z4: =STDEV(models1!J1264,models1!Y1264) -> 47.28423046 | AB4: 15 | AC4: 14 | AD4: 14 | AE4: 7 | AF4: 6 | AG4: 2 | AH4: 3 | AI4: 3 | AJ4: 10 | AK4: 11 | AL4: 43000 | AN4: 4.324349662 | AO4: 4.324349662 | AP4: 1.776356839e-15
A5: O4 | B5: 17 | C5: 45 | D5: 56 | E5: 53 | F5: 57 | G5: 83 | I5: O4 | J5: 1 | K5: 13 | L5: 7 | M5: 9 | N5: 7 | O5: 83000 | P5: =IF(models1!J1265*models1!Y1265<=0,"valid","invalid") -> valid | Q5: =models1!G1265 -> 86119.6 | R5: =models1!V1265 -> 57292.4 | S5: 71706 | T5: =models1!AO1265 -> 83921.5 | U5: 1 | V5: 1 | W5: 0 | X5: 0 | Y5: 8637.662886 | Z5: =STDEV(models1!J1265,models1!Y1265) -> 24.55781851 | AB5: 1 | AC5: 13 | AD5: 7 | AE5: 9 | AF5: 7 | AG5: 16 | AH5: 4 | AI5: 10 | AJ5: 8 | AK5: 10 | AL5: 83000 | AN5: 4.335896678 | AO5: 4.335896678 | AP5: 0
A6: O5 | B6: 34 | C6: 48 | D6: 20 | E6: 25 | F6: 36 | G6: 28 | I6: O5 | J6: 4 | K6: 10 | L6: 15 | M6: 14 | N6: 11 | O6: 28000 | P6: =IF(models1!J1266*models1!Y1266<=0,"valid","invalid") -> invalid | Q6: =models1!G1266 -> 34240.3 | R6: =models1!V1266 -> 51098.6 | S6: 42669.45 | T6: =models1!AO1266 -> 28310.9 | U6: 0 | V6: 0 | W6: 0 | X6: 0 | Y6: 10153.02807 | Z6: =STDEV(models1!J1266,models1!Y1266) -> 42.5748993 | AB6: 4 | AC6: 10 | AD6: 15 | AE6: 14 | AF6: 11 | AG6: 13 | AH6: 7 | AI6: 2 | AJ6: 3 | AK6: 6 | AL6: 28000 | AN6: 4.324349662 | AO6: 4.324349662 | AP6: 1.776356839e-15
A7: O6 | B7: 65 | C7: 28 | D7: 69 | E7: 34 | F7: 10 | G7: 14 | I7: O6 | J7: 12 | K7: 15 | L7: 2 | M7: 11 | N7: 16 | O7: 14000 | P7: =IF(models1!J1267*models1!Y1267<=0,"valid","invalid") -> invalid | Q7: =models1!G1267 -> 14526.2 | R7: =models1!V1267 -> 61421.5 | S7: 37973.85 | T7: =models1!AO1267 -> 28815.9 | U7: 1 | V7: 0 | W7: 0 | X7: 1 | Y7: 6475.648547 | Z7: =STDEV(models1!J1267,models1!Y1267) -> 236.8595585 | AB7: 12 | AC7: 15 | AD7: 2 | AE7: 11 | AF7: 16 | AG7: 5 | AH7: 2 | AI7: 14 | AJ7: 6 | AK7: 1 | AL7: 14000 | AN7: 5.540758071 | AO7: 5.128352562 | AP7: 0.4124055089
A8: O7 | B8: 53 | C8: 87 | D8: 65 | E8: 80 | F8: 23 | G8: 93 | I8: O7 | J8: 5 | K8: 5 | L8: 6 | M8: 5 | N8: 13 | O8: 93000 | P8: =IF(models1!J1268*models1!Y1268<=0,"valid","invalid") -> invalid | Q8: =models1!G1268 -> 78337.7 | R8: =models1!V1268 -> 62453.8 | S8: 70395.75 | T8: =models1!AO1268 -> 74315.5 | U8: 1 | V8: 0 | W8: 0 | X8: 1 | Y8: 2771.681806 | Z8: =STDEV(models1!J1268,models1!Y1268) -> 12.07738382 | AB8: 5 | AC8: 5 | AD8: 6 | AE8: 5 | AF8: 13 | AG8: 12 | AH8: 12 | AI8: 11 | AJ8: 12 | AK8: 4 | AL8: 93000 | AN8: 3.492849839 | AO8: 3.492849839 | AP8: 2.220446049e-15
A9: O8 | B9: 33 | C9: 89 | D9: 69 | E9: 87 | F9: 95 | G9: 58 | I9: O8 | J9: 3 | K9: 4 | L9: 2 | M9: 4 | N9: 1 | O9: 58000 | P9: =IF(models1!J1269*models1!Y1269<=0,"valid","invalid") -> valid | Q9: =models1!G1269 -> 78337.7 | R9: =models1!V1269 -> 29936.5 | S9: 54137.1 | T9: =models1!AO1269 -> 58644 | U9: 1 | V9: 1 | W9: 0 | X9: 0 | Y9: 3186.859552 | Z9: =STDEV(models1!J1269,models1!Y1269) -> 59.01513196 | AB9: 3 | AC9: 4 | AD9: 2 | AE9: 4 | AF9: 1 | AG9: 14 | AH9: 13 | AI9: 14 | AJ9: 13 | AK9: 16 | AL9: 58000 | AN9: 1.303840481 | AO9: 1.224744871 | AP9: 0.07909560965
A10: O9 | B10: 58 | C10: 97 | D10: 48 | E10: 21 | F10: 72 | G10: 78 | I10: O9 | J10: 9 | K10: 2 | L10: 10 | M10: 16 | N10: 4 | O10: 78000 | P10: =IF(models1!J1270*models1!Y1270<=0,"valid","invalid") -> invalid | Q10: =models1!G1270 -> 80931.7 | R10: =models1!V1270 -> 80519 | S10: 80725.35 | T10: =models1!AO1270 -> 78865.5 | U10: 0 | V10: 0 | W10: 0 | X10: 0 | Y10: 1315.112547 | Z10: =STDEV(models1!J1270,models1!Y1270) -> 0.374766594 | AB10: 9 | AC10: 2 | AD10: 10 | AE10: 16 | AF10: 4 | AG10: 9 | AH10: 15 | AI10: 6 | AJ10: 1 | AK10: 13 | AL10: 78000 | AN10: 5.495452666 | AO10: 5.585696018 | AP10: 0.09024335189
A11: O10 | B11: 31 | C11: 66 | D11: 49 | E11: 65 | F11: 52 | G11: 46 | I11: O10 | J11: 2 | K11: 8 | L11: 9 | M11: 8 | N11: 8 | O11: 46000 | P11: =IF(models1!J1271*models1!Y1271<=0,"valid","invalid") -> invalid | Q11: =models1!G1271 -> 50841.7 | R11: =models1!V1271 -> 51098.6 | S11: 50970.15 | T11: =models1!AO1271 -> 46510.7 | U11: 0 | V11: 0 | W11: 0 | X11: 0 | Y11: 3153.307335 | Z11: =STDEV(models1!J1271,models1!Y1271) -> 0.3889087297 | AB11: 2 | AC11: 8 | AD11: 9 | AE11: 8 | AF11: 8 | AG11: 15 | AH11: 9 | AI11: 8 | AJ11: 9 | AK11: 9 | AL11: 46000 | AN11: 2.828427125 | AO11: 2.828427125 | AP11: 0
A12: O11 | B12: 67 | C12: 92 | D12: 54 | E12: 33 | F12: 29 | G12: 80 | I12: O11 | J12: 13 | K12: 3 | L12: 8 | M12: 12 | N12: 12 | O12: 80000 | P12: =IF(models1!J1272*models1!Y1272<=0,"valid","invalid") -> valid | Q12: =models1!G1272 -> 81969.2 | R12: =models1!V1272 -> 70712.2 | S12: 76340.7 | T12: =models1!AO1272 -> 80887.7 | U12: 1 | V12: 1 | W12: 0 | X12: 0 | Y12: 3215.214534 | Z12: =STDEV(models1!J1272,models1!Y1272) -> 9.948992411 | AB12: 13 | AC12: 3 | AD12: 8 | AE12: 12 | AF12: 12 | AG12: 4 | AH12: 14 | AI12: 9 | AJ12: 5 | AK12: 5 | AL12: 80000 | AN12: 4.159326869 | AO12: 4.159326869 | AP12: 0
A13: O12 | B13: 56 | C13: 98 | D13: 68 | E13: 94 | F13: 20 | G13: 70 | I13: O12 | J13: 8 | K13: 1 | L13: 4 | M13: 1 | N13: 14 | O13: 70000 | P13: =IF(models1!J1273*models1!Y1273<=0,"valid","invalid") -> valid | Q13: =models1!G1273 -> 84563.2 | R13: =models1!V1273 -> 50582.4 | S13: 67572.8 | T13: =models1!AO1273 -> 70776.7 | U13: 1 | V13: 1 | W13: 0 | X13: 0 | Y13: 2265.499416 | Z13: =STDEV(models1!J1273,models1!Y1273) -> 34.32296316 | AB13: 8 | AC13: 1 | AD13: 4 | AE13: 1 | AF13: 14 | AG13: 10 | AH13: 16 | AI13: 12 | AJ13: 16 | AK13: 2 | AL13: 70000 | AN13: 5.504543578 | AO13: 5.761944116 | AP13: 0.2574005385
A14: O13 | B14: 63 | C14: 47 | D14: 48 | E14: 29 | F14: 20 | G14: 52 | I14: O13 | J14: 10 | K14: 11 | L14: 10 | M14: 13 | N14: 14 | O14: 52000 | P14: =IF(models1!J1274*models1!Y1274<=0,"valid","invalid") -> valid | Q14: =models1!G1274 -> 37353.1 | R14: =models1!V1274 -> 62453.8 | S14: 49903.45 | T14: =models1!AO1274 -> 47521.3 | U14: 1 | V14: 1 | W14: 0 | X14: 0 | Y14: 1684.434419 | Z14: =STDEV(models1!J1274,models1!Y1274) -> 34.13204433 | AB14: 10 | AC14: 11 | AD14: 10 | AE14: 13 | AF14: 14 | AG14: 6 | AH14: 5 | AI14: 6 | AJ14: 4 | AK14: 2 | AL14: 52000 | AN14: 1.816590212 | AO14: 1.673320053 | AP14: 0.1432701594
A15: O14 | B15: 71 | C15: 23 | D15: 98 | E15: 24 | F15: 68 | G15: 70 | I15: O14 | J15: 14 | K15: 16 | L15: 1 | M15: 15 | N15: 5 | O15: 70000 | P15: =IF(models1!J1275*models1!Y1275<=0,"valid","invalid") -> invalid | Q15: =models1!G1275 -> 72631 | R15: =models1!V1275 -> 72260.6 | S15: 72445.8 | T15: =models1!AO1275 -> 70776.7 | U15: =IF(MAX(Q15:R15)<T15,0,IF(MIN(Q15:R15)>T15,0,1)) -> 0 | V15: 0 | W15: 0 | X15: 0 | Y15: 1180.231928 | Z15: =STDEV(models1!J1275,models1!Y1275) -> 0.374766594 | AB15: 14 | AC15: 16 | AD15: 1 | AE15: 15 | AF15: 5 | AG15: 3 | AH15: 1 | AI15: 16 | AJ15: 2 | AK15: 12 | AL15: 70000 | AN15: 6.760177512 | AO15: 6.760177512 | AP15: 1.776356839e-15
A16: O15 | B16: 54 | C16: 83 | D16: 13 | E16: 77 | F16: 37 | G16: 74 | I16: O15 | J16: 6 | K16: 6 | L16: 16 | M16: 6 | N16: 10 | O16: 74000 | P16: =IF(models1!J1276*models1!Y1276<=0,"valid","invalid") -> valid | Q16: =models1!G1276 -> 61217.5 | R16: =models1!V1276 -> 76389.8 | S16: 68803.65 | T16: =models1!AO1276 -> 74821.6 | U16: =IF(MAX(Q16:R16)<T16,0,IF(MIN(Q16:R16)>T16,0,1)) -> 1 | V16: 1 | W16: 0 | X16: 0 | Y16: 4255.333254 | Z16: =STDEV(models1!J1276,models1!Y1276) -> 14.49568901 | AB16: 6 | AC16: 6 | AD16: 16 | AE16: 6 | AF16: 10 | AG16: 11 | AH16: 11 | AI16: 1 | AJ16: 11 | AK16: 7 | AL16: 74000 | AN16: 4.38178046 | AO16: 4.38178046 | AP16: 0
A17: O16 | B17: 55 | C17: 80 | D17: 33 | E17: 92 | F17: 81 | G17: 14 | I17: O16 | J17: =RANK(B17,B$2:B$17,0) -> 10 | K17: 7 | L17: 12 | M17: 2 | N17: 3 | O17: 14000 | P17: =IF(models1!J1277*models1!Y1277<=0,"valid","invalid") -> invalid | Q17: =models1!G1277 -> 39428.2 | R17: =models1!V1277 -> 25291.2 | S17: 32359.7 | T17: =models1!AO1277 -> 14155.4 | U17: =IF(MAX(Q17:R17)<T17,0,IF(MIN(Q17:R17)>T17,0,1)) -> 0 | V17: 0 | W17: 0 | X17: 0 | Y17: 12872.38398 | Z17: =STDEV(models1!J1277,models1!Y1277) -> 71.40364276 | AB17: 10 | AC17: 7 | AD17: 12 | AE17: 2 | AF17: 3 | AG17: 6 | AH17: 10 | AI17: 5 | AJ17: 14 | AK17: 14 | AL17: 14000 | AN17: 4.324349662 | AO17: 4.266145802 | AP17: 0.05820386055
A18: correlation | B18: =CORREL(B2:B16,$G$2:$G$16) -> -0.06544448334 | C18: =CORREL(C2:C16,$G$2:$G$16) -> 0.5577673493 | D18: 0.1587500166 | E18: 0.2632092687 | F18: 0.07070137827 | G18: 1 | I18: O16(2) | J18: =MAX(J2:J16) -> 16 | K18: =INT(QUARTILE(K2:K16,3)) -> 12 | L18: =MEDIAN(L2:L16) -> 8 | M18: =INT(QUARTILE(M2:M16,1)) -> 5 | N18: =MIN(N2:N16) -> 1 | O18: =O17 -> 14000 | P18: ratio | Q18: correlation | R18: correlation | T18: correlation | AB18: direct | AC18: direct | AD18: direct | AE18: direct | AF18: direct | AG18: inverse | AH18: inverse | AI18: inverse | AJ18: inverse | AK18: inverse | AL18: double | AM18: max | AN18: =MAX(AN2:AN17) -> 6.760177512 | AO18: =MAX(AO2:AO17) -> 6.760177512 | AP18: =MAX(AP2:AP17) -> 0.4124055089
A19: direction | B19: =IF(B18>0,0,1) -> 1 | C19: =IF(C18>0,0,1) -> 0 | D19: 0 | E19: 0 | F19: 0 | G19: Y | P19: =COUNTIF($P$2:$P$17,"valid")/16 -> 0.5 | Q19: =CORREL(Q2:Q17,$O$2:$O$17) -> 0.8425644221 | R19: =CORREL(R2:R17,$O$2:$O$17) -> 0.5387373218 | T19: =CORREL(T2:T17,$O$2:$O$17) -> 0.9682784296 | U19: =SUM(U2:U17) -> 10 | W19: =SUM(W2:W17) -> 0 | X19: =SUM(X2:X17) -> 2 | Y19: =SUM(Y2:Y17) -> 74333.68113 | AM19: min | AN19: =MIN(AN2:AN17) -> 1.303840481 | AO19: =MIN(AO2:AO17) -> 1.224744871 | AP19: =MIN(AP2:AP17) -> 0
AM20: avg | AN20: =AVERAGE(AN2:AN17) -> 4.224839301 | AO20: =AVERAGE(AO2:AO17) -> 4.184899895 | AP20: =AVERAGE(AP2:AP17) -> 0.08837947823
A21: antagonism! | I21: O* | O21: correlation | AM21: stddev | AN21: =STDEV(AN2:AN17) -> 1.405032055 | AO21: =STDEV(AO2:AO17) -> 1.418586288 | AP21: =STDEV(AP2:AP17) -> 0.1322965063
I22: 1 | AM22: median | AN22: =MEDIAN(AN2:AN17) -> 4.324349662 | AO22: =MEDIAN(AO2:AO17) -> 4.324349662 | AP22: 0.01993834673
A23: Consistency-tasks | I23: 1 | O23: =CORREL($B$2:$G$2,B3:G3) -> -0.5095100822
A24: Y=between1 | I24: 1 | O24: 0.01316393294
A25: Y=between2 | I25: 1 | O25: -0.1939744453
A26: Y=validity1 | I26: 1 | O26: 0.2172929618
A27: Y=validity2 | I27: 1 | O27: 0.000743898676
A28: Y=validity-ratio | I28: 1 | O28: -0.8680715218
A29: Xi=model-characteristics | I29: 1 | O29: 0.1442922244
I30: 1 | O30: 0.3277125833
I31: 1 | O31: -0.2963433551
I32: 1 | O32: -0.2886910653
I33: 1 | O33: -0.8282075982
I34: 1 | O34: -0.2554964373
I35: 1 | O35: 0.5143678387
I36: 1 | O36: -0.6990516454
I37: 1 | O37: 0.07442240032
I38: =I22+1 -> 2 | O38: =CORREL($B$3:$G$3,B2:G2) -> -0.5095100822
I39: =I23+1 -> 2
I40: 2 | O40: =CORREL($B$3:$G$3,B4:G4) -> 0.8300047874
I41: 2 | O41: -0.4321750671
I42: 2 | O42: -0.06193804501
I43: 2 | O43: 0.104650937
I44: 2 | O44: 0.08330691934
I45: 2 | O45: -0.422735251
I46: 2 | O46: -0.4770818477
I47: 2 | O47: -0.2420278252
I48: 2 | O48: -0.1496588605
I49: 2 | O49: 0.1587697544
I50: 2 | O50: 0.1539938137
I51: 2 | O51: -0.3761801289
I52: 2 | O52: 0.4914198649
I53: 2 | O53: 0.266741561
I54: 3 | O54: =CORREL($B$4:$G$4,B2:G2) -> 0.01316393294
I55: 3 | O55: =CORREL($B$4:$G$4,B3:G3) -> 0.8300047874
I56: 3
I57: 3 | O57: -0.4924616074
I58: 3 | O58: 0.1410715391
I59: 3 | O59: -0.1017925804
I60: 3 | O60: -0.4359434619
I61: 3 | O61: -0.2248622141
I62: 3 | O62: -0.2975002533
I63: 3 | O63: -0.3134480404
I64: 3 | O64: -0.404825214
I65: 3 | O65: -0.3383060394
I66: 3 | O66: -0.1547378184
I67: 3 | O67: -0.2503654541
I68: 3 | O68: 0.2514629008
I69: 3 | O69: 0.457474028
I70: 4 | O70: =CORREL($B$5:$G$5,B2:G2) -> -0.1939744453
I71: 4 | O71: =CORREL($B$5:$G$5,B3:G3) -> -0.4321750671
I72: 4 | O72: -0.4924616074
I73: 4
I74: 4 | O74: -0.3247167835
I75: 4 | O75: -0.6119893537
I76: 4 | O76: 0.3391057818
I77: 4 | O77: 0.3703318658
I78: 4 | O78: 0.1224447628
I79: 4 | O79: 0.3246462888
I80: 4 | O80: -0.02070159618
I81: 4 | O81: 0.0190436609
I82: 4 | O82: -0.3310812905
I83: 4 | O83: 0.1072508563
I84: 4 | O84: 0.0665442141
I85: 4 | O85: -0.4152487204
I86: 5 | O86: =CORREL($B$6:$G$6,B2:G2) -> 0.2172929618
I87: 5 | O87: =CORREL($B$6:$G$6,B3:G3) -> -0.06193804501
I88: 5 | O88: 0.1410715391
I89: 5 | O89: -0.3247167835
I90: 5
I91: 5 | O91: -0.3778399723
I92: 5 | O92: -0.04308921946
I93: 5 | O93: 0.2354793272
I94: 5 | O94: 0.7577593323
I95: 5 | O95: 0.2345084914
I96: 5 | O96: 0.4677642172
I97: 5 | O97: 0.05271885815
I98: 5 | O98: 0.01822079147
I99: 5 | O99: -0.5368243627
I100: 5 | O100: 0.4843291901
I101: 5 | O101: 0.4471266053
I102: 6 | O102: =CORREL($B$7:$G$7,B2:G2) -> 0.000743898676
I103: =I87+1 -> 6 | O103: =CORREL($B$7:$G$7,B3:G3) -> 0.104650937
I104: 6 | O104: -0.1017925804
I105: 6 | O105: -0.6119893537
I106: 6 | O106: -0.3778399723
I107: 6
I108: 6 | O108: -0.02612667886
I109: 6 | O109: -0.5701836772
I110: 6 | O110: -0.4196725858
I111: 6 | O111: -0.4348862527
I112: 6 | O112: 0.05427784071
I113: 6 | O113: 0.1585890444
I114: 6 | O114: 0.5749167933
I115: 6 | O115: 0.4076896148
I116: 6 | O116: -0.479014684
I117: 6 | O117: -0.2046453982
I118: 7 | O118: =CORREL($B$8:$G$8,B2:G2) -> -0.8680715218
I119: 7 | O119: =CORREL($B$8:$G$8,B3:G3) -> 0.08330691934
I120: 7 | O120: -0.4359434619
I121: 7 | O121: 0.3391057818
I122: 7 | O122: -0.04308921946
I123: 7 | O123: -0.02612667886
I124: 7
I125: 7 | O125: -0.09451221481
I126: 7 | O126: 0.06634038796
I127: 7 | O127: 0.3496188035
I128: 7 | O128: 0.634765066
I129: 7 | O129: 0.8861001512
I130: 7 | O130: 0.4160318081
I131: 7 | O131: -0.3974934718
I132: 7 | O132: 0.630262916
I133: 7 | O133: -0.2952622326
I134: 8 | O134: =CORREL($B$9:$G$9,B2:G2) -> 0.1442922244
I135: 8 | O135: =CORREL($B$9:$G$9,B3:G3) -> -0.422735251
I136: 8 | O136: -0.2248622141
I137: 8 | O137: 0.3703318658
I138: 8 | O138: 0.2354793272
I139: 8 | O139: -0.5701836772
I140: 8 | O140: -0.09451221481
I141: 8
I142: 8 | O142: 0.05944047032
I143: 8 | O143: 0.876659024
I144: 8 | O144: -0.3731515532
I145: 8 | O145: 0.07057338741
I146: 8 | O146: -0.8567319931
I147: 8 | O147: -0.4788225772
I148: 8 | O148: 0.09124290697
I149: 8 | O149: 0.613987313
I150: 9 | O150: =CORREL($B$10:$G$10,B2:G2) -> 0.3277125833
I151: 9 | O151: =CORREL($B$10:$G$10,B3:G3) -> -0.4770818477
I152: 9 | O152: -0.2975002533
I153: 9 | O153: 0.1224447628
I154: 9 | O154: 0.7577593323
I155: 9 | O155: -0.4196725858
I156: 9 | O156: 0.06634038796
I157: 9 | O157: 0.05944047032
I158: 9
I159: 9 | O159: -0.006985963662
I160: 9 | O160: 0.6888462069
I161: 9 | O161: -0.1110490294
I162: 9 | O162: 0.2295342518
I163: 9 | O163: -0.03919086862
I164: 9 | O164: 0.2205237707
I165: 9 | O165: -0.1821421336
I166: 10 | O166: =CORREL($B$11:$G$11,B2:G2) -> -0.2963433551
I167: =I151+1 -> 10 | O167: =CORREL($B$11:$G$11,B3:G3) -> -0.2420278252
I168: 10 | O168: -0.3134480404
I169: 10 | O169: 0.3246462888
I170: 10 | O170: 0.2345084914
I171: 10 | O171: -0.4348862527
I172: 10 | O172: 0.3496188035
I173: 10 | O173: 0.876659024
I174: 10 | O174: -0.006985963662
I175: 10
I176: 10 | O176: -0.09378269066
I177: 10 | O177: 0.5390197501
I178: 10 | O178: -0.5970847697
I179: 10 | O179: -0.722017581
I180: 10 | O180: 0.4028965348
I181: 10 | O181: 0.5763939771
I182: 11 | O182: =CORREL($B$12:$G$12,B2:G2) -> -0.2886910653
I183: 11 | O183: =CORREL($B$12:$G$12,B3:G3) -> -0.1496588605
I184: 11 | O184: -0.404825214
I185: 11 | O185: -0.02070159618
I186: 11 | O186: 0.4677642172
I187: 11 | O187: 0.05427784071
I188: 11 | O188: 0.634765066
I189: 11 | O189: -0.3731515532
I190: 11 | O190: 0.6888462069
I191: 11 | O191: -0.09378269066
I192: 11
I193: 11 | O193: 0.4740249237
I194: 11 | O194: 0.7564856664
I195: 11 | O195: -0.111105592
I196: 11 | O196: 0.4334278998
I197: 11 | O197: -0.430117026
I198: 12 | O198: =CORREL($B$13:$G$13,B2:G2) -> -0.8282075982
I199: 12 | O199: =CORREL($B$13:$G$13,B3:G3) -> 0.1587697544
I200: 12 | O200: -0.3383060394
... 84 more rows

Sheet basics12
A1: =RANDBETWEEN(10,99) -> 45 | B1: A1 | C1: A2 | D1: A3 | E1: A4 | F1: A5 | G1: A6=Y | I1: rank | J1: =B1 -> A1 | K1: A2 | L1: A3 | M1: A4 | N1: A5 | O1: =G1&"'" -> A6=Y' | P1: validity0 | Q1: direkt | R1: inverz | S1: átlag | T1: double | U1: between1 | V1: validity1 | W1: invalid_between | X1: valid_extrem | Y1: between2 | Z1: validity2 | AB1: =models1!B7 -> X(A1) | AC1: =models1!C7 -> X(A2) | AD1: =models1!D7 -> X(A3) | AE1: =models1!E7 -> X(A4) | AF1: =models1!F7 -> X(A5) | AG1: =AB1 -> X(A1) | AH1: =AC1 -> X(A2) | AI1: X(A3) | AJ1: X(A4) | AK1: X(A5) | AL1: =O1 -> A6=Y' | AN1: direct_stddev | AO1: inverse_stddev | AP1: delta
A2: O1 | B2: 76 | C2: 50 | D2: 44 | E2: 98 | F2: 32 | G2: 85 | I2: =A2 -> O1 | J2: =RANK(B2,B$2:B$17,B$19) -> 3 | K2: =RANK(C2,C$2:C$17,C$19) -> 9 | L2: 11 | M2: 15 | N2: 2 | O2: =G2*1000 -> 85000 | P2: =IF(models1!J1162*models1!Y1162<=0,"valid","invalid") -> invalid | Q2: =models1!G1162 -> 69367.8 | R2: =models1!V1162 -> 80218.8 | S2: =AVERAGE(Q2:R2) -> 74793.3 | T2: =models1!AO1162 -> 85481.6 | U2: =IF(MAX(Q2:R2)<T2,0,IF(MIN(Q2:R2)>T2,0,1)) -> 0 | V2: =IF(P2="valid",1,) -> 0 | W2: =IF(V2=1,IF(U2=0,1,0),0) -> 0 | X2: =IF(V2=0,IF(U2=1,1,0),0) -> 0 | Y2: =STDEV(S2:T2) -> 7557.769409 | Z2: =STDEV(models1!J1162,models1!Y1162) -> 9.022682528 | AB2: =J2 -> 3 | AC2: =K2 -> 9 | AD2: 11 | AE2: 15 | AF2: 2 | AG2: =RANK(AB2,AB$2:AB$17,0) -> 14 | AH2: =RANK(AC2,AC$2:AC$17,0) -> 7 | AI2: 6 | AJ2: 1 | AK2: 15 | AL2: 85000 | AN2: =STDEV(AB2:AF2) -> 5.477225575 | AO2: =STDEV(AG2:AK2) -> 5.856620186 | AP2: =ABS(AO2-AN2) -> 0.3793946107
A3: O2 | B3: 20 | C3: 24 | D3: 52 | E3: 33 | F3: 64 | G3: 17 | I3: =A3 -> O2 | J3: =RANK(B3,B$2:B$17,B$19) -> 13 | K3: 4 | L3: 8 | M3: 6 | N3: 8 | O3: =G3*1000 -> 17000 | P3: =IF(models1!J1163*models1!Y1163<=0,"valid","invalid") -> invalid | Q3: =models1!G1163 -> 33153.7 | R3: =models1!V1163 -> 31379.7 | S3: =AVERAGE(Q3:R3) -> 32266.7 | T3: =models1!AO1163 -> 33187 | U3: 0 | V3: 0 | W3: =IF(V3=1,IF(U3=0,1,0),0) -> 0 | X3: =IF(V3=0,IF(U3=1,1,0),0) -> 0 | Y3: =STDEV(S3:T3) -> 650.7503707 | Z3: =STDEV(models1!J1163,models1!Y1163) -> 7.375123728 | AB3: =J3 -> 13 | AC3: 4 | AD3: 8 | AE3: 6 | AF3: 8 | AG3: =RANK(AB3,AB$2:AB$17,0) -> 2 | AH3: 13 | AI3: 8 | AJ3: 10 | AK3: 8 | AL3: 17000 | AN3: =STDEV(AB3:AF3) -> 3.346640106 | AO3: =STDEV(AG3:AK3) -> 4.024922359 | AP3: =ABS(AO3-AN3) -> 0.6782822534
A4: O3 | B4: 22 | C4: 65 | D4: 57 | E4: 66 | F4: 58 | G4: 48 | I4: O3 | J4: 12 | K4: 10 | L4: 5 | M4: 11 | N4: 7 | O4: 48000 | P4: =IF(models1!J1164*models1!Y1164<=0,"valid","invalid") -> invalid | Q4: =models1!G1164 -> 45905.2 | R4: =models1!V1164 -> 43648.4 | S4: 44776.8 | T4: =models1!AO1164 -> 47266.3 | U4: 0 | V4: 0 | W4: 0 | X4: 0 | Y4: 1760.342332 | Z4: =STDEV(models1!J1164,models1!Y1164) -> 3.330472939 | AB4: 12 | AC4: 10 | AD4: 5 | AE4: 11 | AF4: 7 | AG4: 5 | AH4: 6 | AI4: 12 | AJ4: 5 | AK4: 10 | AL4: 48000 | AN4: 2.915475947 | AO4: 3.209361307 | AP4: 0.2938853598
A5: O4 | B5: 53 | C5: 33 | D5: 51 | E5: 20 | F5: 57 | G5: 64 | I5: O4 | J5: 7 | K5: 5 | L5: 10 | M5: 4 | N5: 6 | O5: 64000 | P5: =IF(models1!J1165*models1!Y1165<=0,"valid","invalid") -> valid | Q5: =models1!G1165 -> 65287.4 | R5: =models1!V1165 -> 42468.8 | S5: 53878.1 | T5: =models1!AO1165 -> 64362.6 | U5: 1 | V5: 1 | W5: 0 | X5: 0 | Y5: 7413.661047 | Z5: =STDEV(models1!J1165,models1!Y1165) -> 25.20835675 | AB5: 7 | AC5: 5 | AD5: 10 | AE5: 4 | AF5: 6 | AG5: 10 | AH5: 11 | AI5: 7 | AJ5: 12 | AK5: 11 | AL5: 64000 | AN5: 2.302172887 | AO5: 1.923538406 | AP5: 0.3786344805
A6: O5 | B6: 65 | C6: 47 | D6: 21 | E6: 37 | F6: 44 | G6: 60 | I6: O5 | J6: 5 | K6: 7 | L6: 15 | M6: 7 | N6: 4 | O6: 60000 | P6: =IF(models1!J1166*models1!Y1166<=0,"valid","invalid") -> invalid | Q6: =models1!G1166 -> 55086.2 | R6: =models1!V1166 -> 44356.3 | S6: 49721.25 | T6: =models1!AO1166 -> 60339.9 | U6: 0 | V6: 0 | W6: 0 | X6: 0 | Y6: 7508.519422 | Z6: =STDEV(models1!J1166,models1!Y1166) -> 12.64306925 | AB6: 5 | AC6: 7 | AD6: 15 | AE6: 7 | AF6: 4 | AG6: 12 | AH6: 9 | AI6: 2 | AJ6: 9 | AK6: 13 | AL6: 60000 | AN6: 4.335896678 | AO6: 4.301162634 | AP6: 0.03473404421
A7: O6 | B7: 94 | C7: 21 | D7: 52 | E7: 58 | F7: 28 | G7: 51 | I7: O6 | J7: 1 | K7: 3 | L7: 8 | M7: 10 | N7: 1 | O7: 51000 | P7: =IF(models1!J1167*models1!Y1167<=0,"valid","invalid") -> valid | Q7: =models1!G1167 -> 69367.8 | R7: =models1!V1167 -> 27368.8 | S7: 48368.3 | T7: =models1!AO1167 -> 51289 | U7: 1 | V7: 1 | W7: 0 | X7: 0 | Y7: 2065.246776 | Z7: =STDEV(models1!J1167,models1!Y1167) -> 58.2373145 | AB7: 1 | AC7: 3 | AD7: 8 | AE7: 10 | AF7: 1 | AG7: 16 | AH7: 14 | AI7: 8 | AJ7: 6 | AK7: 16 | AL7: 51000 | AN7: 4.159326869 | AO7: 4.69041576 | AP7: 0.5310888912
A8: O7 | B8: 33 | C8: 74 | D8: 15 | E8: 11 | F8: 97 | G8: 34 | I8: O7 | J8: 10 | K8: 14 | L8: 16 | M8: 2 | N8: 14 | O8: 34000 | P8: =IF(models1!J1168*models1!Y1168<=0,"valid","invalid") -> valid | Q8: =models1!G1168 -> 30603.4 | R8: =models1!V1168 -> 58984.4 | S8: 44793.9 | T8: =models1!AO1168 -> 34192.6 | U8: 1 | V8: 1 | W8: 0 | X8: 0 | Y8: 7496.251119 | Z8: =STDEV(models1!J1168,models1!Y1168) -> 59.02220303 | AB8: 10 | AC8: 14 | AD8: 16 | AE8: 2 | AF8: 14 | AG8: 7 | AH8: 3 | AI8: 1 | AJ8: 14 | AK8: 3 | AL8: 34000 | AN8: 5.585696018 | AO8: 5.176871642 | AP8: 0.4088243753
A9: O8 | B9: 85 | C9: 49 | D9: 54 | E9: 91 | F9: 95 | G9: 16 | I9: O8 | J9: 2 | K9: 8 | L9: 7 | M9: 13 | N9: 13 | O9: 16000 | P9: =IF(models1!J1169*models1!Y1169<=0,"valid","invalid") -> invalid | Q9: =models1!G1169 -> 21422.4 | R9: =models1!V1169 -> 35154.7 | S9: 28288.55 | T9: =models1!AO1169 -> 16090.7 | U9: 0 | V9: 0 | W9: 0 | X9: 0 | Y9: 8625.182451 | Z9: =STDEV(models1!J1169,models1!Y1169) -> 60.69097503 | AB9: 2 | AC9: 8 | AD9: 7 | AE9: 13 | AF9: 13 | AG9: 15 | AH9: 8 | AI9: 10 | AJ9: 3 | AK9: 4 | AL9: 16000 | AN9: 4.615192304 | AO9: 4.847679857 | AP9: 0.2324875537
A10: O9 | B10: 52 | C10: 15 | D10: 60 | E10: 13 | F10: 78 | G10: 44 | I10: O9 | J10: 8 | K10: 2 | L10: 4 | M10: 3 | N10: 10 | O10: 44000 | P10: =IF(models1!J1170*models1!Y1170<=0,"valid","invalid") -> valid | Q10: =models1!G1170 -> 48455.5 | R10: =models1!V1170 -> 28784.4 | S10: 38619.95 | T10: =models1!AO1170 -> 53300.3 | U10: 0 | V10: 1 | W10: 1 | X10: 0 | Y10: 10380.57504 | Z10: =STDEV(models1!J1170,models1!Y1170) -> 31.61474419 | AB10: 8 | AC10: 2 | AD10: 4 | AE10: 3 | AF10: 10 | AG10: 9 | AH10: 15 | AI10: 13 | AJ10: 13 | AK10: 7 | AL10: 44000 | AN10: 3.435112807 | AO10: 3.286335345 | AP10: 0.1487774624
A11: O10 | B11: 15 | C11: 84 | D11: 28 | E11: 55 | F11: 47 | G11: 26 | I11: O10 | J11: 16 | K11: 16 | L11: 14 | M11: 9 | N11: 5 | O11: 26000 | P11: =IF(models1!J1171*models1!Y1171<=0,"valid","invalid") -> invalid | Q11: =models1!G1171 -> 30093.4 | R11: =models1!V1171 -> 65118.8 | S11: 47606.1 | T11: =models1!AO1171 -> 35198.3 | U11: 1 | V11: 0 | W11: 0 | X11: 1 | Y11: 8773.63952 | Z11: =STDEV(models1!J1171,models1!Y1171) -> 95.26142556 | AB11: 16 | AC11: 16 | AD11: 14 | AE11: 9 | AF11: 5 | AG11: 1 | AH11: 1 | AI11: 3 | AJ11: 7 | AK11: 12 | AL11: 26000 | AN11: 4.847679857 | AO11: 4.711687596 | AP11: 0.1359922617
A12: O11 | B12: 20 | C12: 80 | D12: 96 | E12: 90 | F12: 98 | G12: 21 | I12: O11 | J12: 13 | K12: 15 | L12: 1 | M12: 12 | N12: 15 | O12: 21000 | P12: =IF(models1!J1172*models1!Y1172<=0,"valid","invalid") -> invalid | Q12: =models1!G1172 -> 21422.4 | R12: =models1!V1172 -> 46715.6 | S12: 34069 | T12: =models1!AO1172 -> 24136 | U12: 1 | V12: 0 | W12: 0 | X12: 1 | Y12: 7023.691658 | Z12: =STDEV(models1!J1172,models1!Y1172) -> 85.17101179 | AB12: 13 | AC12: 15 | AD12: 1 | AE12: 12 | AF12: 15 | AG12: 2 | AH12: 2 | AI12: 16 | AJ12: 4 | AK12: 1 | AL12: 21000 | AN12: 5.848076607 | AO12: 6.244997998 | AP12: 0.3969213915
A13: O12 | B13: 44 | C13: 13 | D13: 41 | E13: 92 | F13: 89 | G13: 15 | I13: O12 | J13: 9 | K13: 1 | L13: 12 | M13: 14 | N13: 12 | O13: 15000 | P13: =IF(models1!J1173*models1!Y1173<=0,"valid","invalid") -> invalid | Q13: =models1!G1173 -> 15301.7 | R13: =models1!V1173 -> 51198.4 | S13: 33250.05 | T13: =models1!AO1173 -> 15085 | U13: 0 | V13: 0 | W13: 0 | X13: 0 | Y13: 12844.63004 | Z13: =STDEV(models1!J1173,models1!Y1173) -> 169.2177238 | AB13: 9 | AC13: 1 | AD13: 12 | AE13: 14 | AF13: 12 | AG13: 8 | AH13: 16 | AI13: 5 | AJ13: 2 | AK13: 5 | AL13: 15000 | AN13: 5.128352562 | AO13: 5.357238094 | AP13: 0.2288855324
A14: O13 | B14: 20 | C14: 68 | D14: 64 | E14: 23 | F14: 33 | G14: 34 | I14: O13 | J14: 13 | K14: 11 | L14: 3 | M14: 5 | N14: 3 | O14: 34000 | P14: =IF(models1!J1174*models1!Y1174<=0,"valid","invalid") -> valid | Q14: =models1!G1174 -> 34683.9 | R14: =models1!V1174 -> 28312.5 | S14: 31498.2 | T14: =models1!AO1174 -> 34192.6 | U14: 1 | V14: 1 | W14: 0 | X14: 0 | Y14: 1905.228511 | Z14: =STDEV(models1!J1174,models1!Y1174) -> 13.25118108 | AB14: 13 | AC14: 11 | AD14: 3 | AE14: 5 | AF14: 3 | AG14: 2 | AH14: 5 | AI14: 14 | AJ14: 11 | AK14: 14 | AL14: 34000 | AN14: 4.69041576 | AO14: 5.449770637 | AP14: 0.7593548776
A15: O14 | B15: 69 | C15: 73 | D15: 56 | E15: 10 | F15: 98 | G15: 26 | I15: O14 | J15: 4 | K15: 13 | L15: 6 | M15: 1 | N15: 15 | O15: 26000 | P15: =IF(models1!J1175*models1!Y1175<=0,"valid","invalid") -> valid | Q15: =models1!G1175 -> 40804.6 | R15: =models1!V1175 -> 24537.5 | S15: 32671.05 | T15: =models1!AO1175 -> 30170 | U15: =IF(MAX(Q15:R15)<T15,0,IF(MIN(Q15:R15)>T15,0,1)) -> 1 | V15: 1 | W15: 0 | X15: 0 | Y15: 1768.509415 | Z15: =STDEV(models1!J1175,models1!Y1175) -> 44.2436713 | AB15: 4 | AC15: 13 | AD15: 6 | AE15: 1 | AF15: 15 | AG15: 13 | AH15: 4 | AI15: 11 | AJ15: 15 | AK15: 1 | AL15: 26000 | AN15: 5.974947699 | AO15: 6.016643583 | AP15: 0.04169588408
A16: O15 | B16: 55 | C16: 39 | D16: 93 | E16: 42 | F16: 83 | G16: 78 | I16: O15 | J16: 6 | K16: 6 | L16: 2 | M16: 8 | N16: 11 | O16: 78000 | P16: =IF(models1!J1176*models1!Y1176<=0,"valid","invalid") -> invalid | Q16: =models1!G1176 -> 60696.8 | R16: =models1!V1176 -> 49075 | S16: 54885.9 | T16: =models1!AO1176 -> 60339.9 | U16: =IF(MAX(Q16:R16)<T16,0,IF(MIN(Q16:R16)>T16,0,1)) -> 1 | V16: 0 | W16: 0 | X16: 1 | Y16: 3856.560385 | Z16: =STDEV(models1!J1176,models1!Y1176) -> 10.53589104 | AB16: 6 | AC16: 6 | AD16: 2 | AE16: 8 | AF16: 11 | AG16: 11 | AH16: 10 | AI16: 15 | AJ16: 8 | AK16: 6 | AL16: 78000 | AN16: 3.286335345 | AO16: 3.391164992 | AP16: 0.1048296465
A17: O16 | B17: 28 | C17: 69 | D17: 40 | E17: 99 | F17: 66 | G17: 91 | I17: O16 | J17: =RANK(B17,B$2:B$17,0) -> 11 | K17: 5 | L17: 13 | M17: 1 | N17: 8 | O17: 91000 | P17: =IF(models1!J1177*models1!Y1177<=0,"valid","invalid") -> invalid | Q17: =models1!G1177 -> 68347.7 | R17: =models1!V1177 -> 55209.4 | S17: 61778.55 | T17: =models1!AO1177 -> 65368.3 | U17: =IF(MAX(Q17:R17)<T17,0,IF(MIN(Q17:R17)>T17,0,1)) -> 1 | V17: 0 | W17: 0 | X17: 1 | Y17: 2538.336568 | Z17: =STDEV(models1!J1177,models1!Y1177) -> 10.21062192 | AB17: 11 | AC17: 5 | AD17: 13 | AE17: 1 | AF17: 8 | AG17: 6 | AH17: 11 | AI17: 4 | AJ17: 15 | AK17: 8 | AL17: 91000 | AN17: 4.774934555 | AO17: 4.324349662 | AP17: 0.4505848924
A18: correlation | B18: =CORREL(B2:B16,$G$2:$G$16) -> 0.3777336674 | C18: =CORREL(C2:C16,$G$2:$G$16) -> -0.1664587909 | D18: 0.06252498075 | E18: -0.05513374877 | F18: -0.4836621396 | G18: 1 | I18: O16(2) | J18: =MAX(J2:J16) -> 16 | K18: =INT(QUARTILE(K2:K16,3)) -> 12 | L18: =MEDIAN(L2:L16) -> 8 | M18: =INT(QUARTILE(M2:M16,1)) -> 4 | N18: =MIN(N2:N16) -> 1 | O18: =O17 -> 91000 | P18: ratio | Q18: correlation | R18: correlation | T18: correlation | AB18: direct | AC18: direct | AD18: direct | AE18: direct | AF18: direct | AG18: inverse | AH18: inverse | AI18: inverse | AJ18: inverse | AK18: inverse | AL18: double | AM18: max | AN18: =MAX(AN2:AN17) -> 5.974947699 | AO18: =MAX(AO2:AO17) -> 6.244997998 | AP18: =MAX(AP2:AP17) -> 0.7593548776
A19: direction | B19: =IF(B18>0,0,1) -> 0 | C19: =IF(C18>0,0,1) -> 1 | D19: 0 | E19: 1 | F19: 1 | G19: Y | P19: =COUNTIF($P$2:$P$17,"valid")/16 -> 0.375 | Q19: =CORREL(Q2:Q17,$O$2:$O$17) -> 0.9047961817 | R19: =CORREL(R2:R17,$O$2:$O$17) -> 0.4011472999 | T19: =CORREL(T2:T17,$O$2:$O$17) -> 0.9333687404 | U19: =SUM(U2:U17) -> 9 | W19: =SUM(W2:W17) -> 1 | X19: =SUM(X2:X17) -> 4 | Y19: =SUM(Y2:Y17) -> 92168.89405 | AM19: min | AN19: =MIN(AN2:AN17) -> 2.302172887 | AO19: =MIN(AO2:AO17) -> 1.923538406 | AP19: =MIN(AP2:AP17) -> 0.03473404421
AM20: avg | AN20: =AVERAGE(AN2:AN17) -> 4.420217598 | AO20: =AVERAGE(AO2:AO17) -> 4.550797504 | AP20: =AVERAGE(AP2:AP17) -> 0.3252733448
A21: antagonism! | I21: O* | O21: correlation | AM21: stddev | AN21: =STDEV(AN2:AN17) -> 1.09808385 | AO21: =STDEV(AO2:AO17) -> 1.175978268 | AP21: =STDEV(AP2:AP17) -> 0.2142091904
I22: 1 | AM22: median | AN22: =MEDIAN(AN2:AN17) -> 4.652804032 | AO22: =MEDIAN(AO2:AO17) -> 4.701051678 | AP22: 0.3362599201
A23: Consistency-tasks | I23: 1 | O23: =CORREL($B$2:$G$2,B3:G3) -> -0.7066550936
A24: Y=between1 | I24: 1 | O24: -0.2086454861
A25: Y=between2 | I25: 1 | O25: -0.3234377649
A26: Y=validity1 | I26: 1 | O26: 0.3713203915
A27: Y=validity2 | I27: 1 | O27: 0.5652840729
A28: Y=validity-ratio | I28: 1 | O28: -0.6760035221
A29: Xi=model-characteristics | I29: 1 | O29: -0.1053244062
I30: 1 | O30: -0.5904707785
I31: 1 | O31: -0.2114098346
I32: 1 | O32: -0.5225730399
I33: 1 | O33: 0.01604706446
I34: 1 | O34: -0.594676996
I35: 1 | O35: -0.8628452754
I36: 1 | O36: -0.4755941767
I37: 1 | O37: 0.464635637
I38: =I22+1 -> 2 | O38: =CORREL($B$3:$G$3,B2:G2) -> -0.7066550936
I39: =I23+1 -> 2
I40: 2 | O40: =CORREL($B$3:$G$3,B4:G4) -> 0.3924345444
I41: 2 | O41: 0.1084000863
I42: 2 | O42: -0.6699551807
I43: 2 | O43: -0.3995915261
I44: 2 | O44: 0.3460074484
I45: 2 | O45: 0.4743013824
I46: 2 | O46: 0.624711067
I47: 2 | O47: 0.04707690346
I48: 2 | O48: 0.7798197471
I49: 2 | O49: 0.6148010998
I50: 2 | O50: 0.172803316
I51: 2 | O51: 0.4776784179
I52: 2 | O52: 0.5773267182
I53: 2 | O53: -0.1599239141
I54: 3 | O54: =CORREL($B$4:$G$4,B2:G2) -> -0.2086454861
I55: 3 | O55: =CORREL($B$4:$G$4,B3:G3) -> 0.3924345444
I56: 3
I57: 3 | O57: -0.5367749879
I58: 3 | O58: -0.6713558974
I59: 3 | O59: -0.8117716029
I60: 3 | O60: 0.1681232436
I61: 3 | O61: -0.04874512449
I62: 3 | O62: -0.365455998
I63: 3 | O63: 0.7610065456
I64: 3 | O64: 0.7985264921
I65: 3 | O65: 0.2188940413
I66: 3 | O66: 0.4890539012
I67: 3 | O67: -0.1655342975
I68: 3 | O68: -0.0881904158
I69: 3 | O69: 0.6229417008
I70: 4 | O70: =CORREL($B$5:$G$5,B2:G2) -> -0.3234377649
I71: 4 | O71: =CORREL($B$5:$G$5,B3:G3) -> 0.1084000863
I72: 4 | O72: -0.5367749879
I73: 4
I74: 4 | O74: 0.3497007437
I75: 4 | O75: 0.1228568059
I76: 4 | O76: 0.2296121484
I77: 4 | O77: -0.3672662288
I78: 4 | O78: 0.8012473496
I79: 4 | O79: -0.6657957926
I80: 4 | O80: -0.4717980802
I81: 4 | O81: -0.3138903796
I82: 4 | O82: -0.07485953636
I83: 4 | O83: 0.3703134158
I84: 4 | O84: 0.7664427853
I85: 4 | O85: -0.3679261416
I86: 5 | O86: =CORREL($B$6:$G$6,B2:G2) -> 0.3713203915
I87: 5 | O87: =CORREL($B$6:$G$6,B3:G3) -> -0.6699551807
I88: 5 | O88: -0.6713558974
I89: 5 | O89: 0.3497007437
I90: 5
I91: 5 | O91: 0.3624715159
I92: 5 | O92: 0.2190685805
I93: 5 | O93: -0.138924666
I94: 5 | O94: -0.0327116917
I95: 5 | O95: -0.236202022
I96: 5 | O96: -0.8559219988
I97: 5 | O97: -0.3172141798
I98: 5 | O98: -0.5280945486
I99: 5 | O99: 0.06703334739
I100: 5 | O100: -0.3112324324
I101: 5 | O101: -0.00770465282
I102: 6 | O102: =CORREL($B$7:$G$7,B2:G2) -> 0.5652840729
I103: =I87+1 -> 6 | O103: =CORREL($B$7:$G$7,B3:G3) -> -0.3995915261
I104: 6 | O104: -0.8117716029
I105: 6 | O105: 0.1228568059
I106: 6 | O106: 0.3624715159
I107: 6
I108: 6 | O108: -0.6458810725
I109: 6 | O109: 0.2064264829
I110: 6 | O110: 0.06975066133
I111: 6 | O111: -0.7607498158
I112: 6 | O112: -0.6155457111
I113: 6 | O113: 0.05331082341
I114: 6 | O114: -0.6130519953
I115: 6 | O115: -0.297178982
I116: 6 | O116: -0.06721093727
I117: 6 | O117: -0.4251527708
I118: 7 | O118: =CORREL($B$8:$G$8,B2:G2) -> -0.6760035221
I119: 7 | O119: =CORREL($B$8:$G$8,B3:G3) -> 0.3460074484
I120: 7 | O120: 0.1681232436
I121: 7 | O121: 0.2296121484
I122: 7 | O122: 0.2190685805
I123: 7 | O123: -0.6458810725
I124: 7
I125: 7 | O125: 0.1593373533
I126: 7 | O126: 0.3201463505
I127: 7 | O127: 0.4568711775
I128: 7 | O128: 0.2229804085
I129: 7 | O129: 0.04185905905
I130: 7 | O130: 0.173656164
I131: 7 | O131: 0.7963721806
I132: 7 | O132: 0.02596536589
I133: 7 | O133: -0.01622899021
I134: 8 | O134: =CORREL($B$9:$G$9,B2:G2) -> -0.1053244062
I135: 8 | O135: =CORREL($B$9:$G$9,B3:G3) -> 0.4743013824
I136: 8 | O136: -0.04874512449
I137: 8 | O137: -0.3672662288
I138: 8 | O138: -0.138924666
I139: 8 | O139: 0.2064264829
I140: 8 | O140: 0.1593373533
I141: 8
I142: 8 | O142: 0.1677135274
I143: 8 | O143: 0.05541053169
I144: 8 | O144: 0.4064599962
I145: 8 | O145: 0.8522704997
I146: 8 | O146: -0.4615921202
I147: 8 | O147: 0.3050794077
I148: 8 | O148: -0.2246296212
I149: 8 | O149: -0.2080279807
I150: 9 | O150: =CORREL($B$10:$G$10,B2:G2) -> -0.5904707785
I151: 9 | O151: =CORREL($B$10:$G$10,B3:G3) -> 0.624711067
I152: 9 | O152: -0.365455998
I153: 9 | O153: 0.8012473496
I154: 9 | O154: -0.0327116917
I155: 9 | O155: 0.06975066133
I156: 9 | O156: 0.3201463505
I157: 9 | O157: 0.1677135274
I158: 9
I159: 9 | O159: -0.5893993185
I160: 9 | O160: 0.01120758301
I161: 9 | O161: 0.2038046232
I162: 9 | O162: -0.1128267591
I163: 9 | O163: 0.5947705698
I164: 9 | O164: 0.8411927923
I165: 9 | O165: -0.5160331694
I166: 10 | O166: =CORREL($B$11:$G$11,B2:G2) -> -0.2114098346
I167: =I151+1 -> 10 | O167: =CORREL($B$11:$G$11,B3:G3) -> 0.04707690346
I168: 10 | O168: 0.7610065456
I169: 10 | O169: -0.6657957926
I170: 10 | O170: -0.236202022
I171: 10 | O171: -0.7607498158
I172: 10 | O172: 0.4568711775
I173: 10 | O173: 0.05541053169
I174: 10 | O174: -0.5893993185
I175: 10
I176: 10 | O176: 0.5613840781
I177: 10 | O177: 0.00876553278
I178: 10 | O178: 0.4711752599
I179: 10 | O179: 0.1127592461
I180: 10 | O180: -0.5730387289
I181: 10 | O181: 0.445458898
I182: 11 | O182: =CORREL($B$12:$G$12,B2:G2) -> -0.5225730399
I183: 11 | O183: =CORREL($B$12:$G$12,B3:G3) -> 0.7798197471
I184: 11 | O184: 0.7985264921
I185: 11 | O185: -0.4717980802
I186: 11 | O186: -0.8559219988
I187: 11 | O187: -0.6155457111
I188: 11 | O188: 0.2229804085
I189: 11 | O189: 0.4064599962
I190: 11 | O190: 0.01120758301
I191: 11 | O191: 0.5613840781
I192: 11
I193: 11 | O193: 0.5205546239
I194: 11 | O194: 0.4369207216
I195: 11 | O195: 0.2067962712
I196: 11 | O196: 0.08934074112
I197: 11 | O197: 0.1331103555
I198: 12 | O198: =CORREL($B$13:$G$13,B2:G2) -> 0.01604706446
I199: 12 | O199: =CORREL($B$13:$G$13,B3:G3) -> 0.6148010998
I200: 12 | O200: 0.2188940413
... 84 more rows

Sheet basics11
A1: =RANDBETWEEN(10,99) -> 43 | B1: A1 | C1: A2 | D1: A3 | E1: A4 | F1: A5 | G1: A6=Y | I1: rank | J1: =B1 -> A1 | K1: A2 | L1: A3 | M1: A4 | N1: A5 | O1: =G1&"'" -> A6=Y' | P1: validity0 | Q1: direkt | R1: inverz | S1: átlag | T1: double | U1: between1 | V1: validity1 | W1: invalid_between | X1: valid_extrem | Y1: between2 | Z1: validity2 | AB1: =models1!B7 -> X(A1) | AC1: =models1!C7 -> X(A2) | AD1: =models1!D7 -> X(A3) | AE1: =models1!E7 -> X(A4) | AF1: =models1!F7 -> X(A5) | AG1: =AB1 -> X(A1) | AH1: =AC1 -> X(A2) | AI1: X(A3) | AJ1: X(A4) | AK1: X(A5) | AL1: =O1 -> A6=Y' | AN1: direct_stddev | AO1: inverse_stddev | AP1: delta
A2: O1 | B2: 94 | C2: 97 | D2: 97 | E2: 85 | F2: 53 | G2: 36 | I2: =A2 -> O1 | J2: =RANK(B2,B$2:B$17,B$19) -> 1 | K2: =RANK(C2,C$2:C$17,C$19) -> 2 | L2: 16 | M2: 3 | N2: 8 | O2: =G2*1000 -> 36000 | P2: =IF(models1!J1062*models1!Y1062<=0,"valid","invalid") -> invalid | Q2: =models1!G1062 -> 47315.7 | R2: =models1!V1062 -> 49406.1 | S2: =AVERAGE(Q2:R2) -> 48360.9 | T2: =models1!AO1062 -> 45836.2 | U2: =IF(MAX(Q2:R2)<T2,0,IF(MIN(Q2:R2)>T2,0,1)) -> 0 | V2: =IF(P2="valid",1,) -> 0 | W2: =IF(V2=1,IF(U2=0,1,0),0) -> 0 | X2: =IF(V2=0,IF(U2=1,1,0),0) -> 0 | Y2: =STDEV(S2:T2) -> 1785.23249 | Z2: =STDEV(models1!J1062,models1!Y1062) -> 4.108290399 | AB2: =J2 -> 1 | AC2: =K2 -> 2 | AD2: 16 | AE2: 3 | AF2: 8 | AG2: =RANK(AB2,AB$2:AB$17,0) -> 16 | AH2: =RANK(AC2,AC$2:AC$17,0) -> 15 | AI2: 1 | AJ2: 14 | AK2: 8 | AL2: 36000 | AN2: =STDEV(AB2:AF2) -> 6.204836823 | AO2: =STDEV(AG2:AK2) -> 6.300793601 | AP2: =ABS(AO2-AN2) -> 0.09595677781
A3: O2 | B3: 70 | C3: 12 | D3: 53 | E3: 59 | F3: 86 | G3: 40 | I3: =A3 -> O2 | J3: =RANK(B3,B$2:B$17,B$19) -> 5 | K3: 15 | L3: 10 | M3: 10 | N3: 15 | O3: =G3*1000 -> 40000 | P3: =IF(models1!J1063*models1!Y1063<=0,"valid","invalid") -> valid | Q3: =models1!G1063 -> 20918.5 | R3: =models1!V1063 -> 44180.5 | S3: =AVERAGE(Q3:R3) -> 32549.5 | T3: =models1!AO1063 -> 33879 | U3: 1 | V3: 1 | W3: =IF(V3=1,IF(U3=0,1,0),0) -> 0 | X3: =IF(V3=0,IF(U3=1,1,0),0) -> 0 | Y3: =STDEV(S3:T3) -> 940.0984656 | Z3: =STDEV(models1!J1063,models1!Y1063) -> 41.11825933 | AB3: =J3 -> 5 | AC3: 15 | AD3: 10 | AE3: 10 | AF3: 15 | AG3: =RANK(AB3,AB$2:AB$17,0) -> 12 | AH3: 2 | AI3: 5 | AJ3: 7 | AK3: 2 | AL3: 40000 | AN3: =STDEV(AB3:AF3) -> 4.183300133 | AO3: =STDEV(AG3:AK3) -> 4.159326869 | AP3: =ABS(AO3-AN3) -> 0.02397326405
A4: O3 | B4: 10 | C4: 44 | D4: 30 | E4: 51 | F4: 59 | G4: 25 | I4: O3 | J4: 16 | K4: 10 | L4: 5 | M4: 12 | N4: 11 | O4: 25000 | P4: =IF(models1!J1064*models1!Y1064<=0,"valid","invalid") -> invalid | Q4: =models1!G1064 -> 25899.1 | R4: =models1!V1064 -> 52731.5 | S4: 39315.3 | T4: =models1!AO1064 -> 24911 | U4: 0 | V4: 0 | W4: 0 | X4: 0 | Y4: 10185.37821 | Z4: =STDEV(models1!J1064,models1!Y1064) -> 75.89377082 | AB4: 16 | AC4: 10 | AD4: 5 | AE4: 12 | AF4: 11 | AG4: 1 | AH4: 7 | AI4: 12 | AJ4: 5 | AK4: 6 | AL4: 25000 | AN4: 3.962322551 | AO4: 3.962322551 | AP4: 1.776356839e-15
A5: O4 | B5: 57 | C5: 64 | D5: 29 | E5: 99 | F5: 44 | G5: 82 | I5: O4 | J5: 8 | K5: 7 | L5: 4 | M5: 1 | N5: 5 | O5: 82000 | P5: =IF(models1!J1065*models1!Y1065<=0,"valid","invalid") -> invalid | Q5: =models1!G1065 -> 81681.8 | R5: =models1!V1065 -> 43705.4 | S5: 62693.6 | T5: =models1!AO1065 -> 81708.1 | U5: 0 | V5: 0 | W5: 0 | X5: 0 | Y5: 13445.28189 | Z5: =STDEV(models1!J1065,models1!Y1065) -> 32.74611504 | AB5: 8 | AC5: 7 | AD5: 4 | AE5: 1 | AF5: 5 | AG5: 9 | AH5: 10 | AI5: 13 | AJ5: 16 | AK5: 12 | AL5: 82000 | AN5: 2.738612788 | AO5: 2.738612788 | AP5: 0
A6: O5 | B6: 91 | C6: 75 | D6: 37 | E6: 62 | F6: 47 | G6: 81 | I6: O5 | J6: 2 | K6: 3 | L6: 6 | M6: 8 | N6: 6 | O6: 81000 | P6: =IF(models1!J1066*models1!Y1066<=0,"valid","invalid") -> valid | Q6: =models1!G1066 -> 82677.9 | R6: =models1!V1066 -> 41330.1 | S6: 62004 | T6: =models1!AO1066 -> 80711.7 | U6: 1 | V6: 1 | W6: 0 | X6: 0 | Y6: 13228.34153 | Z6: =STDEV(models1!J1066,models1!Y1066) -> 36.09780118 | AB6: 2 | AC6: 3 | AD6: 6 | AE6: 8 | AF6: 6 | AG6: 15 | AH6: 14 | AI6: 11 | AJ6: 9 | AK6: 11 | AL6: 81000 | AN6: 2.449489743 | AO6: 2.449489743 | AP6: 0
A7: O6 | B7: 37 | C7: 11 | D7: 53 | E7: 20 | F7: 58 | G7: 16 | I7: O6 | J7: 13 | K7: 16 | L7: 10 | M7: 15 | N7: 10 | O7: 16000 | P7: =IF(models1!J1067*models1!Y1067<=0,"valid","invalid") -> invalid | Q7: =models1!G1067 -> 16436 | R7: =models1!V1067 -> 48456 | S7: 32446 | T7: =models1!AO1067 -> 17935.9 | U7: 1 | V7: 0 | W7: 0 | X7: 1 | Y7: 10260.19011 | Z7: =STDEV(models1!J1067,models1!Y1067) -> 141.5062091 | AB7: 13 | AC7: 16 | AD7: 10 | AE7: 15 | AF7: 10 | AG7: 4 | AH7: 1 | AI7: 5 | AJ7: 2 | AK7: 7 | AL7: 16000 | AN7: 2.774887385 | AO7: 2.387467277 | AP7: 0.3874201078
A8: O7 | B8: 61 | C8: 66 | D8: 53 | E8: 27 | F8: 93 | G8: 12 | I8: O7 | J8: 6 | K8: 6 | L8: 10 | M8: 14 | N8: 16 | O8: 12000 | P8: =IF(models1!J1068*models1!Y1068<=0,"valid","invalid") -> invalid | Q8: =models1!G1068 -> 25899.1 | R8: =models1!V1068 -> 44180.5 | S8: 35039.8 | T8: =models1!AO1068 -> 24661.9 | U8: 0 | V8: 0 | W8: 0 | X8: 0 | Y8: 7338.283464 | Z8: =STDEV(models1!J1068,models1!Y1068) -> 107.720647 | AB8: 6 | AC8: 6 | AD8: 10 | AE8: 14 | AF8: 16 | AG8: 10 | AH8: 11 | AI8: 5 | AJ8: 3 | AK8: 1 | AL8: 12000 | AN8: 4.5607017 | AO8: 4.358898944 | AP8: 0.2018027569
A9: O8 | B9: 41 | C9: 54 | D9: 21 | E9: 14 | F9: 43 | G9: 86 | I9: O8 | J9: 12 | K9: 8 | L9: 2 | M9: 16 | N9: 4 | O9: 86000 | P9: =IF(models1!J1069*models1!Y1069<=0,"valid","invalid") -> invalid | Q9: =models1!G1069 -> 72218.6 | R9: =models1!V1069 -> 81710.1 | S9: 76964.35 | T9: =models1!AO1069 -> 85693.9 | U9: 0 | V9: 0 | W9: 0 | X9: 0 | Y9: 6172.724002 | Z9: =STDEV(models1!J1069,models1!Y1069) -> 7.799387796 | AB9: 12 | AC9: 8 | AD9: 2 | AE9: 16 | AF9: 4 | AG9: 5 | AH9: 9 | AI9: 15 | AJ9: 1 | AK9: 13 | AL9: 86000 | AN9: 5.727128425 | AO9: 5.727128425 | AP9: 0
A10: O9 | B10: 22 | C10: 99 | D10: 64 | E10: 60 | F10: 51 | G10: 77 | I10: O9 | J10: 14 | K10: 1 | L10: 13 | M10: 9 | N10: 7 | O10: 77000 | P10: =IF(models1!J1070*models1!Y1070<=0,"valid","invalid") -> invalid | Q10: =models1!G1070 -> 76701.2 | R10: =models1!V1070 -> 63657.9 | S10: 70179.55 | T10: =models1!AO1070 -> 76725.9 | U10: 0 | V10: 0 | W10: 0 | X10: 0 | Y10: 4628.968477 | Z10: =STDEV(models1!J1070,models1!Y1070) -> 11.97838887 | AB10: 14 | AC10: 1 | AD10: 13 | AE10: 9 | AF10: 7 | AG10: 3 | AH10: 16 | AI10: 4 | AJ10: 8 | AK10: 10 | AL10: 77000 | AN10: 5.215361924 | AO10: 5.215361924 | AP10: 0
A11: O10 | B11: 46 | C11: 70 | D11: 84 | E11: 96 | F11: 15 | G11: 63 | I11: O10 | J11: 11 | K11: 4 | L11: 14 | M11: 2 | N11: 1 | O11: 63000 | P11: =IF(models1!J1071*models1!Y1071<=0,"valid","invalid") -> invalid | Q11: =models1!G1071 -> 62755.5 | R11: =models1!V1071 -> 49881.2 | S11: 56318.35 | T11: =models1!AO1071 -> 62775.7 | U11: 0 | V11: 0 | W11: 0 | X11: 0 | Y11: 4566.035973 | Z11: =STDEV(models1!J1071,models1!Y1071) -> 14.44619154 | AB11: 11 | AC11: 4 | AD11: 14 | AE11: 2 | AF11: 1 | AG11: 6 | AH11: 13 | AI11: 3 | AJ11: 15 | AK11: 16 | AL11: 63000 | AN11: 5.770615219 | AO11: 5.770615219 | AP11: 1.776356839e-15
A12: O11 | B12: 61 | C12: 16 | D12: 13 | E12: 73 | F12: 72 | G12: 17 | I12: O11 | J12: 6 | K12: 14 | L12: 1 | M12: 6 | N12: 13 | O12: 17000 | P12: =IF(models1!J1072*models1!Y1072<=0,"valid","invalid") -> invalid | Q12: =models1!G1072 -> 49307.9 | R12: =models1!V1072 -> 19002.3 | S12: 34155.1 | T12: =models1!AO1072 -> 29644.1 | U12: 1 | V12: 0 | W12: 0 | X12: 1 | Y12: 3189.75869 | Z12: =STDEV(models1!J1072,models1!Y1072) -> 126.0559259 | AB12: 6 | AC12: 14 | AD12: 1 | AE12: 6 | AF12: 13 | AG12: 10 | AH12: 3 | AI12: 16 | AJ12: 11 | AK12: 4 | AL12: 17000 | AN12: 5.431390246 | AO12: 5.357238094 | AP12: 0.07415215121
A13: O12 | B13: 21 | C13: 39 | D13: 44 | E13: 57 | F13: 75 | G13: 27 | I13: O12 | J13: 15 | K13: 11 | L13: 8 | M13: 11 | N13: 14 | O13: 27000 | P13: =IF(models1!J1073*models1!Y1073<=0,"valid","invalid") -> valid | Q13: =models1!G1073 -> 23408.8 | R13: =models1!V1073 -> 53681.6 | S13: 38545.2 | T13: =models1!AO1073 -> 29644.1 | U13: 1 | V13: 1 | W13: 0 | X13: 0 | Y13: 6294.02817 | Z13: =STDEV(models1!J1073,models1!Y1073) -> 79.28081231 | AB13: 15 | AC13: 11 | AD13: 8 | AE13: 11 | AF13: 14 | AG13: 2 | AH13: 6 | AI13: 10 | AJ13: 6 | AK13: 3 | AL13: 27000 | AN13: 2.774887385 | AO13: 3.130495168 | AP13: 0.3556077834
A14: O13 | B14: 55 | C14: 68 | D14: 48 | E14: 64 | F14: 65 | G14: 86 | I14: O13 | J14: 9 | K14: 5 | L14: 9 | M14: 7 | N14: 12 | O14: 86000 | P14: =IF(models1!J1074*models1!Y1074<=0,"valid","invalid") -> invalid | Q14: =models1!G1074 -> 69230.3 | R14: =models1!V1074 -> 49406.1 | S14: 59318.2 | T14: =models1!AO1074 -> 68256.1 | U14: 1 | V14: 0 | W14: 0 | X14: 1 | Y14: 6320.0497 | Z14: =STDEV(models1!J1074,models1!Y1074) -> 16.29881131 | AB14: 9 | AC14: 5 | AD14: 9 | AE14: 7 | AF14: 12 | AG14: 8 | AH14: 12 | AI14: 9 | AJ14: 10 | AK14: 5 | AL14: 86000 | AN14: 2.607680962 | AO14: 2.588435821 | AP14: 0.01924514097
A15: O14 | B15: 81 | C15: 38 | D15: 88 | E15: 80 | F15: 24 | G15: 32 | I15: O14 | J15: 3 | K15: 12 | L15: 15 | M15: 4 | N15: 2 | O15: 32000 | P15: =IF(models1!J1075*models1!Y1075<=0,"valid","invalid") -> valid | Q15: =models1!G1075 -> 31875.8 | R15: =models1!V1075 -> 42755.3 | S15: 37315.55 | T15: =models1!AO1075 -> 31886.1 | U15: =IF(MAX(Q15:R15)<T15,0,IF(MIN(Q15:R15)>T15,0,1)) -> 1 | V15: 1 | W15: 0 | X15: 0 | Y15: 3839.200913 | Z15: =STDEV(models1!J1075,models1!Y1075) -> 24.04163056 | AB15: 3 | AC15: 12 | AD15: 15 | AE15: 4 | AF15: 2 | AG15: 14 | AH15: 4 | AI15: 2 | AJ15: 13 | AK15: 15 | AL15: 32000 | AN15: 5.89067059 | AO15: 6.107372594 | AP15: 0.2167020038
A16: O15 | B16: 80 | C16: 38 | D16: 22 | E16: 37 | F16: 32 | G16: 77 | I16: O15 | J16: 4 | K16: 12 | L16: 3 | M16: 13 | N16: 3 | O16: 77000 | P16: =IF(models1!J1076*models1!Y1076<=0,"valid","invalid") -> invalid | Q16: =models1!G1076 -> 62755.5 | R16: =models1!V1076 -> 41330.1 | S16: 52042.8 | T16: =models1!AO1076 -> 65765 | U16: =IF(MAX(Q16:R16)<T16,0,IF(MIN(Q16:R16)>T16,0,1)) -> 0 | V16: 0 | W16: 0 | X16: 0 | Y16: 9703.060673 | Z16: =STDEV(models1!J1076,models1!Y1076) -> 19.67171065 | AB16: 4 | AC16: 12 | AD16: 3 | AE16: 13 | AF16: 3 | AG16: 13 | AH16: 4 | AI16: 14 | AJ16: 4 | AK16: 14 | AL16: 77000 | AN16: 5.049752469 | AO16: 5.310367219 | AP16: 0.2606147498
A17: O16 | B17: 48 | C17: 51 | D17: 43 | E17: 79 | F17: 55 | G17: 10 | I17: O16 | J17: =RANK(B17,B$2:B$17,0) -> 10 | K17: 9 | L17: 10 | M17: 5 | N17: 8 | O17: 10000 | P17: =IF(models1!J1077*models1!Y1077<=0,"valid","invalid") -> invalid | Q17: =models1!G1077 -> 17930.1 | R17: =models1!V1077 -> 43705.4 | S17: 30817.75 | T17: =models1!AO1077 -> 6975.1 | U17: =IF(MAX(Q17:R17)<T17,0,IF(MIN(Q17:R17)>T17,0,1)) -> 0 | V17: 0 | W17: 0 | X17: 0 | Y17: 16859.2995 | Z17: =STDEV(models1!J1077,models1!Y1077) -> 182.2567729 | AB17: 10 | AC17: 9 | AD17: 10 | AE17: 5 | AF17: 8 | AG17: 7 | AH17: 8 | AI17: 5 | AJ17: 12 | AK17: 8 | AL17: 10000 | AN17: 2.073644135 | AO17: 2.549509757 | AP17: 0.4758656215
A18: correlation | B18: =CORREL(B2:B16,$G$2:$G$16) -> 0.1221090676 | C18: =CORREL(C2:C16,$G$2:$G$16) -> 0.4825217897 | D18: -0.1798843266 | E18: 0.1364272073 | F18: -0.489047553 | G18: 1 | I18: O16(2) | J18: =MAX(J2:J16) -> 16 | K18: =INT(QUARTILE(K2:K16,3)) -> 12 | L18: =MEDIAN(L2:L16) -> 9 | M18: =INT(QUARTILE(M2:M16,1)) -> 5 | N18: =MIN(N2:N16) -> 1 | O18: =O17 -> 10000 | P18: ratio | Q18: correlation | R18: correlation | T18: correlation | AB18: direct | AC18: direct | AD18: direct | AE18: direct | AF18: direct | AG18: inverse | AH18: inverse | AI18: inverse | AJ18: inverse | AK18: inverse | AL18: double | AM18: max | AN18: =MAX(AN2:AN17) -> 6.204836823 | AO18: =MAX(AO2:AO17) -> 6.300793601 | AP18: =MAX(AP2:AP17) -> 0.4758656215
A19: direction | B19: =IF(B18>0,0,1) -> 0 | C19: =IF(C18>0,0,1) -> 0 | D19: 1 | E19: 0 | F19: 1 | G19: Y | P19: =COUNTIF($P$2:$P$17,"valid")/16 -> 0.25 | Q19: =CORREL(Q2:Q17,$O$2:$O$17) -> 0.9040069056 | R19: =CORREL(R2:R17,$O$2:$O$17) -> 0.4050986591 | T19: =CORREL(T2:T17,$O$2:$O$17) -> 0.968858051 | U19: =SUM(U2:U17) -> 7 | W19: =SUM(W2:W17) -> 0 | X19: =SUM(X2:X17) -> 3 | Y19: =SUM(Y2:Y17) -> 118755.9322 | AM19: min | AN19: =MIN(AN2:AN17) -> 2.073644135 | AO19: =MIN(AO2:AO17) -> 2.387467277 | AP19: =MIN(AP2:AP17) -> 0
AM20: avg | AN20: =AVERAGE(AN2:AN17) -> 4.213455155 | AO20: =AVERAGE(AO2:AO17) -> 4.25708975 | AP20: =AVERAGE(AP2:AP17) -> 0.1319587723
A21: antagonism! | I21: O* | O21: correlation | AM21: stddev | AN21: =STDEV(AN2:AN17) -> 1.447957884 | AO21: =STDEV(AO2:AO17) -> 1.447641526 | AP21: =STDEV(AP2:AP17) -> 0.1624079104
I22: 1 | AM22: median | AN22: =MEDIAN(AN2:AN17) -> 4.372000917 | AO22: =MEDIAN(AO2:AO17) -> 4.259112906 | AP22: 0.04906270763
A23: Consistency-tasks | I23: 1 | O23: =CORREL($B$2:$G$2,B3:G3) -> -0.2224313498
A24: Y=between1 | I24: 1 | O24: -0.1614899219
A25: Y=between2 | I25: 1 | O25: -0.2409142238
A26: Y=validity1 | I26: 1 | O26: -0.06134290124
A27: Y=validity2 | I27: 1 | O27: 0.008078766704
A28: Y=validity-ratio | I28: 1 | O28: 0.2406527649
A29: Xi=model-characteristics | I29: 1 | O29: -0.6705514081
I30: 1 | O30: -0.07931946799
I31: 1 | O31: 0.4474088641
I32: 1 | O32: -0.0580668755
I33: 1 | O33: -0.1673275073
I34: 1 | O34: -0.7805817907
I35: 1 | O35: 0.7049541856
I36: 1 | O36: -0.333264359
I37: 1 | O37: 0.5486970061
I38: =I22+1 -> 2 | O38: =CORREL($B$3:$G$3,B2:G2) -> -0.2224313498
I39: =I23+1 -> 2
I40: 2 | O40: =CORREL($B$3:$G$3,B4:G4) -> 0.09525447664
I41: 2 | O41: -0.2471955102
I42: 2 | O42: -0.2980435299
I43: 2 | O43: 0.7625179159
I44: 2 | O44: 0.3523582365
I45: 2 | O45: -0.3713258817
I46: 2 | O46: -0.8403814868
I47: 2 | O47: -0.5315446337
I48: 2 | O48: 0.7658165599
I49: 2 | O49: 0.447847165
I50: 2 | O50: -0.3452252851
I51: 2 | O51: 0.1525211752
I52: 2 | O52: -0.005205140557
I53: 2 | O53: 0.2768189213
I54: 3 | O54: =CORREL($B$4:$G$4,B2:G2) -> -0.1614899219
I55: 3 | O55: =CORREL($B$4:$G$4,B3:G3) -> 0.09525447664
I56: 3
I57: 3 | O57: 0.1145211682
I58: 3 | O58: -0.5655915593
I59: 3 | O59: 0.09320231656
I60: 3 | O60: 0.3349736722
I61: 3 | O61: -0.2728613735
I62: 3 | O62: 0.3739604823
I63: 3 | O63: -0.08961039535
I64: 3 | O64: 0.3361924891
I65: 3 | O65: 0.9166063059
I66: 3 | O66: 0.1208267223
I67: 3 | O67: -0.421467864
I68: 3 | O68: -0.7203243094
I69: 3 | O69: 0.5425684516
I70: 4 | O70: =CORREL($B$5:$G$5,B2:G2) -> -0.2409142238
I71: 4 | O71: =CORREL($B$5:$G$5,B3:G3) -> -0.2471955102
I72: 4 | O72: 0.1145211682
I73: 4
I74: 4 | O74: 0.5125053766
I75: 4 | O75: -0.7904975198
I76: 4 | O76: -0.6857691762
I77: 4 | O77: 0.167339708
I78: 4 | O78: 0.1933750262
I79: 4 | O79: 0.40813873
I80: 4 | O80: 0.2450238021
I81: 4 | O81: -0.1237924512
I82: 4 | O82: 0.6112232156
I83: 4 | O83: -0.06487368679
I84: 4 | O84: 0.3663317124
I85: 4 | O85: 0.1532506098
I86: 5 | O86: =CORREL($B$6:$G$6,B2:G2) -> -0.06134290124
I87: 5 | O87: =CORREL($B$6:$G$6,B3:G3) -> -0.2980435299
I88: 5 | O88: -0.5655915593
I89: 5 | O89: 0.5125053766
I90: 5
I91: 5 | O91: -0.6580762444
I92: 5 | O92: -0.3192636788
I93: 5 | O93: 0.5442165266
I94: 5 | O94: -0.1057541908
I95: 5 | O95: -0.06449965829
I96: 5 | O96: 0.004246531941
I97: 5 | O97: -0.7367677877
I98: 5 | O98: 0.4377461396
I99: 5 | O99: -0.1037887286
I100: 5 | O100: 0.8823309641
I101: 5 | O101: -0.2838378171
I102: 6 | O102: =CORREL($B$7:$G$7,B2:G2) -> 0.008078766704
I103: =I87+1 -> 6 | O103: =CORREL($B$7:$G$7,B3:G3) -> 0.7625179159
I104: 6 | O104: 0.09320231656
I105: 6 | O105: -0.7904975198
I106: 6 | O106: -0.6580762444
I107: 6
I108: 6 | O108: 0.6175027277
I109: 6 | O109: -0.4081457024
I110: 6 | O110: -0.5602173254
I111: 6 | O111: -0.4985581764
I112: 6 | O112: 0.2856537151
I113: 6 | O113: 0.4615201171
I114: 6 | O114: -0.6148638401
I115: 6 | O115: 0.1520362838
I116: 6 | O116: -0.3774791926
I117: 6 | O117: 0.1130601841
I118: 7 | O118: =CORREL($B$8:$G$8,B2:G2) -> 0.2406527649
I119: 7 | O119: =CORREL($B$8:$G$8,B3:G3) -> 0.3523582365
I120: 7 | O120: 0.3349736722
I121: 7 | O121: -0.6857691762
I122: 7 | O122: -0.3192636788
I123: 7 | O123: 0.6175027277
I124: 7
I125: 7 | O125: -0.2371373069
I126: 7 | O126: -0.2255515826
I127: 7 | O127: -0.67685659
I128: 7 | O128: 0.2885525175
I129: 7 | O129: 0.469538181
I130: 7 | O130: -0.470151303
I131: 7 | O131: -0.2275151209
I132: 7 | O132: -0.3993695163
I133: 7 | O133: 0.3313712853
I134: 8 | O134: =CORREL($B$9:$G$9,B2:G2) -> -0.6705514081
I135: 8 | O135: =CORREL($B$9:$G$9,B3:G3) -> -0.3713258817
I136: 8 | O136: -0.2728613735
I137: 8 | O137: 0.167339708
I138: 8 | O138: 0.5442165266
I139: 8 | O139: -0.4081457024
I140: 8 | O140: -0.2371373069
I141: 8
I142: 8 | O142: 0.3460883543
I143: 8 | O143: -0.3525111339
I144: 8 | O144: -0.4375075278
I145: 8 | O145: -0.4377871216
I146: 8 | O146: 0.8180937472
I147: 8 | O147: -0.7254370777
I148: 8 | O148: 0.6226204112
I149: 8 | O149: -0.8342383366
I150: 9 | O150: =CORREL($B$10:$G$10,B2:G2) -> -0.07931946799
I151: 9 | O151: =CORREL($B$10:$G$10,B3:G3) -> -0.8403814868
I152: 9 | O152: 0.3739604823
I153: 9 | O153: 0.1933750262
I154: 9 | O154: -0.1057541908
I155: 9 | O155: -0.5602173254
I156: 9 | O156: -0.2255515826
I157: 9 | O157: 0.3460883543
I158: 9
I159: 9 | O159: 0.3878638829
I160: 9 | O160: -0.6688554879
I161: 9 | O161: 0.04419967195
I162: 9 | O162: 0.4764107219
I163: 9 | O163: -0.4472927505
I164: 9 | O164: -0.3375019907
I165: 9 | O165: -0.2113703856
I166: 10 | O166: =CORREL($B$11:$G$11,B2:G2) -> 0.4474088641
I167: =I151+1 -> 10 | O167: =CORREL($B$11:$G$11,B3:G3) -> -0.5315446337
I168: 10 | O168: -0.08961039535
I169: 10 | O169: 0.40813873
I170: 10 | O170: -0.06449965829
I171: 10 | O171: -0.4985581764
I172: 10 | O172: -0.67685659
I173: 10 | O173: -0.3525111339
I174: 10 | O174: 0.3878638829
I175: 10
I176: 10 | O176: -0.3589215304
I177: 10 | O177: -0.2453513608
I178: 10 | O178: -0.107932347
I179: 10 | O179: 0.590525123
I180: 10 | O180: -0.21323981
I181: 10 | O181: 0.1868338863
I182: 11 | O182: =CORREL($B$12:$G$12,B2:G2) -> -0.0580668755
I183: 11 | O183: =CORREL($B$12:$G$12,B3:G3) -> 0.7658165599
I184: 11 | O184: 0.3361924891
I185: 11 | O185: 0.2450238021
I186: 11 | O186: 0.004246531941
I187: 11 | O187: 0.2856537151
I188: 11 | O188: 0.2885525175
I189: 11 | O189: -0.4375075278
I190: 11 | O190: -0.6688554879
I191: 11 | O191: -0.3589215304
I192: 11
I193: 11 | O193: 0.4945154252
I194: 11 | O194: -0.1731555566
I195: 11 | O195: 0.09386131824
I196: 11 | O196: 0.02094399744
I197: 11 | O197: 0.6641068376
I198: 12 | O198: =CORREL($B$13:$G$13,B2:G2) -> -0.1673275073
I199: 12 | O199: =CORREL($B$13:$G$13,B3:G3) -> 0.447847165
I200: 12 | O200: 0.9166063059
... 84 more rows

Sheet basics10
A1: =RANDBETWEEN(10,99) -> 37 | B1: A1 | C1: A2 | D1: A3 | E1: A4 | F1: A5 | G1: A6=Y | I1: rank | J1: =B1 -> A1 | K1: A2 | L1: A3 | M1: A4 | N1: A5 | O1: =G1&"'" -> A6=Y' | P1: validity0 | Q1: direkt | R1: inverz | S1: átlag | T1: double | U1: between1 | V1: validity1 | W1: invalid_between | X1: valid_extrem | Y1: between2 | Z1: validity2 | AB1: =models1!B7 -> X(A1) | AC1: =models1!C7 -> X(A2) | AD1: =models1!D7 -> X(A3) | AE1: =models1!E7 -> X(A4) | AF1: =models1!F7 -> X(A5) | AG1: =AB1 -> X(A1) | AH1: =AC1 -> X(A2) | AI1: X(A3) | AJ1: X(A4) | AK1: X(A5) | AL1: =O1 -> A6=Y' | AN1: direct_stddev | AO1: inverse_stddev | AP1: delta
A2: O1 | B2: 31 | C2: 40 | D2: 19 | E2: 92 | F2: 46 | G2: 86 | I2: =A2 -> O1 | J2: =RANK(B2,B$2:B$17,B$19) -> 12 | K2: =RANK(C2,C$2:C$17,C$19) -> 6 | L2: 4 | M2: 2 | N2: 10 | O2: =G2*1000 -> 86000 | P2: =IF(models1!J962*models1!Y962<=0,"valid","invalid") -> invalid | Q2: =models1!G962 -> 72258.5 | R2: =models1!V962 -> 54875.1 | S2: =AVERAGE(Q2:R2) -> 63566.8 | T2: =models1!AO962 -> 71293.8 | U2: =IF(MAX(Q2:R2)<T2,0,IF(MIN(Q2:R2)>T2,0,1)) -> 1 | V2: =IF(P2="valid",1,) -> 0 | W2: =IF(V2=1,IF(U2=0,1,0),0) -> 0 | X2: =IF(V2=0,IF(U2=1,1,0),0) -> 1 | Y2: =STDEV(S2:T2) -> 5463.814098 | Z2: =STDEV(models1!J962,models1!Y962) -> 14.29062805 | AB2: =J2 -> 12 | AC2: =K2 -> 6 | AD2: 4 | AE2: 2 | AF2: 10 | AG2: =RANK(AB2,AB$2:AB$17,0) -> 5 | AH2: =RANK(AC2,AC$2:AC$17,0) -> 10 | AI2: 13 | AJ2: 13 | AK2: 6 | AL2: 86000 | AN2: =STDEV(AB2:AF2) -> 4.147288271 | AO2: =STDEV(AG2:AK2) -> 3.78153408 | AP2: =ABS(AO2-AN2) -> 0.3657541904
A3: O2 | B3: 14 | C3: 22 | D3: 21 | E3: 92 | F3: 24 | G3: 82 | I3: =A3 -> O2 | J3: =RANK(B3,B$2:B$17,B$19) -> 15 | K3: 2 | L3: 5 | M3: 2 | N3: 15 | O3: =G3*1000 -> 82000 | P3: =IF(models1!J963*models1!Y963<=0,"valid","invalid") -> invalid | Q3: =models1!G963 -> 70179.2 | R3: =models1!V963 -> 73522 | S3: =AVERAGE(Q3:R3) -> 71850.6 | T3: =models1!AO963 -> 78878.3 | U3: 0 | V3: 0 | W3: =IF(V3=1,IF(U3=0,1,0),0) -> 0 | X3: =IF(V3=0,IF(U3=1,1,0),0) -> 0 | Y3: =STDEV(S3:T3) -> 4969.334326 | Z3: =STDEV(models1!J963,models1!Y963) -> 2.884995667 | AB3: =J3 -> 15 | AC3: 2 | AD3: 5 | AE3: 2 | AF3: 15 | AG3: =RANK(AB3,AB$2:AB$17,0) -> 2 | AH3: 15 | AI3: 12 | AJ3: 13 | AK3: 2 | AL3: 82000 | AN3: =STDEV(AB3:AF3) -> 6.68580586 | AO3: =STDEV(AG3:AK3) -> 6.300793601 | AP3: =ABS(AO3-AN3) -> 0.3850122594
A4: O3 | B4: 44 | C4: 72 | D4: 32 | E4: 76 | F4: 41 | G4: 83 | I4: O3 | J4: 11 | K4: 11 | L4: 8 | M4: 7 | N4: 12 | O4: 83000 | P4: =IF(models1!J964*models1!Y964<=0,"valid","invalid") -> invalid | Q4: =models1!G964 -> 59262.4 | R4: =models1!V964 -> 54875.1 | S4: 57068.75 | T4: =models1!AO964 -> 66237.5 | U4: 0 | V4: 0 | W4: 0 | X4: 0 | Y4: 6483.2853 | Z4: =STDEV(models1!J964,models1!Y964) -> 3.740594872 | AB4: 11 | AC4: 11 | AD4: 8 | AE4: 7 | AF4: 12 | AG4: 6 | AH4: 5 | AI4: 8 | AJ4: 10 | AK4: 5 | AL4: 83000 | AN4: 2.167948339 | AO4: 2.167948339 | AP4: 0
A5: O4 | B5: 94 | C5: 59 | D5: 55 | E5: 68 | F5: 93 | G5: 96 | I5: O4 | J5: 1 | K5: 8 | L5: 12 | M5: 10 | N5: 1 | O5: 96000 | P5: =IF(models1!J965*models1!Y965<=0,"valid","invalid") -> valid | Q5: =models1!G965 -> 99810.4 | R5: =models1!V965 -> 66596 | S5: 83203.2 | T5: =models1!AO965 -> 97081 | U5: 1 | V5: 1 | W5: 0 | X5: 0 | Y5: 9813.086488 | Z5: =STDEV(models1!J965,models1!Y965) -> 24.46589463 | AB5: 1 | AC5: 8 | AD5: 12 | AE5: 10 | AF5: 1 | AG5: 16 | AH5: 8 | AI5: 5 | AJ5: 7 | AK5: 16 | AL5: 96000 | AN5: 5.128352562 | AO5: 5.224940191 | AP5: 0.09658762906
A6: O5 | B6: 71 | C6: 89 | D6: 27 | E6: 85 | F6: 86 | G6: 87 | I6: O5 | J6: 6 | K6: 15 | L6: 7 | M6: 5 | N6: 3 | O6: 87000 | P6: =IF(models1!J966*models1!Y966<=0,"valid","invalid") -> invalid | Q6: =models1!G966 -> 81095.9 | R6: =models1!V966 -> 62333.9 | S6: 71714.9 | T6: =models1!AO966 -> 83934.6 | U6: 0 | V6: 0 | W6: 0 | X6: 0 | Y6: 8640.632734 | Z6: =STDEV(models1!J966,models1!Y966) -> 15.2452222 | AB6: 6 | AC6: 15 | AD6: 7 | AE6: 5 | AF6: 3 | AG6: 10 | AH6: 2 | AI6: 9 | AJ6: 12 | AK6: 13 | AL6: 87000 | AN6: 4.604345773 | AO6: 4.324349662 | AP6: 0.2799961112
A7: O6 | B7: 73 | C7: 69 | D7: 44 | E7: 27 | F7: 29 | G7: 29 | I7: O6 | J7: 5 | K7: 10 | L7: 9 | M7: 14 | N7: 14 | O7: 29000 | P7: =IF(models1!J967*models1!Y967<=0,"valid","invalid") -> invalid | Q7: =models1!G967 -> 30151 | R7: =models1!V967 -> 66329.7 | S7: 48240.35 | T7: =models1!AO967 -> 29326.5 | U7: 0 | V7: 0 | W7: 0 | X7: 0 | Y7: 13374.11159 | Z7: =STDEV(models1!J967,models1!Y967) -> 88.21157095 | AB7: 5 | AC7: 10 | AD7: 9 | AE7: 14 | AF7: 14 | AG7: 12 | AH7: 6 | AI7: 7 | AJ7: 2 | AK7: 3 | AL7: 29000 | AN7: 3.78153408 | AO7: 3.937003937 | AP7: 0.1554698568
A8: O7 | B8: 52 | C8: 21 | D8: 16 | E8: 45 | F8: 86 | G8: 55 | I8: O7 | J8: 9 | K8: 1 | L8: 3 | M8: 11 | N8: 3 | O8: 55000 | P8: =IF(models1!J968*models1!Y968<=0,"valid","invalid") -> valid | Q8: =models1!G968 -> 74597.9 | R8: =models1!V968 -> 47949.2 | S8: 61273.55 | T8: =models1!AO968 -> 60170 | U8: 1 | V8: 1 | W8: 0 | X8: 0 | Y8: 780.3276884 | Z8: =STDEV(models1!J968,models1!Y968) -> 34.25932355 | AB8: 9 | AC8: 1 | AD8: 3 | AE8: 11 | AF8: 3 | AG8: 8 | AH8: 16 | AI8: 14 | AJ8: 5 | AK8: 13 | AL8: 55000 | AN8: 4.335896678 | AO8: 4.549725266 | AP8: 0.2138285887
A9: O8 | B9: 87 | C9: 26 | D9: 26 | E9: 27 | F9: 75 | G9: 81 | I9: O8 | J9: 2 | K9: 4 | L9: 6 | M9: 14 | N9: 5 | O9: 81000 | P9: =IF(models1!J969*models1!Y969<=0,"valid","invalid") -> valid | Q9: =models1!G969 -> 88113.8 | R9: =models1!V969 -> 58604.5 | S9: 73359.15 | T9: =models1!AO969 -> 81912.1 | U9: 1 | V9: 1 | W9: 0 | X9: 0 | Y9: 6047.848944 | Z9: =STDEV(models1!J969,models1!Y969) -> 25.75990004 | AB9: 2 | AC9: 4 | AD9: 6 | AE9: 14 | AF9: 5 | AG9: 15 | AH9: 13 | AI9: 11 | AJ9: 2 | AK9: 11 | AL9: 81000 | AN9: 4.604345773 | AO9: 4.979959839 | AP9: 0.3756140659
A10: O9 | B10: 80 | C10: 95 | D10: 62 | E10: 92 | F10: 63 | G10: 24 | I10: O9 | J10: 3 | K10: 16 | L10: 14 | M10: 2 | N10: 9 | O10: 24000 | P10: =IF(models1!J970*models1!Y970<=0,"valid","invalid") -> invalid | Q10: =models1!G970 -> 24952.6 | R10: =models1!V970 -> 59403.7 | S10: 42178.15 | T10: =models1!AO970 -> 24270.2 | U10: 0 | V10: 0 | W10: 0 | X10: 0 | Y10: 12662.83288 | Z10: =STDEV(models1!J970,models1!Y970) -> 101.5051784 | AB10: 3 | AC10: 16 | AD10: 14 | AE10: 2 | AF10: 9 | AG10: 14 | AH10: 1 | AI10: 3 | AJ10: 13 | AK10: 8 | AL10: 24000 | AN10: 6.300793601 | AO10: 5.805170109 | AP10: 0.4956234913
A11: O10 | B11: 79 | C11: 61 | D11: 64 | E11: 45 | F11: 75 | G11: 48 | I11: O10 | J11: 4 | K11: 9 | L11: 15 | M11: 11 | N11: 5 | O11: 48000 | P11: =IF(models1!J971*models1!Y971<=0,"valid","invalid") -> valid | Q11: =models1!G971 -> 38468.6 | R11: =models1!V971 -> 76718.6 | S11: 57593.6 | T11: =models1!AO971 -> 48540.5 | U11: 1 | V11: 1 | W11: 0 | X11: 0 | Y11: 6401.508401 | Z11: =STDEV(models1!J971,models1!Y971) -> 56.34933939 | AB11: 4 | AC11: 9 | AD11: 15 | AE11: 11 | AF11: 5 | AG11: 13 | AH11: 7 | AI11: 2 | AJ11: 5 | AK11: 11 | AL11: 48000 | AN11: 4.494441011 | AO11: 4.449719092 | AP11: 0.04472191859
A12: O11 | B12: 67 | C12: 74 | D12: 90 | E12: 99 | F12: 19 | G12: 50 | I12: O11 | J12: 8 | K12: 13 | L12: 16 | M12: 1 | N12: 16 | O12: 50000 | P12: =IF(models1!J972*models1!Y972<=0,"valid","invalid") -> invalid | Q12: =models1!G972 -> 51984.6 | R12: =models1!V972 -> 72722.9 | S12: 62353.75 | T12: =models1!AO972 -> 50563 | U12: 0 | V12: 0 | W12: 0 | X12: 0 | Y12: 8337.31928 | Z12: =STDEV(models1!J972,models1!Y972) -> 29.33078928 | AB12: 8 | AC12: 13 | AD12: 16 | AE12: 1 | AF12: 16 | AG12: 9 | AH12: 4 | AI12: 1 | AJ12: 16 | AK12: 1 | AL12: 50000 | AN12: 6.379655163 | AO12: 6.379655163 | AP12: 8.881784197e-16
A13: O12 | B13: 48 | C13: 52 | D13: 10 | E13: 37 | F13: 64 | G13: 24 | I13: O12 | J13: 10 | K13: 7 | L13: 1 | M13: 13 | N13: 8 | O13: 24000 | P13: =IF(models1!J973*models1!Y973<=0,"valid","invalid") -> invalid | Q13: =models1!G973 -> 46786.1 | R13: =models1!V973 -> 25572.9 | S13: 36179.5 | T13: =models1!AO973 -> 24270.2 | U13: 0 | V13: 0 | W13: 0 | X13: 0 | Y13: 8421.146789 | Z13: =STDEV(models1!J973,models1!Y973) -> 62.50116839 | AB13: 10 | AC13: 7 | AD13: 1 | AE13: 13 | AF13: 8 | AG13: 7 | AH13: 9 | AI13: 16 | AJ13: 4 | AK13: 9 | AL13: 24000 | AN13: 4.438468204 | AO13: 4.415880433 | AP13: 0.02258777107
A14: O13 | B14: 12 | C14: 76 | D14: 14 | E14: 74 | F14: 34 | G14: 31 | I14: O13 | J14: 16 | K14: 14 | L14: 2 | M14: 8 | N14: 13 | O14: 31000 | P14: =IF(models1!J974*models1!Y974<=0,"valid","invalid") -> invalid | Q14: =models1!G974 -> 37169 | R14: =models1!V974 -> 33031.6 | S14: 35100.3 | T14: =models1!AO974 -> 48540.5 | U14: 0 | V14: 0 | W14: 0 | X14: 0 | Y14: 9503.656561 | Z14: =STDEV(models1!J974,models1!Y974) -> 9.439875529 | AB14: 16 | AC14: 14 | AD14: 2 | AE14: 8 | AF14: 13 | AG14: 1 | AH14: 3 | AI14: 15 | AJ14: 9 | AK14: 4 | AL14: 31000 | AN14: 5.639148872 | AO14: 5.639148872 | AP14: 8.881784197e-16
A15: O14 | B15: 21 | C15: 25 | D15: 56 | E15: 77 | F15: 67 | G15: 17 | I15: O14 | J15: 14 | K15: 3 | L15: 13 | M15: 6 | N15: 7 | O15: 17000 | P15: =IF(models1!J975*models1!Y975<=0,"valid","invalid") -> invalid | Q15: =models1!G975 -> 28851.4 | R15: =models1!V975 -> 47416.4 | S15: 38133.9 | T15: =models1!AO975 -> 26292.8 | U15: =IF(MAX(Q15:R15)<T15,0,IF(MIN(Q15:R15)>T15,0,1)) -> 0 | V15: 0 | W15: 0 | X15: 0 | Y15: 8372.922107 | Z15: =STDEV(models1!J975,models1!Y975) -> 77.22313157 | AB15: 14 | AC15: 3 | AD15: 13 | AE15: 6 | AF15: 7 | AG15: 3 | AH15: 14 | AI15: 4 | AJ15: 11 | AK15: 10 | AL15: 17000 | AN15: 4.722287581 | AO15: 4.722287581 | AP15: 0
A16: O15 | B16: 71 | C16: 35 | D16: 54 | E16: 73 | F16: 91 | G16: 84 | I16: O15 | J16: 6 | K16: 5 | L16: 11 | M16: 9 | N16: 2 | O16: 84000 | P16: =IF(models1!J976*models1!Y976<=0,"valid","invalid") -> valid | Q16: =models1!G976 -> 87334.1 | R16: =models1!V976 -> 63399.4 | S16: 75366.75 | T16: =models1!AO976 -> 84945.8 | U16: =IF(MAX(Q16:R16)<T16,0,IF(MIN(Q16:R16)>T16,0,1)) -> 1 | V16: 1 | W16: 0 | X16: 0 | Y16: 6773.411212 | Z16: =STDEV(models1!J976,models1!Y976) -> 20.1454722 | AB16: 6 | AC16: 5 | AD16: 11 | AE16: 9 | AF16: 2 | AG16: 10 | AH16: 11 | AI16: 6 | AJ16: 8 | AK16: 15 | AL16: 84000 | AN16: 3.507135583 | AO16: 3.391164992 | AP16: 0.1159705918
A17: O16 | B17: 23 | C17: 73 | D17: 48 | E17: 16 | F17: 46 | G17: 66 | I17: O16 | J17: =RANK(B17,B$2:B$17,0) -> 13 | K17: 5 | L17: 7 | M17: 16 | N17: 10 | O17: 66000 | P17: =IF(models1!J977*models1!Y977<=0,"valid","invalid") -> valid | Q17: =models1!G977 -> 51984.6 | R17: =models1!V977 -> 79648.9 | S17: 65816.75 | T17: =models1!AO977 -> 66743.2 | U17: =IF(MAX(Q17:R17)<T17,0,IF(MIN(Q17:R17)>T17,0,1)) -> 1 | V17: 1 | W17: 0 | X17: 0 | Y17: 655.0990774 | Z17: =STDEV(models1!J977,models1!Y977) -> 29.64191627 | AB17: 13 | AC17: 5 | AD17: 7 | AE17: 16 | AF17: 10 | AG17: 4 | AH17: 11 | AI17: 9 | AJ17: 1 | AK17: 6 | AL17: 66000 | AN17: 4.438468204 | AO17: 3.962322551 | AP17: 0.476145653
A18: correlation | B18: =CORREL(B2:B16,$G$2:$G$16) -> 0.2112289394 | C18: =CORREL(C2:C16,$G$2:$G$16) -> -0.1966391984 | D18: -0.148191752 | E18: 0.212409142 | F18: 0.2582589913 | G18: 1 | I18: O16(2) | J18: =MAX(J2:J16) -> 16 | K18: =INT(QUARTILE(K2:K16,3)) -> 12 | L18: =MEDIAN(L2:L16) -> 8 | M18: =INT(QUARTILE(M2:M16,1)) -> 3 | N18: =MIN(N2:N16) -> 1 | O18: =O17 -> 66000 | P18: ratio | Q18: correlation | R18: correlation | T18: correlation | AB18: direct | AC18: direct | AD18: direct | AE18: direct | AF18: direct | AG18: inverse | AH18: inverse | AI18: inverse | AJ18: inverse | AK18: inverse | AL18: double | AM18: max | AN18: =MAX(AN2:AN17) -> 6.68580586 | AO18: =MAX(AO2:AO17) -> 6.379655163 | AP18: =MAX(AP2:AP17) -> 0.4956234913
A19: direction | B19: =IF(B18>0,0,1) -> 0 | C19: =IF(C18>0,0,1) -> 1 | D19: 1 | E19: 0 | F19: 0 | G19: Y | P19: =COUNTIF($P$2:$P$17,"valid")/16 -> 0.375 | Q19: =CORREL(Q2:Q17,$O$2:$O$17) -> 0.8884953893 | R19: =CORREL(R2:R17,$O$2:$O$17) -> 0.4255606814 | T19: =CORREL(T2:T17,$O$2:$O$17) -> 0.9613531788 | U19: =SUM(U2:U17) -> 7 | W19: =SUM(W2:W17) -> 0 | X19: =SUM(X2:X17) -> 1 | Y19: =SUM(Y2:Y17) -> 116700.3375 | AM19: min | AN19: =MIN(AN2:AN17) -> 2.167948339 | AO19: =MIN(AO2:AO17) -> 2.167948339 | AP19: =MIN(AP2:AP17) -> 0
AM20: avg | AN20: =AVERAGE(AN2:AN17) -> 4.710994722 | AO20: =AVERAGE(AO2:AO17) -> 4.626975232 | AP20: =AVERAGE(AP2:AP17) -> 0.189207008
A21: antagonism! | I21: O* | O21: correlation | AM21: stddev | AN21: =STDEV(AN2:AN17) -> 1.14613727 | AO21: =STDEV(AO2:AO17) -> 1.100230378 | AP21: =STDEV(AP2:AP17) -> 0.1818873501
I22: 1 | AM22: median | AN22: =MEDIAN(AN2:AN17) -> 4.549393392 | AO22: =MEDIAN(AO2:AO17) -> 4.499722179 | AP22: 0.1357202243
A23: Consistency-tasks | I23: 1 | O23: =CORREL($B$2:$G$2,B3:G3) -> 0.9598681122
A24: Y=between1 | I24: 1 | O24: 0.8276971831
A25: Y=between2 | I25: 1 | O25: 0.273503777
A26: Y=validity1 | I26: 1 | O26: 0.6259995812
A27: Y=validity2 | I27: 1 | O27: -0.6421826297
A28: Y=validity-ratio | I28: 1 | O28: 0.3128090715
A29: Xi=model-characteristics | I29: 1 | O29: 0.06200885087
I30: 1 | O30: -0.226385704
I31: 1 | O31: -0.7995300507
I32: 1 | O32: 0.03420160206
I33: 1 | O33: -0.04354831323
I34: 1 | O34: 0.4959756241
I35: 1 | O35: 0.1491041374
I36: 1 | O36: 0.4570759025
I37: 1 | O37: -0.1259155231
I38: =I22+1 -> 2 | O38: =CORREL($B$3:$G$3,B2:G2) -> 0.9598681122
I39: =I23+1 -> 2
I40: 2 | O40: =CORREL($B$3:$G$3,B4:G4) -> 0.7669294654
I41: 2 | O41: 0.111284672
I42: 2 | O42: 0.3894703726
I43: 2 | O43: -0.6846538913
I44: 2 | O44: 0.1247619142
I45: 2 | O45: -0.08059207692
I46: 2 | O46: -0.2685400328
I47: 2 | O47: -0.894596839
I48: 2 | O48: 0.2308429945
I49: 2 | O49: -0.3071888207
I50: 2 | O50: 0.416833154
I51: 2 | O51: 0.2053440336
I52: 2 | O52: 0.3773412238
I53: 2 | O53: -0.1616611823
I54: 3 | O54: =CORREL($B$4:$G$4,B2:G2) -> 0.8276971831
I55: 3 | O55: =CORREL($B$4:$G$4,B3:G3) -> 0.7669294654
I56: 3
I57: 3 | O57: 0.0604818086
I58: 3 | O58: 0.6961347073
I59: 3 | O59: -0.2141503714
I60: 3 | O60: -0.04644208994
I61: 3 | O61: -0.09071050779
I62: 3 | O62: -0.07709844887
I63: 3 | O63: -0.7987595754
I64: 3 | O64: 0.1501754374
I65: 3 | O65: -0.01227728964
I66: 3 | O66: 0.6761743457
I67: 3 | O67: -0.260729305
I68: 3 | O68: -0.01861364117
I69: 3 | O69: 0.2502709841
I70: 4 | O70: =CORREL($B$5:$G$5,B2:G2) -> 0.273503777
I71: 4 | O71: =CORREL($B$5:$G$5,B3:G3) -> 0.111284672
I72: 4 | O72: 0.0604818086
I73: 4
I74: 4 | O74: 0.4633552231
I75: 4 | O75: -0.1675106425
I76: 4 | O76: 0.8427864596
I77: 4 | O77: 0.9705003255
I78: 4 | O78: -0.5180907475
I79: 4 | O79: 0.2745542479
I80: 4 | O80: -0.7327384751
I81: 4 | O81: 0.3691835871
I82: 4 | O82: -0.4187021182
I83: 4 | O83: -0.3064055819
I84: 4 | O84: 0.813361345
I85: 4 | O85: -0.1255561999
I86: 5 | O86: =CORREL($B$6:$G$6,B2:G2) -> 0.6259995812
I87: 5 | O87: =CORREL($B$6:$G$6,B3:G3) -> 0.3894703726
I88: 5 | O88: 0.6961347073
I89: 5 | O89: 0.4633552231
I90: 5
I91: 5 | O91: -0.1094560867
I92: 5 | O92: 0.5248787724
I93: 5 | O93: 0.3047819948
I94: 5 | O94: 0.08959703984
I95: 5 | O95: -0.2258641544
I96: 5 | O96: -0.4089738721
I97: 5 | O97: 0.6822760644
I98: 5 | O98: 0.5965231207
I99: 5 | O99: -0.1577061854
I100: 5 | O100: 0.2816780566
I101: 5 | O101: 0.1144916673
I102: 6 | O102: =CORREL($B$7:$G$7,B2:G2) -> -0.6421826297
I103: =I87+1 -> 6 | O103: =CORREL($B$7:$G$7,B3:G3) -> -0.6846538913
I104: 6 | O104: -0.2141503714
I105: 6 | O105: -0.1675106425
I106: 6 | O106: -0.1094560867
I107: 6
I108: 6 | O108: -0.4375422523
I109: 6 | O109: -0.0005268537966
I110: 6 | O110: 0.4880202185
I111: 6 | O111: 0.534951706
I112: 6 | O112: 0.2008106914
I113: 6 | O113: 0.2268186348
I114: 6 | O114: -0.08946753257
I115: 6 | O115: -0.6024467045
I116: 6 | O116: -0.6549094125
I117: 6 | O117: 0.09390597504
I118: 7 | O118: =CORREL($B$8:$G$8,B2:G2) -> 0.3128090715
I119: 7 | O119: =CORREL($B$8:$G$8,B3:G3) -> 0.1247619142
I120: 7 | O120: -0.04644208994
I121: 7 | O121: 0.8427864596
I122: 7 | O122: 0.5248787724
I123: 7 | O123: -0.4375422523
I124: 7
I125: 7 | O125: 0.740912218
I126: 7 | O126: -0.3120915506
I127: 7 | O127: 0.2726223228
I128: 7 | O128: -0.8055248056
I129: 7 | O129: 0.5838211615
I130: 7 | O130: -0.1778469507
I131: 7 | O131: 0.1874998098
I132: 7 | O132: 0.8889493842
I133: 7 | O133: -0.2303691206
I134: 8 | O134: =CORREL($B$9:$G$9,B2:G2) -> 0.06200885087
I135: 8 | O135: =CORREL($B$9:$G$9,B3:G3) -> -0.08059207692
I136: 8 | O136: -0.09071050779
I137: 8 | O137: 0.9705003255
I138: 8 | O138: 0.3047819948
I139: 8 | O139: -0.0005268537966
I140: 8 | O140: 0.740912218
I141: 8
I142: 8 | O142: -0.5385214919
I143: 8 | O143: 0.4268343577
I144: 8 | O144: -0.725746206
I145: 8 | O145: 0.3088671577
I146: 8 | O146: -0.58138775
I147: 8 | O147: -0.4332734798
I148: 8 | O148: 0.7090087191
I149: 8 | O149: -0.06511500404
I150: 9 | O150: =CORREL($B$10:$G$10,B2:G2) -> -0.226385704
I151: 9 | O151: =CORREL($B$10:$G$10,B3:G3) -> -0.2685400328
I152: 9 | O152: -0.07709844887
I153: 9 | O153: -0.5180907475
I154: 9 | O154: 0.08959703984
I155: 9 | O155: 0.4880202185
I156: 9 | O156: -0.3120915506
I157: 9 | O157: -0.5385214919
I158: 9
I159: 9 | O159: 0.1706719326
I160: 9 | O160: 0.4771398448
I161: 9 | O161: 0.432787851
I162: 9 | O162: 0.5463765767
I163: 9 | O163: 0.294994392
I164: 9 | O164: -0.5467767324
I165: 9 | O165: -0.3890742387
I166: 10 | O166: =CORREL($B$11:$G$11,B2:G2) -> -0.7995300507
I167: =I151+1 -> 10 | O167: =CORREL($B$11:$G$11,B3:G3) -> -0.894596839
I168: 10 | O168: -0.7987595754
I169: 10 | O169: 0.2745542479
I170: 10 | O170: -0.2258641544
I171: 10 | O171: 0.534951706
I172: 10 | O172: 0.2726223228
I173: 10 | O173: 0.4268343577
I174: 10 | O174: 0.1706719326
I175: 10
I176: 10 | O176: -0.446874128
I177: 10 | O177: 0.4794415019
I178: 10 | O178: -0.5597878944
I179: 10 | O179: -0.1295901329
I180: 10 | O180: 0.03257097771
I181: 10 | O181: -0.1181272865
I182: 11 | O182: =CORREL($B$12:$G$12,B2:G2) -> 0.03420160206
I183: 11 | O183: =CORREL($B$12:$G$12,B3:G3) -> 0.2308429945
I184: 11 | O184: 0.1501754374
I185: 11 | O185: -0.7327384751
I186: 11 | O186: -0.4089738721
I187: 11 | O187: 0.2008106914
I188: 11 | O188: -0.8055248056
I189: 11 | O189: -0.725746206
I190: 11 | O190: 0.4771398448
I191: 11 | O191: -0.446874128
I192: 11
I193: 11 | O193: -0.5548335637
I194: 11 | O194: 0.2879322346
I195: 11 | O195: 0.1470000291
I196: 11 | O196: -0.5955478231
I197: 11 | O197: -0.3256961833
I198: 12 | O198: =CORREL($B$13:$G$13,B2:G2) -> -0.04354831323
I199: 12 | O199: =CORREL($B$13:$G$13,B3:G3) -> -0.3071888207
I200: 12 | O200: -0.01227728964
... 84 more rows

Sheet basics9
A1: =RANDBETWEEN(10,99) -> 73 | B1: A1 | C1: A2 | D1: A3 | E1: A4 | F1: A5 | G1: A6=Y | I1: rank | J1: =B1 -> A1 | K1: A2 | L1: A3 | M1: A4 | N1: A5 | O1: =G1&"'" -> A6=Y' | P1: validity0 | Q1: direkt | R1: inverz | S1: átlag | T1: double | U1: between1 | V1: validity1 | W1: invalid_between | X1: valid_extrem | Y1: between2 | Z1: validity2 | AB1: =models1!B7 -> X(A1) | AC1: =models1!C7 -> X(A2) | AD1: =models1!D7 -> X(A3) | AE1: =models1!E7 -> X(A4) | AF1: =models1!F7 -> X(A5) | AG1: =AB1 -> X(A1) | AH1: =AC1 -> X(A2) | AI1: X(A3) | AJ1: X(A4) | AK1: X(A5) | AL1: =O1 -> A6=Y' | AN1: direct_stddev | AO1: inverse_stddev | AP1: delta
A2: O1 | B2: 77 | C2: 70 | D2: 74 | E2: 66 | F2: 36 | G2: 76 | I2: =A2 -> O1 | J2: =RANK(B2,B$2:B$17,B$19) -> 12 | K2: =RANK(C2,C$2:C$17,C$19) -> 8 | L2: 11 | M2: 10 | N2: 7 | O2: =G2*1000 -> 76000 | P2: =IF(models1!J862*models1!Y862<=0,"valid","invalid") -> invalid | Q2: =models1!G862 -> 60723.8 | R2: =models1!V862 -> 62730.2 | S2: =AVERAGE(Q2:R2) -> 61727 | T2: =models1!AO862 -> 76000 | U2: =IF(MAX(Q2:R2)<T2,0,IF(MIN(Q2:R2)>T2,0,1)) -> 0 | V2: =IF(P2="valid",1,) -> 0 | W2: =IF(V2=1,IF(U2=0,1,0),0) -> 0 | X2: =IF(V2=0,IF(U2=1,1,0),0) -> 0 | Y2: =STDEV(S2:T2) -> 10092.53509 | Z2: =STDEV(models1!J862,models1!Y862) -> 1.866761902 | AB2: =J2 -> 12 | AC2: =K2 -> 8 | AD2: 11 | AE2: 10 | AF2: 7 | AG2: =RANK(AB2,AB$2:AB$17,0) -> 4 | AH2: =RANK(AC2,AC$2:AC$17,0) -> 9 | AI2: 7 | AJ2: 6 | AK2: 11 | AL2: 76000 | AN2: =STDEV(AB2:AF2) -> 2.073644135 | AO2: =STDEV(AG2:AK2) -> 2.701851217 | AP2: =ABS(AO2-AN2) -> 0.6282070819
A3: O2 | B3: 95 | C3: 11 | D3: 93 | E3: 77 | F3: 46 | G3: 34 | I3: =A3 -> O2 | J3: =RANK(B3,B$2:B$17,B$19) -> 16 | K3: 16 | L3: 15 | M3: 11 | N3: 9 | O3: =G3*1000 -> 34000 | P3: =IF(models1!J863*models1!Y863<=0,"valid","invalid") -> valid | Q3: =models1!G863 -> 33846 | R3: =models1!V863 -> 62730.2 | S3: =AVERAGE(Q3:R3) -> 48288.1 | T3: =models1!AO863 -> 34000 | U3: 1 | V3: 1 | W3: =IF(V3=1,IF(U3=0,1,0),0) -> 0 | X3: =IF(V3=0,IF(U3=1,1,0),0) -> 0 | Y3: =STDEV(S3:T3) -> 10103.2124 | Z3: =STDEV(models1!J863,models1!Y863) -> 60.06872106 | AB3: =J3 -> 16 | AC3: 16 | AD3: 15 | AE3: 11 | AF3: 9 | AG3: =RANK(AB3,AB$2:AB$17,0) -> 1 | AH3: 1 | AI3: 2 | AJ3: 5 | AK3: 9 | AL3: 34000 | AN3: =STDEV(AB3:AF3) -> 3.209361307 | AO3: =STDEV(AG3:AK3) -> 3.435112807 | AP3: =ABS(AO3-AN3) -> 0.2257515003
A4: O3 | B4: 87 | C4: 81 | D4: 95 | E4: 56 | F4: 73 | G4: 48 | I4: O3 | J4: 13 | K4: 5 | L4: 16 | M4: 7 | N4: 14 | O4: 48000 | P4: =IF(models1!J864*models1!Y864<=0,"valid","invalid") -> valid | Q4: =models1!G864 -> 37330.2 | R4: =models1!V864 -> 57867.4 | S4: 47598.8 | T4: =models1!AO864 -> 48000 | U4: 1 | V4: 1 | W4: 0 | X4: 0 | Y4: 283.6912406 | Z4: =STDEV(models1!J864,models1!Y864) -> 30.25709917 | AB4: 13 | AC4: 5 | AD4: 16 | AE4: 7 | AF4: 14 | AG4: 3 | AH4: 12 | AI4: 1 | AJ4: 9 | AK4: 3 | AL4: 48000 | AN4: 4.74341649 | AO4: 4.669047012 | AP4: 0.07436947828
A5: O4 | B5: 18 | C5: 69 | D5: 60 | E5: 91 | F5: 43 | G5: 41 | I5: O4 | J5: 2 | K5: 9 | L5: 8 | M5: 14 | N5: 8 | O5: 41000 | P5: =IF(models1!J865*models1!Y865<=0,"valid","invalid") -> invalid | Q5: =models1!G865 -> 45045.1 | R5: =models1!V865 -> 51059.5 | S5: 48052.3 | T5: =models1!AO865 -> 41000 | U5: 0 | V5: 0 | W5: 0 | X5: 0 | Y5: 4986.729153 | Z5: =STDEV(models1!J865,models1!Y865) -> 10.37325648 | AB5: 2 | AC5: 9 | AD5: 8 | AE5: 14 | AF5: 8 | AG5: 15 | AH5: 8 | AI5: 10 | AJ5: 3 | AK5: 10 | AL5: 41000 | AN5: 4.266145802 | AO5: 4.324349662 | AP5: 0.05820386055
A6: O5 | B6: 49 | C6: 87 | D6: 18 | E6: 63 | F6: 21 | G6: 46 | I6: O5 | J6: 7 | K6: 3 | L6: 2 | M6: 8 | N6: 4 | O6: 46000 | P6: =IF(models1!J866*models1!Y866<=0,"valid","invalid") -> valid | Q6: =models1!G866 -> 60723.8 | R6: =models1!V866 -> 36957.3 | S6: 48840.55 | T6: =models1!AO866 -> 46000 | U6: 1 | V6: 1 | W6: 0 | X6: 0 | Y6: 2008.572167 | Z6: =STDEV(models1!J866,models1!Y866) -> 36.53620738 | AB6: 7 | AC6: 3 | AD6: 2 | AE6: 8 | AF6: 4 | AG6: 9 | AH6: 14 | AI6: 15 | AJ6: 8 | AK6: 13 | AL6: 46000 | AN6: 2.588435821 | AO6: 3.1144823 | AP6: 0.5260464794
A7: O6 | B7: 65 | C7: 83 | D7: 86 | E7: 37 | F7: 78 | G7: 30 | I7: O6 | J7: 10 | K7: 4 | L7: 14 | M7: 4 | N7: 15 | O7: 30000 | P7: =IF(models1!J867*models1!Y867<=0,"valid","invalid") -> invalid | Q7: =models1!G867 -> 38823.4 | R7: =models1!V867 -> 49114.3 | S7: 43968.85 | T7: =models1!AO867 -> 30000 | U7: 0 | V7: 0 | W7: 0 | X7: 0 | Y7: 9877.46856 | Z7: =STDEV(models1!J867,models1!Y867) -> 24.25376259 | AB7: 10 | AC7: 4 | AD7: 14 | AE7: 4 | AF7: 15 | AG7: 6 | AH7: 13 | AI7: 3 | AJ7: 13 | AK7: 2 | AL7: 30000 | AN7: 5.272570531 | AO7: 5.319774431 | AP7: 0.04720390072
A8: O7 | B8: 76 | C8: 49 | D8: 17 | E8: 64 | F8: 56 | G8: 27 | I8: O7 | J8: 11 | K8: 15 | L8: 1 | M8: 9 | N8: 11 | O8: 27000 | P8: =IF(models1!J868*models1!Y868<=0,"valid","invalid") -> valid | Q8: =models1!G868 -> 26877.7 | R8: =models1!V868 -> 27718 | S8: 27297.85 | T8: =models1!AO868 -> 27000 | U8: 1 | V8: 1 | W8: 0 | X8: 0 | Y8: 210.6117548 | Z8: =STDEV(models1!J868,models1!Y868) -> 2.199102089 | AB8: 11 | AC8: 15 | AD8: 1 | AE8: 9 | AF8: 11 | AG8: 5 | AH8: 2 | AI8: 16 | AJ8: 7 | AK8: 5 | AL8: 27000 | AN8: 5.176871642 | AO8: 5.338539126 | AP8: 0.1616674838
A9: O8 | B9: 39 | C9: 67 | D9: 63 | E9: 18 | F9: 28 | G9: 88 | I9: O8 | J9: 6 | K9: 11 | L9: 9 | M9: 1 | N9: 5 | O9: 88000 | P9: =IF(models1!J869*models1!Y869<=0,"valid","invalid") -> invalid | Q9: =models1!G869 -> 87601.5 | R9: =models1!V869 -> 59326.2 | S9: 73463.85 | T9: =models1!AO869 -> 88000 | U9: 0 | V9: 0 | W9: 0 | X9: 0 | Y9: 10278.61024 | Z9: =STDEV(models1!J869,models1!Y869) -> 22.71934088 | AB9: 6 | AC9: 11 | AD9: 9 | AE9: 1 | AF9: 5 | AG9: 10 | AH9: 5 | AI9: 9 | AJ9: 16 | AK9: 12 | AL9: 88000 | AN9: 3.847076812 | AO9: 4.037325848 | AP9: 0.1902490353
A10: O9 | B10: 30 | C10: 51 | D10: 49 | E10: 81 | F10: 50 | G10: 66 | I10: O9 | J10: 4 | K10: 13 | L10: 6 | M10: 13 | N10: 10 | O10: 66000 | P10: =IF(models1!J870*models1!Y870<=0,"valid","invalid") -> invalid | Q10: =models1!G870 -> 55746.4 | R10: =models1!V870 -> 55436 | S10: 55591.2 | T10: =models1!AO870 -> 66000 | U10: 0 | V10: 0 | W10: 0 | X10: 0 | Y10: 7360.133064 | Z10: =STDEV(models1!J870,models1!Y870) -> 0.3323401872 | AB10: 4 | AC10: 13 | AD10: 6 | AE10: 13 | AF10: 10 | AG10: 12 | AH10: 4 | AI10: 12 | AJ10: 4 | AK10: 8 | AL10: 66000 | AN10: 4.086563348 | AO10: 4 | AP10: 0.08656334834
A11: O10 | B11: 52 | C11: 50 | D11: 80 | E11: 49 | F11: 96 | G11: 37 | I11: O10 | J11: 8 | K11: 14 | L11: 13 | M11: 6 | N11: 16 | O11: 37000 | P11: =IF(models1!J871*models1!Y871<=0,"valid","invalid") -> valid | Q11: =models1!G871 -> 36832.4 | R11: =models1!V871 -> 64189 | S11: 50510.7 | T11: =models1!AO871 -> 37000 | U11: 1 | V11: 1 | W11: 0 | X11: 0 | Y11: 9553.507589 | Z11: =STDEV(models1!J871,models1!Y871) -> 52.27640433 | AB11: 8 | AC11: 14 | AD11: 13 | AE11: 6 | AF11: 16 | AG11: 8 | AH11: 3 | AI11: 5 | AJ11: 10 | AK11: 1 | AL11: 37000 | AN11: 4.219004622 | AO11: 3.646916506 | AP11: 0.5720881162
A12: O11 | B12: 13 | C12: 67 | D12: 23 | E12: 38 | F12: 20 | G12: 64 | I12: O11 | J12: 1 | K12: 11 | L12: 4 | M12: 5 | N12: 3 | O12: 64000 | P12: =IF(models1!J872*models1!Y872<=0,"valid","invalid") -> valid | Q12: =models1!G872 -> 64705.6 | R12: =models1!V872 -> 46196.6 | S12: 55451.1 | T12: =models1!AO872 -> 64000 | U12: 1 | V12: 1 | W12: 0 | X12: 0 | Y12: 6044.985162 | Z12: =STDEV(models1!J872,models1!Y872) -> 20.44952811 | AB12: 1 | AC12: 11 | AD12: 4 | AE12: 5 | AF12: 3 | AG12: 16 | AH12: 5 | AI12: 14 | AJ12: 11 | AK12: 14 | AL12: 64000 | AN12: 3.768288736 | AO12: 4.301162634 | AP12: 0.5328738972
A13: O12 | B13: 93 | C13: 68 | D13: 51 | E13: 36 | F13: 16 | G13: 70 | I13: O12 | J13: 15 | K13: 10 | L13: 7 | M13: 3 | N13: 1 | O13: 70000 | P13: =IF(models1!J873*models1!Y873<=0,"valid","invalid") -> invalid | Q13: =models1!G873 -> 69683 | R13: =models1!V873 -> 50573.2 | S13: 60128.1 | T13: =models1!AO873 -> 70000 | U13: 0 | V13: 0 | W13: 0 | X13: 0 | Y13: 6980.487433 | Z13: =STDEV(models1!J873,models1!Y873) -> 19.30401513 | AB13: 15 | AC13: 10 | AD13: 7 | AE13: 3 | AF13: 1 | AG13: 2 | AH13: 7 | AI13: 11 | AJ13: 14 | AK13: 15 | AL13: 70000 | AN13: 5.585696018 | AO13: 5.357238094 | AP13: 0.2284579231
A14: O13 | B14: 55 | C14: 90 | D14: 77 | E14: 97 | F14: 70 | G14: 82 | I14: O13 | J14: 9 | K14: 2 | L14: 12 | M14: 15 | N14: 13 | O14: 82000 | P14: =IF(models1!J874*models1!Y874<=0,"valid","invalid") -> valid | Q14: =models1!G874 -> 81628.7 | R14: =models1!V874 -> 100173.8 | S14: 90901.25 | T14: =models1!AO874 -> 82000 | U14: 1 | V14: 1 | W14: 0 | X14: 0 | Y14: 6294.134236 | Z14: =STDEV(models1!J874,models1!Y874) -> 15.98768432 | AB14: 9 | AC14: 2 | AD14: 12 | AE14: 15 | AF14: 13 | AG14: 7 | AH14: 15 | AI14: 6 | AJ14: 1 | AK14: 4 | AL14: 82000 | AN14: 5.069516742 | AO14: 5.224940191 | AP14: 0.1554234488
A15: O14 | B15: 38 | C15: 93 | D15: 27 | E15: 97 | F15: 56 | G15: 99 | I15: O14 | J15: 5 | K15: 1 | L15: 5 | M15: 15 | N15: 11 | O15: 99000 | P15: =IF(models1!J875*models1!Y875<=0,"valid","invalid") -> invalid | Q15: =models1!G875 -> 98551.7 | R15: =models1!V875 -> 88016.8 | S15: 93284.25 | T15: =models1!AO875 -> 99000 | U15: =IF(MAX(Q15:R15)<T15,0,IF(MIN(Q15:R15)>T15,0,1)) -> 0 | V15: 0 | W15: 0 | X15: 0 | Y15: 4041.645585 | Z15: =STDEV(models1!J875,models1!Y875) -> 7.523616152 | AB15: 5 | AC15: 1 | AD15: 5 | AE15: 15 | AF15: 11 | AG15: 11 | AH15: 16 | AI15: 13 | AJ15: 1 | AK15: 5 | AL15: 99000 | AN15: 5.54977477 | AO15: 6.099180273 | AP15: 0.5494055026
A16: O15 | B16: 21 | C16: 79 | D16: 72 | E16: 21 | F16: 16 | G16: 95 | I16: O15 | J16: 3 | K16: 6 | L16: 10 | M16: 2 | N16: 1 | O16: 95000 | P16: =IF(models1!J876*models1!Y876<=0,"valid","invalid") -> invalid | Q16: =models1!G876 -> 94569.8 | R16: =models1!V876 -> 59326.2 | S16: 76948 | T16: =models1!AO876 -> 95000 | U16: =IF(MAX(Q16:R16)<T16,0,IF(MIN(Q16:R16)>T16,0,1)) -> 0 | V16: 0 | W16: 0 | X16: 0 | Y16: 12764.69161 | Z16: =STDEV(models1!J876,models1!Y876) -> 26.23366158 | AB16: 3 | AC16: 6 | AD16: 10 | AE16: 2 | AF16: 1 | AG16: 13 | AH16: 11 | AI16: 8 | AJ16: 15 | AK16: 15 | AL16: 95000 | AN16: 3.646916506 | AO16: 2.966479395 | AP16: 0.6804371109
A17: O16 | B17: 90 | C17: 77 | D17: 22 | E17: 78 | F17: 35 | G17: 27 | I17: O16 | J17: =RANK(B17,B$2:B$17,0) -> 3 | K17: 7 | L17: 14 | M17: 5 | N17: 11 | O17: 27000 | P17: =IF(models1!J877*models1!Y877<=0,"valid","invalid") -> invalid | Q17: =models1!G877 -> 37330.2 | R17: =models1!V877 -> 59326.2 | S17: 48328.2 | T17: =models1!AO877 -> 27000 | U17: =IF(MAX(Q17:R17)<T17,0,IF(MIN(Q17:R17)>T17,0,1)) -> 0 | V17: 0 | W17: 0 | X17: 0 | Y17: 15081.31485 | Z17: =STDEV(models1!J877,models1!Y877) -> 57.60798946 | AB17: 3 | AC17: 7 | AD17: 14 | AE17: 5 | AF17: 11 | AG17: 13 | AH17: 10 | AI17: 3 | AJ17: 11 | AK17: 5 | AL17: 27000 | AN17: 4.472135955 | AO17: 4.219004622 | AP17: 0.2531313331
A18: correlation | B18: =CORREL(B2:B16,$G$2:$G$16) -> -0.367260994 | C18: =CORREL(C2:C16,$G$2:$G$16) -> 0.4695088313 | D18: -0.1077963891 | E18: -0.0677660014 | F18: -0.4189924933 | G18: 1 | I18: O16(2) | J18: =MAX(J2:J16) -> 16 | K18: =INT(QUARTILE(K2:K16,3)) -> 12 | L18: =MEDIAN(L2:L16) -> 9 | M18: =INT(QUARTILE(M2:M16,1)) -> 4 | N18: =MIN(N2:N16) -> 1 | O18: =O17 -> 27000 | P18: ratio | Q18: correlation | R18: correlation | T18: correlation | AB18: direct | AC18: direct | AD18: direct | AE18: direct | AF18: direct | AG18: inverse | AH18: inverse | AI18: inverse | AJ18: inverse | AK18: inverse | AL18: double | AM18: max | AN18: =MAX(AN2:AN17) -> 5.585696018 | AO18: =MAX(AO2:AO17) -> 6.099180273 | AP18: =MAX(AP2:AP17) -> 0.6804371109
A19: direction | B19: =IF(B18>0,0,1) -> 1 | C19: =IF(C18>0,0,1) -> 0 | D19: 1 | E19: 1 | F19: 1 | G19: Y | P19: =COUNTIF($P$2:$P$17,"valid")/16 -> 0.4375 | Q19: =CORREL(Q2:Q17,$O$2:$O$17) -> 0.9526481743 | R19: =CORREL(R2:R17,$O$2:$O$17) -> 0.543953185 | T19: =CORREL(T2:T17,$O$2:$O$17) -> 1 | U19: =SUM(U2:U17) -> 7 | W19: =SUM(W2:W17) -> 0 | X19: =SUM(X2:X17) -> 0 | Y19: =SUM(Y2:Y17) -> 115962.3301 | AM19: min | AN19: =MIN(AN2:AN17) -> 2.073644135 | AO19: =MIN(AO2:AO17) -> 2.701851217 | AP19: =MIN(AP2:AP17) -> 0.04720390072
AM20: avg | AN20: =AVERAGE(AN2:AN17) -> 4.223463702 | AO20: =AVERAGE(AO2:AO17) -> 4.297212757 | AP20: =AVERAGE(AP2:AP17) -> 0.3106299688
A21: antagonism! | I21: O* | O21: correlation | AM21: stddev | AN21: =STDEV(AN2:AN17) -> 1.022991355 | AO21: =STDEV(AO2:AO17) -> 0.9846623882 | AP21: =STDEV(AP2:AP17) -> 0.2274428208
I22: 1 | AM22: median | AN22: =MEDIAN(AN2:AN17) -> 4.242575212 | AO22: =MEDIAN(AO2:AO17) -> 4.260083628 | AP22: 0.2271047117
A23: Consistency-tasks | I23: 1 | O23: =CORREL($B$2:$G$2,B3:G3) -> 0.2317035378
A24: Y=between1 | I24: 1 | O24: 0.07872595181
A25: Y=between2 | I25: 1 | O25: -0.04430024469
A26: Y=validity1 | I26: 1 | O26: 0.3572249639
A27: Y=validity2 | I27: 1 | O27: -0.2640974111
A28: Y=validity-ratio | I28: 1 | O28: -0.2228879766
A29: Xi=model-characteristics | I29: 1 | O29: 0.5295055485
I30: 1 | O30: -0.05782533545
I31: 1 | O31: -0.7380806272
I32: 1 | O32: 0.2909044698
I33: 1 | O33: 0.8298049123
I34: 1 | O34: 0.05667559173
I35: 1 | O35: 0.0446542733
I36: 1 | O36: 0.5290324358
I37: 1 | O37: 0.2276341666
I38: =I22+1 -> 2 | O38: =CORREL($B$3:$G$3,B2:G2) -> 0.2317035378
I39: =I23+1 -> 2
I40: 2 | O40: =CORREL($B$3:$G$3,B4:G4) -> 0.3802414663
I41: 2 | O41: -0.1558644684
I42: 2 | O42: -0.4902945399
I43: 2 | O43: 0.0134354082
I44: 2 | O44: 0.1601897069
I45: 2 | O45: -0.4416855109
I46: 2 | O46: -0.2201848537
I47: 2 | O47: 0.2031704793
I48: 2 | O48: -0.8094181935
I49: 2 | O49: 0.08471006169
I50: 2 | O50: -0.4273982372
I51: 2 | O51: -0.6856952678
I52: 2 | O52: -0.4802027768
I53: 2 | O53: 0.08865668293
I54: 3 | O54: =CORREL($B$4:$G$4,B2:G2) -> 0.07872595181
I55: 3 | O55: =CORREL($B$4:$G$4,B3:G3) -> 0.3802414663
I56: 3
I57: 3 | O57: -0.2405668648
I58: 3 | O58: -0.2272590657
I59: 3 | O59: 0.8908340469
I60: 3 | O60: -0.01439109216
I61: 3 | O61: -0.05747159822
I62: 3 | O62: -0.780758576
I63: 3 | O63: 0.4948079846
I64: 3 | O64: -0.5195961454
I65: 3 | O65: 0.1988654465
I66: 3 | O66: -0.4946741654
I67: 3 | O67: -0.8181901879
I68: 3 | O68: -0.1009866562
I69: 3 | O69: 0.09118995891
I70: 4 | O70: =CORREL($B$5:$G$5,B2:G2) -> -0.04430024469
I71: 4 | O71: =CORREL($B$5:$G$5,B3:G3) -> -0.1558644684
I72: 4 | O72: -0.2405668648
I73: 4
I74: 4 | O74: 0.3780087723
I75: 4 | O75: -0.1081899198
I76: 4 | O76: -0.1414783742
I77: 4 | O77: -0.209572892
I78: 4 | O78: 0.7642521086
I79: 4 | O79: -0.08616993524
I80: 4 | O80: 0.3754225002
I81: 4 | O81: -0.4804695817
I82: 4 | O82: 0.9206404205
I83: 4 | O83: 0.4942915563
I84: 4 | O84: 0.07362417135
I85: 4 | O85: 0.08052397043
I86: 5 | O86: =CORREL($B$6:$G$6,B2:G2) -> 0.3572249639
I87: 5 | O87: =CORREL($B$6:$G$6,B3:G3) -> -0.4902945399
I88: 5 | O88: -0.2272590657
I89: 5 | O89: 0.3780087723
I90: 5
I91: 5 | O91: -0.2025329482
I92: 5 | O92: 0.3655576324
I93: 5 | O93: 0.08747085802
I94: 5 | O94: 0.2223307974
I95: 5 | O95: -0.7169530167
I96: 5 | O96: 0.6596197378
I97: 5 | O97: 0.3958649028
I98: 5 | O98: 0.5001953619
I99: 5 | O99: 0.6888730923
I100: 5 | O100: 0.1832747839
I101: 5 | O101: 0.7233471953
I102: 6 | O102: =CORREL($B$7:$G$7,B2:G2) -> -0.2640974111
I103: =I87+1 -> 6 | O103: =CORREL($B$7:$G$7,B3:G3) -> 0.0134354082
I104: 6 | O104: 0.8908340469
I105: 6 | O105: -0.1081899198
I106: 6 | O106: -0.2025329482
I107: 6
I108: 6 | O108: -0.08872540168
I109: 6 | O109: -0.04218719752
I110: 6 | O110: -0.6603367196
I111: 6 | O111: 0.6753786291
I112: 6 | O112: -0.3361580833
I113: 6 | O113: -0.1037340777
I114: 6 | O114: -0.3190055152
I115: 6 | O115: -0.6340625431
I116: 6 | O116: -0.05025198187
I117: 6 | O117: -0.06136909807
I118: 7 | O118: =CORREL($B$8:$G$8,B2:G2) -> -0.2228879766
I119: 7 | O119: =CORREL($B$8:$G$8,B3:G3) -> 0.1601897069
I120: 7 | O120: -0.01439109216
I121: 7 | O121: -0.1414783742
I122: 7 | O122: 0.3655576324
I123: 7 | O123: -0.08872540168
I124: 7
I125: 7 | O125: -0.7330553496
I126: 7 | O126: -0.1922561013
I127: 7 | O127: -0.1035732098
I128: 7 | O128: -0.3448792659
I129: 7 | O129: 0.08803978872
I130: 7 | O130: -0.2666489435
I131: 7 | O131: 0.04804917641
I132: 7 | O132: -0.799109796
I133: 7 | O133: 0.8389529836
I134: 8 | O134: =CORREL($B$9:$G$9,B2:G2) -> 0.5295055485
I135: 8 | O135: =CORREL($B$9:$G$9,B3:G3) -> -0.4416855109
I136: 8 | O136: -0.05747159822
I137: 8 | O137: -0.209572892
I138: 8 | O138: 0.08747085802
I139: 8 | O139: -0.04218719752
I140: 8 | O140: -0.7330553496
I141: 8
I142: 8 | O142: -0.07546741434
I143: 8 | O143: -0.3825424472
I144: 8 | O144: 0.6356692576
I145: 8 | O145: 0.4917374031
I146: 8 | O146: 0.08196938214
I147: 8 | O147: 0.1723736665
I148: 8 | O148: 0.9592541892
I149: 8 | O149: -0.4509899534
I150: 9 | O150: =CORREL($B$10:$G$10,B2:G2) -> -0.05782533545
I151: 9 | O151: =CORREL($B$10:$G$10,B3:G3) -> -0.2201848537
I152: 9 | O152: -0.780758576
I153: 9 | O153: 0.7642521086
I154: 9 | O154: 0.2223307974
I155: 9 | O155: -0.6603367196
I156: 9 | O156: -0.1922561013
I157: 9 | O157: -0.07546741434
I158: 9
I159: 9 | O159: -0.3080951618
I160: 9 | O160: 0.4850837944
I161: 9 | O161: -0.4694519845
I162: 9 | O162: 0.8615321593
I163: 9 | O163: 0.7388122952
I164: 9 | O164: 0.1281444015
I165: 9 | O165: -0.1444768071
I166: 10 | O166: =CORREL($B$11:$G$11,B2:G2) -> -0.7380806272
I167: =I151+1 -> 10 | O167: =CORREL($B$11:$G$11,B3:G3) -> 0.2031704793
I168: 10 | O168: 0.4948079846
I169: 10 | O169: -0.08616993524
I170: 10 | O170: -0.7169530167
I171: 10 | O171: 0.6753786291
I172: 10 | O172: -0.1035732098
I173: 10 | O173: -0.3825424472
I174: 10 | O174: -0.3080951618
I175: 10
I176: 10 | O176: -0.6292311884
I177: 10 | O177: -0.6722169951
I178: 10 | O178: -0.3273679648
I179: 10 | O179: -0.6386749753
I180: 10 | O180: -0.3962986226
I181: 10 | O181: -0.442553501
I182: 11 | O182: =CORREL($B$12:$G$12,B2:G2) -> 0.2909044698
I183: 11 | O183: =CORREL($B$12:$G$12,B3:G3) -> -0.8094181935
I184: 11 | O184: -0.5195961454
I185: 11 | O185: 0.3754225002
I186: 11 | O186: 0.6596197378
I187: 11 | O187: -0.3361580833
I188: 11 | O188: -0.3448792659
I189: 11 | O189: 0.6356692576
I190: 11 | O190: 0.4850837944
I191: 11 | O191: -0.6292311884
I192: 11
I193: 11 | O193: 0.1833546693
I194: 11 | O194: 0.686203191
I195: 11 | O195: 0.8363412542
I196: 11 | O196: 0.74043956
I197: 11 | O197: -0.03172474304
I198: 12 | O198: =CORREL($B$13:$G$13,B2:G2) -> 0.8298049123
I199: 12 | O199: =CORREL($B$13:$G$13,B3:G3) -> 0.08471006169
I200: 12 | O200: 0.1988654465
... 84 more rows

Sheet basics8
A1: =RANDBETWEEN(10,99) -> 11 | B1: A1 | C1: A2 | D1: A3 | E1: A4 | F1: A5 | G1: A6=Y | I1: rank | J1: =B1 -> A1 | K1: A2 | L1: A3 | M1: A4 | N1: A5 | O1: =G1&"'" -> A6=Y' | P1: validity0 | Q1: direkt | R1: inverz | S1: átlag | T1: double | U1: between1 | V1: validity1 | W1: invalid_between | X1: valid_extrem | Y1: between2 | Z1: validity2 | AB1: =models1!B7 -> X(A1) | AC1: =models1!C7 -> X(A2) | AD1: =models1!D7 -> X(A3) | AE1: =models1!E7 -> X(A4) | AF1: =models1!F7 -> X(A5) | AG1: =AB1 -> X(A1) | AH1: =AC1 -> X(A2) | AI1: X(A3) | AJ1: X(A4) | AK1: X(A5) | AL1: =O1 -> A6=Y' | AN1: direct_stddev | AO1: inverse_stddev | AP1: delta
A2: O1 | B2: 36 | C2: 81 | D2: 97 | E2: 97 | F2: 76 | G2: 23 | I2: =A2 -> O1 | J2: =RANK(B2,B$2:B$17,B$19) -> 14 | K2: =RANK(C2,C$2:C$17,C$19) -> 12 | L2: 15 | M2: 15 | N2: 12 | O2: =G2*1000 -> 23000 | P2: =IF(models1!J762*models1!Y762<=0,"valid","invalid") -> invalid | Q2: =models1!G762 -> 23011.9 | R2: =models1!V762 -> 69467.1 | S2: =AVERAGE(Q2:R2) -> 46239.5 | T2: =models1!AO762 -> 23000 | U2: =IF(MAX(Q2:R2)<T2,0,IF(MIN(Q2:R2)>T2,0,1)) -> 0 | V2: =IF(P2="valid",1,) -> 0 | W2: =IF(V2=1,IF(U2=0,1,0),0) -> 0 | X2: =IF(V2=0,IF(U2=1,1,0),0) -> 0 | Y2: =STDEV(S2:T2) -> 16432.80804 | Z2: =STDEV(models1!J762,models1!Y762) -> 142.8214277 | AB2: =J2 -> 14 | AC2: =K2 -> 12 | AD2: 15 | AE2: 15 | AF2: 12 | AG2: =RANK(AB2,AB$2:AB$17,0) -> 2 | AH2: =RANK(AC2,AC$2:AC$17,0) -> 5 | AI2: 2 | AJ2: 2 | AK2: 5 | AL2: 23000 | AN2: =STDEV(AB2:AF2) -> 1.516575089 | AO2: =STDEV(AG2:AK2) -> 1.643167673 | AP2: =ABS(AO2-AN2) -> 0.1265925837
A3: O2 | B3: 56 | C3: 43 | D3: 21 | E3: 84 | F3: 84 | G3: 75 | I3: =A3 -> O2 | J3: =RANK(B3,B$2:B$17,B$19) -> 8 | K3: 6 | L3: 3 | M3: 14 | N3: 14 | O3: =G3*1000 -> 75000 | P3: =IF(models1!J763*models1!Y763<=0,"valid","invalid") -> invalid | Q3: =models1!G763 -> 58030.1 | R3: =models1!V763 -> 68928.6 | S3: =AVERAGE(Q3:R3) -> 63479.35 | T3: =models1!AO763 -> 75000 | U3: 0 | V3: 0 | W3: =IF(V3=1,IF(U3=0,1,0),0) -> 0 | X3: =IF(V3=0,IF(U3=1,1,0),0) -> 0 | Y3: =STDEV(S3:T3) -> 8146.329739 | Z3: =STDEV(models1!J763,models1!Y763) -> 10.27426153 | AB3: =J3 -> 8 | AC3: 6 | AD3: 3 | AE3: 14 | AF3: 14 | AG3: =RANK(AB3,AB$2:AB$17,0) -> 9 | AH3: 11 | AI3: 14 | AJ3: 3 | AK3: 3 | AL3: 75000 | AN3: =STDEV(AB3:AF3) -> 4.898979486 | AO3: =STDEV(AG3:AK3) -> 4.898979486 | AP3: =ABS(AO3-AN3) -> 0
A4: O3 | B4: 36 | C4: 55 | D4: 46 | E4: 63 | F4: 31 | G4: 60 | I4: O3 | J4: 14 | K4: 7 | L4: 6 | M4: 9 | N4: 4 | O4: 60000 | P4: =IF(models1!J764*models1!Y764<=0,"valid","invalid") -> invalid | Q4: =models1!G764 -> 62032.1 | R4: =models1!V764 -> 64620.5 | S4: 63326.3 | T4: =models1!AO764 -> 60000 | U4: 0 | V4: 0 | W4: 0 | X4: 0 | Y4: 2352.049286 | Z4: =STDEV(models1!J764,models1!Y764) -> 3.047630227 | AB4: 14 | AC4: 7 | AD4: 6 | AE4: 9 | AF4: 4 | AG4: 2 | AH4: 10 | AI4: 12 | AJ4: 7 | AK4: 13 | AL4: 60000 | AN4: 3.807886553 | AO4: 4.438468204 | AP4: 0.6305816513
A5: O4 | B5: 83 | C5: 87 | D5: 90 | E5: 99 | F5: 37 | G5: 62 | I5: O4 | J5: 2 | K5: 13 | L5: 14 | M5: 16 | N5: 6 | O5: 62000 | P5: =IF(models1!J765*models1!Y765<=0,"valid","invalid") -> invalid | Q5: =models1!G765 -> 62032.1 | R5: =models1!V765 -> 73775.1 | S5: 67903.6 | T5: =models1!AO765 -> 62000 | U5: 0 | V5: 0 | W5: 0 | X5: 0 | Y5: 4174.475593 | Z5: =STDEV(models1!J765,models1!Y765) -> 13.39260244 | AB5: 2 | AC5: 13 | AD5: 14 | AE5: 16 | AF5: 6 | AG5: 15 | AH5: 4 | AI5: 3 | AJ5: 1 | AK5: 9 | AL5: 62000 | AN5: 5.93295879 | AO5: 5.639148872 | AP5: 0.2938099177
A6: O5 | B6: 57 | C6: 96 | D6: 84 | E6: 77 | F6: 82 | G6: 18 | I6: O5 | J6: 6 | K6: 16 | L6: 12 | M6: 10 | N6: 13 | O6: 18000 | P6: =IF(models1!J766*models1!Y766<=0,"valid","invalid") -> invalid | Q6: =models1!G766 -> 18009.3 | R6: =models1!V766 -> 55466 | S6: 36737.65 | T6: =models1!AO766 -> 18000 | U6: 0 | V6: 0 | W6: 0 | X6: 0 | Y6: 13249.51938 | Z6: =STDEV(models1!J766,models1!Y766) -> 147.1418501 | AB6: 6 | AC6: 16 | AD6: 12 | AE6: 10 | AF6: 13 | AG6: 10 | AH6: 1 | AI6: 6 | AJ6: 6 | AK6: 4 | AL6: 18000 | AN6: 3.714835124 | AO6: 3.286335345 | AP6: 0.4284997792
A7: O6 | B7: 38 | C7: 77 | D7: 62 | E7: 28 | F7: 98 | G7: 47 | I7: O6 | J7: 13 | K7: 10 | L7: 9 | M7: 3 | N7: 15 | O7: 47000 | P7: =IF(models1!J767*models1!Y767<=0,"valid","invalid") -> invalid | Q7: =models1!G767 -> 47024.4 | R7: =models1!V767 -> 67313.1 | S7: 57168.75 | T7: =models1!AO767 -> 46999.5 | U7: 0 | V7: 0 | W7: 0 | X7: 0 | Y7: 7190.745635 | Z7: =STDEV(models1!J767,models1!Y767) -> 30.52579974 | AB7: 13 | AC7: 10 | AD7: 9 | AE7: 3 | AF7: 15 | AG7: 4 | AH7: 7 | AI7: 9 | AJ7: 13 | AK7: 1 | AL7: 47000 | AN7: 4.582575695 | AO7: 4.604345773 | AP7: 0.02177007833
A8: O7 | B8: 57 | C8: 90 | D8: 44 | E8: 12 | F8: 37 | G8: 66 | I8: O7 | J8: 6 | K8: 14 | L8: 5 | M8: 1 | N8: 6 | O8: 66000 | P8: =IF(models1!J768*models1!Y768<=0,"valid","invalid") -> valid | Q8: =models1!G768 -> 67034.7 | R8: =models1!V768 -> 45234.4 | S8: 56134.55 | T8: =models1!AO768 -> 66000 | U8: 1 | V8: 1 | W8: 0 | X8: 0 | Y8: 6975.926594 | Z8: =STDEV(models1!J768,models1!Y768) -> 23.35573698 | AB8: 6 | AC8: 14 | AD8: 5 | AE8: 1 | AF8: 6 | AG8: 10 | AH8: 2 | AI8: 13 | AJ8: 16 | AK8: 9 | AL8: 66000 | AN8: 4.722287581 | AO8: 5.244044241 | AP8: 0.5217566596
A9: O8 | B9: 52 | C9: 15 | D9: 15 | E9: 60 | F9: 60 | G9: 41 | I9: O8 | J9: 10 | K9: 1 | L9: 2 | M9: 8 | N9: 9 | O9: 41000 | P9: =IF(models1!J769*models1!Y769<=0,"valid","invalid") -> valid | Q9: =models1!G769 -> 58030.1 | R9: =models1!V769 -> 34464.3 | S9: 46247.2 | T9: =models1!AO769 -> 41000 | U9: 1 | V9: 1 | W9: 0 | X9: 0 | Y9: 3710.330702 | Z9: =STDEV(models1!J769,models1!Y769) -> 40.64449778 | AB9: 10 | AC9: 1 | AD9: 2 | AE9: 8 | AF9: 9 | AG9: 7 | AH9: 16 | AI9: 15 | AJ9: 8 | AK9: 6 | AL9: 41000 | AN9: 4.183300133 | AO9: 4.722287581 | AP9: 0.5389874486
A10: O9 | B10: 51 | C10: 90 | D10: 83 | E10: 25 | F10: 98 | G10: 55 | I10: O9 | J10: 11 | K10: 14 | L10: 11 | M10: 2 | N10: 15 | O10: 55000 | P10: =IF(models1!J770*models1!Y770<=0,"valid","invalid") -> invalid | Q10: =models1!G770 -> 55028.5 | R10: =models1!V770 -> 60851 | S10: 57939.75 | T10: =models1!AO770 -> 55000 | U10: 0 | V10: 0 | W10: 0 | X10: 0 | Y10: 2078.71716 | Z10: =STDEV(models1!J770,models1!Y770) -> 7.488260813 | AB10: 11 | AC10: 14 | AD10: 11 | AE10: 2 | AF10: 15 | AG10: 6 | AH10: 2 | AI10: 7 | AJ10: 15 | AK10: 1 | AL10: 55000 | AN10: 5.128352562 | AO10: 5.540758071 | AP10: 0.4124055089
A11: O10 | B11: 71 | C11: 33 | D11: 99 | E11: 28 | F11: 18 | G11: 74 | I11: O10 | J11: 4 | K11: 3 | L11: 16 | M11: 3 | N11: 1 | O11: 74000 | P11: =IF(models1!J771*models1!Y771<=0,"valid","invalid") -> invalid | Q11: =models1!G771 -> 74038.4 | R11: =models1!V771 -> 79698.7 | S11: 76868.55 | T11: =models1!AO771 -> 74000 | U11: 0 | V11: 0 | W11: 0 | X11: 0 | Y11: 2028.371157 | Z11: =STDEV(models1!J771,models1!Y771) -> 5.409366876 | AB11: 4 | AC11: 3 | AD11: 16 | AE11: 3 | AF11: 1 | AG11: 13 | AH11: 14 | AI11: 1 | AJ11: 13 | AK11: 16 | AL11: 74000 | AN11: 6.024948133 | AO11: 5.941380311 | AP11: 0.08356782155
A12: O11 | B12: 63 | C12: 60 | D12: 56 | E12: 80 | F12: 22 | G12: 81 | I12: O11 | J12: 5 | K12: 8 | L12: 7 | M12: 12 | N12: 3 | O12: 81000 | P12: =IF(models1!J772*models1!Y772<=0,"valid","invalid") -> invalid | Q12: =models1!G772 -> 70536.5 | R12: =models1!V772 -> 53311.9 | S12: 61924.2 | T12: =models1!AO772 -> 81000 | U12: 0 | V12: 0 | W12: 0 | X12: 0 | Y12: 13488.62754 | Z12: =STDEV(models1!J772,models1!Y772) -> 15.03309017 | AB12: 5 | AC12: 8 | AD12: 7 | AE12: 12 | AF12: 3 | AG12: 12 | AH12: 8 | AI12: 11 | AJ12: 4 | AK12: 14 | AL12: 81000 | AN12: 3.391164992 | AO12: 3.898717738 | AP12: 0.5075527464
A13: O12 | B13: 84 | C13: 30 | D13: 81 | E13: 78 | F13: 32 | G13: 75 | I13: O12 | J13: 1 | K13: 2 | L13: 10 | M13: 11 | N13: 5 | O13: 75000 | P13: =IF(models1!J773*models1!Y773<=0,"valid","invalid") -> valid | Q13: =models1!G773 -> 88045.6 | R13: =models1!V773 -> 50080.9 | S13: 69063.25 | T13: =models1!AO773 -> 75000 | U13: 1 | V13: 1 | W13: 0 | X13: 0 | Y13: 4197.916183 | Z13: =STDEV(models1!J773,models1!Y773) -> 35.79374526 | AB13: 1 | AC13: 2 | AD13: 10 | AE13: 11 | AF13: 5 | AG13: 16 | AH13: 15 | AI13: 8 | AJ13: 5 | AK13: 12 | AL13: 75000 | AN13: 4.549725266 | AO13: 4.65832588 | AP13: 0.1086006131
A14: O13 | B14: 27 | C14: 37 | D14: 60 | E14: 52 | F14: 40 | G14: 88 | I14: O13 | J14: 16 | K14: 5 | L14: 8 | M14: 7 | N14: 8 | O14: 88000 | P14: =IF(models1!J774*models1!Y774<=0,"valid","invalid") -> valid | Q14: =models1!G774 -> 71537.1 | R14: =models1!V774 -> 99623.3 | S14: 85580.2 | T14: =models1!AO774 -> 88000 | U14: 1 | V14: 1 | W14: 0 | X14: 0 | Y14: 1711.056989 | Z14: =STDEV(models1!J774,models1!Y774) -> 22.57084846 | AB14: 16 | AC14: 5 | AD14: 8 | AE14: 7 | AF14: 8 | AG14: 1 | AH14: 12 | AI14: 10 | AJ14: 9 | AK14: 8 | AL14: 88000 | AN14: 4.207136794 | AO14: 4.183300133 | AP14: 0.02383666092
A15: O14 | B15: 81 | C15: 79 | D15: 88 | E15: 45 | F15: 19 | G15: 50 | I15: O14 | J15: 3 | K15: 11 | L15: 13 | M15: 6 | N15: 2 | O15: 50000 | P15: =IF(models1!J775*models1!Y775<=0,"valid","invalid") -> valid | Q15: =models1!G775 -> 51526.7 | R15: =models1!V775 -> 36618.3 | S15: 44072.5 | T15: =models1!AO775 -> 50000 | U15: =IF(MAX(Q15:R15)<T15,0,IF(MIN(Q15:R15)>T15,0,1)) -> 1 | V15: 1 | W15: 0 | X15: 0 | Y15: 4191.375445 | Z15: =STDEV(models1!J775,models1!Y775) -> 21.07885315 | AB15: 3 | AC15: 11 | AD15: 13 | AE15: 6 | AF15: 2 | AG15: 14 | AH15: 6 | AI15: 4 | AJ15: 10 | AK15: 15 | AL15: 50000 | AN15: 4.847679857 | AO15: 4.816637832 | AP15: 0.0310420259
A16: O15 | B16: 39 | C16: 35 | D16: 11 | E16: 43 | F16: 60 | G16: 97 | I16: O15 | J16: 12 | K16: 4 | L16: 1 | M16: 5 | N16: 9 | O16: 97000 | P16: =IF(models1!J776*models1!Y776<=0,"valid","invalid") -> valid | Q16: =models1!G776 -> 97050.3 | R16: =models1!V776 -> 64620.5 | S16: 80835.4 | T16: =models1!AO776 -> 97000.1 | U16: =IF(MAX(Q16:R16)<T16,0,IF(MIN(Q16:R16)>T16,0,1)) -> 1 | V16: 1 | W16: 0 | X16: 0 | Y16: 11430.16899 | Z16: =STDEV(models1!J776,models1!Y776) -> 23.6385797 | AB16: 12 | AC16: 4 | AD16: 1 | AE16: 5 | AF16: 9 | AG16: 5 | AH16: 13 | AI16: 16 | AJ16: 11 | AK16: 6 | AL16: 97000 | AN16: 4.324349662 | AO16: 4.65832588 | AP16: 0.3339762175
A17: O16 | B17: 54 | C17: 73 | D17: 25 | E17: 81 | F17: 66 | G17: 53 | I17: O16 | J17: =RANK(B17,B$2:B$17,0) -> 9 | K17: 8 | L17: 13 | M17: 4 | N17: 6 | O17: 53000 | P17: =IF(models1!J777*models1!Y777<=0,"valid","invalid") -> valid | Q17: =models1!G777 -> 53027.5 | R17: =models1!V777 -> 40926.3 | S17: 46976.9 | T17: =models1!AO777 -> 53000 | U17: =IF(MAX(Q17:R17)<T17,0,IF(MIN(Q17:R17)>T17,0,1)) -> 1 | V17: 1 | W17: 0 | X17: 0 | Y17: 4258.974854 | Z17: =STDEV(models1!J777,models1!Y777) -> 16.14324781 | AB17: 9 | AC17: 8 | AD17: 13 | AE17: 4 | AF17: 6 | AG17: 8 | AH17: 8 | AI17: 4 | AJ17: 12 | AK17: 9 | AL17: 53000 | AN17: 3.391164992 | AO17: 2.863564213 | AP17: 0.5276007789
A18: correlation | B18: =CORREL(B2:B16,$G$2:$G$16) -> 0.03231553518 | C18: =CORREL(C2:C16,$G$2:$G$16) -> -0.5251445962 | D18: -0.3872224203 | E18: -0.2058889222 | F18: -0.4337223294 | G18: 1 | I18: O16(2) | J18: =MAX(J2:J16) -> 16 | K18: =INT(QUARTILE(K2:K16,3)) -> 12 | L18: =MEDIAN(L2:L16) -> 9 | M18: =INT(QUARTILE(M2:M16,1)) -> 4 | N18: =MIN(N2:N16) -> 1 | O18: =O17 -> 53000 | P18: ratio | Q18: correlation | R18: correlation | T18: correlation | AB18: direct | AC18: direct | AD18: direct | AE18: direct | AF18: direct | AG18: inverse | AH18: inverse | AI18: inverse | AJ18: inverse | AK18: inverse | AL18: double | AM18: max | AN18: =MAX(AN2:AN17) -> 6.024948133 | AO18: =MAX(AO2:AO17) -> 5.941380311 | AP18: =MAX(AP2:AP17) -> 0.6305816513
A19: direction | B19: =IF(B18>0,0,1) -> 0 | C19: =IF(C18>0,0,1) -> 1 | D19: 1 | E19: 1 | F19: 1 | G19: Y | P19: =COUNTIF($P$2:$P$17,"valid")/16 -> 0.4375 | Q19: =CORREL(Q2:Q17,$O$2:$O$17) -> 0.9171239395 | R19: =CORREL(R2:R17,$O$2:$O$17) -> 0.3469257983 | T19: =CORREL(T2:T17,$O$2:$O$17) -> 1 | U19: =SUM(U2:U17) -> 7 | W19: =SUM(W2:W17) -> 0 | X19: =SUM(X2:X17) -> 0 | Y19: =SUM(Y2:Y17) -> 105617.3933 | AM19: min | AN19: =MIN(AN2:AN17) -> 1.516575089 | AO19: =MIN(AO2:AO17) -> 1.643167673 | AP19: =MIN(AP2:AP17) -> 0
AM20: avg | AN20: =AVERAGE(AN2:AN17) -> 4.326495044 | AO20: =AVERAGE(AO2:AO17) -> 4.439861702 | AP20: =AVERAGE(AP2:AP17) -> 0.2869112807
A21: antagonism! | I21: O* | O21: correlation | AM21: stddev | AN21: =STDEV(AN2:AN17) -> 1.074028247 | AO21: =STDEV(AO2:AO17) -> 1.098545981 | AP21: =STDEV(AP2:AP17) -> 0.2262178268
I22: 1 | AM22: median | AN22: =MEDIAN(AN2:AN17) -> 4.437037464 | AO22: =MEDIAN(AO2:AO17) -> 4.65832588 | AP22: 0.3138930676
A23: Consistency-tasks | I23: 1 | O23: =CORREL($B$2:$G$2,B3:G3) -> -0.2538733056
A24: Y=between1 | I24: 1 | O24: 0.08502557242
A25: Y=between2 | I25: 1 | O25: 0.3636908263
A26: Y=validity1 | I26: 1 | O26: 0.8604079084
A27: Y=validity2 | I27: 1 | O27: 0.2306996933
A28: Y=validity-ratio | I28: 1 | O28: -0.4303672538
A29: Xi=model-characteristics | I29: 1 | O29: -0.2242725798
I30: 1 | O30: 0.1918145771
I31: 1 | O31: -0.288173148
I32: 1 | O32: -0.260420032
I33: 1 | O33: -0.2346381768
I34: 1 | O34: -0.2569600302
I35: 1 | O35: 0.01736948118
I36: 1 | O36: -0.7034525826
I37: 1 | O37: 0.1031977151
I38: =I22+1 -> 2 | O38: =CORREL($B$3:$G$3,B2:G2) -> -0.2538733056
I39: =I23+1 -> 2
I40: 2 | O40: =CORREL($B$3:$G$3,B4:G4) -> 0.08318100866
I41: 2 | O41: -0.4689772549
I42: 2 | O42: -0.3542841882
I43: 2 | O43: -0.09854566573
I44: 2 | O44: -0.4334925691
I45: 2 | O45: 0.877547779
I46: 2 | O46: -0.3942839292
I47: 2 | O47: -0.6549644668
I48: 2 | O48: 0.009562100034
I49: 2 | O49: -0.1346947424
I50: 2 | O50: 0.1091634871
I51: 2 | O51: -0.882972514
I52: 2 | O52: 0.7113284824
I53: 2 | O53: 0.6872114028
I54: 3 | O54: =CORREL($B$4:$G$4,B2:G2) -> 0.08502557242
I55: 3 | O55: =CORREL($B$4:$G$4,B3:G3) -> 0.08318100866
I56: 3
I57: 3 | O57: 0.5385464033
I58: 3 | O58: -0.2238078625
I59: 3 | O59: -0.5273579456
I60: 3 | O60: 0.02758339185
I61: 3 | O61: -0.218159311
I62: 3 | O62: -0.5364582571
I63: 3 | O63: 0.01027808246
I64: 3 | O64: 0.8326633248
I65: 3 | O65: 0.2281103673
I66: 3 | O66: 0.5791153866
I67: 3 | O67: 0.1005270751
I68: 3 | O68: 0.2123764597
I69: 3 | O69: 0.2840418342
I70: 4 | O70: =CORREL($B$5:$G$5,B2:G2) -> 0.3636908263
I71: 4 | O71: =CORREL($B$5:$G$5,B3:G3) -> -0.4689772549
I72: 4 | O72: 0.5385464033
I73: 4
I74: 4 | O74: 0.2540308691
I75: 4 | O75: -0.6619623024
I76: 4 | O76: -0.06176392507
I77: 4 | O77: -0.3660194217
I78: 4 | O78: -0.5138704186
I79: 4 | O79: 0.2854193313
I80: 4 | O80: 0.6565689859
I81: 4 | O81: 0.492973673
I82: 4 | O82: -0.105644433
I83: 4 | O83: 0.6992383882
I84: 4 | O84: -0.6023941807
I85: 4 | O85: -0.01745149279
I86: 5 | O86: =CORREL($B$6:$G$6,B2:G2) -> 0.8604079084
I87: 5 | O87: =CORREL($B$6:$G$6,B3:G3) -> -0.3542841882
I88: 5 | O88: -0.2238078625
I89: 5 | O89: 0.2540308691
I90: 5
I91: 5 | O91: 0.4525428113
I92: 5 | O92: -0.1025416293
I93: 5 | O93: -0.2809172282
I94: 5 | O94: 0.4417257882
I95: 5 | O95: -0.3991229042
I96: 5 | O96: -0.4981161532
I97: 5 | O97: -0.4997288789
I98: 5 | O98: -0.6513027015
I99: 5 | O99: 0.143168562
I100: 5 | O100: -0.783934007
I101: 5 | O101: 0.1811481725
I102: 6 | O102: =CORREL($B$7:$G$7,B2:G2) -> 0.2306996933
I103: =I87+1 -> 6 | O103: =CORREL($B$7:$G$7,B3:G3) -> -0.09854566573
I104: 6 | O104: -0.5273579456
I105: 6 | O105: -0.6619623024
I106: 6 | O106: 0.4525428113
I107: 6
I108: 6 | O108: 0.2989760968
I109: 6 | O109: -0.2296834174
I110: 6 | O110: 0.9474125198
I111: 6 | O111: -0.3447200162
I112: 6 | O112: -0.8667156987
I113: 6 | O113: -0.8507184072
I114: 6 | O114: -0.2219828434
I115: 6 | O115: -0.2942085785
I116: 6 | O116: -0.03261058737
I117: 6 | O117: -0.03241549513
I118: 7 | O118: =CORREL($B$8:$G$8,B2:G2) -> -0.4303672538
I119: 7 | O119: =CORREL($B$8:$G$8,B3:G3) -> -0.4334925691
I120: 7 | O120: 0.02758339185
I121: 7 | O121: -0.06176392507
I122: 7 | O122: -0.1025416293
I123: 7 | O123: 0.2989760968
I124: 7
I125: 7 | O125: -0.6355476404
I126: 7 | O126: 0.4599145812
I127: 7 | O127: 0.1842918547
I128: 7 | O128: 0.03947692584
I129: 7 | O129: -0.3743240897
I130: 7 | O130: -0.02878520002
I131: 7 | O131: 0.470640848
I132: 7 | O132: 0.1193407097
I133: 7 | O133: -0.1111460496
I134: 8 | O134: =CORREL($B$9:$G$9,B2:G2) -> -0.2242725798
I135: 8 | O135: =CORREL($B$9:$G$9,B3:G3) -> 0.877547779
I136: 8 | O136: -0.218159311
I137: 8 | O137: -0.3660194217
I138: 8 | O138: -0.2809172282
I139: 8 | O139: -0.2296834174
I140: 8 | O140: -0.6355476404
I141: 8
I142: 8 | O142: -0.4777058024
I143: 8 | O143: -0.4817409262
I144: 8 | O144: -0.09063961161
I145: 8 | O145: 0.1203420048
I146: 8 | O146: -0.143349937
I147: 8 | O147: -0.7318191363
I148: 8 | O148: 0.4396640826
I149: 8 | O149: 0.4913604633
I150: 9 | O150: =CORREL($B$10:$G$10,B2:G2) -> 0.1918145771
I151: 9 | O151: =CORREL($B$10:$G$10,B3:G3) -> -0.3942839292
I152: 9 | O152: -0.5364582571
I153: 9 | O153: -0.5138704186
I154: 9 | O154: 0.4417257882
I155: 9 | O155: 0.9474125198
I156: 9 | O156: 0.4599145812
I157: 9 | O157: -0.4777058024
I158: 9
I159: 9 | O159: -0.06678181374
I160: 9 | O160: -0.7927022051
I161: 9 | O161: -0.720520114
I162: 9 | O162: -0.2051569275
I163: 9 | O163: 0.007472084841
I164: 9 | O164: -0.1860926359
I165: 9 | O165: -0.2817316416
I166: 10 | O166: =CORREL($B$11:$G$11,B2:G2) -> -0.288173148
I167: =I151+1 -> 10 | O167: =CORREL($B$11:$G$11,B3:G3) -> -0.6549644668
I168: 10 | O168: 0.01027808246
I169: 10 | O169: 0.2854193313
I170: 10 | O170: -0.3991229042
I171: 10 | O171: -0.3447200162
I172: 10 | O172: 0.1842918547
I173: 10 | O173: -0.4817409262
I174: 10 | O174: -0.06678181374
I175: 10
I176: 10 | O176: 0.3311180775
I177: 10 | O177: 0.699612761
I178: 10 | O178: 0.4041040086
I179: 10 | O179: 0.6721914608
I180: 10 | O180: -0.1872265669
I181: 10 | O181: -0.9035056985
I182: 11 | O182: =CORREL($B$12:$G$12,B2:G2) -> -0.260420032
I183: 11 | O183: =CORREL($B$12:$G$12,B3:G3) -> 0.009562100034
I184: 11 | O184: 0.8326633248
I185: 11 | O185: 0.6565689859
I186: 11 | O186: -0.4981161532
I187: 11 | O187: -0.8667156987
I188: 11 | O188: 0.03947692584
I189: 11 | O189: -0.09063961161
I190: 11 | O190: -0.7927022051
I191: 11 | O191: 0.3311180775
I192: 11
I193: 11 | O193: 0.6344950434
I194: 11 | O194: 0.4761554277
I195: 11 | O195: 0.346660534
I196: 11 | O196: 0.1913358031
I197: 11 | O197: 0.08004905351
I198: 12 | O198: =CORREL($B$13:$G$13,B2:G2) -> -0.2346381768
I199: 12 | O199: =CORREL($B$13:$G$13,B3:G3) -> -0.1346947424
I200: 12 | O200: 0.2281103673
... 84 more rows

Sheet basics7
A1: =RANDBETWEEN(10,99) -> 74 | B1: A1 | C1: A2 | D1: A3 | E1: A4 | F1: A5 | G1: A6=Y | I1: rank | J1: =B1 -> A1 | K1: A2 | L1: A3 | M1: A4 | N1: A5 | O1: =G1&"'" -> A6=Y' | P1: validity0 | Q1: direkt | R1: inverz | S1: átlag | T1: double | U1: between1 | V1: validity1 | W1: invalid_between | X1: valid_extrem | Y1: between2 | Z1: validity2 | AB1: =models1!B7 -> X(A1) | AC1: =models1!C7 -> X(A2) | AD1: =models1!D7 -> X(A3) | AE1: =models1!E7 -> X(A4) | AF1: =models1!F7 -> X(A5) | AG1: =AB1 -> X(A1) | AH1: =AC1 -> X(A2) | AI1: X(A3) | AJ1: X(A4) | AK1: X(A5) | AL1: =O1 -> A6=Y' | AN1: direct_stddev | AO1: inverse_stddev | AP1: delta
A2: O1 | B2: 19 | C2: 97 | D2: 78 | E2: 75 | F2: 19 | G2: 68 | I2: =A2 -> O1 | J2: =RANK(B2,B$2:B$17,B$19) -> 5 | K2: =RANK(C2,C$2:C$17,C$19) -> 1 | L2: 12 | M2: 10 | N2: 3 | O2: =G2*1000 -> 68000 | P2: =IF(models1!J662*models1!Y662<=0,"valid","invalid") -> valid | Q2: =models1!G662 -> 72596.7 | R2: =models1!V662 -> 53791.8 | S2: =AVERAGE(Q2:R2) -> 63194.25 | T2: =models1!AO662 -> 68000 | U2: =IF(MAX(Q2:R2)<T2,0,IF(MIN(Q2:R2)>T2,0,1)) -> 1 | V2: =IF(P2="valid",1,) -> 1 | W2: =IF(V2=1,IF(U2=0,1,0),0) -> 0 | X2: =IF(V2=0,IF(U2=1,1,0),0) -> 0 | Y2: =STDEV(S2:T2) -> 3398.178414 | Z2: =STDEV(models1!J662,models1!Y662) -> 19.5515025 | AB2: =J2 -> 5 | AC2: =K2 -> 1 | AD2: 12 | AE2: 10 | AF2: 3 | AG2: =RANK(AB2,AB$2:AB$17,0) -> 11 | AH2: =RANK(AC2,AC$2:AC$17,0) -> 16 | AI2: 5 | AJ2: 6 | AK2: 13 | AL2: 68000 | AN2: =STDEV(AB2:AF2) -> 4.65832588 | AO2: =STDEV(AG2:AK2) -> 4.65832588 | AP2: =ABS(AO2-AN2) -> 1.776356839e-15
A3: O2 | B3: 11 | C3: 22 | D3: 15 | E3: 30 | F3: 44 | G3: 86 | I3: =A3 -> O2 | J3: =RANK(B3,B$2:B$17,B$19) -> 1 | K3: 14 | L3: 3 | M3: 3 | N3: 10 | O3: =G3*1000 -> 86000 | P3: =IF(models1!J663*models1!Y663<=0,"valid","invalid") -> valid | Q3: =models1!G663 -> 86412.7 | R3: =models1!V663 -> 71537.6 | S3: =AVERAGE(Q3:R3) -> 78975.15 | T3: =models1!AO663 -> 86000 | U3: 1 | V3: 1 | W3: =IF(V3=1,IF(U3=0,1,0),0) -> 0 | X3: =IF(V3=0,IF(U3=1,1,0),0) -> 0 | Y3: =STDEV(S3:T3) -> 4967.319072 | Z3: =STDEV(models1!J663,models1!Y663) -> 12.23294731 | AB3: =J3 -> 1 | AC3: 14 | AD3: 3 | AE3: 3 | AF3: 10 | AG3: =RANK(AB3,AB$2:AB$17,0) -> 16 | AH3: 3 | AI3: 14 | AJ3: 14 | AK3: 6 | AL3: 86000 | AN3: =STDEV(AB3:AF3) -> 5.540758071 | AO3: =STDEV(AG3:AK3) -> 5.727128425 | AP3: =ABS(AO3-AN3) -> 0.1863703544
A4: O3 | B4: 16 | C4: 37 | D4: 41 | E4: 79 | F4: 18 | G4: 85 | I4: O3 | J4: 4 | K4: 12 | L4: 5 | M4: 12 | N4: 2 | O4: 85000 | P4: =IF(models1!J664*models1!Y664<=0,"valid","invalid") -> valid | Q4: =models1!G664 -> 85407.9 | R4: =models1!V664 -> 63219.3 | S4: 74313.6 | T4: =models1!AO664 -> 85000 | U4: 1 | V4: 1 | W4: 0 | X4: 0 | Y4: 7556.425906 | Z4: =STDEV(models1!J664,models1!Y664) -> 18.45548699 | AB4: 4 | AC4: 12 | AD4: 5 | AE4: 12 | AF4: 2 | AG4: 13 | AH4: 5 | AI4: 10 | AJ4: 5 | AK4: 15 | AL4: 85000 | AN4: 4.69041576 | AO4: 4.5607017 | AP4: 0.1297140594
A5: O4 | B5: 47 | C5: 61 | D5: 11 | E5: 41 | F5: 37 | G5: 91 | I5: O4 | J5: 8 | K5: 10 | L5: 1 | M5: 6 | N5: 8 | O5: 91000 | P5: =IF(models1!J665*models1!Y665<=0,"valid","invalid") -> invalid | Q5: =models1!G665 -> 86412.7 | R5: =models1!V665 -> 66546.6 | S5: 76479.65 | T5: =models1!AO665 -> 91000 | U5: 0 | V5: 0 | W5: 0 | X5: 0 | Y5: 10267.43795 | Z5: =STDEV(models1!J665,models1!Y665) -> 15.43614103 | AB5: 8 | AC5: 10 | AD5: 1 | AE5: 6 | AF5: 8 | AG5: 8 | AH5: 7 | AI5: 15 | AJ5: 11 | AK5: 8 | AL5: 91000 | AN5: 3.435112807 | AO5: 3.271085447 | AP5: 0.1640273607
A6: O5 | B6: 38 | C6: 95 | D6: 32 | E6: 56 | F6: 28 | G6: 68 | I6: O5 | J6: 6 | K6: 2 | L6: 4 | M6: 8 | N6: 6 | O6: 68000 | P6: =IF(models1!J666*models1!Y666<=0,"valid","invalid") -> valid | Q6: =models1!G666 -> 68326.3 | R6: =models1!V666 -> 53791.8 | S6: 61059.05 | T6: =models1!AO666 -> 68000 | U6: 1 | V6: 1 | W6: 0 | X6: 0 | Y6: 4907.992813 | Z6: =STDEV(models1!J666,models1!Y666) -> 15.11087191 | AB6: 6 | AC6: 2 | AD6: 4 | AE6: 8 | AF6: 6 | AG6: 10 | AH6: 15 | AI6: 13 | AJ6: 8 | AK6: 10 | AL6: 68000 | AN6: 2.28035085 | AO6: 2.774887385 | AP6: 0.4945365349
A7: O6 | B7: 83 | C7: 10 | D7: 41 | E7: 89 | F7: 21 | G7: 58 | I7: O6 | J7: 14 | K7: 16 | L7: 5 | M7: 16 | N7: 4 | O7: 58000 | P7: =IF(models1!J667*models1!Y667<=0,"valid","invalid") -> invalid | Q7: =models1!G667 -> 58278.3 | R7: =models1!V667 -> 79855.9 | S7: 69067.1 | T7: =models1!AO667 -> 58000 | U7: 0 | V7: 0 | W7: 0 | X7: 0 | Y7: 7825.621458 | Z7: =STDEV(models1!J667,models1!Y667) -> 26.30437226 | AB7: 14 | AC7: 16 | AD7: 5 | AE7: 16 | AF7: 4 | AG7: 3 | AH7: 1 | AI7: 10 | AJ7: 1 | AK7: 12 | AL7: 58000 | AN7: 6 | AO7: 5.224940191 | AP7: 0.775059809
A8: O7 | B8: 51 | C8: 21 | D8: 53 | E8: 39 | F8: 90 | G8: 43 | I8: O7 | J8: 10 | K8: 15 | L8: 8 | M8: 5 | N8: 15 | O8: 43000 | P8: =IF(models1!J668*models1!Y668<=0,"valid","invalid") -> invalid | Q8: =models1!G668 -> 43206.3 | R8: =models1!V668 -> 75974 | S8: 59590.15 | T8: =models1!AO668 -> 43000 | U8: 0 | V8: 0 | W8: 0 | X8: 0 | Y8: 11731.00757 | Z8: =STDEV(models1!J668,models1!Y668) -> 53.88153673 | AB8: 10 | AC8: 15 | AD8: 8 | AE8: 5 | AF8: 15 | AG8: 5 | AH8: 2 | AI8: 8 | AJ8: 12 | AK8: 2 | AL8: 43000 | AN8: 4.393176527 | AO8: 4.266145802 | AP8: 0.1270307258
A9: O8 | B9: 48 | C9: 87 | D9: 97 | E9: 88 | F9: 91 | G9: 39 | I9: O8 | J9: 9 | K9: 3 | L9: 16 | M9: 15 | N9: 16 | O9: 39000 | P9: =IF(models1!J669*models1!Y669<=0,"valid","invalid") -> invalid | Q9: =models1!G669 -> 39187.1 | R9: =models1!V669 -> 64328.4 | S9: 51757.75 | T9: =models1!AO669 -> 39000 | U9: 0 | V9: 0 | W9: 0 | X9: 0 | Y9: 9021.091538 | Z9: =STDEV(models1!J669,models1!Y669) -> 45.58010312 | AB9: 9 | AC9: 3 | AD9: 16 | AE9: 15 | AF9: 16 | AG9: 7 | AH9: 14 | AI9: 1 | AJ9: 2 | AK9: 1 | AL9: 39000 | AN9: 5.718391382 | AO9: 5.61248608 | AP9: 0.105905302
A10: O9 | B10: 64 | C10: 86 | D10: 88 | E10: 28 | F10: 43 | G10: 77 | I10: O9 | J10: 13 | K10: 4 | L10: 13 | M10: 2 | N10: 9 | O10: 77000 | P10: =IF(models1!J670*models1!Y670<=0,"valid","invalid") -> invalid | Q10: =models1!G670 -> 65311.9 | R10: =models1!V670 -> 67101.2 | S10: 66206.55 | T10: =models1!AO670 -> 77000 | U10: 0 | V10: 0 | W10: 0 | X10: 0 | Y10: 7632.121687 | Z10: =STDEV(models1!J670,models1!Y670) -> 1.640487732 | AB10: 13 | AC10: 4 | AD10: 13 | AE10: 2 | AF10: 9 | AG10: 4 | AH10: 13 | AI10: 4 | AJ10: 15 | AK10: 7 | AL10: 77000 | AN10: 5.069516742 | AO10: 5.128352562 | AP10: 0.05883581973
A11: O10 | B11: 39 | C11: 63 | D11: 41 | E11: 19 | F11: 13 | G11: 86 | I11: O10 | J11: 7 | K11: 9 | L11: 5 | M11: 1 | N11: 1 | O11: 86000 | P11: =IF(models1!J671*models1!Y671<=0,"valid","invalid") -> valid | Q11: =models1!G671 -> 92943.9 | R11: =models1!V671 -> 63773.8 | S11: 78358.85 | T11: =models1!AO671 -> 86000 | U11: 1 | V11: 1 | W11: 0 | X11: 0 | Y11: 5403.108981 | Z11: =STDEV(models1!J671,models1!Y671) -> 23.97799095 | AB11: 7 | AC11: 9 | AD11: 5 | AE11: 1 | AF11: 1 | AG11: 9 | AH11: 8 | AI11: 10 | AJ11: 16 | AK11: 16 | AL11: 86000 | AN11: 3.577708764 | AO11: 3.898717738 | AP11: 0.3210089739
A12: O11 | B12: 51 | C12: 27 | D12: 89 | E12: 83 | F12: 76 | G12: 29 | I12: O11 | J12: 10 | K12: 13 | L12: 14 | M12: 14 | N12: 13 | O12: 29000 | P12: =IF(models1!J672*models1!Y672<=0,"valid","invalid") -> invalid | Q12: =models1!G672 -> 29139.2 | R12: =models1!V672 -> 73201.3 | S12: 51170.25 | T12: =models1!AO672 -> 29000 | U12: 0 | V12: 0 | W12: 0 | X12: 0 | Y12: 15676.73412 | Z12: =STDEV(models1!J672,models1!Y672) -> 107.4378043 | AB12: 10 | AC12: 13 | AD12: 14 | AE12: 14 | AF12: 13 | AG12: 5 | AH12: 4 | AI12: 3 | AJ12: 3 | AK12: 3 | AL12: 29000 | AN12: 1.643167673 | AO12: 0.894427191 | AP12: 0.7487404815
A13: O12 | B13: 14 | C13: 71 | D13: 70 | E13: 80 | F13: 30 | G13: 29 | I13: O12 | J13: 3 | K13: 7 | L13: 11 | M13: 13 | N13: 7 | O13: 29000 | P13: =IF(models1!J673*models1!Y673<=0,"valid","invalid") -> invalid | Q13: =models1!G673 -> 47727.9 | R13: =models1!V673 -> 49355.4 | S13: 48541.65 | T13: =models1!AO673 -> 29000 | U13: 0 | V13: 0 | W13: 0 | X13: 0 | Y13: 13818.03323 | Z13: =STDEV(models1!J673,models1!Y673) -> 3.966869042 | AB13: 3 | AC13: 7 | AD13: 11 | AE13: 13 | AF13: 7 | AG13: 14 | AH13: 10 | AI13: 6 | AJ13: 4 | AK13: 9 | AL13: 29000 | AN13: 3.898717738 | AO13: 3.847076812 | AP13: 0.05164092559
A14: O13 | B14: 94 | C14: 81 | D14: 11 | E14: 33 | F14: 65 | G14: 52 | I14: O13 | J14: 16 | K14: 6 | L14: 1 | M14: 4 | N14: 11 | O14: 52000 | P14: =IF(models1!J674*models1!Y674<=0,"valid","invalid") -> invalid | Q14: =models1!G674 -> 52249.5 | R14: =models1!V674 -> 64882.9 | S14: 58566.2 | T14: =models1!AO674 -> 52000 | U14: 0 | V14: 0 | W14: 0 | X14: 0 | Y14: 4643.004547 | Z14: =STDEV(models1!J674,models1!Y674) -> 17.17562372 | AB14: 16 | AC14: 6 | AD14: 1 | AE14: 4 | AF14: 11 | AG14: 1 | AH14: 11 | AI14: 15 | AJ14: 13 | AK14: 5 | AL14: 52000 | AN14: 5.941380311 | AO14: 5.830951895 | AP14: 0.1104284162
A15: O14 | B15: 12 | C15: 68 | D15: 69 | E15: 75 | F15: 69 | G15: 82 | I15: O14 | J15: 2 | K15: 8 | L15: 10 | M15: 10 | N15: 12 | O15: 82000 | P15: =IF(models1!J675*models1!Y675<=0,"valid","invalid") -> invalid | Q15: =models1!G675 -> 75862.3 | R15: =models1!V675 -> 61555.6 | S15: 68708.95 | T15: =models1!AO675 -> 82000 | U15: =IF(MAX(Q15:R15)<T15,0,IF(MIN(Q15:R15)>T15,0,1)) -> 0 | V15: 0 | W15: 0 | X15: 0 | Y15: 9398.191584 | Z15: =STDEV(models1!J675,models1!Y675) -> 12.33194226 | AB15: 2 | AC15: 8 | AD15: 10 | AE15: 10 | AF15: 12 | AG15: 15 | AH15: 9 | AI15: 7 | AJ15: 6 | AK15: 4 | AL15: 82000 | AN15: 3.847076812 | AO15: 4.207136794 | AP15: 0.3600599813
A16: O15 | B16: 89 | C16: 48 | D16: 93 | E16: 53 | F16: 25 | G16: 99 | I16: O15 | J16: 15 | K16: 11 | L16: 15 | M16: 7 | N16: 5 | O16: 99000 | P16: =IF(models1!J676*models1!Y676<=0,"valid","invalid") -> invalid | Q16: =models1!G676 -> 77871.9 | R16: =models1!V676 -> 89283.4 | S16: 83577.65 | T16: =models1!AO676 -> 99000 | U16: =IF(MAX(Q16:R16)<T16,0,IF(MIN(Q16:R16)>T16,0,1)) -> 0 | V16: 0 | W16: 0 | X16: 0 | Y16: 10905.24827 | Z16: =STDEV(models1!J676,models1!Y676) -> 8.152941187 | AB16: 15 | AC16: 11 | AD16: 15 | AE16: 7 | AF16: 5 | AG16: 2 | AH16: 6 | AI16: 2 | AJ16: 10 | AK16: 11 | AL16: 99000 | AN16: 4.5607017 | AO16: 4.266145802 | AP16: 0.2945558989
A17: O16 | B17: 52 | C17: 82 | D17: 67 | E17: 61 | F17: 79 | G17: 55 | I17: O16 | J17: =RANK(B17,B$2:B$17,0) -> 5 | K17: 5 | L17: 8 | M17: 8 | N17: 3 | O17: 55000 | P17: =IF(models1!J677*models1!Y677<=0,"valid","invalid") -> valid | Q17: =models1!G677 -> 66065.5 | R17: =models1!V677 -> 48800.8 | S17: 57433.15 | T17: =models1!AO677 -> 55000 | U17: =IF(MAX(Q17:R17)<T17,0,IF(MIN(Q17:R17)>T17,0,1)) -> 1 | V17: 1 | W17: 0 | X17: 0 | Y17: 1720.496865 | Z17: =STDEV(models1!J677,models1!Y677) -> 22.19608186 | AB17: 5 | AC17: 5 | AD17: 8 | AE17: 8 | AF17: 3 | AG17: 11 | AH17: 12 | AI17: 8 | AJ17: 8 | AK17: 13 | AL17: 55000 | AN17: 2.167948339 | AO17: 2.302172887 | AP17: 0.1342245478
A18: correlation | B18: =CORREL(B2:B16,$G$2:$G$16) -> -0.05689459297 | C18: =CORREL(C2:C16,$G$2:$G$16) -> 0.01501122196 | D18: -0.2811531167 | E18: -0.4465569644 | F18: -0.5419428671 | G18: 1 | I18: O16(2) | J18: =MAX(J2:J16) -> 16 | K18: =INT(QUARTILE(K2:K16,3)) -> 12 | L18: =MEDIAN(L2:L16) -> 8 | M18: =INT(QUARTILE(M2:M16,1)) -> 4 | N18: =MIN(N2:N16) -> 1 | O18: =O17 -> 55000 | P18: ratio | Q18: correlation | R18: correlation | T18: correlation | AB18: direct | AC18: direct | AD18: direct | AE18: direct | AF18: direct | AG18: inverse | AH18: inverse | AI18: inverse | AJ18: inverse | AK18: inverse | AL18: double | AM18: max | AN18: =MAX(AN2:AN17) -> 6 | AO18: =MAX(AO2:AO17) -> 5.830951895 | AP18: =MAX(AP2:AP17) -> 0.775059809
A19: direction | B19: =IF(B18>0,0,1) -> 1 | C19: =IF(C18>0,0,1) -> 0 | D19: 1 | E19: 1 | F19: 1 | G19: Y | P19: =COUNTIF($P$2:$P$17,"valid")/16 -> 0.375 | Q19: =CORREL(Q2:Q17,$O$2:$O$17) -> 0.9227209237 | R19: =CORREL(R2:R17,$O$2:$O$17) -> 0.2526579738 | T19: =CORREL(T2:T17,$O$2:$O$17) -> 1 | U19: =SUM(U2:U17) -> 6 | W19: =SUM(W2:W17) -> 0 | X19: =SUM(X2:X17) -> 0 | Y19: =SUM(Y2:Y17) -> 128872.014 | AM19: min | AN19: =MIN(AN2:AN17) -> 1.643167673 | AO19: =MIN(AO2:AO17) -> 0.894427191 | AP19: =MIN(AP2:AP17) -> 1.776356839e-15
AM20: avg | AN20: =AVERAGE(AN2:AN17) -> 4.213921835 | AO20: =AVERAGE(AO2:AO17) -> 4.154417662 | AP20: =AVERAGE(AP2:AP17) -> 0.2538836994
A21: antagonism! | I21: O* | O21: correlation | AM21: stddev | AN21: =STDEV(AN2:AN17) -> 1.34872296 | AO21: =STDEV(AO2:AO17) -> 1.337984112 | AP21: =STDEV(AP2:AP17) -> 0.2361066238
I22: 1 | AM22: median | AN22: =MEDIAN(AN2:AN17) -> 4.476939114 | AO22: =MEDIAN(AO2:AO17) -> 4.266145802 | AP22: 0.1491259542
A23: Consistency-tasks | I23: 1 | O23: =CORREL($B$2:$G$2,B3:G3) -> 0.02329740838
A24: Y=between1 | I24: 1 | O24: 0.5697344691
A25: Y=between2 | I25: 1 | O25: 0.1252462784
A26: Y=validity1 | I26: 1 | O26: 0.7110809871
A27: Y=validity2 | I27: 1 | O27: -0.2193820233
A28: Y=validity-ratio | I28: 1 | O28: -0.781438444
A29: Xi=model-characteristics | I29: 1 | O29: 0.2954593034
I30: 1 | O30: 0.420205029
I31: 1 | O31: 0.4660515483
I32: 1 | O32: -0.1993070389
I33: 1 | O33: 0.8160155584
I34: 1 | O34: -0.4359632901
I35: 1 | O35: 0.5968202655
I36: 1 | O36: 0.129373768
I37: 1 | O37: 0.240943032
I38: =I22+1 -> 2 | O38: =CORREL($B$3:$G$3,B2:G2) -> 0.02329740838
I39: =I23+1 -> 2
I40: 2 | O40: =CORREL($B$3:$G$3,B4:G4) -> 0.6094930655
I41: 2 | O41: 0.7358657287
I42: 2 | O42: 0.2131692298
I43: 2 | O43: -0.03114890357
I44: 2 | O44: 0.1101928178
I45: 2 | O45: -0.4952044302
I46: 2 | O46: -0.03294449829
I47: 2 | O47: 0.5056578523
I48: 2 | O48: -0.3915725786
I49: 2 | O49: -0.3138552454
I50: 2 | O50: -0.08091751584
I51: 2 | O51: 0.5698555486
I52: 2 | O52: 0.1260176723
I53: 2 | O53: -0.1808315583
I54: 3 | O54: =CORREL($B$4:$G$4,B2:G2) -> 0.5697344691
I55: 3 | O55: =CORREL($B$4:$G$4,B3:G3) -> 0.6094930655
I56: 3
I57: 3 | O57: 0.4680709327
I58: 3 | O58: 0.4103511285
I59: 3 | O59: 0.3819158885
I60: 3 | O60: -0.4536126749
I61: 3 | O61: -0.2258085478
I62: 3 | O62: -0.113783352
I63: 3 | O63: 0.4127143357
I64: 3 | O64: -0.1171388553
I65: 3 | O65: 0.3687403299
I66: 3 | O66: -0.5062327723
I67: 3 | O67: 0.6458468179
I68: 3 | O68: 0.301788863
I69: 3 | O69: -0.3737229676
I70: 4 | O70: =CORREL($B$5:$G$5,B2:G2) -> 0.1252462784
I71: 4 | O71: =CORREL($B$5:$G$5,B3:G3) -> 0.7358657287
I72: 4 | O72: 0.4680709327
I73: 4
I74: 4 | O74: 0.6539462888
I75: 4 | O75: 0.03954023452
I76: 4 | O76: -0.3776740401
I77: 4 | O77: -0.7391271803
I78: 4 | O78: 0.1354605844
I79: 4 | O79: 0.7357027839
I80: 4 | O80: -0.8655986717
I81: 4 | O81: -0.3567116874
I82: 4 | O82: 0.4494854672
I83: 4 | O83: 0.1662199458
I84: 4 | O84: 0.1761731337
I85: 4 | O85: -0.2395585105
I86: 5 | O86: =CORREL($B$6:$G$6,B2:G2) -> 0.7110809871
I87: 5 | O87: =CORREL($B$6:$G$6,B3:G3) -> 0.2131692298
I88: 5 | O88: 0.4103511285
I89: 5 | O89: 0.6539462888
I90: 5
I91: 5 | O91: -0.2476457735
I92: 5 | O92: -0.829429819
I93: 5 | O93: -0.1426923244
I94: 5 | O94: 0.3305691021
I95: 5 | O95: 0.6456604954
I96: 5 | O96: -0.7562471308
I97: 5 | O97: 0.3575708174
I98: 5 | O98: 0.2718300962
I99: 5 | O99: 0.3141879642
I100: 5 | O100: -0.04812773355
I101: 5 | O101: 0.2240002253
I102: 6 | O102: =CORREL($B$7:$G$7,B2:G2) -> -0.2193820233
I103: =I87+1 -> 6 | O103: =CORREL($B$7:$G$7,B3:G3) -> -0.03114890357
I104: 6 | O104: 0.3819158885
I105: 6 | O105: 0.03954023452
I106: 6 | O106: -0.2476457735
I107: 6
I108: 6 | O108: -0.1295722459
I109: 6 | O109: -0.4536242534
I110: 6 | O110: -0.4554524828
I111: 6 | O111: -0.1444421037
I112: 6 | O112: 0.2148460105
I113: 6 | O113: -0.1391266112
I114: 6 | O114: -0.1072301252
I115: 6 | O115: -0.365344696
I116: 6 | O116: 0.4504754865
I117: 6 | O117: -0.8866071771
I118: 7 | O118: =CORREL($B$8:$G$8,B2:G2) -> -0.781438444
I119: 7 | O119: =CORREL($B$8:$G$8,B3:G3) -> 0.1101928178
I120: 7 | O120: -0.4536126749
I121: 7 | O121: -0.3776740401
I122: 7 | O122: -0.829429819
I123: 7 | O123: -0.1295722459
I124: 7
I125: 7 | O125: 0.1549562748
I126: 7 | O126: -0.3946814581
I127: 7 | O127: -0.5829532356
I128: 7 | O128: 0.521947918
I129: 7 | O129: -0.49328659
I130: 7 | O130: -0.05147523929
I131: 7 | O131: -0.07061669012
I132: 7 | O132: -0.3193397412
I133: 7 | O133: 0.1247910546
I134: 8 | O134: =CORREL($B$9:$G$9,B2:G2) -> 0.2954593034
I135: 8 | O135: =CORREL($B$9:$G$9,B3:G3) -> -0.4952044302
I136: 8 | O136: -0.2258085478
I137: 8 | O137: -0.7391271803
I138: 8 | O138: -0.1426923244
I139: 8 | O139: -0.4536242534
I140: 8 | O140: 0.1549562748
I141: 8
I142: 8 | O142: -0.1588803434
I143: 8 | O143: -0.5997973563
I144: 8 | O144: 0.634358568
I145: 8 | O145: 0.7212691633
I146: 8 | O146: -0.4530926639
I147: 8 | O147: 0.3622007989
I148: 8 | O148: -0.6061195916
I149: 8 | O149: 0.7356101062
I150: 9 | O150: =CORREL($B$10:$G$10,B2:G2) -> 0.420205029
I151: 9 | O151: =CORREL($B$10:$G$10,B3:G3) -> -0.03294449829
I152: 9 | O152: -0.113783352
I153: 9 | O153: 0.1354605844
I154: 9 | O154: 0.3305691021
I155: 9 | O155: -0.4554524828
I156: 9 | O156: -0.3946814581
I157: 9 | O157: -0.1588803434
I158: 9
I159: 9 | O159: 0.7335429088
I160: 9 | O160: -0.478228045
I161: 9 | O161: 0.003246297005
I162: 9 | O162: 0.01523586432
I163: 9 | O163: -0.01817500396
I164: 9 | O164: 0.549186513
I165: 9 | O165: 0.09277066418
I166: 10 | O166: =CORREL($B$11:$G$11,B2:G2) -> 0.4660515483
I167: =I151+1 -> 10 | O167: =CORREL($B$11:$G$11,B3:G3) -> 0.5056578523
I168: 10 | O168: 0.4127143357
I169: 10 | O169: 0.7357027839
I170: 10 | O170: 0.6456604954
I171: 10 | O171: -0.1444421037
I172: 10 | O172: -0.5829532356
I173: 10 | O173: -0.5997973563
I174: 10 | O174: 0.7335429088
I175: 10
I176: 10 | O176: -0.812264403
I177: 10 | O177: -0.1302792001
I178: 10 | O178: 0.1303678912
I179: 10 | O179: 0.1855912343
I180: 10 | O180: 0.596749494
I181: 10 | O181: -0.2176240245
I182: 11 | O182: =CORREL($B$12:$G$12,B2:G2) -> -0.1993070389
I183: 11 | O183: =CORREL($B$12:$G$12,B3:G3) -> -0.3915725786
I184: 11 | O184: -0.1171388553
I185: 11 | O185: -0.8655986717
I186: 11 | O186: -0.7562471308
I187: 11 | O187: 0.2148460105
I188: 11 | O188: 0.521947918
I189: 11 | O189: 0.634358568
I190: 11 | O190: -0.478228045
I191: 11 | O191: -0.812264403
I192: 11
I193: 11 | O193: 0.321882414
I194: 11 | O194: -0.6493651745
I195: 11 | O195: 0.0716918853
I196: 11 | O196: -0.1943703758
I197: 11 | O197: 0.03593102333
I198: 12 | O198: =CORREL($B$13:$G$13,B2:G2) -> 0.8160155584
I199: 12 | O199: =CORREL($B$13:$G$13,B3:G3) -> -0.3138552454
I200: 12 | O200: 0.3687403299
... 84 more rows

Sheet basics6
A1: =RANDBETWEEN(10,99) -> 10 | B1: A1 | C1: A2 | D1: A3 | E1: A4 | F1: A5 | G1: A6=Y | I1: rank | J1: =B1 -> A1 | K1: A2 | L1: A3 | M1: A4 | N1: A5 | O1: =G1&"'" -> A6=Y' | P1: validity0 | Q1: direkt | R1: inverz | S1: átlag | T1: double | U1: between1 | V1: validity1 | W1: invalid_between | X1: valid_extrem | Y1: between2 | Z1: validity2 | AB1: =models1!B7 -> X(A1) | AC1: =models1!C7 -> X(A2) | AD1: =models1!D7 -> X(A3) | AE1: =models1!E7 -> X(A4) | AF1: =models1!F7 -> X(A5) | AG1: =AB1 -> X(A1) | AH1: =AC1 -> X(A2) | AI1: X(A3) | AJ1: X(A4) | AK1: X(A5) | AL1: =O1 -> A6=Y' | AN1: direct_stddev | AO1: inverse_stddev | AP1: delta
A2: O1 | B2: 77 | C2: 49 | D2: 22 | E2: 13 | F2: 63 | G2: 93 | I2: =A2 -> O1 | J2: =RANK(B2,B$2:B$17,B$19) -> 14 | K2: =RANK(C2,C$2:C$17,C$19) -> 6 | L2: 6 | M2: 1 | N2: 7 | O2: =G2*1000 -> 93000 | P2: =IF(models1!J562*models1!Y562<=0,"valid","invalid") -> invalid | Q2: =models1!G562 -> 92388.2 | R2: =models1!V562 -> 79878.5 | S2: =AVERAGE(Q2:R2) -> 86133.35 | T2: =models1!AO562 -> 93000 | U2: =IF(MAX(Q2:R2)<T2,0,IF(MIN(Q2:R2)>T2,0,1)) -> 0 | V2: =IF(P2="valid",1,) -> 0 | W2: =IF(V2=1,IF(U2=0,1,0),0) -> 0 | X2: =IF(V2=0,IF(U2=1,1,0),0) -> 0 | Y2: =STDEV(S2:T2) -> 4855.454779 | Z2: =STDEV(models1!J562,models1!Y562) -> 9.510586207 | AB2: =J2 -> 14 | AC2: =K2 -> 6 | AD2: 6 | AE2: 1 | AF2: 7 | AG2: =RANK(AB2,AB$2:AB$17,0) -> 4 | AH2: =RANK(AC2,AC$2:AC$17,0) -> 10 | AI2: 10 | AJ2: 15 | AK2: 10 | AL2: 93000 | AN2: =STDEV(AB2:AF2) -> 4.65832588 | AO2: =STDEV(AG2:AK2) -> 3.898717738 | AP2: =ABS(AO2-AN2) -> 0.7596081416
A3: O2 | B3: 74 | C3: 68 | D3: 83 | E3: 91 | F3: 93 | G3: 98 | I3: =A3 -> O2 | J3: =RANK(B3,B$2:B$17,B$19) -> 13 | K3: 10 | L3: 15 | M3: 13 | N3: 2 | O3: =G3*1000 -> 98000 | P3: =IF(models1!J563*models1!Y563<=0,"valid","invalid") -> invalid | Q3: =models1!G563 -> 97355.3 | R3: =models1!V563 -> 86847.7 | S3: =AVERAGE(Q3:R3) -> 92101.5 | T3: =models1!AO563 -> 98000 | U3: 0 | V3: 0 | W3: =IF(V3=1,IF(U3=0,1,0),0) -> 0 | X3: =IF(V3=0,IF(U3=1,1,0),0) -> 0 | Y3: =STDEV(S3:T3) -> 4170.869349 | Z3: =STDEV(models1!J563,models1!Y563) -> 7.580184694 | AB3: =J3 -> 13 | AC3: 10 | AD3: 15 | AE3: 13 | AF3: 2 | AG3: =RANK(AB3,AB$2:AB$17,0) -> 5 | AH3: 6 | AI3: 2 | AJ3: 4 | AK3: 15 | AL3: 98000 | AN3: =STDEV(AB3:AF3) -> 5.128352562 | AO3: =STDEV(AG3:AK3) -> 5.029910536 | AP3: =ABS(AO3-AN3) -> 0.098442026
A4: O3 | B4: 23 | C4: 44 | D4: 21 | E4: 36 | F4: 81 | G4: 92 | I4: O3 | J4: 4 | K4: 4 | L4: 5 | M4: 6 | N4: 5 | O4: 92000 | P4: =IF(models1!J564*models1!Y564<=0,"valid","invalid") -> invalid | Q4: =models1!G564 -> 91394.7 | R4: =models1!V564 -> 70764.8 | S4: 81079.75 | T4: =models1!AO564 -> 92000 | U4: 0 | V4: 0 | W4: 0 | X4: 0 | Y4: 7721.782827 | Z4: =STDEV(models1!J564,models1!Y564) -> 15.85333403 | AB4: 4 | AC4: 4 | AD4: 5 | AE4: 6 | AF4: 5 | AG4: 14 | AH4: 13 | AI4: 11 | AJ4: 11 | AK4: 12 | AL4: 92000 | AN4: 0.8366600265 | AO4: 1.303840481 | AP4: 0.4671804545
A5: O4 | B5: 88 | C5: 76 | D5: 42 | E5: 30 | F5: 25 | G5: 56 | I5: O4 | J5: 15 | K5: 13 | L5: 11 | M5: 4 | N5: 14 | O5: 56000 | P5: =IF(models1!J565*models1!Y565<=0,"valid","invalid") -> valid | Q5: =models1!G565 -> 55631.6 | R5: =models1!V565 -> 85239.5 | S5: 70435.55 | T5: =models1!AO565 -> 56000 | U5: 1 | V5: 1 | W5: 0 | X5: 0 | Y5: 10207.4753 | Z5: =STDEV(models1!J565,models1!Y565) -> 37.38473552 | AB5: 15 | AC5: 13 | AD5: 11 | AE5: 4 | AF5: 14 | AG5: 1 | AH5: 4 | AI5: 5 | AJ5: 12 | AK5: 3 | AL5: 56000 | AN5: 4.393176527 | AO5: 4.183300133 | AP5: 0.2098763946
A6: O5 | B6: 27 | C6: 14 | D6: 27 | E6: 13 | F6: 33 | G6: 99 | I6: O5 | J6: 5 | K6: 1 | L6: 7 | M6: 1 | N6: 11 | O6: 99000 | P6: =IF(models1!J566*models1!Y566<=0,"valid","invalid") -> valid | Q6: =models1!G566 -> 103812.5 | R6: =models1!V566 -> 57898.5 | S6: 80855.5 | T6: =models1!AO566 -> 99000 | U6: 1 | V6: 1 | W6: 0 | X6: 0 | Y6: 12830.09899 | Z6: =STDEV(models1!J566,models1!Y566) -> 32.79561251 | AB6: 5 | AC6: 1 | AD6: 7 | AE6: 1 | AF6: 11 | AG6: 13 | AH6: 16 | AI6: 9 | AJ6: 15 | AK6: 6 | AL6: 99000 | AN6: 4.242640687 | AO6: 4.207136794 | AP6: 0.03550389353
A7: O6 | B7: 41 | C7: 63 | D7: 19 | E7: 30 | F7: 75 | G7: 97 | I7: O6 | J7: 7 | K7: 9 | L7: 4 | M7: 4 | N7: 6 | O7: 97000 | P7: =IF(models1!J567*models1!Y567<=0,"valid","invalid") -> invalid | Q7: =models1!G567 -> 96361.8 | R7: =models1!V567 -> 73445.3 | S7: 84903.55 | T7: =models1!AO567 -> 97000 | U7: 0 | V7: 0 | W7: 0 | X7: 0 | Y7: 8553.481823 | Z7: =STDEV(models1!J567,models1!Y567) -> 16.70186217 | AB7: 7 | AC7: 9 | AD7: 4 | AE7: 4 | AF7: 6 | AG7: 11 | AH7: 7 | AI7: 12 | AJ7: 12 | AK7: 11 | AL7: 97000 | AN7: 2.121320344 | AO7: 2.073644135 | AP7: 0.04767620823
A8: O7 | B8: 47 | C8: 56 | D8: 36 | E8: 94 | F8: 39 | G8: 40 | I8: O7 | J8: 9 | K8: 8 | L8: 10 | M8: 14 | N8: 9 | O8: 40000 | P8: =IF(models1!J568*models1!Y568<=0,"valid","invalid") -> invalid | Q8: =models1!G568 -> 42220.4 | R8: =models1!V568 -> 77734.1 | S8: 59977.25 | T8: =models1!AO568 -> 40000 | U8: 0 | V8: 0 | W8: 0 | X8: 0 | Y8: 14126.04894 | Z8: =STDEV(models1!J568,models1!Y568) -> 62.7840111 | AB8: 9 | AC8: 8 | AD8: 10 | AE8: 14 | AF8: 9 | AG8: 9 | AH8: 8 | AI8: 6 | AJ8: 3 | AK8: 8 | AL8: 40000 | AN8: 2.34520788 | AO8: 2.387467277 | AP8: 0.04225939735
A9: O8 | B9: 45 | C9: 72 | D9: 12 | E9: 17 | F9: 10 | G9: 55 | I9: O8 | J9: 8 | K9: 12 | L9: 2 | M9: 3 | N9: 16 | O9: 55000 | P9: =IF(models1!J569*models1!Y569<=0,"valid","invalid") -> valid | Q9: =models1!G569 -> 54638.2 | R9: =models1!V569 -> 58970.7 | S9: 56804.45 | T9: =models1!AO569 -> 55000 | U9: 1 | V9: 1 | W9: 0 | X9: 0 | Y9: 1275.938831 | Z9: =STDEV(models1!J569,models1!Y569) -> 5.572001436 | AB9: 8 | AC9: 12 | AD9: 2 | AE9: 3 | AF9: 16 | AG9: 10 | AH9: 5 | AI9: 15 | AJ9: 14 | AK9: 1 | AL9: 55000 | AN9: 5.93295879 | AO9: 5.958187644 | AP9: 0.02522885423
A10: O9 | B10: 19 | C10: 50 | D10: 75 | E10: 89 | F10: 38 | G10: 58 | I10: O9 | J10: 3 | K10: 7 | L10: 13 | M10: 12 | N10: 10 | O10: 58000 | P10: =IF(models1!J570*models1!Y570<=0,"valid","invalid") -> valid | Q10: =models1!G570 -> 57618.4 | R10: =models1!V570 -> 76929.9 | S10: 67274.15 | T10: =models1!AO570 -> 58000 | U10: 1 | V10: 1 | W10: 0 | X10: 0 | Y10: 6557.814355 | Z10: =STDEV(models1!J570,models1!Y570) -> 23.54665581 | AB10: 3 | AC10: 7 | AD10: 13 | AE10: 12 | AF10: 10 | AG10: 15 | AH10: 9 | AI10: 3 | AJ10: 5 | AK10: 7 | AL10: 58000 | AN10: 4.062019202 | AO10: 4.604345773 | AP10: 0.542326571
A11: O10 | B11: 73 | C11: 84 | D11: 63 | E11: 51 | F11: 94 | G11: 86 | I11: O10 | J11: 12 | K11: 15 | L11: 12 | M11: 8 | N11: 1 | O11: 86000 | P11: =IF(models1!J571*models1!Y571<=0,"valid","invalid") -> invalid | Q11: =models1!G571 -> 85434.2 | R11: =models1!V571 -> 80414.6 | S11: 82924.4 | T11: =models1!AO571 -> 86000 | U11: 0 | V11: 0 | W11: 0 | X11: 0 | Y11: 2174.777616 | Z11: =STDEV(models1!J571,models1!Y571) -> 4.122432534 | AB11: 12 | AC11: 15 | AD11: 12 | AE11: 8 | AF11: 1 | AG11: 6 | AH11: 2 | AI11: 4 | AJ11: 10 | AK11: 16 | AL11: 86000 | AN11: 5.412947441 | AO11: 5.54977477 | AP11: 0.1368273291
A12: O11 | B12: 56 | C12: 47 | D12: 33 | E12: 84 | F12: 29 | G12: 83 | I12: O11 | J12: 10 | K12: 5 | L12: 9 | M12: 11 | N12: 12 | O12: 83000 | P12: =IF(models1!J572*models1!Y572<=0,"valid","invalid") -> invalid | Q12: =models1!G572 -> 75003.3 | R12: =models1!V572 -> 74517.5 | S12: 74760.4 | T12: =models1!AO572 -> 76000 | U12: 0 | V12: 0 | W12: 0 | X12: 0 | Y12: 876.529566 | Z12: =STDEV(models1!J572,models1!Y572) -> 0.4171930009 | AB12: 10 | AC12: 5 | AD12: 9 | AE12: 11 | AF12: 12 | AG12: 8 | AH12: 12 | AI12: 7 | AJ12: 6 | AK12: 4 | AL12: 83000 | AN12: 2.701851217 | AO12: 2.966479395 | AP12: 0.2646281776
A13: O12 | B13: 68 | C13: 42 | D13: 97 | E13: 52 | F13: 19 | G13: 26 | I13: O12 | J13: 11 | K13: 3 | L13: 16 | M13: 9 | N13: 15 | O13: 26000 | P13: =IF(models1!J573*models1!Y573<=0,"valid","invalid") -> invalid | Q13: =models1!G573 -> 32782.9 | R13: =models1!V573 -> 67012.2 | S13: 49897.55 | T13: =models1!AO573 -> 33000 | U13: 1 | V13: 0 | W13: 0 | X13: 1 | Y13: 11948.37219 | Z13: =STDEV(models1!J573,models1!Y573) -> 93.09060774 | AB13: 11 | AC13: 3 | AD13: 16 | AE13: 9 | AF13: 15 | AG13: 7 | AH13: 14 | AI13: 1 | AJ13: 9 | AK13: 2 | AL13: 26000 | AN13: 5.215361924 | AO13: 5.319774431 | AP13: 0.1044125071
A14: O13 | B14: 88 | C14: 85 | D14: 30 | E14: 83 | F14: 89 | G14: 47 | I14: O13 | J14: 15 | K14: 16 | L14: 8 | M14: 10 | N14: 3 | O14: 47000 | P14: =IF(models1!J574*models1!Y574<=0,"valid","invalid") -> valid | Q14: =models1!G574 -> 46690.8 | R14: =models1!V574 -> 71300.9 | S14: 58995.85 | T14: =models1!AO574 -> 47000 | U14: 1 | V14: 1 | W14: 0 | X14: 0 | Y14: 8482.346881 | Z14: =STDEV(models1!J574,models1!Y574) -> 37.02411106 | AB14: 15 | AC14: 16 | AD14: 8 | AE14: 10 | AF14: 3 | AG14: 1 | AH14: 1 | AI14: 8 | AJ14: 7 | AK14: 14 | AL14: 47000 | AN14: 5.319774431 | AO14: 5.449770637 | AP14: 0.1299962061
A15: O14 | B15: 10 | C15: 17 | D15: 17 | E15: 97 | F15: 54 | G15: 86 | I15: O14 | J15: 1 | K15: 2 | L15: 3 | M15: 15 | N15: 8 | O15: 86000 | P15: =IF(models1!J575*models1!Y575<=0,"valid","invalid") -> invalid | Q15: =models1!G575 -> 85434.2 | R15: =models1!V575 -> 52537.5 | S15: 68985.85 | T15: =models1!AO575 -> 86000 | U15: =IF(MAX(Q15:R15)<T15,0,IF(MIN(Q15:R15)>T15,0,1)) -> 0 | V15: 0 | W15: 0 | X15: 0 | Y15: 12030.82084 | Z15: =STDEV(models1!J575,models1!Y575) -> 27.04683438 | AB15: 1 | AC15: 2 | AD15: 3 | AE15: 15 | AF15: 8 | AG15: 16 | AH15: 15 | AI15: 13 | AJ15: 1 | AK15: 9 | AL15: 86000 | AN15: 5.805170109 | AO15: 6.099180273 | AP15: 0.2940101633
A16: O15 | B16: 39 | C16: 83 | D16: 11 | E16: 97 | F16: 29 | G16: 43 | I16: O15 | J16: 6 | K16: 14 | L16: 1 | M16: 15 | N16: 12 | O16: 43000 | P16: =IF(models1!J576*models1!Y576<=0,"valid","invalid") -> valid | Q16: =models1!G576 -> 42717.1 | R16: =models1!V576 -> 46104.4 | S16: 44410.75 | T16: =models1!AO576 -> 43000 | U16: =IF(MAX(Q16:R16)<T16,0,IF(MIN(Q16:R16)>T16,0,1)) -> 1 | V16: 1 | W16: 0 | X16: 0 | Y16: 997.5508916 | Z16: =STDEV(models1!J576,models1!Y576) -> 5.572001436 | AB16: 6 | AC16: 14 | AD16: 1 | AE16: 15 | AF16: 12 | AG16: 12 | AH16: 3 | AI16: 16 | AJ16: 1 | AK16: 4 | AL16: 43000 | AN16: 5.941380311 | AO16: 6.457553716 | AP16: 0.5161734054
A17: O16 | B17: 16 | C17: 68 | D17: 78 | E17: 48 | F17: 86 | G17: 66 | I17: O16 | J17: =RANK(B17,B$2:B$17,0) -> 15 | K17: 6 | L17: 3 | M17: 10 | N17: 4 | O17: 66000 | P17: =IF(models1!J577*models1!Y577<=0,"valid","invalid") -> invalid | Q17: =models1!G577 -> 65565.8 | R17: =models1!V577 -> 65403.9 | S17: 65484.85 | T17: =models1!AO577 -> 66000 | U17: =IF(MAX(Q17:R17)<T17,0,IF(MIN(Q17:R17)>T17,0,1)) -> 0 | V17: 0 | W17: 0 | X17: 0 | Y17: 364.2660583 | Z17: =STDEV(models1!J577,models1!Y577) -> 0.1697056275 | AB17: 15 | AC17: 6 | AD17: 3 | AE17: 10 | AF17: 4 | AG17: 1 | AH17: 10 | AI17: 13 | AJ17: 7 | AK17: 13 | AL17: 66000 | AN17: 4.929503018 | AO17: 5.019960159 | AP17: 0.09045714166
A18: correlation | B18: =CORREL(B2:B16,$G$2:$G$16) -> -0.2005330606 | C18: =CORREL(C2:C16,$G$2:$G$16) -> -0.3392113596 | D18: -0.2157945419 | E18: -0.3110969126 | F18: 0.5266890355 | G18: 1 | I18: O16(2) | J18: =MAX(J2:J16) -> 15 | K18: =INT(QUARTILE(K2:K16,3)) -> 12 | L18: =MEDIAN(L2:L16) -> 8 | M18: =INT(QUARTILE(M2:M16,1)) -> 4 | N18: =MIN(N2:N16) -> 1 | O18: =O17 -> 66000 | P18: ratio | Q18: correlation | R18: correlation | T18: correlation | AB18: direct | AC18: direct | AD18: direct | AE18: direct | AF18: direct | AG18: inverse | AH18: inverse | AI18: inverse | AJ18: inverse | AK18: inverse | AL18: double | AM18: max | AN18: =MAX(AN2:AN17) -> 5.941380311 | AO18: =MAX(AO2:AO17) -> 6.457553716 | AP18: =MAX(AP2:AP17) -> 0.7596081416
A19: direction | B19: =IF(B18>0,0,1) -> 1 | C19: =IF(C18>0,0,1) -> 1 | D19: 1 | E19: 1 | F19: 0 | G19: Y | P19: =COUNTIF($P$2:$P$17,"valid")/16 -> 0.375 | Q19: =CORREL(Q2:Q17,$O$2:$O$17) -> 0.9922844562 | R19: =CORREL(R2:R17,$O$2:$O$17) -> 0.1908096581 | T19: =CORREL(T2:T17,$O$2:$O$17) -> 0.9950167781 | U19: =SUM(U2:U17) -> 7 | W19: =SUM(W2:W17) -> 0 | X19: =SUM(X2:X17) -> 1 | Y19: =SUM(Y2:Y17) -> 107173.6292 | AM19: min | AN19: =MIN(AN2:AN17) -> 0.8366600265 | AO19: =MIN(AO2:AO17) -> 1.303840481 | AP19: =MIN(AP2:AP17) -> 0.02522885423
AM20: avg | AN20: =AVERAGE(AN2:AN17) -> 4.315415647 | AO20: =AVERAGE(AO2:AO17) -> 4.406815243 | AP20: =AVERAGE(AP2:AP17) -> 0.2352879295
A21: antagonism! | I21: O* | O21: correlation | AM21: stddev | AN21: =STDEV(AN2:AN17) -> 1.530468441 | AO21: =STDEV(AO2:AO17) -> 1.529262798 | AP21: =STDEV(AP2:AP17) -> 0.2222489179
I22: 1 | AM22: median | AN22: =MEDIAN(AN2:AN17) -> 4.793914449 | AO22: =MEDIAN(AO2:AO17) -> 4.812152966 | AP22: 0.1334117676
A23: Consistency-tasks | I23: 1 | O23: =CORREL($B$2:$G$2,B3:G3) -> 0.1239983562
A24: Y=between1 | I24: 1 | O24: 0.6027130659
A25: Y=between2 | I25: 1 | O25: 0.4693967487
A26: Y=validity1 | I26: 1 | O26: 0.7121089596
A27: Y=validity2 | I27: 1 | O27: 0.790284143
A28: Y=validity-ratio | I28: 1 | O28: -0.5686162458
A29: Xi=model-characteristics | I29: 1 | O29: 0.5149182111
I30: 1 | O30: -0.7322405821
I31: 1 | O31: 0.7515801293
I32: 1 | O32: 0.1178786574
I33: 1 | O33: -0.5228724381
I34: 1 | O34: 0.09184141207
I35: 1 | O35: -0.03512199778
I36: 1 | O36: -0.3032666716
I37: 1 | O37: -0.1694693214
I38: =I22+1 -> 2 | O38: =CORREL($B$3:$G$3,B2:G2) -> 0.1239983562
I39: =I23+1 -> 2
I40: 2 | O40: =CORREL($B$3:$G$3,B4:G4) -> 0.6636606425
I41: 2 | O41: -0.7300025065
I42: 2 | O42: 0.611891298
I43: 2 | O43: 0.3741356267
I44: 2 | O44: 0.008648074012
I45: 2 | O45: -0.4903148987
I46: 2 | O46: 0.3722123061
I47: 2 | O47: 0.04751885088
I48: 2 | O48: 0.358810749
I49: 2 | O49: -0.4181661949
I50: 2 | O50: -0.2982865084
I51: 2 | O51: 0.828194941
I52: 2 | O52: -0.1757156799
I53: 2 | O53: 0.3580219498
I54: 3 | O54: =CORREL($B$4:$G$4,B2:G2) -> 0.6027130659
I55: 3 | O55: =CORREL($B$4:$G$4,B3:G3) -> 0.6636606425
I56: 3
I57: 3 | O57: -0.3114166173
I58: 3 | O58: 0.7268505277
I59: 3 | O59: 0.9262883803
I60: 3 | O60: -0.2806817563
I61: 3 | O61: 0.1265481811
I62: 3 | O62: -0.1201696043
I63: 3 | O63: 0.7191677144
I64: 3 | O64: 0.1737719504
I65: 3 | O65: -0.8774808719
I66: 3 | O66: 0.006824455629
I67: 3 | O67: 0.5597023817
I68: 3 | O68: -0.07504752986
I69: 3 | O69: 0.4864016664
I70: 4 | O70: =CORREL($B$5:$G$5,B2:G2) -> 0.4693967487
I71: 4 | O71: =CORREL($B$5:$G$5,B3:G3) -> -0.7300025065
I72: 4 | O72: -0.3114166173
I73: 4
I74: 4 | O74: 0.01959026357
I75: 4 | O75: 0.06178682444
I76: 4 | O76: -0.1978318205
I77: 4 | O77: 0.8034814644
I78: 4 | O78: -0.5939350078
I79: 4 | O79: 0.1588398452
I80: 4 | O80: 0.07896836754
I81: 4 | O81: 0.1869307345
I82: 4 | O82: 0.1609371064
I83: 4 | O83: -0.5995509107
I84: 4 | O84: 0.0694488758
I85: 4 | O85: -0.6234699489
I86: 5 | O86: =CORREL($B$6:$G$6,B2:G2) -> 0.7121089596
I87: 5 | O87: =CORREL($B$6:$G$6,B3:G3) -> 0.611891298
I88: 5 | O88: 0.7268505277
I89: 5 | O89: 0.01959026357
I90: 5
I91: 5 | O91: 0.725867143
I92: 5 | O92: -0.4523757017
I93: 5 | O93: 0.2534767964
I94: 5 | O94: -0.07133760088
I95: 5 | O95: 0.4336413865
I96: 5 | O96: 0.402220459
I97: 5 | O97: -0.4055867244
I98: 5 | O98: -0.4762845041
I99: 5 | O99: 0.4173337397
I100: 5 | O100: -0.3278755168
I101: 5 | O101: 0.1569057436
I102: 6 | O102: =CORREL($B$7:$G$7,B2:G2) -> 0.790284143
I103: =I87+1 -> 6 | O103: =CORREL($B$7:$G$7,B3:G3) -> 0.3741356267
I104: 6 | O104: 0.9262883803
I105: 6 | O105: 0.06178682444
I106: 6 | O106: 0.725867143
I107: 6
I108: 6 | O108: -0.3538762516
I109: 6 | O109: 0.4656439644
I110: 6 | O110: -0.3557959491
I111: 6 | O111: 0.8355698144
I112: 6 | O112: 0.1838748325
I113: 6 | O113: -0.8692017541
I114: 6 | O114: 0.1068442907
I115: 6 | O115: 0.3363015799
I116: 6 | O116: -0.01345782907
I117: 6 | O117: 0.2976251515
I118: 7 | O118: =CORREL($B$8:$G$8,B2:G2) -> -0.5686162458
I119: 7 | O119: =CORREL($B$8:$G$8,B3:G3) -> 0.008648074012
I120: 7 | O120: -0.2806817563
I121: 7 | O121: -0.1978318205
I122: 7 | O122: -0.4523757017
I123: 7 | O123: -0.3538762516
I124: 7
I125: 7 | O125: -0.0727271319
I126: 7 | O126: 0.5292547827
I127: 7 | O127: -0.6573830777
I128: 7 | O128: 0.5901961785
I129: 7 | O129: -0.03159654354
I130: 7 | O130: 0.4294434114
I131: 7 | O131: 0.503198871
I132: 7 | O132: 0.875170299
I133: 7 | O133: -0.3457922188
I134: 8 | O134: =CORREL($B$9:$G$9,B2:G2) -> 0.5149182111
I135: 8 | O135: =CORREL($B$9:$G$9,B3:G3) -> -0.4903148987
I136: 8 | O136: 0.1265481811
I137: 8 | O137: 0.8034814644
I138: 8 | O138: 0.2534767964
I139: 8 | O139: 0.4656439644
I140: 8 | O140: -0.0727271319
I141: 8
I142: 8 | O142: -0.3472201909
I143: 8 | O143: 0.3690252401
I144: 8 | O144: 0.2939258037
I145: 8 | O145: -0.2523126889
I146: 8 | O146: 0.1482344701
I147: 8 | O147: -0.2204000504
I148: 8 | O148: 0.3628327079
I149: 8 | O149: -0.2674221606
I150: 9 | O150: =CORREL($B$10:$G$10,B2:G2) -> -0.7322405821
I151: 9 | O151: =CORREL($B$10:$G$10,B3:G3) -> 0.3722123061
I152: 9 | O152: -0.1201696043
I153: 9 | O153: -0.5939350078
I154: 9 | O154: -0.07133760088
I155: 9 | O155: -0.3557959491
I156: 9 | O156: 0.5292547827
I157: 9 | O157: -0.3472201909
I158: 9
I159: 9 | O159: -0.6524816444
I160: 9 | O160: 0.357861267
I161: 9 | O161: 0.2361505096
I162: 9 | O162: -0.4615002517
I163: 9 | O163: 0.5381420086
I164: 9 | O164: 0.3336726154
I165: 9 | O165: 0.3375213961
I166: 10 | O166: =CORREL($B$11:$G$11,B2:G2) -> 0.7515801293
I167: =I151+1 -> 10 | O167: =CORREL($B$11:$G$11,B3:G3) -> 0.04751885088
I168: 10 | O168: 0.7191677144
I169: 10 | O169: 0.1588398452
I170: 10 | O170: 0.4336413865
I171: 10 | O171: 0.8355698144
I172: 10 | O172: -0.6573830777
I173: 10 | O173: 0.3690252401
I174: 10 | O174: -0.6524816444
I175: 10
I176: 10 | O176: -0.3615617347
I177: 10 | O177: -0.6821758389
I178: 10 | O178: 0.1844216302
I179: 10 | O179: -0.1552494855
I180: 10 | O180: -0.3092180287
I181: 10 | O181: 0.3913931103
I182: 11 | O182: =CORREL($B$12:$G$12,B2:G2) -> 0.1178786574
I183: 11 | O183: =CORREL($B$12:$G$12,B3:G3) -> 0.358810749
I184: 11 | O184: 0.1737719504
I185: 11 | O185: 0.07896836754
I186: 11 | O186: 0.402220459
I187: 11 | O187: 0.1838748325
I188: 11 | O188: 0.5901961785
I189: 11 | O189: 0.2939258037
I190: 11 | O190: 0.357861267
I191: 11 | O191: -0.3615617347
I192: 11
I193: 11 | O193: -0.2217930608
I194: 11 | O194: 0.005402952469
I195: 11 | O195: 0.7097400311
I196: 11 | O196: 0.5835806472
I197: 11 | O197: -0.4520766589
I198: 12 | O198: =CORREL($B$13:$G$13,B2:G2) -> -0.5228724381
I199: 12 | O199: =CORREL($B$13:$G$13,B3:G3) -> -0.4181661949
I200: 12 | O200: -0.8774808719
... 84 more rows

Sheet basics5
A1: =RANDBETWEEN(10,99) -> 73 | B1: A1 | C1: A2 | D1: A3 | E1: A4 | F1: A5 | G1: A6=Y | I1: rank | J1: =B1 -> A1 | K1: A2 | L1: A3 | M1: A4 | N1: A5 | O1: =G1&"'" -> A6=Y' | P1: validity0 | Q1: direkt | R1: inverz | S1: átlag | T1: double | U1: between1 | V1: validity1 | W1: invalid_between | X1: valid_extrem | Y1: between2 | Z1: validity2 | AB1: =models1!B7 -> X(A1) | AC1: =models1!C7 -> X(A2) | AD1: =models1!D7 -> X(A3) | AE1: =models1!E7 -> X(A4) | AF1: =models1!F7 -> X(A5) | AG1: =AB1 -> X(A1) | AH1: =AC1 -> X(A2) | AI1: X(A3) | AJ1: X(A4) | AK1: X(A5) | AL1: =O1 -> A6=Y' | AN1: direct_stddev | AO1: inverse_stddev | AP1: delta
A2: O1 | B2: 88 | C2: 44 | D2: 29 | E2: 33 | F2: 92 | G2: 67 | I2: =A2 -> O1 | J2: =RANK(B2,B$2:B$17,B$19) -> 1 | K2: =RANK(C2,C$2:C$17,C$19) -> 7 | L2: 14 | M2: 4 | N2: 2 | O2: =G2*1000 -> 67000 | P2: =IF(models1!J462*models1!Y462<=0,"valid","invalid") -> invalid | Q2: =models1!G462 -> 63869.2 | R2: =models1!V462 -> 43942 | S2: =AVERAGE(Q2:R2) -> 53905.6 | T2: =models1!AO462 -> 61679.9 | U2: =IF(MAX(Q2:R2)<T2,0,IF(MIN(Q2:R2)>T2,0,1)) -> 1 | V2: =IF(P2="valid",1,) -> 0 | W2: =IF(V2=1,IF(U2=0,1,0),0) -> 0 | X2: =IF(V2=0,IF(U2=1,1,0),0) -> 1 | Y2: =STDEV(S2:T2) -> 5497.260249 | Z2: =STDEV(models1!J462,models1!Y462) -> 21.02935567 | AB2: =J2 -> 1 | AC2: =K2 -> 7 | AD2: 14 | AE2: 4 | AF2: 2 | AG2: =RANK(AB2,AB$2:AB$17,0) -> 14 | AH2: =RANK(AC2,AC$2:AC$17,0) -> 8 | AI2: 3 | AJ2: 12 | AK2: 15 | AL2: 67000 | AN2: =STDEV(AB2:AF2) -> 5.224940191 | AO2: =STDEV(AG2:AK2) -> 4.929503018 | AP2: =ABS(AO2-AN2) -> 0.2954371735
A3: O2 | B3: 12 | C3: 40 | D3: 53 | E3: 68 | F3: 86 | G3: 22 | I3: =A3 -> O2 | J3: =RANK(B3,B$2:B$17,B$19) -> 16 | K3: 5 | L3: 10 | M3: 14 | N3: 3 | O3: =G3*1000 -> 22000 | P3: =IF(models1!J463*models1!Y463<=0,"valid","invalid") -> invalid | Q3: =models1!G463 -> 22481.9 | R3: =models1!V463 -> 46496.7 | S3: =AVERAGE(Q3:R3) -> 34489.3 | T3: =models1!AO463 -> 25915.9 | U3: 1 | V3: 0 | W3: =IF(V3=1,IF(U3=0,1,0),0) -> 0 | X3: =IF(V3=0,IF(U3=1,1,0),0) -> 1 | Y3: =STDEV(S3:T3) -> 6062.309278 | Z3: =STDEV(models1!J463,models1!Y463) -> 77.18777623 | AB3: =J3 -> 16 | AC3: 5 | AD3: 10 | AE3: 14 | AF3: 3 | AG3: =RANK(AB3,AB$2:AB$17,0) -> 1 | AH3: 12 | AI3: 7 | AJ3: 2 | AK3: 14 | AL3: 22000 | AN3: =STDEV(AB3:AF3) -> 5.594640292 | AO3: =STDEV(AG3:AK3) -> 5.805170109 | AP3: =ABS(AO3-AN3) -> 0.2105298172
A4: O3 | B4: 25 | C4: 42 | D4: 71 | E4: 16 | F4: 79 | G4: 66 | I4: O3 | J4: 13 | K4: 6 | L4: 5 | M4: 2 | N4: 5 | O4: 66000 | P4: =IF(models1!J464*models1!Y464<=0,"valid","invalid") -> valid | Q4: =models1!G464 -> 91971.6 | R4: =models1!V464 -> 42920.1 | S4: 67445.85 | T4: =models1!AO464 -> 67381.4 | U4: 1 | V4: 1 | W4: 0 | X4: 0 | Y4: 45.57303205 | Z4: =STDEV(models1!J464,models1!Y464) -> 52.55217598 | AB4: 13 | AC4: 6 | AD4: 5 | AE4: 2 | AF4: 5 | AG4: 4 | AH4: 10 | AI4: 12 | AJ4: 14 | AK4: 12 | AL4: 66000 | AN4: 4.086563348 | AO4: 3.847076812 | AP4: 0.239486536
A5: O4 | B5: 88 | C5: 83 | D5: 86 | E5: 91 | F5: 95 | G5: 11 | I5: O4 | J5: 1 | K5: 12 | L5: 4 | M5: 16 | N5: 1 | O5: 11000 | P5: =IF(models1!J465*models1!Y465<=0,"valid","invalid") -> invalid | Q5: =models1!G465 -> 35766.7 | R5: =models1!V465 -> 37299.6 | S5: 36533.15 | T5: =models1!AO465 -> 15549.5 | U5: 0 | V5: 0 | W5: 0 | X5: 0 | Y5: 14837.68121 | Z5: =STDEV(models1!J465,models1!Y465) -> 9.85706853 | AB5: 1 | AC5: 12 | AD5: 4 | AE5: 16 | AF5: 1 | AG5: 14 | AH5: 5 | AI5: 13 | AJ5: 1 | AK5: 16 | AL5: 11000 | AN5: 6.833739825 | AO5: 6.457553716 | AP5: 0.3761861089
A6: O5 | B6: 34 | C6: 26 | D6: 51 | E6: 62 | F6: 47 | G6: 19 | I6: O5 | J6: 11 | K6: 1 | L6: 11 | M6: 10 | N6: 11 | O6: 19000 | P6: =IF(models1!J466*models1!Y466<=0,"valid","invalid") -> invalid | Q6: =models1!G466 -> 29124.3 | R6: =models1!V466 -> 56715.8 | S6: 42920.05 | T6: =models1!AO466 -> 19696.1 | U6: 0 | V6: 0 | W6: 0 | X6: 0 | Y6: 16421.81253 | Z6: =STDEV(models1!J466,models1!Y466) -> 102.6789757 | AB6: 11 | AC6: 1 | AD6: 11 | AE6: 10 | AF6: 11 | AG6: 6 | AH6: 15 | AI6: 6 | AJ6: 6 | AK6: 6 | AL6: 19000 | AN6: 4.38178046 | AO6: 4.024922359 | AP6: 0.3568581005
A7: O6 | B7: 80 | C7: 86 | D7: 25 | E7: 11 | F7: 24 | G7: 30 | I7: O6 | J7: 4 | K7: 14 | L7: 15 | M7: 1 | N7: 16 | O7: 30000 | P7: =IF(models1!J467*models1!Y467<=0,"valid","invalid") -> invalid | Q7: =models1!G467 -> 46496.7 | R7: =models1!V467 -> 31679.1 | S7: 39087.9 | T7: =models1!AO467 -> 53905.1 | U7: 0 | V7: 0 | W7: 0 | X7: 0 | Y7: 10477.3426 | Z7: =STDEV(models1!J467,models1!Y467) -> 34.92400392 | AB7: 4 | AC7: 14 | AD7: 15 | AE7: 1 | AF7: 16 | AG7: 12 | AH7: 3 | AI7: 2 | AJ7: 16 | AK7: 1 | AL7: 30000 | AN7: 6.964194139 | AO7: 6.760177512 | AP7: 0.2040166261
A8: O7 | B8: 80 | C8: 65 | D8: 99 | E8: 45 | F8: 45 | G8: 44 | I8: O7 | J8: 4 | K8: 9 | L8: 1 | M8: 8 | N8: 12 | O8: 44000 | P8: =IF(models1!J468*models1!Y468<=0,"valid","invalid") -> invalid | Q8: =models1!G468 -> 60803.4 | R8: =models1!V468 -> 61825.3 | S8: 61314.35 | T8: =models1!AO468 -> 45612 | U8: 0 | V8: 0 | W8: 0 | X8: 0 | Y8: 11103.23817 | Z8: =STDEV(models1!J468,models1!Y468) -> 1.640487732 | AB8: 4 | AC8: 9 | AD8: 1 | AE8: 8 | AF8: 12 | AG8: 12 | AH8: 7 | AI8: 16 | AJ8: 8 | AK8: 4 | AL8: 44000 | AN8: 4.324349662 | AO8: 4.669047012 | AP8: 0.3446973499
A9: O8 | B9: 50 | C9: 84 | D9: 34 | E9: 56 | F9: 49 | G9: 18 | I9: O8 | J9: 10 | K9: 13 | L9: 13 | M9: 9 | N9: 8 | O9: 18000 | P9: =IF(models1!J469*models1!Y469<=0,"valid","invalid") -> invalid | Q9: =models1!G469 -> 24014.8 | R9: =models1!V469 -> 45474.8 | S9: 34744.8 | T9: =models1!AO469 -> 13994.6 | U9: 0 | V9: 0 | W9: 0 | X9: 0 | Y9: 14672.60713 | Z9: =STDEV(models1!J469,models1!Y469) -> 84.30127045 | AB9: 10 | AC9: 13 | AD9: 13 | AE9: 9 | AF9: 8 | AG9: 7 | AH9: 4 | AI9: 4 | AJ9: 7 | AK9: 8 | AL9: 18000 | AN9: 2.302172887 | AO9: 1.870828693 | AP9: 0.4313441933
A10: O9 | B10: 33 | C10: 38 | D10: 18 | E10: 19 | F10: 72 | G10: 83 | I10: O9 | J10: 12 | K10: 4 | L10: 16 | M10: 3 | N10: 6 | O10: 83000 | P10: =IF(models1!J470*models1!Y470<=0,"valid","invalid") -> valid | Q10: =models1!G470 -> 68978.7 | R10: =models1!V470 -> 84818.2 | S10: 76898.45 | T10: =models1!AO470 -> 86040.8 | U10: 0 | V10: 1 | W10: 1 | X10: 0 | Y10: 6464.617681 | Z10: =STDEV(models1!J470,models1!Y470) -> 13.49159739 | AB10: 12 | AC10: 4 | AD10: 16 | AE10: 3 | AF10: 6 | AG10: 5 | AH10: 13 | AI10: 1 | AJ10: 13 | AK10: 11 | AL10: 83000 | AN10: 5.585696018 | AO10: 5.366563146 | AP10: 0.2191328715
A11: O10 | B11: 17 | C11: 91 | D11: 70 | E11: 66 | F11: 34 | G11: 33 | I11: O10 | J11: 14 | K11: 16 | L11: 6 | M11: 12 | N11: 15 | O11: 33000 | P11: =IF(models1!J471*models1!Y471<=0,"valid","invalid") -> valid | Q11: =models1!G471 -> 22992.9 | R11: =models1!V471 -> 77664.9 | S11: 50328.9 | T11: =models1!AO471 -> 58051.7 | U11: 1 | V11: 1 | W11: 0 | X11: 0 | Y11: 5460.84425 | Z11: =STDEV(models1!J471,models1!Y471) -> 117.1463804 | AB11: 14 | AC11: 16 | AD11: 6 | AE11: 12 | AF11: 15 | AG11: 3 | AH11: 1 | AI11: 11 | AJ11: 4 | AK11: 2 | AL11: 33000 | AN11: 3.974921383 | AO11: 3.962322551 | AP11: 0.01259883164
A12: O11 | B12: 74 | C12: 26 | D12: 93 | E12: 40 | F12: 35 | G12: 87 | I12: O11 | J12: 7 | K12: 1 | L12: 2 | M12: 7 | N12: 14 | O12: 87000 | P12: =IF(models1!J472*models1!Y472<=0,"valid","invalid") -> valid | Q12: =models1!G472 -> 88905.9 | R12: =models1!V472 -> 61314.4 | S12: 75110.15 | T12: =models1!AO472 -> 90187.4 | U12: 0 | V12: 1 | W12: 1 | X12: 0 | Y12: 10661.22572 | Z12: =STDEV(models1!J472,models1!Y472) -> 22.42235603 | AB12: 7 | AC12: 1 | AD12: 2 | AE12: 7 | AF12: 14 | AG12: 10 | AH12: 15 | AI12: 15 | AJ12: 9 | AK12: 3 | AL12: 87000 | AN12: 5.167204273 | AO12: 4.979959839 | AP12: 0.1872444339
A13: O12 | B13: 16 | C13: 35 | D13: 44 | E13: 38 | F13: 52 | G13: 73 | I13: O12 | J13: 15 | K13: 3 | L13: 12 | M13: 5 | N13: 7 | O13: 73000 | P13: =IF(models1!J473*models1!Y473<=0,"valid","invalid") -> invalid | Q13: =models1!G473 -> 63869.2 | R13: =models1!V473 -> 52117.2 | S13: 57993.2 | T13: =models1!AO473 -> 64789.8 | U13: 0 | V13: 0 | W13: 0 | X13: 0 | Y13: 4805.921949 | Z13: =STDEV(models1!J473,models1!Y473) -> 11.38441918 | AB13: 15 | AC13: 3 | AD13: 12 | AE13: 5 | AF13: 7 | AG13: 2 | AH13: 14 | AI13: 5 | AJ13: 11 | AK13: 10 | AL13: 73000 | AN13: 4.979959839 | AO13: 4.827007354 | AP13: 0.1529524847
A14: O13 | B14: 61 | C14: 70 | D14: 65 | E14: 67 | F14: 49 | G14: 32 | I14: O13 | J14: 8 | K14: 10 | L14: 8 | M14: 13 | N14: 8 | O14: 32000 | P14: =IF(models1!J474*models1!Y474<=0,"valid","invalid") -> valid | Q14: =models1!G474 -> 21971 | R14: =models1!V474 -> 42920.1 | S14: 32445.55 | T14: =models1!AO474 -> 22287.7 | U14: 1 | V14: 1 | W14: 0 | X14: 0 | Y14: 7182.684617 | Z14: =STDEV(models1!J474,models1!Y474) -> 46.29428096 | AB14: 8 | AC14: 10 | AD14: 8 | AE14: 13 | AF14: 8 | AG14: 9 | AH14: 6 | AI14: 9 | AJ14: 3 | AK14: 8 | AL14: 32000 | AN14: 2.19089023 | AO14: 2.549509757 | AP14: 0.3586195268
A15: O14 | B15: 58 | C15: 89 | D15: 68 | E15: 65 | F15: 83 | G15: 97 | I15: O14 | J15: 9 | K15: 15 | L15: 7 | M15: 11 | N15: 4 | O15: 97000 | P15: =IF(models1!J475*models1!Y475<=0,"valid","invalid") -> invalid | Q15: =models1!G475 -> 55182.9 | R15: =models1!V475 -> 58759.6 | S15: 56971.25 | T15: =models1!AO475 -> 68936.3 | U15: =IF(MAX(Q15:R15)<T15,0,IF(MIN(Q15:R15)>T15,0,1)) -> 0 | V15: 0 | W15: 0 | X15: 0 | Y15: 8460.567992 | Z15: =STDEV(models1!J475,models1!Y475) -> 2.609224023 | AB15: 9 | AC15: 15 | AD15: 7 | AE15: 11 | AF15: 4 | AG15: 8 | AH15: 2 | AI15: 10 | AJ15: 5 | AK15: 13 | AL15: 97000 | AN15: 4.147288271 | AO15: 4.277849927 | AP15: 0.1305616566
A16: O15 | B16: 79 | C16: 44 | D16: 91 | E16: 39 | F16: 48 | G16: 88 | I16: O15 | J16: 6 | K16: 7 | L16: 3 | M16: 6 | N16: 10 | O16: 88000 | P16: =IF(models1!J476*models1!Y476<=0,"valid","invalid") -> valid | Q16: =models1!G476 -> 89927.8 | R16: =models1!V476 -> 54672 | S16: 72299.9 | T16: =models1!AO476 -> 91224 | U16: =IF(MAX(Q16:R16)<T16,0,IF(MIN(Q16:R16)>T16,0,1)) -> 0 | V16: 1 | W16: 1 | X16: 0 | Y16: 13381.35944 | Z16: =STDEV(models1!J476,models1!Y476) -> 28.32669765 | AB16: 6 | AC16: 7 | AD16: 3 | AE16: 6 | AF16: 10 | AG16: 11 | AH16: 8 | AI16: 14 | AJ16: 10 | AK16: 7 | AL16: 88000 | AN16: 2.50998008 | AO16: 2.738612788 | AP16: 0.2286327079
A17: O16 | B17: 88 | C17: 75 | D17: 64 | E17: 82 | F17: 45 | G17: 93 | I17: O16 | J17: =RANK(B17,B$2:B$17,0) -> 1 | K17: 6 | L17: 9 | M17: 2 | N17: 12 | O17: 93000 | P17: =IF(models1!J477*models1!Y477<=0,"valid","invalid") -> invalid | Q17: =models1!G477 -> 76643 | R17: =models1!V477 -> 64380.1 | S17: 70511.55 | T17: =models1!AO477 -> 77747.7 | U17: =IF(MAX(Q17:R17)<T17,0,IF(MIN(Q17:R17)>T17,0,1)) -> 0 | V17: 0 | W17: 0 | X17: 0 | Y17: 5116.730735 | Z17: =STDEV(models1!J477,models1!Y477) -> 9.319667376 | AB17: 1 | AC17: 6 | AD17: 9 | AE17: 2 | AF17: 12 | AG17: 14 | AH17: 10 | AI17: 8 | AJ17: 14 | AK17: 4 | AL17: 93000 | AN17: 4.636809248 | AO17: 4.242640687 | AP17: 0.3941685606
A18: correlation | B18: =CORREL(B2:B16,$G$2:$G$16) -> 0.07415459029 | C18: =CORREL(C2:C16,$G$2:$G$16) -> -0.3562615381 | D18: 0.1072678742 | E18: -0.4855971543 | F18: 0.0921038948 | G18: 1 | I18: O16(2) | J18: =MAX(J2:J16) -> 16 | K18: =INT(QUARTILE(K2:K16,3)) -> 12 | L18: =MEDIAN(L2:L16) -> 8 | M18: =INT(QUARTILE(M2:M16,1)) -> 4 | N18: =MIN(N2:N16) -> 1 | O18: =O17 -> 93000 | P18: ratio | Q18: correlation | R18: correlation | T18: correlation | AB18: direct | AC18: direct | AD18: direct | AE18: direct | AF18: direct | AG18: inverse | AH18: inverse | AI18: inverse | AJ18: inverse | AK18: inverse | AL18: double | AM18: max | AN18: =MAX(AN2:AN17) -> 6.964194139 | AO18: =MAX(AO2:AO17) -> 6.760177512 | AP18: =MAX(AP2:AP17) -> 0.4313441933
A19: direction | B19: =IF(B18>0,0,1) -> 0 | C19: =IF(C18>0,0,1) -> 1 | D19: 0 | E19: 1 | F19: 0 | G19: Y | P19: =COUNTIF($P$2:$P$17,"valid")/16 -> 0.375 | Q19: =CORREL(Q2:Q17,$O$2:$O$17) -> 0.8257150271 | R19: =CORREL(R2:R17,$O$2:$O$17) -> 0.4352402782 | T19: =CORREL(T2:T17,$O$2:$O$17) -> 0.9076985308 | U19: =SUM(U2:U17) -> 5 | W19: =SUM(W2:W17) -> 3 | X19: =SUM(X2:X17) -> 2 | Y19: =SUM(Y2:Y17) -> 140651.7766 | AM19: min | AN19: =MIN(AN2:AN17) -> 2.19089023 | AO19: =MIN(AO2:AO17) -> 1.870828693 | AP19: =MIN(AP2:AP17) -> 0.01259883164
AM20: avg | AN20: =AVERAGE(AN2:AN17) -> 4.556570634 | AO20: =AVERAGE(AO2:AO17) -> 4.45679658 | AP20: =AVERAGE(AP2:AP17) -> 0.2589041862
A21: antagonism! | I21: O* | O21: correlation | AM21: stddev | AN21: =STDEV(AN2:AN17) -> 1.40955371 | AO21: =STDEV(AO2:AO17) -> 1.336448724 | AP21: =STDEV(AP2:AP17) -> 0.1130625802
I22: 1 | AM22: median | AN22: =MEDIAN(AN2:AN17) -> 4.509294854 | AO22: =MEDIAN(AO2:AO17) -> 4.47344847 | AP22: 0.234059622
A23: Consistency-tasks | I23: 1 | O23: =CORREL($B$2:$G$2,B3:G3) -> -0.1428077904
A24: Y=between1 | I24: 1 | O24: 0.2048145384
A25: Y=between2 | I25: 1 | O25: -0.07733590392
A26: Y=validity1 | I26: 1 | O26: -0.3579325017
A27: Y=validity2 | I27: 1 | O27: 0.2430298449
A28: Y=validity-ratio | I28: 1 | O28: -0.2850408527
A29: Xi=model-characteristics | I29: 1 | O29: -0.155970742
I30: 1 | O30: 0.6448697156
I31: 1 | O31: -0.8393921897
I32: 1 | O32: -0.04108239172
I33: 1 | O33: -0.00994811374
I34: 1 | O34: -0.525520872
I35: 1 | O35: 0.09922740653
I36: 1 | O36: 0.07348604552
I37: 1 | O37: -0.1320728743
I38: =I22+1 -> 2 | O38: =CORREL($B$3:$G$3,B2:G2) -> -0.1428077904
I39: =I23+1 -> 2
I40: 2 | O40: =CORREL($B$3:$G$3,B4:G4) -> 0.2957608356
I41: 2 | O41: 0.509403262
I42: 2 | O42: 0.7185279224
I43: 2 | O43: -0.626650001
I44: 2 | O44: -0.313657049
I45: 2 | O45: 0.1781419441
I46: 2 | O46: -0.03582079149
I47: 2 | O47: 0.2871834544
I48: 2 | O48: -0.5257977946
I49: 2 | O49: 0.1899222369
I50: 2 | O50: 0.1692736679
I51: 2 | O51: 0.004066971161
I52: 2 | O52: -0.5960176461
I53: 2 | O53: -0.8085504639
I54: 3 | O54: =CORREL($B$4:$G$4,B2:G2) -> 0.2048145384
I55: 3 | O55: =CORREL($B$4:$G$4,B3:G3) -> 0.2957608356
I56: 3
I57: 3 | O57: -0.2756542113
I58: 3 | O58: -0.1832186803
I59: 3 | O59: -0.3175401402
I60: 3 | O60: 0.0340691658
I61: 3 | O61: -0.4695861672
I62: 3 | O62: 0.5781843718
I63: 3 | O63: -0.09879227935
I64: 3 | O64: 0.2658984992
I65: 3 | O65: 0.67717341
I66: 3 | O66: -0.5379196696
I67: 3 | O67: 0.5498252297
I68: 3 | O68: 0.3643901959
I69: 3 | O69: -0.5989146284
I70: 4 | O70: =CORREL($B$5:$G$5,B2:G2) -> -0.07733590392
I71: 4 | O71: =CORREL($B$5:$G$5,B3:G3) -> 0.509403262
I72: 4 | O72: -0.2756542113
I73: 4
I74: 4 | O74: 0.6793056357
I75: 4 | O75: 0.1114525117
I76: 4 | O76: 0.3298347932
I77: 4 | O77: 0.6283111671
I78: 4 | O78: -0.6417743198
I79: 4 | O79: 0.2529178936
I80: 4 | O80: -0.491210275
I81: 4 | O81: -0.7337896172
I82: 4 | O82: 0.8008674538
I83: 4 | O83: -0.6563701895
I84: 4 | O84: -0.5092388772
I85: 4 | O85: -0.5632473564
I86: 5 | O86: =CORREL($B$6:$G$6,B2:G2) -> -0.3579325017
I87: 5 | O87: =CORREL($B$6:$G$6,B3:G3) -> 0.7185279224
I88: 5 | O88: -0.1832186803
I89: 5 | O89: 0.6793056357
I90: 5
I91: 5 | O91: -0.6100985082
I92: 5 | O92: 0.07702084471
I93: 5 | O93: 0.0794365366
I94: 5 | O94: -0.5859077747
I95: 5 | O95: 0.1934139358
I96: 5 | O96: -0.1814329812
I97: 5 | O97: -0.2536539488
I98: 5 | O98: 0.4869924287
I99: 5 | O99: -0.639610984
I100: 5 | O100: -0.3514147125
I101: 5 | O101: -0.4401162847
I102: 6 | O102: =CORREL($B$7:$G$7,B2:G2) -> 0.2430298449
I103: =I87+1 -> 6 | O103: =CORREL($B$7:$G$7,B3:G3) -> -0.626650001
I104: 6 | O104: -0.3175401402
I105: 6 | O105: 0.1114525117
I106: 6 | O106: -0.6100985082
I107: 6
I108: 6 | O108: 0.3386139409
I109: 6 | O109: 0.5621385417
I110: 6 | O110: -0.09964937984
I111: 6 | O111: 0.04427864784
I112: 6 | O112: -0.1678566817
I113: 6 | O113: -0.5818129067
I114: 6 | O114: 0.3134649359
I115: 6 | O115: -0.00642932261
I116: 6 | O116: 0.0007051379996
I117: 6 | O117: 0.2800720671
I118: 7 | O118: =CORREL($B$8:$G$8,B2:G2) -> -0.2850408527
I119: 7 | O119: =CORREL($B$8:$G$8,B3:G3) -> -0.313657049
I120: 7 | O120: 0.0340691658
I121: 7 | O121: 0.3298347932
I122: 7 | O122: 0.07702084471
I123: 7 | O123: 0.3386139409
I124: 7
I125: 7 | O125: 0.003956006652
I126: 7 | O126: -0.6172772119
I127: 7 | O127: 0.1760415468
I128: 7 | O128: 0.5015661628
I129: 7 | O129: -0.4998847271
I130: 7 | O130: 0.5001087084
I131: 7 | O131: -0.5143732528
I132: 7 | O132: 0.5439937495
I133: 7 | O133: -0.05113834362
I134: 8 | O134: =CORREL($B$9:$G$9,B2:G2) -> -0.155970742
I135: 8 | O135: =CORREL($B$9:$G$9,B3:G3) -> 0.1781419441
I136: 8 | O136: -0.4695861672
I137: 8 | O137: 0.6283111671
I138: 8 | O138: 0.0794365366
I139: 8 | O139: 0.5621385417
I140: 8 | O140: 0.003956006652
I141: 8
I142: 8 | O142: -0.3995526896
I143: 8 | O143: 0.5602744551
I144: 8 | O144: -0.8255705653
I145: 8 | O145: -0.6116723948
I146: 8 | O146: 0.7418835989
I147: 8 | O147: -0.09982474433
I148: 8 | O148: -0.763673003
I149: 8 | O149: -0.1696669457
I150: 9 | O150: =CORREL($B$10:$G$10,B2:G2) -> 0.6448697156
I151: 9 | O151: =CORREL($B$10:$G$10,B3:G3) -> -0.03582079149
I152: 9 | O152: 0.5781843718
I153: 9 | O153: -0.6417743198
I154: 9 | O154: -0.5859077747
I155: 9 | O155: -0.09964937984
I156: 9 | O156: -0.6172772119
I157: 9 | O157: -0.3995526896
I158: 9
I159: 9 | O159: -0.4959340158
I160: 9 | O160: 0.01112210363
I161: 9 | O161: 0.7169979196
I162: 9 | O162: -0.900280634
I163: 9 | O163: 0.7729917298
I164: 9 | O164: 0.112876358
I165: 9 | O165: -0.07033895271
I166: 10 | O166: =CORREL($B$11:$G$11,B2:G2) -> -0.8393921897
I167: =I151+1 -> 10 | O167: =CORREL($B$11:$G$11,B3:G3) -> 0.2871834544
I168: 10 | O168: -0.09879227935
I169: 10 | O169: 0.2529178936
I170: 10 | O170: 0.1934139358
I171: 10 | O171: 0.04427864784
I172: 10 | O172: 0.1760415468
I173: 10 | O173: 0.5602744551
I174: 10 | O174: -0.4959340158
I175: 10
I176: 10 | O176: -0.3848141071
I177: 10 | O177: -0.05662345172
I178: 10 | O178: 0.6275006393
I179: 10 | O179: 0.146649741
I180: 10 | O180: -0.4012434592
I181: 10 | O181: -0.143933106
I182: 11 | O182: =CORREL($B$12:$G$12,B2:G2) -> -0.04108239172
I183: 11 | O183: =CORREL($B$12:$G$12,B3:G3) -> -0.5257977946
I184: 11 | O184: 0.2658984992
I185: 11 | O185: -0.491210275
I186: 11 | O186: -0.1814329812
I187: 11 | O187: -0.1678566817
I188: 11 | O188: 0.5015661628
I189: 11 | O189: -0.8255705653
I190: 11 | O190: 0.01112210363
I191: 11 | O191: -0.3848141071
I192: 11
I193: 11 | O193: 0.2228255437
I194: 11 | O194: -0.3814519356
I195: 11 | O195: -0.1550588578
I196: 11 | O196: 0.9718483966
I197: 11 | O197: 0.3567070428
I198: 12 | O198: =CORREL($B$13:$G$13,B2:G2) -> -0.00994811374
I199: 12 | O199: =CORREL($B$13:$G$13,B3:G3) -> 0.1899222369
I200: 12 | O200: 0.67717341
... 84 more rows

Sheet basics4
A1: =RANDBETWEEN(10,99) -> 57 | B1: A1 | C1: A2 | D1: A3 | E1: A4 | F1: A5 | G1: A6=Y | I1: rank | J1: =B1 -> A1 | K1: A2 | L1: A3 | M1: A4 | N1: A5 | O1: =G1&"'" -> A6=Y' | P1: validity0 | Q1: direkt | R1: inverz | S1: átlag | T1: double | U1: between1 | V1: validity1 | W1: invalid_between | X1: valid_extrem | Y1: between2 | Z1: validity2 | AB1: =models1!B7 -> X(A1) | AC1: =models1!C7 -> X(A2) | AD1: =models1!D7 -> X(A3) | AE1: =models1!E7 -> X(A4) | AF1: =models1!F7 -> X(A5) | AG1: =AB1 -> X(A1) | AH1: =AC1 -> X(A2) | AI1: X(A3) | AJ1: X(A4) | AK1: X(A5) | AL1: =O1 -> A6=Y' | AN1: direct_stddev | AO1: inverse_stddev | AP1: delta
A2: O1 | B2: 11 | C2: 36 | D2: 62 | E2: 92 | F2: 29 | G2: 10 | I2: =A2 -> O1 | J2: =RANK(B2,B$2:B$17,B$19) -> 16 | K2: =RANK(C2,C$2:C$17,C$19) -> 9 | L2: 9 | M2: 13 | N2: 6 | O2: =G2*1000 -> 10000 | P2: =IF(models1!J362*models1!Y362<=0,"valid","invalid") -> invalid | Q2: =models1!G362 -> 21329.1 | R2: =models1!V362 -> 43987.8 | S2: =AVERAGE(Q2:R2) -> 32658.45 | T2: =models1!AO362 -> 21433.7 | U2: =IF(MAX(Q2:R2)<T2,0,IF(MIN(Q2:R2)>T2,0,1)) -> 1 | V2: =IF(P2="valid",1,) -> 0 | W2: =IF(V2=1,IF(U2=0,1,0),0) -> 0 | X2: =IF(V2=0,IF(U2=1,1,0),0) -> 1 | Y2: =STDEV(S2:T2) -> 7937.096842 | Z2: =STDEV(models1!J362,models1!Y362) -> 160.2233255 | AB2: =J2 -> 16 | AC2: =K2 -> 9 | AD2: 9 | AE2: 13 | AF2: 6 | AG2: =RANK(AB2,AB$2:AB$17,0) -> 1 | AH2: =RANK(AC2,AC$2:AC$17,0) -> 8 | AI2: 7 | AJ2: 5 | AK2: 9 | AL2: 10000 | AN2: =STDEV(AB2:AF2) -> 3.911521443 | AO2: =STDEV(AG2:AK2) -> 3.16227766 | AP2: =ABS(AO2-AN2) -> 0.749243783
A3: O2 | B3: 66 | C3: 33 | D3: 85 | E3: 89 | F3: 21 | G3: 42 | I3: =A3 -> O2 | J3: =RANK(B3,B$2:B$17,B$19) -> 6 | K3: 11 | L3: 14 | M3: 12 | N3: 3 | O3: =G3*1000 -> 42000 | P3: =IF(models1!J363*models1!Y363<=0,"valid","invalid") -> valid | Q3: =models1!G363 -> 42658.2 | R3: =models1!V363 -> 40676.9 | S3: =AVERAGE(Q3:R3) -> 41667.55 | T3: =models1!AO363 -> 42363.1 | U3: 1 | V3: 1 | W3: =IF(V3=1,IF(U3=0,1,0),0) -> 0 | X3: =IF(V3=0,IF(U3=1,1,0),0) -> 0 | Y3: =STDEV(S3:T3) -> 491.8281217 | Z3: =STDEV(models1!J363,models1!Y363) -> 3.337544007 | AB3: =J3 -> 6 | AC3: 11 | AD3: 14 | AE3: 12 | AF3: 3 | AG3: =RANK(AB3,AB$2:AB$17,0) -> 11 | AH3: 6 | AI3: 3 | AJ3: 6 | AK3: 13 | AL3: 42000 | AN3: =STDEV(AB3:AF3) -> 4.549725266 | AO3: =STDEV(AG3:AK3) -> 4.086563348 | AP3: =ABS(AO3-AN3) -> 0.4631619181
A4: O3 | B4: 71 | C4: 29 | D4: 54 | E4: 29 | F4: 86 | G4: 21 | I4: O3 | J4: 5 | K4: 12 | L4: 6 | M4: 4 | N4: 14 | O4: 21000 | P4: =IF(models1!J364*models1!Y364<=0,"valid","invalid") -> invalid | Q4: =models1!G364 -> 41134.6 | R4: =models1!V364 -> 52028.5 | S4: 46581.55 | T4: =models1!AO364 -> 36563.4 | U4: 0 | V4: 0 | W4: 0 | X4: 0 | Y4: 7083.9018 | Z4: =STDEV(models1!J364,models1!Y364) -> 36.67762874 | AB4: 5 | AC4: 12 | AD4: 6 | AE4: 4 | AF4: 14 | AG4: 12 | AH4: 5 | AI4: 11 | AJ4: 13 | AK4: 2 | AL4: 21000 | AN4: 4.494441011 | AO4: 4.827007354 | AP4: 0.3325663436
A5: O4 | B5: 65 | C5: 25 | D5: 72 | E5: 47 | F5: 29 | G5: 83 | I5: O4 | J5: 7 | K5: 13 | L5: 11 | M5: 8 | N5: 6 | O5: 83000 | P5: =IF(models1!J365*models1!Y365<=0,"valid","invalid") -> invalid | Q5: =models1!G365 -> 57893.2 | R5: =models1!V365 -> 39730.9 | S5: 48812.05 | T5: =models1!AO365 -> 61023.1 | U5: 0 | V5: 0 | W5: 0 | X5: 0 | Y5: 8634.51626 | Z5: =STDEV(models1!J365,models1!Y365) -> 15.47149637 | AB5: 7 | AC5: 13 | AD5: 11 | AE5: 8 | AF5: 6 | AG5: 10 | AH5: 3 | AI5: 6 | AJ5: 10 | AK5: 9 | AL5: 83000 | AN5: 2.915475947 | AO5: 3.049590136 | AP5: 0.134114189
A6: O5 | B6: 38 | C6: 57 | D6: 37 | E6: 29 | F6: 69 | G6: 89 | I6: O5 | J6: 12 | K6: 3 | L6: 3 | M6: 4 | N6: 13 | O6: 89000 | P6: =IF(models1!J366*models1!Y366<=0,"valid","invalid") -> invalid | Q6: =models1!G366 -> 83285 | R6: =models1!V366 -> 56758.4 | S6: 70021.7 | T6: =models1!AO366 -> 89769.5 | U6: 0 | V6: 0 | W6: 0 | X6: 0 | Y6: 13963.80329 | Z6: =STDEV(models1!J366,models1!Y366) -> 21.07885315 | AB6: 12 | AC6: 3 | AD6: 3 | AE6: 4 | AF6: 13 | AG6: 5 | AH6: 14 | AI6: 14 | AJ6: 13 | AK6: 3 | AL6: 89000 | AN6: 5.049752469 | AO6: 5.357238094 | AP6: 0.3074856252
A7: O6 | B7: 27 | C7: 50 | D7: 80 | E7: 67 | F7: 52 | G7: 34 | I7: O6 | J7: 15 | K7: 6 | L7: 13 | M7: 10 | N7: 10 | O7: 34000 | P7: =IF(models1!J367*models1!Y367<=0,"valid","invalid") -> valid | Q7: =models1!G367 -> 26407.4 | R7: =models1!V367 -> 62907.2 | S7: 44657.3 | T7: =models1!AO367 -> 33285.3 | U7: 1 | V7: 1 | W7: 0 | X7: 0 | Y7: 8041.218316 | Z7: =STDEV(models1!J367,models1!Y367) -> 75.90791296 | AB7: 15 | AC7: 6 | AD7: 13 | AE7: 10 | AF7: 10 | AG7: 2 | AH7: 11 | AI7: 4 | AJ7: 8 | AK7: 6 | AL7: 34000 | AN7: 3.420526275 | AO7: 3.492849839 | AP7: 0.07232356402
A8: O7 | B8: 79 | C8: 10 | D8: 60 | E8: 79 | F8: 17 | G8: 80 | I8: O7 | J8: 3 | K8: 16 | L8: 7 | M8: 11 | N8: 1 | O8: 80000 | P8: =IF(models1!J368*models1!Y368<=0,"valid","invalid") -> valid | Q8: =models1!G368 -> 81253.6 | R8: =models1!V368 -> 75677.9 | S8: 78465.75 | T8: =models1!AO368 -> 80691.6 | U8: 1 | V8: 1 | W8: 0 | X8: 0 | Y8: 1573.913629 | Z8: =STDEV(models1!J368,models1!Y368) -> 4.928534265 | AB8: 3 | AC8: 16 | AD8: 7 | AE8: 11 | AF8: 1 | AG8: 14 | AH8: 1 | AI8: 8 | AJ8: 7 | AK8: 15 | AL8: 80000 | AN8: 6.066300355 | AO8: 5.700877125 | AP8: 0.3654232297
A9: O8 | B9: 63 | C9: 52 | D9: 96 | E9: 93 | F9: 17 | G9: 88 | I9: O8 | J9: 8 | K9: 4 | L9: 16 | M9: 14 | N9: 1 | O9: 88000 | P9: =IF(models1!J369*models1!Y369<=0,"valid","invalid") -> valid | Q9: =models1!G369 -> 89886.8 | R9: =models1!V369 -> 83245.7 | S9: 86566.25 | T9: =models1!AO369 -> 88760.8 | U9: 1 | V9: 1 | W9: 0 | X9: 0 | Y9: 1551.781187 | Z9: =STDEV(models1!J369,models1!Y369) -> 5.33158513 | AB9: 8 | AC9: 4 | AD9: 16 | AE9: 14 | AF9: 1 | AG9: 9 | AH9: 13 | AI9: 1 | AJ9: 4 | AK9: 15 | AL9: 88000 | AN9: 6.387487769 | AO9: 5.899152482 | AP9: 0.4883352876
A10: O9 | B10: 55 | C10: 40 | D10: 74 | E10: 98 | F10: 63 | G10: 22 | I10: O9 | J10: 9 | K10: 8 | L10: 12 | M10: 15 | N10: 11 | O10: 22000 | P10: =IF(models1!J370*models1!Y370<=0,"valid","invalid") -> valid | Q10: =models1!G370 -> 20313.4 | R10: =models1!V370 -> 57231.4 | S10: 38772.4 | T10: =models1!AO370 -> 22190.2 | U10: 1 | V10: 1 | W10: 0 | X10: 0 | Y10: 11725.38607 | Z10: =STDEV(models1!J370,models1!Y370) -> 118.659589 | AB10: 9 | AC10: 8 | AD10: 12 | AE10: 15 | AF10: 11 | AG10: 8 | AH10: 9 | AI10: 5 | AJ10: 3 | AK10: 4 | AL10: 22000 | AN10: 2.738612788 | AO10: 2.588435821 | AP10: 0.1501769664
A11: O10 | B11: 82 | C11: 72 | D11: 21 | E11: 30 | F11: 46 | G11: 99 | I11: O10 | J11: 2 | K11: 2 | L11: 2 | M11: 6 | N11: 8 | O11: 99000 | P11: =IF(models1!J371*models1!Y371<=0,"valid","invalid") -> invalid | Q11: =models1!G371 -> 88363.3 | R11: =models1!V371 -> 56758.4 | S11: 72560.85 | T11: =models1!AO371 -> 90525.9 | U11: 0 | V11: 0 | W11: 0 | X11: 0 | Y11: 12703.20868 | Z11: =STDEV(models1!J371,models1!Y371) -> 22.57791952 | AB11: 2 | AC11: 2 | AD11: 2 | AE11: 6 | AF11: 8 | AG11: 15 | AH11: 15 | AI11: 15 | AJ11: 12 | AK11: 8 | AL11: 99000 | AN11: 2.828427125 | AO11: 3.082207001 | AP11: 0.2537798767
A12: O11 | B12: 53 | C12: 23 | D12: 95 | E12: 15 | F12: 25 | G12: 38 | I12: O11 | J12: 10 | K12: 15 | L12: 15 | M12: 2 | N12: 5 | O12: 38000 | P12: =IF(models1!J372*models1!Y372<=0,"valid","invalid") -> valid | Q12: =models1!G372 -> 57385.4 | R12: =models1!V372 -> 35947 | S12: 46666.2 | T12: =models1!AO372 -> 55475.5 | U12: 1 | V12: 1 | W12: 0 | X12: 0 | Y12: 6229.115768 | Z12: =STDEV(models1!J372,models1!Y372) -> 39.88789353 | AB12: 10 | AC12: 15 | AD12: 15 | AE12: 2 | AF12: 5 | AG12: 7 | AH12: 2 | AI12: 2 | AJ12: 16 | AK12: 11 | AL12: 38000 | AN12: 5.856620186 | AO12: 6.024948133 | AP12: 0.1683279468
A13: O12 | B13: 86 | C13: 77 | D13: 60 | E13: 16 | F13: 95 | G13: 53 | I13: O12 | J13: 1 | K13: 1 | L13: 7 | M13: 3 | N13: 16 | O13: 53000 | P13: =IF(models1!J373*models1!Y373<=0,"valid","invalid") -> invalid | Q13: =models1!G373 -> 57893.2 | R13: =models1!V373 -> 67164.1 | S13: 62528.65 | T13: =models1!AO373 -> 53458.2 | U13: 0 | V13: 0 | W13: 0 | X13: 0 | Y13: 6413.776703 | Z13: =STDEV(models1!J373,models1!Y373) -> 12.3672976 | AB13: 1 | AC13: 1 | AD13: 7 | AE13: 3 | AF13: 16 | AG13: 16 | AH13: 16 | AI13: 8 | AJ13: 15 | AK13: 1 | AL13: 53000 | AN13: 6.308724118 | AO13: 6.610597552 | AP13: 0.3018734342
A14: O13 | B14: 29 | C14: 48 | D14: 47 | E14: 43 | F14: 51 | G14: 84 | I14: O13 | J14: 14 | K14: 7 | L14: 5 | M14: 7 | N14: 9 | O14: 84000 | P14: =IF(models1!J374*models1!Y374<=0,"valid","invalid") -> invalid | Q14: =models1!G374 -> 63987.2 | R14: =models1!V374 -> 61488.3 | S14: 62737.75 | T14: =models1!AO374 -> 59257.9 | U14: 0 | V14: 0 | W14: 0 | X14: 0 | Y14: 2460.625533 | Z14: =STDEV(models1!J374,models1!Y374) -> 2.107178208 | AB14: 14 | AC14: 7 | AD14: 5 | AE14: 7 | AF14: 9 | AG14: 3 | AH14: 10 | AI14: 12 | AJ14: 11 | AK14: 7 | AL14: 84000 | AN14: 3.435112807 | AO14: 3.646916506 | AP14: 0.2118036983
A15: O14 | B15: 42 | C15: 51 | D15: 10 | E15: 56 | F15: 63 | G15: 30 | I15: O14 | J15: 11 | K15: 5 | L15: 1 | M15: 9 | N15: 11 | O15: 30000 | P15: =IF(models1!J375*models1!Y375<=0,"valid","invalid") -> invalid | Q15: =models1!G375 -> 35040.6 | R15: =models1!V375 -> 43041.8 | S15: 39041.2 | T15: =models1!AO375 -> 33537.5 | U15: =IF(MAX(Q15:R15)<T15,0,IF(MIN(Q15:R15)>T15,0,1)) -> 0 | V15: 0 | W15: 0 | X15: 0 | Y15: 3891.703592 | Z15: =STDEV(models1!J375,models1!Y375) -> 18.85853785 | AB15: 11 | AC15: 5 | AD15: 1 | AE15: 9 | AF15: 11 | AG15: 6 | AH15: 12 | AI15: 16 | AJ15: 9 | AK15: 4 | AL15: 30000 | AN15: 4.335896678 | AO15: 4.774934555 | AP15: 0.4390378768
A16: O15 | B16: 72 | C16: 25 | D16: 41 | E16: 99 | F16: 22 | G16: 13 | I16: O15 | J16: 4 | K16: 13 | L16: 4 | M16: 16 | N16: 4 | O16: 13000 | P16: =IF(models1!J376*models1!Y376<=0,"valid","invalid") -> invalid | Q16: =models1!G376 -> 22344.7 | R16: =models1!V376 -> 48244.6 | S16: 35294.65 | T16: =models1!AO376 -> 16894.8 | U16: =IF(MAX(Q16:R16)<T16,0,IF(MIN(Q16:R16)>T16,0,1)) -> 0 | V16: 0 | W16: 0 | X16: 0 | Y16: 13010.65871 | Z16: =STDEV(models1!J376,models1!Y376) -> 140.876884 | AB16: 4 | AC16: 13 | AD16: 4 | AE16: 16 | AF16: 4 | AG16: 13 | AH16: 3 | AI16: 13 | AJ16: 1 | AK16: 12 | AL16: 13000 | AN16: 5.848076607 | AO16: 5.899152482 | AP16: 0.05107587462
A17: O16 | B17: 31 | C17: 34 | D17: 62 | E17: 14 | F17: 87 | G17: 89 | I17: O16 | J17: =RANK(B17,B$2:B$17,0) -> 13 | K17: 10 | L17: 7 | M17: 16 | N17: 2 | O17: 89000 | P17: =IF(models1!J377*models1!Y377<=0,"valid","invalid") -> invalid | Q17: =models1!G377 -> 85824.1 | R17: =models1!V377 -> 52974.5 | S17: 69399.3 | T17: =models1!AO377 -> 89769.5 | U17: =IF(MAX(Q17:R17)<T17,0,IF(MIN(Q17:R17)>T17,0,1)) -> 0 | V17: 0 | W17: 0 | X17: 0 | Y17: 14403.90655 | Z17: =STDEV(models1!J377,models1!Y377) -> 26.09931129 | AB17: 13 | AC17: 10 | AD17: 7 | AE17: 16 | AF17: 2 | AG17: 4 | AH17: 7 | AI17: 8 | AJ17: 1 | AK17: 14 | AL17: 89000 | AN17: 5.412947441 | AO17: 4.868264578 | AP17: 0.5446828632
A18: correlation | B18: =CORREL(B2:B16,$G$2:$G$16) -> 0.2546387061 | C18: =CORREL(C2:C16,$G$2:$G$16) -> 0.3061671098 | D18: -0.09000625566 | E18: -0.3323953992 | F18: -0.121075324 | G18: 1 | I18: O16(2) | J18: =MAX(J2:J16) -> 16 | K18: =INT(QUARTILE(K2:K16,3)) -> 12 | L18: =MEDIAN(L2:L16) -> 7 | M18: =INT(QUARTILE(M2:M16,1)) -> 5 | N18: =MIN(N2:N16) -> 1 | O18: =O17 -> 89000 | P18: ratio | Q18: correlation | R18: correlation | T18: correlation | AB18: direct | AC18: direct | AD18: direct | AE18: direct | AF18: direct | AG18: inverse | AH18: inverse | AI18: inverse | AJ18: inverse | AK18: inverse | AL18: double | AM18: max | AN18: =MAX(AN2:AN17) -> 6.387487769 | AO18: =MAX(AO2:AO17) -> 6.610597552 | AP18: =MAX(AP2:AP17) -> 0.749243783
A19: direction | B19: =IF(B18>0,0,1) -> 0 | C19: =IF(C18>0,0,1) -> 0 | D19: 1 | E19: 1 | F19: 1 | G19: Y | P19: =COUNTIF($P$2:$P$17,"valid")/16 -> 0.375 | Q19: =CORREL(Q2:Q17,$O$2:$O$17) -> 0.9292265538 | R19: =CORREL(R2:R17,$O$2:$O$17) -> 0.4295856201 | T19: =CORREL(T2:T17,$O$2:$O$17) -> 0.9418316866 | U19: =SUM(U2:U17) -> 7 | W19: =SUM(W2:W17) -> 0 | X19: =SUM(X2:X17) -> 1 | Y19: =SUM(Y2:Y17) -> 120116.4411 | AM19: min | AN19: =MIN(AN2:AN17) -> 2.738612788 | AO19: =MIN(AO2:AO17) -> 2.588435821 | AP19: =MIN(AP2:AP17) -> 0.05107587462
AM20: avg | AN20: =AVERAGE(AN2:AN17) -> 4.597478018 | AO20: =AVERAGE(AO2:AO17) -> 4.566938292 | AP20: =AVERAGE(AP2:AP17) -> 0.3145882798
A21: antagonism! | I21: O* | O21: correlation | AM21: stddev | AN21: =STDEV(AN2:AN17) -> 1.291281895 | AO21: =STDEV(AO2:AO17) -> 1.280343554 | AP21: =STDEV(AP2:AP17) -> 0.1890547835
I22: 1 | AM22: median | AN22: =MEDIAN(AN2:AN17) -> 4.522083139 | AO22: =MEDIAN(AO2:AO17) -> 4.800970954 | AP22: 0.3046795297
A23: Consistency-tasks | I23: 1 | O23: =CORREL($B$2:$G$2,B3:G3) -> 0.6594232852
A24: Y=between1 | I24: 1 | O24: -0.2520134159
A25: Y=between2 | I25: 1 | O25: -0.2034023382
A26: Y=validity1 | I26: 1 | O26: -0.6683009372
A27: Y=validity2 | I27: 1 | O27: 0.8467208934
A28: Y=validity-ratio | I28: 1 | O28: 0.09873310512
A29: Xi=model-characteristics | I29: 1 | O29: 0.4279142114
I30: 1 | O30: 0.8578420043
I31: 1 | O31: -0.8399400648
I32: 1 | O32: -0.0371791044
I33: 1 | O33: -0.7249160118
I34: 1 | O34: -0.2911005561
I35: 1 | O35: 0.03785144162
I36: 1 | O36: 0.6057027053
I37: 1 | O37: -0.5158865419
I38: =I22+1 -> 2 | O38: =CORREL($B$3:$G$3,B2:G2) -> 0.6594232852
I39: =I23+1 -> 2
I40: 2 | O40: =CORREL($B$3:$G$3,B4:G4) -> -0.1988925977
I41: 2 | O41: 0.4604601976
I42: 2 | O42: -0.7926595987
I43: 2 | O43: 0.4849780182
I44: 2 | O44: 0.6971826309
I45: 2 | O45: 0.8007732582
I46: 2 | O46: 0.6683261971
I47: 2 | O47: -0.5136069137
I48: 2 | O48: 0.444530587
I49: 2 | O49: -0.6747030388
I50: 2 | O50: -0.3864033595
I51: 2 | O51: -0.4525945343
I52: 2 | O52: 0.7720081961
I53: 2 | O53: -0.5668563049
I54: 3 | O54: =CORREL($B$4:$G$4,B2:G2) -> -0.2520134159
I55: 3 | O55: =CORREL($B$4:$G$4,B3:G3) -> -0.1988925977
I56: 3
I57: 3 | O57: -0.2207599542
I58: 3 | O58: -0.1411504762
I59: 3 | O59: -0.0642407425
I60: 3 | O60: -0.2662163673
I61: 3 | O61: -0.64452422
I62: 3 | O62: 0.2209621826
I63: 3 | O63: -0.2387334364
I64: 3 | O64: 0.2347858455
I65: 3 | O65: 0.6999318019
I66: 3 | O66: -0.5053142673
I67: 3 | O67: 0.193010026
I68: 3 | O68: -0.01354020234
I69: 3 | O69: 0.2357102198
I70: 4 | O70: =CORREL($B$5:$G$5,B2:G2) -> -0.2034023382
I71: 4 | O71: =CORREL($B$5:$G$5,B3:G3) -> 0.4604601976
I72: 4 | O72: -0.2207599542
I73: 4
I74: 4 | O74: 0.08982720017
I75: 4 | O75: -0.1455252783
I76: 4 | O76: 0.8238588572
I77: 4 | O77: 0.7156835171
I78: 4 | O78: -0.2138188776
I79: 4 | O79: 0.2407897269
I80: 4 | O80: 0.6100841348
I81: 4 | O81: -0.2860199948
I82: 4 | O82: 0.3637550305
I83: 4 | O83: -0.7868416601
I84: 4 | O84: 0.01891954167
I85: 4 | O85: 0.2531539501
I86: 5 | O86: =CORREL($B$6:$G$6,B2:G2) -> -0.6683009372
I87: 5 | O87: =CORREL($B$6:$G$6,B3:G3) -> -0.7926595987
I88: 5 | O88: -0.1411504762
I89: 5 | O89: 0.08982720017
I90: 5
I91: 5 | O91: -0.479808961
I92: 5 | O92: -0.2429082396
I93: 5 | O93: -0.3229370868
I94: 5 | O94: -0.8106564975
I95: 5 | O95: 0.6354642802
I96: 5 | O96: -0.2542487166
I97: 5 | O97: 0.318069591
I98: 5 | O98: 0.8446027802
I99: 5 | O99: 0.05213582842
I100: 5 | O100: -0.8433855124
I101: 5 | O101: 0.8048671607
I102: 6 | O102: =CORREL($B$7:$G$7,B2:G2) -> 0.8467208934
I103: =I87+1 -> 6 | O103: =CORREL($B$7:$G$7,B3:G3) -> 0.4849780182
I104: 6 | O104: -0.0642407425
I105: 6 | O105: -0.1455252783
I106: 6 | O106: -0.479808961
I107: 6
I108: 6 | O108: -0.1436408698
I109: 6 | O109: 0.3152888319
I110: 6 | O110: 0.6894682342
I111: 6 | O111: -0.9244051779
I112: 6 | O112: 0.3135287285
I113: 6 | O113: -0.428780975
I114: 6 | O114: -0.1504044295
I115: 6 | O115: -0.2537308493
I116: 6 | O116: 0.1927824961
I117: 6 | O117: -0.126893307
I118: 7 | O118: =CORREL($B$8:$G$8,B2:G2) -> 0.09873310512
I119: 7 | O119: =CORREL($B$8:$G$8,B3:G3) -> 0.6971826309
I120: 7 | O120: -0.2662163673
I121: 7 | O121: 0.8238588572
I122: 7 | O122: -0.2429082396
I123: 7 | O123: -0.1436408698
I124: 7
I125: 7 | O125: 0.7602526604
I126: 7 | O126: 0.1608511567
I127: 7 | O127: 0.1143014543
I128: 7 | O128: 0.2681314587
I129: 7 | O129: -0.5799143893
I130: 7 | O130: 0.07329097436
I131: 7 | O131: -0.4210418749
I132: 7 | O132: 0.5332893026
I133: 7 | O133: -0.1883714916
I134: 8 | O134: =CORREL($B$9:$G$9,B2:G2) -> 0.4279142114
I135: 8 | O135: =CORREL($B$9:$G$9,B3:G3) -> 0.8007732582
I136: 8 | O136: -0.64452422
I137: 8 | O137: 0.7156835171
I138: 8 | O138: -0.3229370868
I139: 8 | O139: 0.3152888319
I140: 8 | O140: 0.7602526604
I141: 8
I142: 8 | O142: 0.1911502776
I143: 8 | O143: -0.1373589694
I144: 8 | O144: 0.4097993985
I145: 8 | O145: -0.7869441536
I146: 8 | O146: 0.1816061339
I147: 8 | O147: -0.6727461842
I148: 8 | O148: 0.3811179607
I149: 8 | O149: -0.2759521591
I150: 9 | O150: =CORREL($B$10:$G$10,B2:G2) -> 0.8578420043
I151: 9 | O151: =CORREL($B$10:$G$10,B3:G3) -> 0.6683261971
I152: 9 | O152: 0.2209621826
I153: 9 | O153: -0.2138188776
I154: 9 | O154: -0.8106564975
I155: 9 | O155: 0.6894682342
I156: 9 | O156: 0.1608511567
I157: 9 | O157: 0.1911502776
I158: 9
I159: 9 | O159: -0.8755252658
I160: 9 | O160: 0.03543829617
I161: 9 | O161: -0.460146231
I162: 9 | O162: -0.6007765057
I163: 9 | O163: 0.1644678449
I164: 9 | O164: 0.7686707214
I165: 9 | O165: -0.5146640885
I166: 10 | O166: =CORREL($B$11:$G$11,B2:G2) -> -0.8399400648
I167: =I151+1 -> 10 | O167: =CORREL($B$11:$G$11,B3:G3) -> -0.5136069137
I168: 10 | O168: -0.2387334364
I169: 10 | O169: 0.2407897269
I170: 10 | O170: 0.6354642802
I171: 10 | O171: -0.9244051779
I172: 10 | O172: 0.1143014543
I173: 10 | O173: -0.1373589694
I174: 10 | O174: -0.8755252658
I175: 10
I176: 10 | O176: -0.257314638
I177: 10 | O177: 0.3140637435
I178: 10 | O178: 0.4119076905
I179: 10 | O179: 0.05813826648
I180: 10 | O180: -0.3936764386
I181: 10 | O181: 0.2142287635
I182: 11 | O182: =CORREL($B$12:$G$12,B2:G2) -> -0.0371791044
I183: 11 | O183: =CORREL($B$12:$G$12,B3:G3) -> 0.444530587
I184: 11 | O184: 0.2347858455
I185: 11 | O185: 0.6100841348
I186: 11 | O186: -0.2542487166
I187: 11 | O187: 0.3135287285
I188: 11 | O188: 0.2681314587
I189: 11 | O189: 0.4097993985
I190: 11 | O190: 0.03543829617
I191: 11 | O191: -0.257314638
I192: 11
I193: 11 | O193: 0.1427266556
I194: 11 | O194: -0.1176050588
I195: 11 | O195: -0.8944010844
I196: 11 | O196: -0.09601365287
I197: 11 | O197: 0.2013174218
I198: 12 | O198: =CORREL($B$13:$G$13,B2:G2) -> -0.7249160118
I199: 12 | O199: =CORREL($B$13:$G$13,B3:G3) -> -0.6747030388
I200: 12 | O200: 0.6999318019
... 84 more rows

Sheet basics3
A1: raw | B1: A1 | C1: A2 | D1: A3 | E1: A4 | F1: A5 | G1: A6=Y | I1: rank | J1: =B1 -> A1 | K1: A2 | L1: A3 | M1: A4 | N1: A5 | O1: =G1&"'" -> A6=Y' | P1: validity0 | Q1: direkt | R1: inverz | S1: átlag | T1: double | U1: between1 | V1: validity1 | W1: invalid_between | X1: valid_extrem | Y1: between2 | Z1: validity2 | AB1: =models1!B7 -> X(A1) | AC1: =models1!C7 -> X(A2) | AD1: =models1!D7 -> X(A3) | AE1: =models1!E7 -> X(A4) | AF1: =models1!F7 -> X(A5) | AG1: =AB1 -> X(A1) | AH1: =AC1 -> X(A2) | AI1: X(A3) | AJ1: X(A4) | AK1: X(A5) | AL1: =O1 -> A6=Y' | AN1: direct_stddev | AO1: inverse_stddev | AP1: delta
A2: O1 | B2: 88 | C2: 57 | D2: 52 | E2: 52 | F2: 72 | G2: 70 | I2: =A2 -> O1 | J2: =RANK(B2,B$2:B$17,B$19) -> 15 | K2: =RANK(C2,C$2:C$17,C$19) -> 9 | L2: 10 | M2: 10 | N2: 12 | O2: =G2*1000 -> 70000 | P2: =IF(models1!J262*models1!Y262<=0,"valid","invalid") -> invalid | Q2: =models1!G262 -> 44421.4 | R2: =models1!V262 -> 63759.7 | S2: =AVERAGE(Q2:R2) -> 54090.55 | T2: =models1!AO262 -> 43582.5 | U2: =IF(MAX(Q2:R2)<T2,0,IF(MIN(Q2:R2)>T2,0,1)) -> 0 | V2: =IF(P2="valid",1,) -> 0 | W2: =IF(V2=1,IF(U2=0,1,0),0) -> 0 | X2: =IF(V2=0,IF(U2=1,1,0),0) -> 0 | Y2: =STDEV(S2:T2) -> 7430.313412 | Z2: =STDEV(models1!J262,models1!Y262) -> 19.53736036 | AB2: =J2 -> 15 | AC2: =K2 -> 9 | AD2: 10 | AE2: 10 | AF2: 12 | AG2: =RANK(AB2,AB$2:AB$17,0) -> 2 | AH2: =RANK(AC2,AC$2:AC$17,0) -> 7 | AI2: =RANK(AD2,AD$2:AD$17,0) -> 6 | AJ2: =RANK(AE2,AE$2:AE$17,0) -> 7 | AK2: =RANK(AF2,AF$2:AF$17,0) -> 5 | AL2: 70000 | AN2: =STDEV(AB2:AF2) -> 2.387467277 | AO2: =STDEV(AG2:AK2) -> 2.073644135 | AP2: =ABS(AO2-AN2) -> 0.3138231419
A3: O2 | B3: 62 | C3: 99 | D3: 44 | E3: 65 | F3: 53 | G3: 20 | I3: =A3 -> O2 | J3: =RANK(B3,B$2:B$17,B$19) -> 10 | K3: 16 | L3: 8 | M3: 7 | N3: 9 | O3: =G3*1000 -> 20000 | P3: =IF(models1!J263*models1!Y263<=0,"valid","invalid") -> invalid | Q3: =models1!G263 -> 34188.8 | R3: =models1!V263 -> 47819.8 | S3: =AVERAGE(Q3:R3) -> 41004.3 | T3: =models1!AO263 -> 20631.4 | U3: 0 | V3: 0 | W3: =IF(V3=1,IF(U3=0,1,0),0) -> 0 | X3: =IF(V3=0,IF(U3=1,1,0),0) -> 0 | Y3: =STDEV(S3:T3) -> 14405.81574 | Z3: =STDEV(models1!J263,models1!Y263) -> 48.19639821 | AB3: =J3 -> 10 | AC3: 16 | AD3: 8 | AE3: 7 | AF3: 9 | AG3: =RANK(AB3,AB$2:AB$17,0) -> 8 | AH3: 1 | AI3: 8 | AJ3: 10 | AK3: 7 | AL3: 20000 | AN3: =STDEV(AB3:AF3) -> 3.535533906 | AO3: =STDEV(AG3:AK3) -> 3.420526275 | AP3: =ABS(AO3-AN3) -> 0.1150076306
A4: O3 | B4: 64 | C4: 26 | D4: 50 | E4: 64 | F4: 37 | G4: 90 | I4: O3 | J4: 11 | K4: 3 | L4: 9 | M4: 8 | N4: 6 | O4: 90000 | P4: =IF(models1!J264*models1!Y264<=0,"valid","invalid") -> invalid | Q4: =models1!G264 -> 58747 | R4: =models1!V264 -> 51306.6 | S4: 55026.8 | T4: =models1!AO264 -> 57834.1 | U4: 1 | V4: 0 | W4: 0 | X4: 1 | Y4: 1985.060867 | Z4: =STDEV(models1!J264,models1!Y264) -> 5.840702013 | AB4: 11 | AC4: 3 | AD4: 9 | AE4: 8 | AF4: 6 | AG4: 7 | AH4: 14 | AI4: 7 | AJ4: 9 | AK4: 11 | AL4: 90000 | AN4: 3.049590136 | AO4: 2.966479395 | AP4: 0.08311074156
A5: O4 | B5: 45 | C5: 11 | D5: 24 | E5: 39 | F5: 52 | G5: 67 | I5: O4 | J5: 4 | K5: 1 | L5: 5 | M5: 11 | N5: 8 | O5: 67000 | P5: =IF(models1!J265*models1!Y265<=0,"valid","invalid") -> invalid | Q5: =models1!G265 -> 65970 | R5: =models1!V265 -> 39849.8 | S5: 52909.9 | T5: =models1!AO265 -> 66617.1 | U5: 0 | V5: 0 | W5: 0 | X5: 0 | Y5: 9692.454071 | Z5: =STDEV(models1!J265,models1!Y265) -> 27.56302233 | AB5: 4 | AC5: 1 | AD5: 5 | AE5: 11 | AF5: 8 | AG5: 14 | AH5: 16 | AI5: 11 | AJ5: 6 | AK5: 8 | AL5: 67000 | AN5: 3.834057903 | AO5: 4.123105626 | AP5: 0.2890477231
A6: O5 | B6: 51 | C6: 12 | D6: 23 | E6: 63 | F6: 12 | G6: 37 | I6: O5 | J6: 8 | K6: 2 | L6: 4 | M6: 9 | N6: 1 | O6: 37000 | P6: =IF(models1!J266*models1!Y266<=0,"valid","invalid") -> valid | Q6: =models1!G266 -> 62599.3 | R6: =models1!V266 -> 27894.9 | S6: 45247.1 | T6: =models1!AO266 -> 68605.2 | U6: 0 | V6: 1 | W6: 1 | X6: 0 | Y6: 16516.67091 | Z6: =STDEV(models1!J266,models1!Y266) -> 66.32661608 | AB6: 8 | AC6: 2 | AD6: 4 | AE6: 9 | AF6: 1 | AG6: 10 | AH6: 15 | AI6: 12 | AJ6: 8 | AK6: 16 | AL6: 37000 | AN6: 3.563705936 | AO6: 3.346640106 | AP6: 0.2170658301
A7: O6 | B7: 48 | C7: 48 | D7: 42 | E7: 14 | F7: 71 | G7: 51 | I7: O6 | J7: 6 | K7: 8 | L7: 7 | M7: 16 | N7: 11 | O7: 51000 | P7: =IF(models1!J267*models1!Y267<=0,"valid","invalid") -> invalid | Q7: =models1!G267 -> 58265.5 | R7: =models1!V267 -> 74220.3 | S7: 66242.9 | T7: =models1!AO267 -> 53940 | U7: 0 | V7: 0 | W7: 0 | X7: 0 | Y7: 8699.464018 | Z7: =STDEV(models1!J267,models1!Y267) -> 22.11830012 | AB7: 6 | AC7: 8 | AD7: 7 | AE7: 16 | AF7: 11 | AG7: 12 | AH7: 8 | AI7: 9 | AJ7: 1 | AK7: 6 | AL7: 51000 | AN7: 4.037325848 | AO7: 4.086563348 | AP7: 0.0492375007
A8: O7 | B8: 70 | C8: 96 | D8: 72 | E8: 22 | F8: 80 | G8: 51 | I8: O7 | J8: 13 | K8: 15 | L8: 13 | M8: 13 | N8: 13 | O8: 51000 | P8: =IF(models1!J268*models1!Y268<=0,"valid","invalid") -> valid | Q8: =models1!G268 -> 28530.8 | R8: =models1!V268 -> 71231.5 | S8: 49881.15 | T8: =models1!AO268 -> 35628.7 | U8: 1 | V8: 1 | W8: 0 | X8: 0 | Y8: 10078.00404 | Z8: =STDEV(models1!J268,models1!Y268) -> 59.20605079 | AB8: 13 | AC8: 15 | AD8: 13 | AE8: 13 | AF8: 13 | AG8: 5 | AH8: 2 | AI8: 3 | AJ8: 4 | AK8: 4 | AL8: 51000 | AN8: 0.894427191 | AO8: 1.140175425 | AP8: 0.2457482341
A9: O8 | B9: 46 | C9: 80 | D9: 30 | E9: 85 | F9: 20 | G9: 68 | I9: O8 | J9: 5 | K9: 12 | L9: 6 | M9: 3 | N9: 2 | O9: 68000 | P9: =IF(models1!J269*models1!Y269<=0,"valid","invalid") -> invalid | Q9: =models1!G269 -> 67896.1 | R9: =models1!V269 -> 39351.7 | S9: 53623.9 | T9: =models1!AO269 -> 67611.4 | U9: 1 | V9: 0 | W9: 0 | X9: 1 | Y9: 9890.656102 | Z9: =STDEV(models1!J269,models1!Y269) -> 29.68434267 | AB9: 5 | AC9: 12 | AD9: 6 | AE9: 3 | AF9: 2 | AG9: 13 | AH9: 5 | AI9: 10 | AJ9: 14 | AK9: 15 | AL9: 68000 | AN9: 3.911521443 | AO9: 4.037325848 | AP9: 0.1258044045
A10: O9 | B10: 61 | C10: 66 | D10: 59 | E10: 20 | F10: 84 | G10: 13 | I10: O9 | J10: 9 | K10: 10 | L10: 11 | M10: 14 | N10: 15 | O10: 13000 | P10: =IF(models1!J270*models1!Y270<=0,"valid","invalid") -> invalid | Q10: =models1!G270 -> 15409.1 | R10: =models1!V270 -> 51306.6 | S10: 33357.85 | T10: =models1!AO270 -> 31817.1 | U10: 1 | V10: 0 | W10: 0 | X10: 1 | Y10: 1089.474773 | Z10: =STDEV(models1!J270,models1!Y270) -> 195.2604666 | AB10: 9 | AC10: 10 | AD10: 11 | AE10: 14 | AF10: 15 | AG10: 9 | AH10: 6 | AI10: 5 | AJ10: 3 | AK10: 2 | AL10: 13000 | AN10: 2.588435821 | AO10: 2.738612788 | AP10: 0.1501769664
A11: O10 | B11: 94 | C11: 32 | D11: 15 | E11: 72 | F11: 97 | G11: 43 | I11: O10 | J11: 16 | K11: 5 | L11: 2 | M11: 4 | N11: 16 | O11: 43000 | P11: =IF(models1!J271*models1!Y271<=0,"valid","invalid") -> invalid | Q11: =models1!G271 -> 41411.8 | R11: =models1!V271 -> 42838.5 | S11: 42125.15 | T11: =models1!AO271 -> 42754.3 | U11: 1 | V11: 0 | W11: 0 | X11: 1 | Y11: 444.8762314 | Z11: =STDEV(models1!J271,models1!Y271) -> 2.340523446 | AB11: 16 | AC11: 5 | AD11: 2 | AE11: 4 | AF11: 16 | AG11: 1 | AH11: 12 | AI11: 15 | AJ11: 13 | AK11: 1 | AL11: 43000 | AN11: 6.841052551 | AO11: 6.841052551 | AP11: 0
A12: O11 | B12: 50 | C12: 40 | D12: 17 | E12: 15 | F12: 24 | G12: 98 | I12: O11 | J12: 7 | K12: 6 | L12: 3 | M12: 15 | N12: 3 | O12: 98000 | P12: =IF(models1!J272*models1!Y272<=0,"valid","invalid") -> invalid | Q12: =models1!G272 -> 87037.1 | R12: =models1!V272 -> 73224 | S12: 80130.55 | T12: =models1!AO272 -> 97440 | U12: 0 | V12: 0 | W12: 0 | X12: 0 | Y12: 12239.62947 | Z12: =STDEV(models1!J272,models1!Y272) -> 9.963134547 | AB12: 7 | AC12: 6 | AD12: 3 | AE12: 15 | AF12: 3 | AG12: 11 | AH12: 10 | AI12: 13 | AJ12: 2 | AK12: 14 | AL12: 98000 | AN12: 4.91934955 | AO12: 4.74341649 | AP12: 0.1759330602
A13: O12 | B13: 42 | C13: 45 | D13: 67 | E13: 88 | F13: 45 | G13: 45 | I13: O12 | J13: 3 | K13: 7 | L13: 12 | M13: 2 | N13: 7 | O13: 45000 | P13: =IF(models1!J273*models1!Y273<=0,"valid","invalid") -> valid | Q13: =models1!G273 -> 55376.3 | R13: =models1!V273 -> 28891.1 | S13: 42133.7 | T13: =models1!AO273 -> 44743.3 | U13: 1 | V13: 1 | W13: 0 | X13: 0 | Y13: 1845.265856 | Z13: =STDEV(models1!J273,models1!Y273) -> 41.62030514 | AB13: 3 | AC13: 7 | AD13: 12 | AE13: 2 | AF13: 7 | AG13: 15 | AH13: 9 | AI13: 4 | AJ13: 15 | AK13: 9 | AL13: 45000 | AN13: 3.962322551 | AO13: 4.669047012 | AP13: 0.7067244607
A14: O13 | B14: 86 | C14: 94 | D14: 76 | E14: 35 | F14: 29 | G14: 11 | I14: O13 | J14: 14 | K14: 14 | L14: 15 | M14: 12 | N14: 4 | O14: 11000 | P14: =IF(models1!J274*models1!Y274<=0,"valid","invalid") -> invalid | Q14: =models1!G274 -> 30336.6 | R14: =models1!V274 -> 66748.4 | S14: 48542.5 | T14: =models1!AO274 -> 33557.1 | U14: 1 | V14: 0 | W14: 0 | X14: 1 | Y14: 10596.27796 | Z14: =STDEV(models1!J274,models1!Y274) -> 234.0594156 | AB14: 14 | AC14: 14 | AD14: 15 | AE14: 12 | AF14: 4 | AG14: 4 | AH14: 3 | AI14: 2 | AJ14: 5 | AK14: 13 | AL14: 11000 | AN14: 4.494441011 | AO14: 4.393176527 | AP14: 0.1012644836
A15: O14 | B15: 13 | C15: 92 | D15: 14 | E15: 91 | F15: 36 | G15: 76 | I15: O14 | J15: 1 | K15: 13 | L15: 1 | M15: 1 | N15: 5 | O15: 76000 | P15: =IF(models1!J275*models1!Y275<=0,"valid","invalid") -> invalid | Q15: =models1!G275 -> 73193 | R15: =models1!V275 -> 44332.9 | S15: 58762.95 | T15: =models1!AO275 -> 75566.2 | U15: =IF(MAX(Q15:R15)<T15,0,IF(MIN(Q15:R15)>T15,0,1)) -> 0 | V15: 0 | W15: 0 | X15: 0 | Y15: 11881.69202 | Z15: =STDEV(models1!J275,models1!Y275) -> 26.85591555 | AB15: 1 | AC15: 13 | AD15: 1 | AE15: 1 | AF15: 5 | AG15: 16 | AH15: 4 | AI15: 16 | AJ15: 16 | AK15: 12 | AL15: 76000 | AN15: 5.215361924 | AO15: 5.215361924 | AP15: 8.881784197e-16
A16: O15 | B16: 69 | C16: 28 | D16: 79 | E16: 70 | F16: 81 | G16: 15 | I16: O15 | J16: 12 | K16: 4 | L16: 16 | M16: 6 | N16: 14 | O16: 15000 | P16: =IF(models1!J276*models1!Y276<=0,"valid","invalid") -> invalid | Q16: =models1!G276 -> 16372.1 | R16: =models1!V276 -> 29887.4 | S16: 23129.75 | T16: =models1!AO276 -> 14914.3 | U16: =IF(MAX(Q16:R16)<T16,0,IF(MIN(Q16:R16)>T16,0,1)) -> 0 | V16: 0 | W16: 0 | X16: 0 | Y16: 5809.200405 | Z16: =STDEV(models1!J276,models1!Y276) -> 63.71032098 | AB16: 12 | AC16: 4 | AD16: 16 | AE16: 6 | AF16: 14 | AG16: 6 | AH16: 13 | AI16: 1 | AJ16: 11 | AK16: 3 | AL16: 15000 | AN16: 5.176871642 | AO16: 5.118593557 | AP16: 0.05827808539
A17: O16 | B17: 40 | C17: 69 | D17: 75 | E17: 71 | F17: 67 | G17: 38 | I17: O16 | J17: =RANK(B17,B$2:B$17,0) -> 15 | K17: 6 | L17: 3 | M17: 5 | N17: 7 | O17: 38000 | P17: =IF(models1!J277*models1!Y277<=0,"valid","invalid") -> invalid | Q17: =models1!G277 -> 54413.2 | R17: =models1!V277 -> 40347.9 | S17: 47380.55 | T17: =models1!AO277 -> 37783.3 | U17: =IF(MAX(Q17:R17)<T17,0,IF(MIN(Q17:R17)>T17,0,1)) -> 0 | V17: 0 | W17: 0 | X17: 0 | Y17: 6786.280556 | Z17: =STDEV(models1!J277,models1!Y277) -> 26.17002197 | AB17: 15 | AC17: 6 | AD17: 3 | AE17: 5 | AF17: 7 | AG17: 2 | AH17: 10 | AI17: 13 | AJ17: 12 | AK17: 9 | AL17: 38000 | AN17: 4.604345773 | AO17: 4.324349662 | AP17: 0.2799961112
A18: correlation | B18: =CORREL(B2:B16,$G$2:$G$16) -> -0.3622219915 | C18: =CORREL(C2:C16,$G$2:$G$16) -> -0.220917131 | D18: -0.5480795151 | E18: 0.03623155935 | F18: -0.3460603054 | G18: 1 | I18: O16(2) | J18: =MAX(J2:J16) -> 16 | K18: =INT(QUARTILE(K2:K16,3)) -> 12 | L18: =MEDIAN(L2:L16) -> 8 | M18: =INT(QUARTILE(M2:M16,1)) -> 5 | N18: =MIN(N2:N16) -> 1 | O18: =O17 -> 38000 | P18: ratio | Q18: correlation | R18: correlation | T18: correlation | AB18: direct | AC18: direct | AD18: direct | AE18: direct | AF18: direct | AG18: inverse | AH18: inverse | AI18: inverse | AJ18: inverse | AK18: inverse | AL18: double | AM18: max | AN18: =MAX(AN2:AN17) -> 6.841052551 | AO18: =MAX(AO2:AO17) -> 6.841052551 | AP18: =MAX(AP2:AP17) -> 0.7067244607
A19: direction | B19: =IF(B18>0,0,1) -> 1 | C19: =IF(C18>0,0,1) -> 1 | D19: 1 | E19: 0 | F19: 1 | G19: Y | P19: =COUNTIF($P$2:$P$17,"valid")/16 -> 0.1875 | Q19: =CORREL(Q2:Q17,$O$2:$O$17) -> 0.8023380132 | R19: =CORREL(R2:R17,$O$2:$O$17) -> 0.2480415513 | T19: =CORREL(T2:T17,$O$2:$O$17) -> 0.8066450231 | U19: =SUM(U2:U17) -> 7 | W19: =SUM(W2:W17) -> 1 | X19: =SUM(X2:X17) -> 5 | Y19: =SUM(Y2:Y17) -> 129391.1364 | AM19: min | AN19: =MIN(AN2:AN17) -> 0.894427191 | AO19: =MIN(AO2:AO17) -> 1.140175425 | AP19: =MIN(AP2:AP17) -> 0
AM20: avg | AN20: =AVERAGE(AN2:AN17) -> 3.938488154 | AO20: =AVERAGE(AO2:AO17) -> 3.952379417 | AP20: =AVERAGE(AP2:AP17) -> 0.1819511484
A21: antagonism! | I21: O* | O21: correlation | AM21: stddev | AN21: =STDEV(AN2:AN17) -> 1.364135305 | AO21: =STDEV(AO2:AO17) -> 1.35053449 | AP21: =STDEV(AP2:AP17) -> 0.1718997194
I22: 1 | AM22: median | AN22: =MEDIAN(AN2:AN17) -> 3.936921997 | AO22: =MEDIAN(AO2:AO17) -> 4.104834487 | AP22: 0.1379906855
A23: Consistency-tasks | I23: 1 | O23: =CORREL($B$2:$G$2,B3:G3) -> -0.1995262405
A24: Y=between1 | I24: 1 | O24: 0.2708508864
A25: Y=between2 | I25: 1 | O25: 0.5560372579
A26: Y=validity1 | I26: 1 | O26: 0.1305015192
A27: Y=validity2 | I27: 1 | O27: 0.5347270889
A28: Y=validity-ratio | I28: 1 | O28: 0.2029477561
A29: Xi=model-characteristics | I29: 1 | O29: -0.341543109
I30: 1 | O30: 0.2281119218
I31: 1 | O31: 0.6693550743
I32: 1 | O32: 0.4661526031
I33: 1 | O33: -0.7069470599
I34: 1 | O34: -0.00580118072
I35: 1 | O35: -0.4646753245
I36: 1 | O36: 0.005501907429
I37: 1 | O37: -0.7964035918
I38: =I22+1 -> 2 | O38: =CORREL($B$3:$G$3,B2:G2) -> -0.1995262405
I39: =I23+1 -> 2
I40: 2 | O40: =CORREL($B$3:$G$3,B4:G4) -> -0.7624821177
I41: 2 | O41: -0.7823048553
I42: 2 | O42: -0.1766398951
I43: 2 | O43: -0.1641237508
I44: 2 | O44: 0.4022813728
I45: 2 | O45: 0.3497770486
I46: 2 | O46: 0.4406794503
I47: 2 | O47: 0.03548278858
I48: 2 | O48: -0.4746595713
I49: 2 | O49: 0.0135685885
I50: 2 | O50: 0.6876007908
I51: 2 | O51: 0.302200016
I52: 2 | O52: 0.03205340522
I53: 2 | O53: 0.4445975239
I54: 3 | O54: =CORREL($B$4:$G$4,B2:G2) -> 0.2708508864
I55: 3 | O55: =CORREL($B$4:$G$4,B3:G3) -> -0.7624821177
I56: 3
I57: 3 | O57: 0.7436910088
I58: 3 | O58: 0.6724203555
I59: 3 | O59: -0.2786079075
I60: 3 | O60: -0.697742822
I61: 3 | O61: 0.2205870889
I62: 3 | O62: -0.8181584088
I63: 3 | O63: 0.04962514031
I64: 3 | O64: 0.6484207811
I65: 3 | O65: 0.1144642232
I66: 3 | O66: -0.564912329
I67: 3 | O67: 0.03707165041
I68: 3 | O68: -0.2954714899
I69: 3 | O69: -0.7013779478
I70: 4 | O70: =CORREL($B$5:$G$5,B2:G2) -> 0.5560372579
I71: 4 | O71: =CORREL($B$5:$G$5,B3:G3) -> -0.7823048553
I72: 4 | O72: 0.7436910088
I73: 4
I74: 4 | O74: 0.3253200387
I75: 4 | O75: 0.2620933352
I76: 4 | O76: -0.4441976334
I77: 4 | O77: -0.1745137496
I78: 4 | O78: -0.3999333677
I79: 4 | O79: 0.4934400755
I80: 4 | O80: 0.5832326754
I81: 4 | O81: -0.2113095639
I82: 4 | O82: -0.8112441321
I83: 4 | O83: -0.08802997732
I84: 4 | O84: -0.1100326508
I85: 4 | O85: -0.6811075177
I86: 5 | O86: =CORREL($B$6:$G$6,B2:G2) -> 0.1305015192
I87: 5 | O87: =CORREL($B$6:$G$6,B3:G3) -> -0.1766398951
I88: 5 | O88: 0.6724203555
I89: 5 | O89: 0.3253200387
I90: 5
I91: 5 | O91: -0.7368583959
I92: 5 | O92: -0.8458002415
I93: 5 | O93: 0.4404473124
I94: 5 | O94: -0.6776122581
I95: 5 | O95: 0.3256766658
I96: 5 | O96: 0.06930090332
I97: 5 | O97: 0.5225489449
I98: 5 | O98: -0.1930375189
I99: 5 | O99: 0.1123606252
I100: 5 | O100: 0.1086420885
I101: 5 | O101: -0.347452513
I102: 6 | O102: =CORREL($B$7:$G$7,B2:G2) -> 0.5347270889
I103: =I87+1 -> 6 | O103: =CORREL($B$7:$G$7,B3:G3) -> -0.1641237508
I104: 6 | O104: -0.2786079075
I105: 6 | O105: 0.2620933352
I106: 6 | O106: -0.7368583959
I107: 6
I108: 6 | O108: 0.7284750159
I109: 6 | O109: -0.6605028196
I110: 6 | O110: 0.6404989879
I111: 6 | O111: 0.2065178243
I112: 6 | O112: 0.2793754845
I113: 6 | O113: -0.8528840744
I114: 6 | O114: -0.0547178009
I115: 6 | O115: -0.400480873
I116: 6 | O116: -0.05695682288
I117: 6 | O117: -0.2428697031
I118: 7 | O118: =CORREL($B$8:$G$8,B2:G2) -> 0.2029477561
I119: 7 | O119: =CORREL($B$8:$G$8,B3:G3) -> 0.4022813728
I120: 7 | O120: -0.697742822
I121: 7 | O121: -0.4441976334
I122: 7 | O122: -0.8458002415
I123: 7 | O123: 0.7284750159
I124: 7
I125: 7 | O125: -0.4165779313
I126: 7 | O126: 0.8184936644
I127: 7 | O127: -0.1684406127
I128: 7 | O128: -0.02209844306
I129: 7 | O129: -0.7255095235
I130: 7 | O130: 0.58636094
I131: 7 | O131: -0.3089918211
I132: 7 | O132: -0.08163653074
I133: 7 | O133: 0.1056583399
I134: 8 | O134: =CORREL($B$9:$G$9,B2:G2) -> -0.341543109
I135: 8 | O135: =CORREL($B$9:$G$9,B3:G3) -> 0.3497770486
I136: 8 | O136: 0.2205870889
I137: 8 | O137: -0.1745137496
I138: 8 | O138: 0.4404473124
I139: 8 | O139: -0.6605028196
I140: 8 | O140: -0.4165779313
I141: 8
I142: 8 | O142: -0.6650276334
I143: 8 | O143: -0.2272248389
I144: 8 | O144: 0.2497948385
I145: 8 | O145: 0.313017461
I146: 8 | O146: -0.01958380007
I147: 8 | O147: 0.8686522289
I148: 8 | O148: -0.6264956086
I149: 8 | O149: -0.07701629721
I150: 9 | O150: =CORREL($B$10:$G$10,B2:G2) -> 0.2281119218
I151: 9 | O151: =CORREL($B$10:$G$10,B3:G3) -> 0.4406794503
I152: 9 | O152: -0.8181584088
I153: 9 | O153: -0.3999333677
I154: 9 | O154: -0.6776122581
I155: 9 | O155: 0.6404989879
I156: 9 | O156: 0.8184936644
I157: 9 | O157: -0.6650276334
I158: 9
I159: 9 | O159: 0.2224038121
I160: 9 | O160: -0.4689143315
I161: 9 | O161: -0.4498454513
I162: 9 | O162: 0.5203570441
I163: 9 | O163: -0.5290139768
I164: 9 | O164: 0.4697853961
I165: 9 | O165: 0.3399239654
I166: 10 | O166: =CORREL($B$11:$G$11,B2:G2) -> 0.6693550743
I167: =I151+1 -> 10 | O167: =CORREL($B$11:$G$11,B3:G3) -> 0.03548278858
I168: 10 | O168: 0.04962514031
I169: 10 | O169: 0.4934400755
I170: 10 | O170: 0.3256766658
I171: 10 | O171: 0.2065178243
I172: 10 | O172: -0.1684406127
I173: 10 | O173: -0.2272248389
I174: 10 | O174: 0.2224038121
I175: 10
I176: 10 | O176: -0.09408681321
I177: 10 | O177: -0.1609093384
I178: 10 | O178: -0.2456023471
I179: 10 | O179: -0.1992834007
I180: 10 | O180: 0.415352411
I181: 10 | O181: -0.3008675728
I182: 11 | O182: =CORREL($B$12:$G$12,B2:G2) -> 0.4661526031
I183: 11 | O183: =CORREL($B$12:$G$12,B3:G3) -> -0.4746595713
I184: 11 | O184: 0.6484207811
I185: 11 | O185: 0.5832326754
I186: 11 | O186: 0.06930090332
I187: 11 | O187: 0.2793754845
I188: 11 | O188: -0.02209844306
I189: 11 | O189: 0.2497948385
I190: 11 | O190: -0.4689143315
I191: 11 | O191: -0.09408681321
I192: 11
I193: 11 | O193: -0.5739565739
I194: 11 | O194: -0.3365661223
I195: 11 | O195: 0.1983961674
I196: 11 | O196: -0.8021238027
I197: 11 | O197: -0.8578388104
I198: 12 | O198: =CORREL($B$13:$G$13,B2:G2) -> -0.7069470599
I199: 12 | O199: =CORREL($B$13:$G$13,B3:G3) -> 0.0135685885
I200: 12 | O200: 0.1144642232
... 84 more rows

Sheet basics2
A1: raw | B1: A1 | C1: A2 | D1: A3 | E1: A4 | F1: A5 | G1: A6=Y | I1: rank | J1: =B1 -> A1 | K1: A2 | L1: A3 | M1: A4 | N1: A5 | O1: =G1&"'" -> A6=Y' | P1: validity0 | Q1: direkt | R1: inverz | S1: átlag | T1: double | U1: between1 | V1: validity1 | W1: invalid_between | X1: valid_extrem | Y1: between2 | Z1: validity2 | AB1: =models1!B7 -> X(A1) | AC1: =models1!C7 -> X(A2) | AD1: =models1!D7 -> X(A3) | AE1: =models1!E7 -> X(A4) | AF1: =models1!F7 -> X(A5) | AG1: =AB1 -> X(A1) | AH1: =AC1 -> X(A2) | AI1: X(A3) | AJ1: X(A4) | AK1: X(A5) | AL1: =O1 -> A6=Y' | AN1: direct_stddev | AO1: inverse_stddev | AP1: delta
A2: O1 | B2: 96 | C2: 69 | D2: 85 | E2: 57 | F2: 75 | G2: 27 | I2: =A2 -> O1 | J2: =RANK(B2,B$2:B$17,B$19) -> 16 | K2: =RANK(C2,C$2:C$17,C$19) -> 6 | L2: 15 | M2: 8 | N2: 7 | O2: =G2*1000 -> 27000 | P2: =IF(models1!J162*models1!Y162<=0,"valid","invalid") -> invalid | Q2: =models1!G162 -> 35843.6 | R2: =models1!V162 -> 51747.5 | S2: =AVERAGE(Q2:R2) -> 43795.55 | T2: =models1!AO162 -> 26877.3 | U2: =IF(MAX(Q2:R2)<T2,0,IF(MIN(Q2:R2)>T2,0,1)) -> 0 | V2: =IF(P2="valid",1,) -> 0 | W2: =IF(V2=1,IF(U2=0,1,0),0) -> 0 | X2: =IF(V2=0,IF(U2=1,1,0),0) -> 0 | Y2: =STDEV(S2:T2) -> 11963.0093 | Z2: =STDEV(models1!J162,models1!Y162) -> 41.65566048 | AB2: =J2 -> 16 | AC2: =K2 -> 6 | AD2: 15 | AE2: 8 | AF2: 7 | AG2: =RANK(AB2,AB$2:AB$17,0) -> 1 | AH2: =RANK(AC2,AC$2:AC$17,0) -> 11 | AI2: 2 | AJ2: 9 | AK2: 10 | AL2: 27000 | AN2: =STDEV(AB2:AF2) -> 4.722287581 | AO2: =STDEV(AG2:AK2) -> 4.722287581 | AP2: =ABS(AO2-AN2) -> 1.776356839e-15
A3: O2 | B3: 42 | C3: 62 | D3: 34 | E3: 18 | F3: 42 | G3: 96 | I3: =A3 -> O2 | J3: =RANK(B3,B$2:B$17,B$19) -> 5 | K3: 8 | L3: 3 | M3: 2 | N3: 11 | O3: =G3*1000 -> 96000 | P3: =IF(models1!J163*models1!Y163<=0,"valid","invalid") -> invalid | Q3: =models1!G163 -> 94923.8 | R3: =models1!V163 -> 64959.6 | S3: =AVERAGE(Q3:R3) -> 79941.7 | T3: =models1!AO163 -> 95563.6 | U3: 0 | V3: 0 | W3: =IF(V3=1,IF(U3=0,1,0),0) -> 0 | X3: =IF(V3=0,IF(U3=1,1,0),0) -> 0 | Y3: =STDEV(S3:T3) -> 11046.35143 | Z3: =STDEV(models1!J163,models1!Y163) -> 22.06880264 | AB3: =J3 -> 5 | AC3: 8 | AD3: 3 | AE3: 2 | AF3: 11 | AG3: =RANK(AB3,AB$2:AB$17,0) -> 13 | AH3: 9 | AI3: 14 | AJ3: 16 | AK3: 6 | AL3: 96000 | AN3: =STDEV(AB3:AF3) -> 3.701351105 | AO3: =STDEV(AG3:AK3) -> 4.037325848 | AP3: =ABS(AO3-AN3) -> 0.335974743
A4: O3 | B4: 61 | C4: 24 | D4: 39 | E4: 53 | F4: 60 | G4: 70 | I4: O3 | J4: 11 | K4: 15 | L4: 5 | M4: 7 | N4: 9 | O4: 70000 | P4: =IF(models1!J164*models1!Y164<=0,"valid","invalid") -> invalid | Q4: =models1!G164 -> 48450.7 | R4: =models1!V164 -> 54500 | S4: 51475.35 | T4: =models1!AO164 -> 58731.8 | U4: 0 | V4: 0 | W4: 0 | X4: 0 | Y4: 5131.085002 | Z4: =STDEV(models1!J164,models1!Y164) -> 6.109402589 | AB4: 11 | AC4: 15 | AD4: 5 | AE4: 7 | AF4: 9 | AG4: 7 | AH4: 2 | AI4: 12 | AJ4: 11 | AK4: 8 | AL4: 70000 | AN4: 3.847076812 | AO4: 3.937003937 | AP4: 0.08992712467
A5: O4 | B5: 44 | C5: 45 | D5: 68 | E5: 66 | F5: 82 | G5: 98 | I5: O4 | J5: 6 | K5: 11 | L5: 11 | M5: 11 | N5: 4 | O5: 98000 | P5: =IF(models1!J165*models1!Y165<=0,"valid","invalid") -> invalid | Q5: =models1!G165 -> 66248.9 | R5: =models1!V165 -> 66060.6 | S5: 66154.75 | T5: =models1!AO165 -> 67939.8 | U5: 0 | V5: 0 | W5: 0 | X5: 0 | Y5: 1262.22096 | Z5: =STDEV(models1!J165,models1!Y165) -> 0.1343502884 | AB5: 6 | AC5: 11 | AD5: 11 | AE5: 11 | AF5: 4 | AG5: 11 | AH5: 6 | AI5: 6 | AJ5: 7 | AK5: 13 | AL5: 98000 | AN5: 3.361547263 | AO5: 3.209361307 | AP5: 0.1521859556
A6: O5 | B6: 23 | C6: 83 | D6: 82 | E6: 69 | F6: 78 | G6: 60 | I6: O5 | J6: 2 | K6: 2 | L6: 14 | M6: 13 | N6: 6 | O6: 60000 | P6: =IF(models1!J166*models1!Y166<=0,"valid","invalid") -> invalid | Q6: =models1!G166 -> 59327.4 | R6: =models1!V166 -> 33030.3 | S6: 46178.85 | T6: =models1!AO166 -> 59727.3 | U6: 0 | V6: 0 | W6: 0 | X6: 0 | Y6: 9580.20087 | Z6: =STDEV(models1!J166,models1!Y166) -> 30.99249022 | AB6: 2 | AC6: 2 | AD6: 14 | AE6: 13 | AF6: 6 | AG6: 15 | AH6: 15 | AI6: 3 | AJ6: 5 | AK6: 11 | AL6: 60000 | AN6: 5.813776741 | AO6: 5.585696018 | AP6: 0.228080724
A7: O6 | B7: 73 | C7: 66 | D7: 12 | E7: 62 | F7: 95 | G7: 63 | I7: O6 | J7: 14 | K7: 7 | L7: 1 | M7: 10 | N7: 1 | O7: 63000 | P7: =IF(models1!J167*models1!Y167<=0,"valid","invalid") -> valid | Q7: =models1!G167 -> 75395.2 | R7: =models1!V167 -> 46792.9 | S7: 61094.05 | T7: =models1!AO167 -> 62713.6 | U7: 1 | V7: 1 | W7: 0 | X7: 0 | Y7: 1145.194787 | Z7: =STDEV(models1!J167,models1!Y167) -> 32.10264787 | AB7: 14 | AC7: 7 | AD7: 1 | AE7: 10 | AF7: 1 | AG7: 3 | AH7: 10 | AI7: 16 | AJ7: 8 | AK7: 16 | AL7: 63000 | AN7: 5.683308895 | AO7: 5.54977477 | AP7: 0.1335341251
A8: O7 | B8: 44 | C8: 98 | D8: 54 | E8: 32 | F8: 18 | G8: 65 | I8: O7 | J8: 6 | K8: 1 | L8: 8 | M8: 4 | N8: 15 | O8: 65000 | P8: =IF(models1!J168*models1!Y168<=0,"valid","invalid") -> invalid | Q8: =models1!G168 -> 64271.3 | R8: =models1!V168 -> 41287.9 | S8: 52779.6 | T8: =models1!AO168 -> 64704.5 | U8: 0 | V8: 0 | W8: 0 | X8: 0 | Y8: 8432.177655 | Z8: =STDEV(models1!J168,models1!Y168) -> 25.00329578 | AB8: 6 | AC8: 1 | AD8: 8 | AE8: 4 | AF8: 15 | AG8: 11 | AH8: 16 | AI8: 8 | AJ8: 14 | AK8: 2 | AL8: 65000 | AN8: 5.263078947 | AO8: 5.495452666 | AP8: 0.2323737188
A9: O8 | B9: 19 | C9: 58 | D9: 44 | E9: 68 | F9: 64 | G9: 22 | I9: O8 | J9: 1 | K9: 9 | L9: 6 | M9: 12 | N9: 8 | O9: 22000 | P9: =IF(models1!J169*models1!Y169<=0,"valid","invalid") -> invalid | Q9: =models1!G169 -> 57597 | R9: =models1!V169 -> 29176.8 | S9: 43386.9 | T9: =models1!AO169 -> 27872.7 | U9: 0 | V9: 0 | W9: 0 | X9: 0 | Y9: 10970.19602 | Z9: =STDEV(models1!J169,models1!Y169) -> 91.34405399 | AB9: 1 | AC9: 9 | AD9: 6 | AE9: 12 | AF9: 8 | AG9: 16 | AH9: 8 | AI9: 10 | AJ9: 6 | AK9: 9 | AL9: 22000 | AN9: 4.086563348 | AO9: 3.768288736 | AP9: 0.3182746121
A10: O9 | B10: 24 | C10: 21 | D10: 44 | E10: 74 | F10: 31 | G10: 12 | I10: O9 | J10: 3 | K10: 16 | L10: 6 | M10: 14 | N10: 14 | O10: 12000 | P10: =IF(models1!J170*models1!Y170<=0,"valid","invalid") -> invalid | Q10: =models1!G170 -> 30158.1 | R10: =models1!V170 -> 55601 | S10: 42879.55 | T10: =models1!AO170 -> 43053.4 | U10: 1 | V10: 0 | W10: 0 | X10: 1 | Y10: 122.9305139 | Z10: =STDEV(models1!J170,models1!Y170) -> 149.9207797 | AB10: 3 | AC10: 16 | AD10: 6 | AE10: 14 | AF10: 14 | AG10: 14 | AH10: 1 | AI10: 10 | AJ10: 4 | AK10: 3 | AL10: 12000 | AN10: 5.727128425 | AO10: 5.412947441 | AP10: 0.3141809842
A11: O10 | B11: 59 | C11: 73 | D11: 38 | E11: 41 | F11: 93 | G11: 36 | I11: O10 | J11: 10 | K11: 4 | L11: 4 | M11: 6 | N11: 2 | O11: 36000 | P11: =IF(models1!J171*models1!Y171<=0,"valid","invalid") -> valid | Q11: =models1!G171 -> 62046.5 | R11: =models1!V171 -> 31929.3 | S11: 46987.9 | T11: =models1!AO171 -> 35836.4 | U11: =IF(MAX(Q11:R11)<T11,0,IF(MIN(Q11:R11)>T11,0,1)) -> 1 | V11: 1 | W11: 0 | X11: 0 | Y11: 7885.30127 | Z11: =STDEV(models1!J171,models1!Y171) -> 59.15655331 | AB11: 10 | AC11: 4 | AD11: 4 | AE11: 6 | AF11: 2 | AG11: 8 | AH11: 13 | AI11: 13 | AJ11: 12 | AK11: 15 | AL11: 36000 | AN11: 3.033150178 | AO11: 2.588435821 | AP11: 0.4447143565
A12: O11 | B12: 57 | C12: 70 | D12: 60 | E12: 23 | F12: 44 | G12: 83 | I12: O11 | J12: 9 | K12: 5 | L12: 9 | M12: 3 | N12: 10 | O12: 83000 | P12: =IF(models1!J172*models1!Y172<=0,"valid","invalid") -> valid | Q12: =models1!G172 -> 83552.7 | R12: =models1!V172 -> 57803 | S12: 70677.85 | T12: =models1!AO172 -> 82622.7 | U12: 1 | V12: 1 | W12: 0 | X12: 0 | Y12: 8446.284435 | Z12: =STDEV(models1!J172,models1!Y172) -> 21.94152342 | AB12: 9 | AC12: 5 | AD12: 9 | AE12: 3 | AF12: 10 | AG12: 9 | AH12: 12 | AI12: 7 | AJ12: 15 | AK12: 7 | AL12: 83000 | AN12: 3.033150178 | AO12: 3.464101615 | AP12: 0.4309514375
A13: O12 | B13: 94 | C13: 31 | D13: 89 | E13: 95 | F13: 87 | G13: 40 | I13: O12 | J13: 15 | K13: 14 | L13: 16 | M13: 16 | N13: 3 | O13: 40000 | P13: =IF(models1!J173*models1!Y173<=0,"valid","invalid") -> valid | Q13: =models1!G173 -> 33124.4 | R13: =models1!V173 -> 70464.6 | S13: 51794.5 | T13: =models1!AO173 -> 52012.5 | U13: 1 | V13: 1 | W13: 0 | X13: 0 | Y13: 154.1492783 | Z13: =STDEV(models1!J173,models1!Y173) -> 66.00841802 | AB13: 15 | AC13: 14 | AD13: 16 | AE13: 16 | AF13: 3 | AG13: 2 | AH13: 3 | AI13: 1 | AJ13: 1 | AK13: 14 | AL13: 40000 | AN13: 5.540758071 | AO13: 5.540758071 | AP13: 8.881784197e-16
A14: O13 | B14: 45 | C14: 43 | D14: 33 | E14: 91 | F14: 79 | G14: 77 | I14: O13 | J14: 8 | K14: 12 | L14: 2 | M14: 15 | N14: 5 | O14: 77000 | P14: =IF(models1!J174*models1!Y174<=0,"valid","invalid") -> invalid | Q14: =models1!G174 -> 73664.8 | R14: =models1!V174 -> 64409.1 | S14: 69036.95 | T14: =models1!AO174 -> 76650 | U14: 0 | V14: 0 | W14: 0 | X14: 0 | Y14: 5383.239281 | Z14: =STDEV(models1!J174,models1!Y174) -> 8.49942351 | AB14: 8 | AC14: 12 | AD14: 2 | AE14: 15 | AF14: 5 | AG14: 10 | AH14: 5 | AI14: 15 | AJ14: 3 | AK14: 12 | AL14: 77000 | AN14: 5.224940191 | AO14: 4.949747468 | AP14: 0.2751927227
A15: O14 | B15: 70 | C15: 76 | D15: 69 | E15: 35 | F15: 16 | G15: 10 | I15: O14 | J15: 13 | K15: 3 | L15: 12 | M15: 5 | N15: 16 | O15: 10000 | P15: =IF(models1!J175*models1!Y175<=0,"valid","invalid") -> valid | Q15: =models1!G175 -> 9887.9 | R15: =models1!V175 -> 52848.5 | S15: 31368.2 | T15: =models1!AO175 -> 12940.9 | U15: =IF(MAX(Q15:R15)<T15,0,IF(MIN(Q15:R15)>T15,0,1)) -> 1 | V15: 1 | W15: 0 | X15: 0 | Y15: 13030.06879 | Z15: =STDEV(models1!J175,models1!Y175) -> 303.7801443 | AB15: 13 | AC15: 3 | AD15: 12 | AE15: 5 | AF15: 16 | AG15: 4 | AH15: 14 | AI15: 5 | AJ15: 13 | AK15: 1 | AL15: 10000 | AN15: 5.540758071 | AO15: 5.770615219 | AP15: 0.2298571476
A16: O15 | B16: 67 | C16: 33 | D16: 77 | E16: 57 | F16: 33 | G16: 27 | I16: O15 | J16: 12 | K16: 13 | L16: 13 | M16: 8 | N16: 13 | O16: 27000 | P16: =IF(models1!J176*models1!Y176<=0,"valid","invalid") -> valid | Q16: =models1!G176 -> 24225.3 | R16: =models1!V176 -> 76520.2 | S16: 50372.75 | T16: =models1!AO176 -> 41809.1 | U16: =IF(MAX(Q16:R16)<T16,0,IF(MIN(Q16:R16)>T16,0,1)) -> 1 | V16: 1 | W16: 0 | X16: 0 | Y16: 6055.414987 | Z16: =STDEV(models1!J176,models1!Y176) -> 136.9595124 | AB16: 12 | AC16: 13 | AD16: 13 | AE16: 8 | AF16: 13 | AG16: 6 | AH16: 4 | AI16: 4 | AJ16: 9 | AK16: 4 | AL16: 27000 | AN16: 2.167948339 | AO16: 2.19089023 | AP16: 0.02294189115
A17: O16 | B17: 26 | C17: 56 | D17: 61 | E17: 14 | F17: 36 | G17: 86 | I17: O16 | J17: =RANK(B17,B$2:B$17,0) -> 13 | K17: 10 | L17: 7 | M17: 16 | N17: 12 | O17: 86000 | P17: =IF(models1!J177*models1!Y177<=0,"valid","invalid") -> invalid | Q17: =models1!G177 -> 53394.6 | R17: =models1!V177 -> 74868.7 | S17: 64131.65 | T17: =models1!AO177 -> 62962.5 | U17: =IF(MAX(Q17:R17)<T17,0,IF(MIN(Q17:R17)>T17,0,1)) -> 1 | V17: 0 | W17: 0 | X17: 1 | Y17: 826.7138932 | Z17: =STDEV(models1!J177,models1!Y177) -> 17.65645633 | AB17: 13 | AC17: 10 | AD17: 7 | AE17: 16 | AF17: 12 | AG17: 4 | AH17: 7 | AI17: 9 | AJ17: 1 | AK17: 5 | AL17: 86000 | AN17: 3.361547263 | AO17: 3.033150178 | AP17: 0.3283970852
A18: correlation | B18: =CORREL(B2:B16,$G$2:$G$16) -> -0.1565753246 | C18: =CORREL(C2:C16,$G$2:$G$16) -> 0.09861716105 | D18: -0.2697054026 | E18: -0.2150455432 | F18: 0.2244516654 | G18: 1 | I18: O16(2) | J18: =MAX(J2:J16) -> 16 | K18: =INT(QUARTILE(K2:K16,3)) -> 12 | L18: =MEDIAN(L2:L16) -> 8 | M18: =INT(QUARTILE(M2:M16,1)) -> 5 | N18: =MIN(N2:N16) -> 1 | O18: =O17 -> 86000 | P18: ratio | Q18: correlation | R18: correlation | T18: correlation | AB18: direct | AC18: direct | AD18: direct | AE18: direct | AF18: direct | AG18: inverse | AH18: inverse | AI18: inverse | AJ18: inverse | AK18: inverse | AL18: double | AM18: max | AN18: =MAX(AN2:AN17) -> 5.813776741 | AO18: =MAX(AO2:AO17) -> 5.770615219 | AP18: =MAX(AP2:AP17) -> 0.4447143565
A19: direction | B19: =IF(B18>0,0,1) -> 1 | C19: =IF(C18>0,0,1) -> 0 | D19: 1 | E19: 1 | F19: 0 | G19: Y | P19: =COUNTIF($P$2:$P$17,"valid")/16 -> 0.375 | Q19: =CORREL(Q2:Q17,$O$2:$O$17) -> 0.7844797942 | R19: =CORREL(R2:R17,$O$2:$O$17) -> 0.311019924 | T19: =CORREL(T2:T17,$O$2:$O$17) -> 0.8964315164 | U19: =SUM(U2:U17) -> 8 | W19: =SUM(W2:W17) -> 0 | X19: =SUM(X2:X17) -> 2 | Y19: =SUM(Y2:Y17) -> 101434.5385 | AM19: min | AN19: =MIN(AN2:AN17) -> 2.167948339 | AO19: =MIN(AO2:AO17) -> 2.19089023 | AP19: =MIN(AP2:AP17) -> 8.881784197e-16
AM20: avg | AN20: =AVERAGE(AN2:AN17) -> 4.381773213 | AO20: =AVERAGE(AO2:AO17) -> 4.328489807 | AP20: =AVERAGE(AP2:AP17) -> 0.2210366643
A21: antagonism! | I21: O* | O21: correlation | AM21: stddev | AN21: =STDEV(AN2:AN17) -> 1.191665953 | AO21: =STDEV(AO2:AO17) -> 1.197965384 | AP21: =STDEV(AP2:AP17) -> 0.1429908232
I22: 1 | AM22: median | AN22: =MEDIAN(AN2:AN17) -> 4.404425465 | AO22: =MEDIAN(AO2:AO17) -> 4.379806714 | AP22: 0.2311154332
A23: Consistency-tasks | I23: 1 | O23: =CORREL($B$2:$G$2,B3:G3) -> -0.6334167889
A24: Y=between1 | I24: 1 | O24: -0.3383046835
A25: Y=between2 | I25: 1 | O25: -0.7111030072
A26: Y=validity1 | I26: 1 | O26: -0.2247877201
A27: Y=validity2 | I27: 1 | O27: -0.1053539083
A28: Y=validity-ratio | I28: 1 | O28: -0.2054974828
A29: Xi=model-characteristics | I29: 1 | O29: 0.03506397751
I30: 1 | O30: 0.1183956831
I31: 1 | O31: 0.3755682154
I32: 1 | O32: -0.2847486617
I33: 1 | O33: 0.5764194699
I34: 1 | O34: -0.6249865408
I35: 1 | O35: 0.6975233296
I36: 1 | O36: 0.6615989333
I37: 1 | O37: -0.5207166926
I38: =I22+1 -> 2 | O38: =CORREL($B$3:$G$3,B2:G2) -> -0.6334167889
I39: =I23+1 -> 2
I40: 2 | O40: =CORREL($B$3:$G$3,B4:G4) -> 0.2311988948
I41: 2 | O41: 0.43784297
I42: 2 | O42: -0.05755272681
I43: 2 | O43: 0.1464428288
I44: 2 | O44: 0.5532054905
I45: 2 | O45: -0.5425121378
I46: 2 | O46: -0.8333797025
I47: 2 | O47: -0.08533896137
I48: 2 | O48: 0.8826765059
I49: 2 | O49: -0.829382796
I50: 2 | O50: -0.001859422972
I51: 2 | O51: -0.3177207088
I52: 2 | O52: -0.6828357629
I53: 2 | O53: 0.8406668364
I54: 3 | O54: =CORREL($B$4:$G$4,B2:G2) -> -0.3383046835
I55: 3 | O55: =CORREL($B$4:$G$4,B3:G3) -> 0.2311988948
I56: 3
I57: 3 | O57: 0.6076837343
I58: 3 | O58: -0.5646051656
I59: 3 | O59: 0.3992876199
I60: 3 | O60: -0.6135196606
I61: 3 | O61: -0.4577471055
I62: 3 | O62: -0.1253958496
I63: 3 | O63: -0.1509496585
I64: 3 | O64: -0.04392897387
I65: 3 | O65: 0.2838516351
I66: 3 | O66: 0.591309679
I67: 3 | O67: -0.7357669907
I68: 3 | O68: -0.1539460087
I69: 3 | O69: -0.02012065813
I70: 4 | O70: =CORREL($B$5:$G$5,B2:G2) -> -0.7111030072
I71: 4 | O71: =CORREL($B$5:$G$5,B3:G3) -> 0.43784297
I72: 4 | O72: 0.6076837343
I73: 4
I74: 4 | O74: 0.2609546083
I75: 4 | O75: 0.04719609217
I76: 4 | O76: -0.3112249002
I77: 4 | O77: -0.06313607902
I78: 4 | O78: -0.1036903922
I79: 4 | O79: -0.2133517176
I80: 4 | O80: 0.1658443233
I81: 4 | O81: -0.1237881635
I82: 4 | O82: 0.5883042521
I83: 4 | O83: -0.8897093368
I84: 4 | O84: -0.4413202112
I85: 4 | O85: 0.4997243373
I86: 5 | O86: =CORREL($B$6:$G$6,B2:G2) -> -0.2247877201
I87: 5 | O87: =CORREL($B$6:$G$6,B3:G3) -> -0.05755272681
I88: 5 | O88: -0.5646051656
I89: 5 | O89: 0.2609546083
I90: 5
I91: 5 | O91: -0.2627412341
I92: 5 | O92: 0.1925579112
I93: 5 | O93: 0.7278505635
I94: 5 | O94: 0.2321506205
I95: 5 | O95: 0.1507547541
I96: 5 | O96: -0.06153123344
I97: 5 | O97: -0.2811819029
I98: 5 | O98: 0.05326041696
I99: 5 | O99: -0.09906891832
I100: 5 | O100: -0.2679238823
I101: 5 | O101: 0.2729548151
I102: 6 | O102: =CORREL($B$7:$G$7,B2:G2) -> -0.1053539083
I103: =I87+1 -> 6 | O103: =CORREL($B$7:$G$7,B3:G3) -> 0.1464428288
I104: 6 | O104: 0.3992876199
I105: 6 | O105: 0.04719609217
I106: 6 | O106: -0.2627412341
I107: 6
I108: 6 | O108: -0.2916531228
I109: 6 | O109: 0.144979258
I110: 6 | O110: -0.2584173304
I111: 6 | O111: 0.7057995709
I112: 6 | O112: -0.1762692388
I113: 6 | O113: -0.07766306655
I114: 6 | O114: 0.5413824609
I115: 6 | O115: -0.4465042926
I116: 6 | O116: -0.6388754791
I117: 6 | O117: -0.3402198757
I118: 7 | O118: =CORREL($B$8:$G$8,B2:G2) -> -0.2054974828
I119: 7 | O119: =CORREL($B$8:$G$8,B3:G3) -> 0.5532054905
I120: 7 | O120: -0.6135196606
I121: 7 | O121: -0.3112249002
I122: 7 | O122: 0.1925579112
I123: 7 | O123: -0.2916531228
I124: 7
I125: 7 | O125: -0.2018896339
I126: 7 | O126: -0.4776851246
I127: 7 | O127: -0.1549803274
I128: 7 | O128: 0.7076161651
I129: 7 | O129: -0.8394970371
I130: 7 | O130: -0.5278286292
I131: 7 | O131: 0.4880507346
I132: 7 | O132: -0.2493925094
I133: 7 | O133: 0.5858193773
I134: 8 | O134: =CORREL($B$9:$G$9,B2:G2) -> 0.03506397751
I135: 8 | O135: =CORREL($B$9:$G$9,B3:G3) -> -0.5425121378
I136: 8 | O136: -0.4577471055
I137: 8 | O137: -0.06313607902
I138: 8 | O138: 0.7278505635
I139: 8 | O139: 0.144979258
I140: 8 | O140: -0.2018896339
I141: 8
I142: 8 | O142: 0.6139726642
I143: 8 | O143: 0.4013929958
I144: 8 | O144: -0.6569958187
I145: 8 | O145: 0.1373339596
I146: 8 | O146: 0.3440600957
I147: 8 | O147: -0.08061649007
I148: 8 | O148: -0.1436359685
I149: 8 | O149: -0.4346636968
I150: 9 | O150: =CORREL($B$10:$G$10,B2:G2) -> 0.1183956831
I151: 9 | O151: =CORREL($B$10:$G$10,B3:G3) -> -0.8333797025
I152: 9 | O152: -0.1253958496
I153: 9 | O153: -0.1036903922
I154: 9 | O154: 0.2321506205
I155: 9 | O155: -0.2584173304
I156: 9 | O156: -0.4776851246
I157: 9 | O157: 0.6139726642
I158: 9
I159: 9 | O159: -0.2773183324
I160: 9 | O160: -0.877544478
I161: 9 | O161: 0.638684787
I162: 9 | O162: 0.3429791828
I163: 9 | O163: 0.01287720746
I164: 9 | O164: 0.5021611771
I165: 9 | O165: -0.6560294457
I166: 10 | O166: =CORREL($B$11:$G$11,B2:G2) -> 0.3755682154
I167: =I151+1 -> 10 | O167: =CORREL($B$11:$G$11,B3:G3) -> -0.08533896137
I168: 10 | O168: -0.1509496585
I169: 10 | O169: -0.2133517176
I170: 10 | O170: 0.1507547541
I171: 10 | O171: 0.7057995709
I172: 10 | O172: -0.1549803274
I173: 10 | O173: 0.4013929958
I174: 10 | O174: -0.2773183324
I175: 10
I176: 10 | O176: -0.1345065467
I177: 10 | O177: -0.02697103817
I178: 10 | O178: 0.01638597362
I179: 10 | O179: -0.01696036016
I180: 10 | O180: -0.4175988956
I181: 10 | O181: -0.2838507548
I182: 11 | O182: =CORREL($B$12:$G$12,B2:G2) -> -0.2847486617
I183: 11 | O183: =CORREL($B$12:$G$12,B3:G3) -> 0.8826765059
I184: 11 | O184: -0.04392897387
I185: 11 | O185: 0.1658443233
I186: 11 | O186: -0.06153123344
I187: 11 | O187: -0.1762692388
I188: 11 | O188: 0.7076161651
I189: 11 | O189: -0.6569958187
I190: 11 | O190: -0.877544478
I191: 11 | O191: -0.1345065467
I192: 11
I193: 11 | O193: -0.7542994589
I194: 11 | O194: -0.4641991685
I195: 11 | O195: 0.0936109225
I196: 11 | O196: -0.3500023521
I197: 11 | O197: 0.8894530038
I198: 12 | O198: =CORREL($B$13:$G$13,B2:G2) -> 0.5764194699
I199: 12 | O199: =CORREL($B$13:$G$13,B3:G3) -> -0.829382796
I200: 12 | O200: 0.2838516351
... 84 more rows

Sheet basics1
A1: raw | B1: A1 | C1: A2 | D1: A3 | E1: A4 | F1: A5 | G1: A6=Y | I1: rank | J1: =B1 -> A1 | K1: A2 | L1: A3 | M1: A4 | N1: A5 | O1: =G1&"'" -> A6=Y' | P1: validity0 | Q1: direkt | R1: inverz | S1: átlag | T1: double | U1: between1 | V1: validity1 | W1: invalid_between | X1: valid_extrem | Y1: between2 | Z1: validity2 | AB1: =models1!B7 -> X(A1) | AC1: =models1!C7 -> X(A2) | AD1: =models1!D7 -> X(A3) | AE1: =models1!E7 -> X(A4) | AF1: =models1!F7 -> X(A5) | AG1: =AB1 -> X(A1) | AH1: =AC1 -> X(A2) | AI1: X(A3) | AJ1: X(A4) | AK1: X(A5) | AL1: =O1 -> A6=Y' | AN1: direct_stddev | AO1: inverse_stddev | AP1: delta
A2: O1 | B2: 95 | C2: 59 | D2: 56 | E2: 11 | F2: 55 | G2: 61 | I2: =A2 -> O1 | J2: =RANK(B2,B$2:B$17,B$19) -> 1 | K2: =RANK(C2,C$2:C$17,C$19) -> 9 | L2: =RANK(D2,D$2:D$17,D$19) -> 10 | M2: =RANK(E2,E$2:E$17,E$19) -> 16 | N2: =RANK(F2,F$2:F$17,F$19) -> 6 | O2: =G2*1000 -> 61000 | P2: =IF(models1!J62*models1!Y62<=0,"valid","invalid") -> invalid | Q2: =models1!G62 -> 62567.7 | R2: =models1!V62 -> 67794.2 | S2: =AVERAGE(Q2:R2) -> 65180.95 | T2: =models1!AO62 -> 61250.2 | U2: =IF(MAX(Q2:R2)<T2,0,IF(MIN(Q2:R2)>T2,0,1)) -> 0 | V2: =IF(P2="valid",1,) -> 0 | W2: =IF(V2=1,IF(U2=0,1,0),0) -> 0 | X2: =IF(V2=0,IF(U2=1,1,0),0) -> 0 | Y2: =STDEV(S2:T2) -> 2779.45998 | Z2: =STDEV(models1!J62,models1!Y62) -> 6.059905115 | AB2: =J2 -> 1 | AC2: =K2 -> 9 | AD2: =L2 -> 10 | AE2: =M2 -> 16 | AF2: =N2 -> 6 | AG2: =RANK(B2,B$2:B$17,1) -> 16 | AH2: =RANK(C2,C$2:C$17,1) -> 8 | AI2: =RANK(D2,D$2:D$17,1) -> 7 | AJ2: =RANK(E2,E$2:E$17,1) -> 1 | AK2: =RANK(F2,F$2:F$17,1) -> 10 | AL2: 61000 | AN2: =STDEV(AB2:AF2) -> 5.504543578 | AO2: =STDEV(AG2:AK2) -> 5.412947441 | AP2: =ABS(AO2-AN2) -> 0.09159613672
A3: O2 | B3: 11 | C3: 86 | D3: 30 | E3: 23 | F3: 80 | G3: 74 | I3: =A3 -> O2 | J3: =RANK(B3,B$2:B$17,B$19) -> 14 | K3: 3 | L3: 14 | M3: 12 | N3: 3 | O3: =G3*1000 -> 74000 | P3: =IF(models1!J63*models1!Y63<=0,"valid","invalid") -> valid | Q3: =models1!G63 -> 75901.8 | R3: =models1!V63 -> 64460 | S3: =AVERAGE(Q3:R3) -> 70180.9 | T3: =models1!AO63 -> 74303.5 | U3: 1 | V3: 1 | W3: =IF(V3=1,IF(U3=0,1,0),0) -> 0 | X3: =IF(V3=0,IF(U3=1,1,0),0) -> 0 | Y3: =STDEV(S3:T3) -> 2915.118416 | Z3: =STDEV(models1!J63,models1!Y63) -> 10.93187084 | AB3: =J3 -> 14 | AC3: 3 | AD3: 14 | AE3: 12 | AF3: 3 | AG3: =RANK(B3,B$2:B$17,1) -> 3 | AH3: 14 | AI3: 3 | AJ3: 5 | AK3: 14 | AL3: 74000 | AN3: =STDEV(AB3:AF3) -> 5.718391382 | AO3: =STDEV(AG3:AK3) -> 5.718391382 | AP3: =ABS(AO3-AN3) -> 0
A4: O3 | B4: 66 | C4: 45 | D4: 93 | E4: 20 | F4: 76 | G4: 77 | I4: O3 | J4: 5 | K4: 14 | L4: 3 | M4: 15 | N4: 4 | O4: 77000 | P4: =IF(models1!J64*models1!Y64<=0,"valid","invalid") -> invalid | Q4: =models1!G64 -> 78978.9 | R4: =models1!V64 -> 79463.7 | S4: 79221.3 | T4: =models1!AO64 -> 77315.8 | U4: 0 | V4: 0 | W4: 0 | X4: 0 | Y4: 1347.391972 | Z4: =STDEV(models1!J64,models1!Y64) -> 0.4454772721 | AB4: 5 | AC4: 14 | AD4: 3 | AE4: 15 | AF4: 4 | AG4: 11 | AH4: 3 | AI4: 13 | AJ4: 2 | AK4: 13 | AL4: 77000 | AN4: 5.805170109 | AO4: 5.458937626 | AP4: 0.3462324839
A5: O4 | B5: 93 | C5: 88 | D5: 69 | E5: 66 | F5: 21 | G5: 86 | I5: O4 | J5: 2 | K5: 2 | L5: 7 | M5: 6 | N5: 14 | O5: 86000 | P5: =IF(models1!J65*models1!Y65<=0,"valid","invalid") -> invalid | Q5: =models1!G65 -> 71285.7 | R5: =models1!V65 -> 57236.1 | S5: 64260.9 | T5: =models1!AO65 -> 86352.7 | U5: 0 | V5: 0 | W5: 0 | X5: 0 | Y5: 15621.26159 | Z5: =STDEV(models1!J65,models1!Y65) -> 11.5541248 | AB5: 2 | AC5: 2 | AD5: 7 | AE5: 6 | AF5: 14 | AG5: 15 | AH5: 15 | AI5: 10 | AJ5: 11 | AK5: 3 | AL5: 86000 | AN5: 4.91934955 | AO5: 4.91934955 | AP5: 1.776356839e-15
A6: O5 | B6: 48 | C6: 70 | D6: 99 | E6: 37 | F6: 29 | G6: 79 | I6: O5 | J6: 10 | K6: 5 | L6: 1 | M6: 9 | N6: 12 | O6: 79000 | P6: =IF(models1!J66*models1!Y66<=0,"valid","invalid") -> valid | Q6: =models1!G66 -> 81030.3 | R6: =models1!V66 -> 53346.2 | S6: 67188.25 | T6: =models1!AO66 -> 79324 | U6: 1 | V6: 1 | W6: 0 | X6: 0 | Y6: 8581.27112 | Z6: =STDEV(models1!J66,models1!Y66) -> 24.77702161 | AB6: 10 | AC6: 5 | AD6: 1 | AE6: 9 | AF6: 12 | AG6: 7 | AH6: 12 | AI6: 16 | AJ6: 8 | AK6: 5 | AL6: 79000 | AN6: 4.393176527 | AO6: 4.393176527 | AP6: 0
A7: O6 | B7: 90 | C7: 58 | D7: 93 | E7: 22 | F7: 49 | G7: 38 | I7: O6 | J7: 3 | K7: 10 | L7: 3 | M7: 13 | N7: 9 | O7: 38000 | P7: =IF(models1!J67*models1!Y67<=0,"valid","invalid") -> invalid | Q7: =models1!G67 -> 40686 | R7: =models1!V67 -> 43899.5 | S7: 42292.75 | T7: =models1!AO67 -> 38155.9 | U7: 0 | V7: 0 | W7: 0 | X7: 0 | Y7: 2925.194688 | Z7: =STDEV(models1!J67,models1!Y67) -> 5.982123369 | AB7: 3 | AC7: 10 | AD7: 3 | AE7: 13 | AF7: 9 | AG7: 14 | AH7: 7 | AI7: 13 | AJ7: 3 | AK7: 8 | AL7: 38000 | AN7: 4.449719092 | AO7: 4.527692569 | AP7: 0.07797347681
A8: O7 | B8: 66 | C8: 66 | D8: 48 | E8: 34 | F8: 52 | G8: 80 | I8: O7 | J8: 5 | K8: 6 | L8: 12 | M8: 10 | N8: 8 | O8: 80000 | P8: =IF(models1!J68*models1!Y68<=0,"valid","invalid") -> invalid | Q8: =models1!G68 -> 78978.9 | R8: =models1!V68 -> 53901.9 | S8: 66440.4 | T8: =models1!AO68 -> 80328.1 | U8: 0 | V8: 0 | W8: 0 | X8: 0 | Y8: 9820.086845 | Z8: =STDEV(models1!J68,models1!Y68) -> 22.16072652 | AB8: 5 | AC8: 6 | AD8: 12 | AE8: 10 | AF8: 8 | AG8: 11 | AH8: 11 | AI8: 5 | AJ8: 7 | AK8: 9 | AL8: 80000 | AN8: 2.863564213 | AO8: 2.607680962 | AP8: 0.2558832506
A9: O8 | B9: 10 | C9: 61 | D9: 86 | E9: 93 | F9: 33 | G9: 25 | I9: O8 | J9: 15 | K9: 7 | L9: 6 | M9: 1 | N9: 11 | O9: 25000 | P9: =IF(models1!J69*models1!Y69<=0,"valid","invalid") -> invalid | Q9: =models1!G69 -> 25813.3 | R9: =models1!V69 -> 27784.5 | S9: 26798.9 | T9: =models1!AO69 -> 25102.5 | U9: 0 | V9: 0 | W9: 0 | X9: 0 | Y9: 1199.535944 | Z9: =STDEV(models1!J69,models1!Y69) -> 5.579072504 | AB9: 15 | AC9: 7 | AD9: 6 | AE9: 1 | AF9: 11 | AG9: 1 | AH9: 9 | AI9: 11 | AJ9: 16 | AK9: 6 | AL9: 25000 | AN9: 5.291502622 | AO9: 5.594640292 | AP9: 0.3031376702
A10: O9 | B10: 29 | C10: 47 | D10: 42 | E10: 91 | F10: 66 | G10: 56 | I10: O9 | J10: 12 | K10: 12 | L10: 13 | M10: 2 | N10: 5 | O10: 56000 | P10: =IF(models1!J70*models1!Y70<=0,"valid","invalid") -> invalid | Q10: =models1!G70 -> 57439.2 | R10: =models1!V70 -> 57236.1 | S10: 57337.65 | T10: =models1!AO70 -> 56229.7 | U10: 0 | V10: 0 | W10: 0 | X10: 0 | Y10: 783.4389582 | Z10: =STDEV(models1!J70,models1!Y70) -> 0.2545584412 | AB10: 12 | AC10: 12 | AD10: 13 | AE10: 2 | AF10: 5 | AG10: 5 | AH10: 4 | AI10: 4 | AJ10: 15 | AK10: 12 | AL10: 56000 | AN10: 4.969909456 | AO10: 5.14781507 | AP10: 0.1779056146
A11: O10 | B11: 63 | C11: 92 | D11: 96 | E11: 40 | F11: 22 | G11: 27 | I11: O10 | J11: 7 | K11: 1 | L11: 2 | M11: 8 | N11: 13 | O11: 27000 | P11: =IF(models1!J71*models1!Y71<=0,"valid","invalid") -> invalid | Q11: =models1!G71 -> 57951.6 | R11: =models1!V71 -> 35008.5 | S11: 46480.05 | T11: =models1!AO71 -> 37653.8 | U11: 1 | V11: 0 | W11: 0 | X11: 1 | Y11: 6241.101227 | Z11: =STDEV(models1!J71,models1!Y71) -> 60.08993427 | AB11: 7 | AC11: 1 | AD11: 2 | AE11: 8 | AF11: 13 | AG11: 10 | AH11: 16 | AI11: 15 | AJ11: 9 | AK11: 4 | AL11: 27000 | AN11: 4.868264578 | AO11: 4.868264578 | AP11: 1.776356839e-15
A12: O11 | B12: 55 | C12: 61 | D12: 11 | E12: 51 | F12: 34 | G12: 17 | I12: O11 | J12: 8 | K12: 7 | L12: 15 | M12: 7 | N12: 10 | O12: 17000 | P12: =IF(models1!J72*models1!Y72<=0,"valid","invalid") -> invalid | Q12: =models1!G72 -> 18120.5 | R12: =models1!V72 -> 49456.4 | S12: 33788.45 | T12: =models1!AO72 -> 17069.7 | U12: 0 | V12: 0 | W12: 0 | X12: 0 | Y12: 11821.9415 | Z12: =STDEV(models1!J72,models1!Y72) -> 130.340993 | AB12: 8 | AC12: 7 | AD12: 15 | AE12: 7 | AF12: 10 | AG12: 8 | AH12: 9 | AI12: 2 | AJ12: 10 | AK12: 7 | AL12: 17000 | AN12: 3.361547263 | AO12: 3.1144823 | AP12: 0.2470649623
A13: O12 | B13: 55 | C13: 80 | D13: 90 | E13: 88 | F13: 17 | G13: 95 | I13: O12 | J13: 8 | K13: 4 | L13: 5 | M13: 3 | N13: 15 | O13: 95000 | P13: =IF(models1!J73*models1!Y73<=0,"valid","invalid") -> invalid | Q13: =models1!G73 -> 68208.6 | R13: =models1!V73 -> 62237.3 | S13: 65222.95 | T13: =models1!AO73 -> 82336.3 | U13: 0 | V13: 0 | W13: 0 | X13: 0 | Y13: 12100.96583 | Z13: =STDEV(models1!J73,models1!Y73) -> 4.447701654 | AB13: 8 | AC13: 4 | AD13: 5 | AE13: 3 | AF13: 15 | AG13: 8 | AH13: 13 | AI13: 12 | AJ13: 14 | AK13: 2 | AL13: 95000 | AN13: 4.847679857 | AO13: 4.91934955 | AP13: 0.07166969308
A14: O13 | B14: 23 | C14: 48 | D14: 4 | E14: 24 | F14: 55 | G14: 47 | I14: O13 | J14: 13 | K14: 11 | L14: 16 | M14: 11 | N14: 6 | O14: 47000 | P14: =IF(models1!J74*models1!Y74<=0,"valid","invalid") -> invalid | Q14: =models1!G74 -> 47182.2 | R14: =models1!V74 -> 70572.6 | S14: 58877.4 | T14: =models1!AO74 -> 47192.8 | U14: 1 | V14: 0 | W14: 0 | X14: 1 | Y14: 8262.259895 | Z14: =STDEV(models1!J74,models1!Y74) -> 35.18563343 | AB14: 13 | AC14: 11 | AD14: 16 | AE14: 11 | AF14: 6 | AG14: 4 | AH14: 6 | AI14: 1 | AJ14: 6 | AK14: 10 | AL14: 47000 | AN14: 3.646916506 | AO14: 3.286335345 | AP14: 0.3605811607
A15: O14 | B15: 38 | C15: 25 | D15: 53 | E15: 22 | F15: 11 | G15: 22 | I15: O14 | J15: 11 | K15: 16 | L15: 11 | M15: 13 | N15: 16 | O15: 22000 | P15: =IF(models1!J75*models1!Y75<=0,"valid","invalid") -> valid | Q15: =models1!G75 -> 16411.2 | R15: =models1!V75 -> 82797.8 | S15: 49604.5 | T15: =models1!AO75 -> 22090.2 | U15: 1 | V15: 1 | W15: 0 | X15: 0 | Y15: 19455.54811 | Z15: =STDEV(models1!J75,models1!Y75) -> 213.3694712 | AB15: 11 | AC15: 16 | AD15: 11 | AE15: 13 | AF15: 16 | AG15: 6 | AH15: 1 | AI15: 6 | AJ15: 3 | AK15: 1 | AL15: 22000 | AN15: 2.50998008 | AO15: 2.50998008 | AP15: 2.220446049e-15
A16: O15 | B16: 86 | C16: 33 | D16: 66 | E16: 81 | F16: 87 | G16: 73 | I16: O15 | J16: 4 | K16: 15 | L16: 8 | M16: 4 | N16: 1 | O16: 73000 | P16: =IF(models1!J76*models1!Y76<=0,"valid","invalid") -> valid | Q16: =models1!G76 -> 74876.1 | R16: =models1!V76 -> 52790.6 | S16: 63833.35 | T16: =models1!AO76 -> 73299.4 | U16: 1 | V16: 1 | W16: 0 | X16: 0 | Y16: 6693.508146 | Z16: =STDEV(models1!J76,models1!Y76) -> 21.38998013 | AB16: 4 | AC16: 15 | AD16: 8 | AE16: 4 | AF16: 1 | AG16: 13 | AH16: 2 | AI16: 8 | AJ16: 13 | AK16: 15 | AL16: 73000 | AN16: 5.412947441 | AO16: 5.263078947 | AP16: 0.1498684943
A17: O16 | B17: =MIN(B2:B16) -> 10 | C17: =INT(QUARTILE(C2:C16,1)) -> 47 | D17: =MEDIAN(D2:D16) -> 66 | E17: =INT(QUARTILE(E2:E16,3)) -> 73 | F17: =MAX(F2:F16) -> 87 | G17: =MEDIAN(G2:G16) -> 61 | I17: O16 | J17: =RANK(B17,B$2:B$17,0) -> 15 | K17: =RANK(C17,C$2:C$17,0) -> 12 | L17: =RANK(D17,D$2:D$17,0) -> 8 | M17: =RANK(E17,E$2:E$17,0) -> 5 | N17: =RANK(F17,F$2:F$17,0) -> 1 | O17: 61000 | P17: =IF(models1!J77*models1!Y77<=0,"valid","invalid") -> valid | Q17: =models1!G77 -> 62567.7 | R17: =models1!V77 -> 60014.5 | S17: 61291.1 | T17: =models1!AO77 -> 59995.1 | U17: 0 | V17: 1 | W17: 1 | X17: 0 | Y17: 916.4103884 | Z17: =STDEV(models1!J77,models1!Y77) -> 2.962777413 | AB17: 15 | AC17: 12 | AD17: 8 | AE17: 5 | AF17: 1 | AG17: 1 | AH17: 4 | AI17: 8 | AJ17: 12 | AK17: 15 | AL17: 61000 | AN17: 5.540758071 | AO17: 5.700877125 | AP17: 0.1601190546
A18: correlation | B18: =CORREL(B2:B16,$G$2:$G$16) -> 0.2683518236 | C18: =CORREL(C2:C16,$G$2:$G$16) -> 0.276904142 | D18: 0.2163074551 | E18: 0.1086314981 | F18: 0.2813797607 | G18: 1 | I18: O16(2) | J18: =MAX(J2:J16) -> 15 | K18: =INT(QUARTILE(K2:K16,3)) -> 11 | L18: =MEDIAN(L2:L16) -> 8 | M18: =INT(QUARTILE(M2:M16,1)) -> 5 | N18: =MIN(N2:N16) -> 1 | O18: =O17 -> 61000 | P18: ratio | Q18: correlation | R18: correlation | T18: correlation | AB18: direct | AC18: direct | AD18: direct | AE18: direct | AF18: direct | AG18: inverse | AH18: inverse | AI18: inverse | AJ18: inverse | AK18: inverse | AL18: double | AM18: max | AN18: =MAX(AN2:AN17) -> 5.805170109 | AO18: =MAX(AO2:AO17) -> 5.718391382 | AP18: =MAX(AP2:AP17) -> 0.3605811607
A19: direction | B19: =IF(B18>0,0,1) -> 0 | C19: =IF(C18>0,0,1) -> 0 | D19: 0 | E19: 0 | F19: 0 | G19: Y | P19: =COUNTIF($P$2:$P$17,"valid")/16 -> 0.3125 | Q19: =CORREL(Q2:Q17,$O$2:$O$17) -> 0.8913059545 | R19: =CORREL(R2:R17,$O$2:$O$17) -> 0.3142619122 | T19: =CORREL(T2:T17,$O$2:$O$17) -> 0.986994828 | U19: =SUM(U2:U17) -> 6 | V19: =SUM(V2:V17)/16 -> 0.3125 | W19: =SUM(W2:W17) -> 1 | X19: =SUM(X2:X17) -> 2 | Y19: =SUM(Y2:Y17) -> 111464.4946 | AM19: min | AN19: =MIN(AN2:AN17) -> 2.50998008 | AO19: =MIN(AO2:AO17) -> 2.50998008 | AP19: =MIN(AP2:AP17) -> 0
AB20: check | AC20: check | AD20: check | AE20: check | AF20: check | AM20: avg | AN20: =AVERAGE(AN2:AN17) -> 4.63146377 | AO20: =AVERAGE(AO2:AO17) -> 4.590187459 | AP20: =AVERAGE(AP2:AP17) -> 0.1401269999
A21: antagonism! | I21: O* | O21: correlation | AB21: =AB2+AG2 -> 17 | AC21: =AC2+AH2 -> 17 | AD21: 17 | AE21: 17 | AF21: 16 | AM21: stddev | AN21: =STDEV(AN2:AN17) -> 1.026082956 | AO21: =STDEV(AO2:AO17) -> 1.100995472 | AP21: =STDEV(AP2:AP17) -> 0.1299978499
I22: 1 | AB22: =AB3+AG3 -> 17 | AC22: 17 | AD22: 17 | AE22: 17 | AF22: 17 | AM22: median | AN22: =MEDIAN(AN2:AN17) -> 4.893807064 | AO22: =MEDIAN(AO2:AO17) -> 4.91934955 | AP22: 0.1207323155
A23: Consistency-tasks | I23: 1 | O23: =CORREL($B$2:$G$2,B3:G3) -> -0.02466785343 | AB23: =AB4+AG4 -> 16 | AC23: 17 | AD23: 16 | AE23: 17 | AF23: 17
A24: Y=between1 | I24: 1 | O24: 0.5849851633 | AB24: =AB5+AG5 -> 17 | AC24: 17 | AD24: 17 | AE24: 17 | AF24: 17
A25: Y=between2 | I25: 1 | O25: 0.3544832824 | AB25: =AB6+AG6 -> 17 | AC25: 17 | AD25: 17 | AE25: 17 | AF25: 17
A26: Y=validity1 | I26: 1 | O26: 0.2008499818 | AB26: =AB7+AG7 -> 17 | AC26: 17 | AD26: 16 | AE26: 16 | AF26: 17
A27: Y=validity2 | I27: 1 | O27: 0.731359266 | AB27: =AB8+AG8 -> 16 | AC27: 17 | AD27: 17 | AE27: 17 | AF27: 17
A28: Y=validity-ratio | I28: 1 | O28: 0.7039252912 | AB28: =AB9+AG9 -> 16 | AC28: 16 | AD28: 17 | AE28: 17 | AF28: 17
A29: Xi=model-characteristics | I29: 1 | O29: -0.7857339483 | AB29: =AB10+AG10 -> 17 | AC29: 16 | AD29: 17 | AE29: 17 | AF29: 17
I30: 1 | O30: -0.9229681149 | AB30: =AB11+AG11 -> 17 | AC30: 17 | AD30: 17 | AE30: 17 | AF30: 17
I31: 1 | O31: 0.2293738369 | AB31: =AB12+AG12 -> 16 | AC31: 16 | AD31: 17 | AE31: 17 | AF31: 17
I32: 1 | O32: 0.01643146106 | AB32: =AB13+AG13 -> 16 | AC32: 17 | AD32: 17 | AE32: 17 | AF32: 17
I33: 1 | O33: -0.2966067319 | AB33: =AB14+AG14 -> 17 | AC33: 17 | AD33: 17 | AE33: 17 | AF33: 16
I34: 1 | O34: 0.04093969935 | AB34: =AB15+AG15 -> 17 | AC34: 17 | AD34: 17 | AE34: 16 | AF34: 17
I35: 1 | O35: 0.3221652854 | AB35: =AB16+AG16 -> 17 | AC35: 17 | AD35: 16 | AE35: 17 | AF35: 16
I36: 1 | O36: 0.005530940489 | AB36: =AB17+AG17 -> 16 | AC36: 16 | AD36: 16 | AE36: 17 | AF36: 16
I37: 1 | O37: -0.7262062397
I38: =I22+1 -> 2 | O38: =CORREL($B$3:$G$3,B2:G2) -> -0.02466785343
I39: =I23+1 -> 2
I40: 2 | O40: =CORREL($B$3:$G$3,B4:G4) -> 0.1209321375
I41: 2 | O41: -0.2765941619
I42: 2 | O42: 0.04375299357
I43: 2 | O43: -0.3698301357
I44: 2 | O44: 0.438140955
I45: 2 | O45: -0.186053038
I46: 2 | O46: 0.1034438722
I47: 2 | O47: -0.2004591611
I48: 2 | O48: -0.07887668223
I49: 2 | O49: -0.1896472109
I50: 2 | O50: 0.8503818175
I51: 2 | O51: -0.612895591
I52: 2 | O52: -0.4780656452
I53: 2 | O53: 0.4223968998
I54: 3 | O54: =CORREL($B$4:$G$4,B2:G2) -> 0.5849851633
I55: 3 | O55: =CORREL($B$4:$G$4,B3:G3) -> 0.1209321375
I56: 3
I57: 3 | O57: -0.150748229
I58: 3 | O58: 0.5116978374
I59: 3 | O59: 0.6167553808
I60: 3 | O60: 0.3940899499
I61: 3 | O61: -0.3715028724
I62: 3 | O62: -0.6055208981
I63: 3 | O63: 0.09775380614
I64: 3 | O64: -0.7592544734
I65: 3 | O65: -0.1876173926
I66: 3 | O66: -0.1166440453
I67: 3 | O67: 0.4056308958
I68: 3 | O68: 0.1446939484
I69: 3 | O69: 0.01921824211
I70: 4 | O70: =CORREL($B$5:$G$5,B2:G2) -> 0.3544832824
I71: 4 | O71: =CORREL($B$5:$G$5,B3:G3) -> -0.2765941619
I72: 4 | O72: -0.150748229
I73: 4
I74: 4 | O74: 0.4983006066
I75: 4 | O75: 0.2561627807
I76: 4 | O76: 0.5004730642
I77: 4 | O77: -0.1110873356
I78: 4 | O78: -0.4875823118
I79: 4 | O79: 0.4750292044
I80: 4 | O80: 0.2310558569
I81: 4 | O81: 0.6889081418
I82: 4 | O82: -0.2880504616
I83: 4 | O83: 0.4637246658
I84: 4 | O84: -0.4184348145
I85: 4 | O85: -0.7735570771
I86: 5 | O86: =CORREL($B$6:$G$6,B2:G2) -> 0.2008499818
I87: 5 | O87: =CORREL($B$6:$G$6,B3:G3) -> 0.04375299357
I88: 5 | O88: 0.5116978374
I89: 5 | O89: 0.4983006066
I90: 5
I91: 5 | O91: 0.4475517111
I92: 5 | O92: 0.3431929302
I93: 5 | O93: 0.2308558842
I94: 5 | O94: -0.4914276981
I95: 5 | O95: 0.6243001079
I96: 5 | O96: -0.5713396491
I97: 5 | O97: 0.6864666775
I98: 5 | O98: -0.4059228851
I99: 5 | O99: 0.6915429079
I100: 5 | O100: -0.5295316693
I101: 5 | O101: -0.113612134
I102: 6 | O102: =CORREL($B$7:$G$7,B2:G2) -> 0.731359266
I103: =I87+1 -> 6 | O103: =CORREL($B$7:$G$7,B3:G3) -> -0.3698301357
I104: 6 | O104: 0.6167553808
I105: 6 | O105: 0.2561627807
I106: 6 | O106: 0.4475517111
I107: 6
I108: 6 | O108: 0.166666764
I109: 6 | O109: -0.190423795
I110: 6 | O110: -0.8829891257
I111: 6 | O111: 0.6745289705
I112: 6 | O112: -0.1397610961
I113: 6 | O113: -0.1066093117
I114: 6 | O114: -0.5351968912
I115: 6 | O115: 0.8021836342
I116: 6 | O116: -0.08311831998
I117: 6 | O117: -0.5587789104
I118: 7 | O118: =CORREL($B$8:$G$8,B2:G2) -> 0.7039252912
I119: 7 | O119: =CORREL($B$8:$G$8,B3:G3) -> 0.438140955
I120: 7 | O120: 0.3940899499
I121: 7 | O121: 0.5004730642
I122: 7 | O122: 0.3431929302
I123: 7 | O123: 0.166666764
I124: 7
I125: 7 | O125: -0.748915832
I126: 7 | O126: -0.5981831034
I127: 7 | O127: -0.03991784236
I128: 7 | O128: -0.09415999464
I129: 7 | O129: 0.08119258371
I130: 7 | O130: 0.4529308578
I131: 7 | O131: -0.06567242778
I132: 7 | O132: -0.2583894357
I133: 7 | O133: -0.4704641854
I134: 8 | O134: =CORREL($B$9:$G$9,B2:G2) -> -0.7857339483
I135: 8 | O135: =CORREL($B$9:$G$9,B3:G3) -> -0.186053038
I136: 8 | O136: -0.3715028724
I137: 8 | O137: -0.1110873356
I138: 8 | O138: 0.2308558842
I139: 8 | O139: -0.190423795
I140: 8 | O140: -0.748915832
I141: 8
I142: 8 | O142: 0.4963724313
I143: 8 | O143: 0.3955688526
I144: 8 | O144: -0.07013890712
I145: 8 | O145: 0.486561099
I146: 8 | O146: -0.4782486356
I147: 8 | O147: 0.2563974241
I148: 8 | O148: -0.3166383126
I149: 8 | O149: 0.4785828827
I150: 9 | O150: =CORREL($B$10:$G$10,B2:G2) -> -0.9229681149
I151: 9 | O151: =CORREL($B$10:$G$10,B3:G3) -> 0.1034438722
I152: 9 | O152: -0.6055208981
I153: 9 | O153: -0.4875823118
I154: 9 | O154: -0.4914276981
I155: 9 | O155: -0.8829891257
I156: 9 | O156: -0.5981831034
I157: 9 | O157: 0.4963724313
I158: 9
I159: 9 | O159: -0.5665045317
I160: 9 | O160: 0.05685232992
I161: 9 | O161: 0.04310921711
I162: 9 | O162: 0.2118888225
I163: 9 | O163: -0.6084200363
I164: 9 | O164: 0.236487225
I165: 9 | O165: 0.7276557591
I166: 10 | O166: =CORREL($B$11:$G$11,B2:G2) -> 0.2293738369
I167: =I151+1 -> 10 | O167: =CORREL($B$11:$G$11,B3:G3) -> -0.2004591611
I168: 10 | O168: 0.09775380614
I169: 10 | O169: 0.4750292044
I170: 10 | O170: 0.6243001079
I171: 10 | O171: 0.6745289705
I172: 10 | O172: -0.03991784236
I173: 10 | O173: 0.3955688526
I174: 10 | O174: -0.5665045317
I175: 10
I176: 10 | O176: 0.1200450341
I177: 10 | O177: 0.3815803378
I178: 10 | O178: -0.5381224189
I179: 10 | O179: 0.7585467009
I180: 10 | O180: -0.6811191441
I181: 10 | O181: -0.4004093276
I182: 11 | O182: =CORREL($B$12:$G$12,B2:G2) -> 0.01643146106
I183: 11 | O183: =CORREL($B$12:$G$12,B3:G3) -> -0.07887668223
I184: 11 | O184: -0.7592544734
I185: 11 | O185: 0.2310558569
I186: 11 | O186: -0.5713396491
I187: 11 | O187: -0.1397610961
I188: 11 | O188: -0.09415999464
I189: 11 | O189: -0.07013890712
I190: 11 | O190: 0.05685232992
I191: 11 | O191: 0.1200450341
I192: 11
I193: 11 | O193: -0.2067053993
I194: 11 | O194: 0.224158066
I195: 11 | O195: -0.2974518941
I196: 11 | O196: -0.2177431014
I197: 11 | O197: -0.4559465002
I198: 12 | O198: =CORREL($B$13:$G$13,B2:G2) -> -0.2966067319
I199: 12 | O199: =CORREL($B$13:$G$13,B3:G3) -> -0.1896472109
I200: 12 | O200: -0.1876173926
... 84 more rows

Sheet models1
N1: …
A5: Azonos�t�: | B5: 9281126 | C5: Objektumok: | D5: 16 | E5: Attrib�tumok: | F5: 5 | G5: Lepcs�k: | H5: 16 | I5: Eltol�s: | J5: 0 | K5: Le�r�s: | L5: COCO STD: 9281126 | P5: Azonos�t�: | Q5: 1836075 | R5: Objektumok: | S5: 16 | T5: Attrib�tumok: | U5: 5 | V5: Lepcs�k: | W5: 16 | X5: Eltol�s: | Y5: 0 | Z5: Le�r�s: | AA5: COCO STD: 1836075 | AD5: Azonos�t�: | AE5: 6815612 | AF5: Objektumok: | AG5: 16 | AH5: Attrib�tumok: | AI5: 10 | AJ5: Lepcs�k: | AK5: 16 | AL5: Eltol�s: | AM5: 0 | AN5: Le�r�s: | AO5: COCO STD: 6815612
A7: Rangsor | B7: X(A1) | C7: X(A2) | D7: X(A3) | E7: X(A4) | F7: X(A5) | G7: Y(A6) | I7: =B7 -> X(A1) | J7: =C7 -> X(A2) | K7: X(A3) | L7: X(A4) | M7: X(A5) | N7: Y(A6) | P7: Rangsor | Q7: X(A1) | R7: X(A2) | S7: X(A3) | T7: X(A4) | U7: X(A5) | V7: Y(A6) | AD7: Rangsor | AE7: X(A1) | AF7: X(A2) | AG7: X(A3) | AH7: X(A4) | AI7: X(A5) | AJ7: X(A6) | AK7: X(A7) | AL7: X(A8) | AM7: X(A9) | AN7: X(A10) | AO7: Y(A11)
A8: O1 | B8: 1 | C8: 9 | D8: 10 | E8: 16 | F8: 6 | G8: 61000 | I8: =RANK(B8,B$8:B$23,0) -> 16 | J8: =RANK(C8,C$8:C$23,0) -> 8 | K8: =RANK(D8,D$8:D$23,0) -> 7 | L8: =RANK(E8,E$8:E$23,0) -> 1 | M8: =RANK(F8,F$8:F$23,0) -> 10 | N8: 61000 | P8: O1 | Q8: 16 | R8: 8 | S8: 7 | T8: 1 | U8: 10 | V8: 61000 | AD8: O1 | AE8: 1 | AF8: 9 | AG8: 10 | AH8: 16 | AI8: 6 | AJ8: 16 | AK8: 8 | AL8: 7 | AM8: 1 | AN8: 10 | AO8: 61000
A9: O2 | B9: 14 | C9: 3 | D9: 14 | E9: 12 | F9: 3 | G9: 74000 | I9: =RANK(B9,B$8:B$23,0) -> 3 | J9: 14 | K9: 3 | L9: 5 | M9: 14 | N9: 74000 | P9: O2 | Q9: 3 | R9: 14 | S9: 3 | T9: 5 | U9: 14 | V9: 74000 | AD9: O2 | AE9: 14 | AF9: 3 | AG9: 14 | AH9: 12 | AI9: 3 | AJ9: 3 | AK9: 14 | AL9: 3 | AM9: 5 | AN9: 14 | AO9: 74000
A10: O3 | B10: 5 | C10: 14 | D10: 3 | E10: 15 | F10: 4 | G10: 77000 | I10: 11 | J10: 3 | K10: 13 | L10: 2 | M10: 13 | N10: 77000 | P10: O3 | Q10: 11 | R10: 3 | S10: 13 | T10: 2 | U10: 13 | V10: 77000 | AD10: O3 | AE10: 5 | AF10: 14 | AG10: 3 | AH10: 15 | AI10: 4 | AJ10: 11 | AK10: 3 | AL10: 13 | AM10: 2 | AN10: 13 | AO10: 77000
A11: O4 | B11: 2 | C11: 2 | D11: 7 | E11: 6 | F11: 14 | G11: 86000 | I11: 15 | J11: 15 | K11: 10 | L11: 11 | M11: 3 | N11: 86000 | P11: O4 | Q11: 15 | R11: 15 | S11: 10 | T11: 11 | U11: 3 | V11: 86000 | AD11: O4 | AE11: 2 | AF11: 2 | AG11: 7 | AH11: 6 | AI11: 14 | AJ11: 15 | AK11: 15 | AL11: 10 | AM11: 11 | AN11: 3 | AO11: 86000
A12: O5 | B12: 10 | C12: 5 | D12: 1 | E12: 9 | F12: 12 | G12: 79000 | I12: 7 | J12: 12 | K12: 16 | L12: 8 | M12: 5 | N12: 79000 | P12: O5 | Q12: 7 | R12: 12 | S12: 16 | T12: 8 | U12: 5 | V12: 79000 | AD12: O5 | AE12: 10 | AF12: 5 | AG12: 1 | AH12: 9 | AI12: 12 | AJ12: 7 | AK12: 12 | AL12: 16 | AM12: 8 | AN12: 5 | AO12: 79000
A13: O6 | B13: 3 | C13: 10 | D13: 3 | E13: 13 | F13: 9 | G13: 38000 | I13: 14 | J13: 7 | K13: 13 | L13: 3 | M13: 8 | N13: 38000 | P13: O6 | Q13: 14 | R13: 7 | S13: 13 | T13: 3 | U13: 8 | V13: 38000 | AD13: O6 | AE13: 3 | AF13: 10 | AG13: 3 | AH13: 13 | AI13: 9 | AJ13: 14 | AK13: 7 | AL13: 13 | AM13: 3 | AN13: 8 | AO13: 38000
A14: O7 | B14: 5 | C14: 6 | D14: 12 | E14: 10 | F14: 8 | G14: 80000 | I14: 11 | J14: 11 | K14: 5 | L14: 7 | M14: 9 | N14: 80000 | P14: O7 | Q14: 11 | R14: 11 | S14: 5 | T14: 7 | U14: 9 | V14: 80000 | AD14: O7 | AE14: 5 | AF14: 6 | AG14: 12 | AH14: 10 | AI14: 8 | AJ14: 11 | AK14: 11 | AL14: 5 | AM14: 7 | AN14: 9 | AO14: 80000
A15: O8 | B15: 15 | C15: 7 | D15: 6 | E15: 1 | F15: 11 | G15: 25000 | I15: 1 | J15: 9 | K15: 11 | L15: 16 | M15: 6 | N15: 25000 | P15: O8 | Q15: 1 | R15: 9 | S15: 11 | T15: 16 | U15: 6 | V15: 25000 | AD15: O8 | AE15: 15 | AF15: 7 | AG15: 6 | AH15: 1 | AI15: 11 | AJ15: 1 | AK15: 9 | AL15: 11 | AM15: 16 | AN15: 6 | AO15: 25000
